Workbook

Sheet 検索入力
A2: 日の出・日の入計算のページ | G2: http://www2.ocn.ne.jp/~kyouretu/buturi/ronbun.html
B4: 注意：マクロを必ず有効にしてください。有効にしないと計算が実行されません。 | J4: 主要都市の緯度経度
J5: 都市 | K5: 緯度 | L5: 経度
A6: 緯度入力 | B6: 経度入力 | J6: 札幌 | K6: 43.0667 | L6: 141.35
A7: 35.1667 | B7: 136.9167 | J7: 仙台 | K7: 38.2667 | L7: 140.8667
B8: 日付入力 ↓ | C8: 日出 | D8: 日出方向（度） | E8: 南中 (太陽が真南) | F8: 日の入り | G8: 日の入り方向(度） | H8: 日照時間 | J8: 東京 | K8: 35.6581 | L8: 139.7414
A9: 2012年用 | B9: 2012-08-01 | C9: =VLOOKUP($B$9+0.5,'2012年'!$A$19:$T$384,15,TRUE) -> 05:01:18.629 | D9: =VLOOKUP($B$9+0.5,'2012年'!$A$19:$T$384,16,TRUE) -> 22.84923713 | E9: =VLOOKUP($B$9+0.5,'2012年'!$A$19:$T$384,17,TRUE) -> 11:58:38.787 | F9: =VLOOKUP($B$9+0.5,'2012年'!$A$19:$T$384,18,TRUE) -> 18:55:34.203 | G9: =VLOOKUP($B$9+0.5,'2012年'!$A$19:$T$384,19,TRUE) -> 22.68945939 | H9: =VLOOKUP($B$9+0.5,'2012年'!$A$19:$T$384,20,TRUE) -> 13:54:15.574 | J9: 金沢 | K9: 36.5667 | L9: 136.65
A10: 2013年用 | B10: 2013-08-01 | C10: =VLOOKUP($B$10+0.5,西暦2013年,15,TRUE) -> 05:01:07.802 | D10: =VLOOKUP($B$10+0.5,西暦2013年,16,TRUE) -> 22.9259394 | E10: =VLOOKUP($B$10+0.5,西暦2013年,17,TRUE) -> 11:58:39.814 | F10: =VLOOKUP($B$10+0.5,西暦2013年,18,TRUE) -> 18:55:47.176 | G10: =VLOOKUP($B$10+0.5,西暦2013年,19,TRUE) -> 22.76687209 | H10: =VLOOKUP($B$10+0.5,西暦2013年,20,TRUE) -> 13:54:39.374 | J10: 名古屋 | K10: 35.1667 | L10: 136.9167
A11: 2014年用 | B11: 2014-08-01 | C11: =VLOOKUP($B$11+0.5,西暦2014年,15,TRUE) -> 05:00:56.985 | D11: =VLOOKUP($B$11+0.5,西暦2014年,16,TRUE) -> 23.00229549 | E11: =VLOOKUP($B$11+0.5,西暦2014年,17,TRUE) -> 11:58:40.806 | F11: =VLOOKUP($B$11+0.5,西暦2014年,18,TRUE) -> 18:56:00.070 | G11: =VLOOKUP($B$11+0.5,西暦2014年,19,TRUE) -> 22.84394187 | H11: =VLOOKUP($B$11+0.5,西暦2014年,20,TRUE) -> 13:55:03.084 | J11: 大阪 | K11: 34.6833 | L11: 135.4833
A12: 2015年用 | B12: 2015-08-01 | C12: =VLOOKUP($B$12+0.5,西暦2015年,15,TRUE) -> 05:00:46.179 | D12: =VLOOKUP($B$12+0.5,西暦2015年,16,TRUE) -> 23.07830384 | E12: =VLOOKUP($B$12+0.5,西暦2015年,17,TRUE) -> 11:58:41.764 | F12: =VLOOKUP($B$12+0.5,西暦2015年,18,TRUE) -> 18:56:12.884 | G12: =VLOOKUP($B$12+0.5,西暦2015年,19,TRUE) -> 22.92066718 | H12: =VLOOKUP($B$12+0.5,西暦2015年,20,TRUE) -> 13:55:26.705 | J12: 岡山 | K12: 34.6667 | L12: 133.9333
J13: 広島 | K13: 34.3833 | L13: 132.45
J14: 高知 | K14: 33.55 | L14: 133.5333
J15: 福岡 | K15: 33.5833 | L15: 130.4
B16: 例えば緯度40.00度、経度133.55度の場所の 2013年3月5日の日入出の時刻を知りた ければ、緯度、経度欄にそれぞれ40.00と 133.55を入力し、2013年用の行に2013/3/5 と半角で入力します。出力は日本時間です。 | J16: 鹿児島 | K16: 31.6 | L16: 130.55
J17: 那覇 | K17: 26.2167 | L17: 127.6667
A104: 太陽の南中から次の南中までの時間が24時間からどれだけ異なるかを表示しています。

Sheet 2012年
A1: 春分 | B1: 秋分 | G1: 恒星年 | H1: 365.256363 | I1: 近点年平均角速度（度/日） | J1: =360/L1 -> 0.9856002825 | K1: 近点年 | L1: 365.2596355
A2: =(360-B98)/(D98/$H$4*$L$3)+A98 -> 2012-03-20T14:16:29.926 | B2: =(180-B284)/(D284/$H$4*$L$3)+A284 -> 2012-09-23T00:05:54.708 | G2: 積分値 | H2: 360.1510143 | I2: 地軸傾斜 | J2: 23.44 | K2: 太陽年 | L2: 365.2421903
A3: 夏至 | B3: 冬至 | G3: e(離心率） | H3: 0.01672 | I3: 南中ずれ | J3: =(135-検索入力!B7)*4 -> -7.6668 | K3: A(太陽年） | L3: =H2/L2 -> 0.9860608218
A4: =(90-B190)/(D190/$H$4*$L$3)+A190 -> 2012-06-21T08:26:00.324 | B4: =(270-B374)/(D374/$H$4*$L$3)+A374 -> 2012-12-21T20:20:33.454 | G4: A(近点年） | H4: =H2/L1 -> 0.9860137263 | I4: 太陽半径(分） | J4: 16 | K4: 太陽年角速度(度/日) | L4: =360/L2 -> 0.9856473583
A5: 近日点 | G5: 大気補正(分) | H5: 34 | I5: 出没角（度） | J5: =(H5+J4)/60 -> 0.8333333333
A6: =A21+(360-C21)/D21 -> 2012-01-04T08:42:22 | B6: =IF(B21+(A6-A21)*D21/$H$4*$L$3<360,B21+(A6-A21)*D21/$H$4*$L$3,B21+(A6-A21)*D21/$H$4*$L$3-360) -> 283.0006209 | C6: =IF(C21+D21*(A6-A21)<360,C21+D21*(A6-A21),C21+D21*(A6-A21)-360) -> 360 | D6: =$H$4*(1+$H$3*DCOS(C6))^2*(1-$H$3*dsin(C6)*PI()/180*(1+$H$3*DCOS(C6))) -> 1.019261674 | E6: =D6*$L$3/$H$4-$L$4 -> 0.03366299893 | F6: =4*E6 -> 0.1346519957 | G6: 0 | J6: 0
A8: 日付 | B8: 黄経 | C8: 近経 | D8: 近点年角速度 | E8: 偏差 | F8: 日長1（分） | G8: ΔM1 | H8: 太陽赤緯 | I8: 赤経 | J8: ΔM2 | K8: 日長２（分） | L8: ΔM | M8: 一日の長さ(秒） | N8: θ | O8: 日出時刻 | P8: 日出方位 | Q8: 南中時刻 | R8: 日入時刻 | S8: 日の入り方位 | T8: 日照時間
A9: 2011-12-22T14:31:00 | B9: 270 | C9: =B9+77 -> 347 | D9: =$H$4*(1+$H$3*DCOS(C9))^2*(1-(A10-A9)*$H$3*dsin(C9)*PI()/180*(1+$H$3*DCOS(C9))) -> 1.018463465 | E9: =D9*$L$3/$H$4-$L$4 -> 0.03286475197 | F9: =4*E9 -> 0.1314590079
A10: 2011-12-23T12:00:00 | B10: =IF(B9+(A10-A9)*D9/$H$4*$L$3<360,B9+(A10-A9)*D9/$H$4*$L$3,B9+(A10-A9)*D9/$H$4*$L$3-360) -> 270.9117098 | C10: =IF(C9+D9*(A10-A9)<360,C9+D9*(A10-A9),C9+D9*(A10-A9)-360) -> 347.9116663 | D10: =$H$4*(1+$H$3*DCOS(C10))^2*(1-$H$3*dsin(C10)*PI()/180*(1+$H$3*DCOS(C10))) -> 1.018581716 | E10: 0.03298300829 | F10: 0.1319320332
A11: 2011-12-24T12:00:00 | B11: 271.9303402 | C11: 348.930248 | D11: 1.018696046 | E11: 0.03309734405 | F11: 0.1323893762
A12: 2011-12-25T12:00:00 | B12: 272.9490849 | C12: 349.948944 | D12: 1.018799978 | E12: 0.03320128151 | F12: 0.132805126
A13: 2011-12-26T12:00:00 | B13: 273.9679335 | C13: 350.967744 | D13: 1.018893474 | E13: 0.03329478196 | F13: 0.1331791278
A14: 2011-12-27T12:00:00 | B14: 274.9868756 | C14: 351.9866375 | D14: 1.018976499 | E14: 0.03337781056 | F14: 0.1335112422
A15: 2011-12-28T12:00:00 | B15: 276.0059008 | C15: 353.005614 | D15: 1.019049021 | E15: 0.03345033635 | F15: 0.1338013454
A16: 2011-12-29T12:00:00 | B16: 277.0249985 | C16: 354.024663 | D16: 1.019111014 | E16: 0.03351233227 | F16: 0.1340493291
A17: 2011-12-30T12:00:00 | B17: 278.0441582 | C17: 355.043774 | D17: 1.019162455 | E17: 0.03356377518 | F17: 0.1342551007
A18: 2011-12-31T12:00:00 | B18: 279.0633693 | C18: 356.0629365 | D18: 1.019203323 | E18: 0.03360464588 | F18: 0.1344185835 | G18: =G19+F18*(A18-A19) -> -0.5197507781 | H18: =adsin(dsin(B18)*dsin($J$2)) -> -23.13020723 | I18: =IF(270<=B18,ATAN(dtan(B18)*DCOS($J$2))/PI()*180+360,IF(B18>90,ATAN(dtan(B18)*DCOS($J$2))/PI()*180+180,ATAN(dtan(B18)*DCOS($J$2))/PI()*180)) -> 279.8632093 | J18: =(I18-B18)*4 -> 3.199359799 | K18: =J19-J18 -> 0.3437046419 | L18: =G18+J18 -> 2.679609021 | M18: =F18+K18 -> 0.4781232254 | N18: =adcos((-dsin(検索入力!$A$7)*dsin(H18)-dsin($J$5))/(DCOS(検索入力!$A$7)*DCOS(H18))) -> 73.64368969 | O18: =Q18-N18*4/60/24 -> 07:00:26.283 | Q18: =(12+(L18+$J$3)/60)/24 -> 11:55:00.769 | R18: =Q18+N18*4/60/24 -> 16:49:35.254
A19: 2012-01-01T12:00:00 | B19: 280.0826213 | C19: 357.0821398 | D19: 1.019233605 | E19: 0.03363492911 | F19: 0.1345397164 | G19: =G20+F19*(A19-A20) -> -0.3853321946 | H19: -23.05690681 | I19: =IF(270<=B19,ATAN(dtan(B19)*DCOS($J$2))/PI()*180+360,IF(B19>90,ATAN(dtan(B19)*DCOS($J$2))/PI()*180+180,ATAN(dtan(B19)*DCOS($J$2))/PI()*180)) -> 280.9683874 | J19: 3.543064441 | K19: 0.3386512817 | L19: 3.157732246 | M19: =(F19+K19)*60 -> 28.39145989 | N19: =adcos((-dsin(検索入力!$A$7)*dsin(H19)-dsin($J$5))/(DCOS(検索入力!$A$7)*DCOS(H19))) -> 73.70665771 | O19: =0.75*Q19+0.25*Q18-(0.75*N19+0.25*N18)*4/60/24 -> 07:00:36.464 | P19: =ATAN((-dsin(検索入力!$A$7)*DCOS(N19*0.75+N18*0.25)*DCOS(H19*0.75+H18*0.25)+DCOS(検索入力!$A$7)*dsin(H19*0.75+H18*0.25))/(dsin(N19*0.75+N18*0.25)*DCOS(H19*0.75+H18*0.25)))/PI()*180 -> -27.98570567 | Q19: 11:55:29.456 | R19: =0.75*Q19+0.25*Q20+(0.75*N19+0.25*N20)*4/60/24 -> 16:50:30.319 | S19: =ATAN((-dsin(検索入力!$A$7)*DCOS(N19*0.75+N20*0.25)*DCOS(H19*0.75+H20*0.25)+DCOS(検索入力!$A$7)*dsin(H19*0.75+H20*0.25))/(dsin(N19*0.75+N20*0.25)*DCOS(H19*0.75+H20*0.25)))/PI()*180 -> -27.93655217 | T19: =R19-O19 -> 09:49:53.855
A20: 2012-01-02T12:00:00 | B20: 281.1019036 | C20: 358.1013734 | D20: 1.019253289 | E20: 0.03365461355 | F20: 0.1346184542 | G20: =G21+F20*(A20-A21) -> -0.2507924781 | H20: -22.97593064 | I20: =IF(270<=B20,ATAN(dtan(B20)*DCOS($J$2))/PI()*180+360,IF(B20>90,ATAN(dtan(B20)*DCOS($J$2))/PI()*180+180,ATAN(dtan(B20)*DCOS($J$2))/PI()*180)) -> 282.0723326 | J20: 3.881715723 | K20: 0.3331200475 | L20: 3.630923244 | M20: =(F20+K20)*60 -> 28.0643101 | N20: =adcos((-dsin(検索入力!$A$7)*dsin(H20)-dsin($J$5))/(DCOS(検索入力!$A$7)*DCOS(H20))) -> 73.77611858 | O20: 07:00:48.649 | P20: =ATAN((-dsin(検索入力!$A$7)*DCOS(N20*0.75+N19*0.25)*DCOS(H20*0.75+H19*0.25)+DCOS(検索入力!$A$7)*dsin(H20*0.75+H19*0.25))/(dsin(N20*0.75+N19*0.25)*DCOS(H20*0.75+H19*0.25)))/PI()*180 -> -27.88496098 | Q20: 11:55:57.847 | R20: 16:51:15.685 | S20: =ATAN((-dsin(検索入力!$A$7)*DCOS(N20*0.75+N21*0.25)*DCOS(H20*0.75+H21*0.25)+DCOS(検索入力!$A$7)*dsin(H20*0.75+H21*0.25))/(dsin(N20*0.75+N21*0.25)*DCOS(H20*0.75+H21*0.25)))/PI()*180 -> -27.83094806 | T20: 09:50:27.037
A21: 2012-01-03T12:00:00 | B21: 282.1212056 | C21: 359.1206267 | D21: 1.019262367 | E21: =D21*$L$3/$H$4-$L$4 -> 0.03366369185 | F21: 0.1346547674 | G21: =G6+F21*(A21-A6) -> -0.1161740239 | H21: -22.88731823 | I21: =IF(270<=B21,ATAN(dtan(B21)*DCOS($J$2))/PI()*180+360,IF(B21>90,ATAN(dtan(B21)*DCOS($J$2))/PI()*180+180,ATAN(dtan(B21)*DCOS($J$2))/PI()*180)) -> 283.1749145 | J21: 4.21483577 | K21: 0.3271217013 | L21: 4.098661746 | M21: =(F21+K21)*60 -> 27.70658812 | N21: =adcos((-dsin(検索入力!$A$7)*dsin(H21)-dsin($J$5))/(DCOS(検索入力!$A$7)*DCOS(H21))) -> 73.85200907 | O21: 07:00:58.967 | P21: =ATAN((-dsin(検索入力!$A$7)*DCOS(N21*0.75+N20*0.25)*DCOS(H21*0.75+H20*0.25)+DCOS(検索入力!$A$7)*dsin(H21*0.75+H20*0.25))/(dsin(N21*0.75+N20*0.25)*DCOS(H21*0.75+H20*0.25)))/PI()*180 -> -27.77451254 | Q21: 11:56:25.912 | R21: 16:52:02.256 | S21: =ATAN((-dsin(検索入力!$A$7)*DCOS(N21*0.75+N22*0.25)*DCOS(H21*0.75+H22*0.25)+DCOS(検索入力!$A$7)*dsin(H21*0.75+H22*0.25))/(dsin(N21*0.75+N22*0.25)*DCOS(H21*0.75+H22*0.25)))/PI()*180 -> -27.71567184 | T21: 09:51:03.289
A22: 2012-01-04T12:00:00 | B22: 283.1405166 | C22: 0.1398890413 | D22: 1.019260835 | E22: =D22*$L$3/$H$4-$L$4 -> 0.03366216062 | F22: 0.1346486425 | G22: =G6+F6*(A22-A6) -> 0.01848036306 | H22: -22.79111296 | I22: =IF(270<=B22,ATAN(dtan(B22)*DCOS($J$2))/PI()*180+360,IF(B22>90,ATAN(dtan(B22)*DCOS($J$2))/PI()*180+180,ATAN(dtan(B22)*DCOS($J$2))/PI()*180)) -> 284.276006 | J22: 4.541957471 | K22: 0.3206678678 | L22: 4.560437834 | M22: 27.31899061 | N22: =adcos((-dsin(検索入力!$A$7)*dsin(H22)-dsin($J$5))/(DCOS(検索入力!$A$7)*DCOS(H22))) -> 73.93426048 | O22: 07:01:07.404 | P22: =ATAN((-dsin(検索入力!$A$7)*DCOS(N22*0.75+N21*0.25)*DCOS(H22*0.75+H21*0.25)+DCOS(検索入力!$A$7)*dsin(H22*0.75+H21*0.25))/(dsin(N22*0.75+N21*0.25)*DCOS(H22*0.75+H21*0.25)))/PI()*180 -> -27.65442505 | Q22: 11:56:53.618 | R22: 16:52:49.983 | S22: =ATAN((-dsin(検索入力!$A$7)*DCOS(N22*0.75+N23*0.25)*DCOS(H22*0.75+H23*0.25)+DCOS(検索入力!$A$7)*dsin(H22*0.75+H23*0.25))/(dsin(N22*0.75+N23*0.25)*DCOS(H22*0.75+H23*0.25)))/PI()*180 -> -27.59079102 | T22: 09:51:42.579
A23: 2012-01-05T12:00:00 | B23: 284.1598262 | C23: 1.159149877 | D23: 1.019248696 | E23: 0.03365002044 | F23: 0.1346000817 | G23: =G22+F22*(A23-A22) -> 0.1531290055 | H23: -22.68736198 | I23: =IF(270<=B23,ATAN(dtan(B23)*DCOS($J$2))/PI()*180+360,IF(B23>90,ATAN(dtan(B23)*DCOS($J$2))/PI()*180+180,ATAN(dtan(B23)*DCOS($J$2))/PI()*180)) -> 285.3754825 | J23: 4.862625339 | K23: 0.3137709922 | L23: 5.015754345 | M23: 26.90226444 | N23: =adcos((-dsin(検索入力!$A$7)*dsin(H23)-dsin($J$5))/(DCOS(検索入力!$A$7)*DCOS(H23))) -> 74.02279882 | O23: 07:01:13.948 | P23: =ATAN((-dsin(検索入力!$A$7)*DCOS(N23*0.75+N22*0.25)*DCOS(H23*0.75+H22*0.25)+DCOS(検索入力!$A$7)*dsin(H23*0.75+H22*0.25))/(dsin(N23*0.75+N22*0.25)*DCOS(H23*0.75+H22*0.25)))/PI()*180 -> -27.52476877 | Q23: 11:57:20.937 | R23: 16:53:38.819 | S23: =ATAN((-dsin(検索入力!$A$7)*DCOS(N23*0.75+N24*0.25)*DCOS(H23*0.75+H24*0.25)+DCOS(検索入力!$A$7)*dsin(H23*0.75+H24*0.25))/(dsin(N23*0.75+N24*0.25)*DCOS(H23*0.75+H24*0.25)))/PI()*180 -> -27.45637855 | T23: 09:52:24.871
A24: 2012-01-06T12:00:00 | B24: 285.1791235 | C24: 2.178398573 | D24: 1.019225952 | E24: 0.03362727583 | F24: 0.1345091033 | G24: 0.2877290873 | H24: -22.57611612 | I24: =IF(270<=B24,ATAN(dtan(B24)*DCOS($J$2))/PI()*180+360,IF(B24>90,ATAN(dtan(B24)*DCOS($J$2))/PI()*180+180,ATAN(dtan(B24)*DCOS($J$2))/PI()*180)) -> 286.4732226 | J24: 5.176396331 | K24: 0.3064442972 | L24: 5.464125419 | M24: 26.45720403 | N24: =adcos((-dsin(検索入力!$A$7)*dsin(H24)-dsin($J$5))/(DCOS(検索入力!$A$7)*DCOS(H24))) -> 74.11754508 | O24: 07:01:18.588 | P24: =ATAN((-dsin(検索入力!$A$7)*DCOS(N24*0.75+N23*0.25)*DCOS(H24*0.75+H23*0.25)+DCOS(検索入力!$A$7)*dsin(H24*0.75+H23*0.25))/(dsin(N24*0.75+N23*0.25)*DCOS(H24*0.75+H23*0.25)))/PI()*180 -> -27.38561933 | Q24: 11:57:47.840 | R24: 16:54:28.717 | S24: =ATAN((-dsin(検索入力!$A$7)*DCOS(N24*0.75+N25*0.25)*DCOS(H24*0.75+H25*0.25)+DCOS(検索入力!$A$7)*dsin(H24*0.75+H25*0.25))/(dsin(N24*0.75+N25*0.25)*DCOS(H24*0.75+H25*0.25)))/PI()*180 -> -27.31251269 | T24: 09:53:10.129
A25: 2012-01-07T12:00:00 | B25: 286.1983982 | C25: 3.197624525 | D25: 1.019192613 | E25: 0.03359393532 | F25: 0.1343757413 | G25: 0.4222381906 | H25: -22.45742986 | I25: =IF(270<=B25,ATAN(dtan(B25)*DCOS($J$2))/PI()*180+360,IF(B25>90,ATAN(dtan(B25)*DCOS($J$2))/PI()*180+180,ATAN(dtan(B25)*DCOS($J$2))/PI()*180)) -> 287.5691083 | J25: 5.482840629 | K25: 0.298701736 | L25: 5.905078819 | M25: 25.98464864 | N25: =adcos((-dsin(検索入力!$A$7)*dsin(H25)-dsin($J$5))/(DCOS(検索入力!$A$7)*DCOS(H25))) -> 74.2184155 | O25: 07:01:21.315 | P25: =ATAN((-dsin(検索入力!$A$7)*DCOS(N25*0.75+N24*0.25)*DCOS(H25*0.75+H24*0.25)+DCOS(検索入力!$A$7)*dsin(H25*0.75+H24*0.25))/(dsin(N25*0.75+N24*0.25)*DCOS(H25*0.75+H24*0.25)))/PI()*180 -> -27.23705756 | Q25: 11:58:14.297 | R25: 16:55:19.627 | S25: =ATAN((-dsin(検索入力!$A$7)*DCOS(N25*0.75+N26*0.25)*DCOS(H25*0.75+H26*0.25)+DCOS(検索入力!$A$7)*dsin(H25*0.75+H26*0.25))/(dsin(N25*0.75+N26*0.25)*DCOS(H25*0.75+H26*0.25)))/PI()*180 -> -27.15927683 | T25: 09:53:58.312
A26: 2012-01-08T12:00:00 | B26: 287.2176395 | C26: 4.216817138 | D26: 1.019148691 | E26: 0.03355001134 | F26: 0.1342000454 | G26: 0.5566139319 | H26: -22.33136118 | I26: =IF(270<=B26,ATAN(dtan(B26)*DCOS($J$2))/PI()*180+360,IF(B26>90,ATAN(dtan(B26)*DCOS($J$2))/PI()*180+180,ATAN(dtan(B26)*DCOS($J$2))/PI()*180)) -> 288.6630251 | J26: 5.781542365 | K26: 0.2905579451 | L26: 6.338156297 | M26: 25.48547943 | N26: =adcos((-dsin(検索入力!$A$7)*dsin(H26)-dsin($J$5))/(DCOS(検索入力!$A$7)*DCOS(H26))) -> 74.32532175 | O26: 07:01:22.122 | P26: =ATAN((-dsin(検索入力!$A$7)*DCOS(N26*0.75+N25*0.25)*DCOS(H26*0.75+H25*0.25)+DCOS(検索入力!$A$7)*dsin(H26*0.75+H25*0.25))/(dsin(N26*0.75+N25*0.25)*DCOS(H26*0.75+H25*0.25)))/PI()*180 -> -27.07916936 | Q26: 11:58:40.281 | R26: 16:56:11.501 | S26: =ATAN((-dsin(検索入力!$A$7)*DCOS(N26*0.75+N27*0.25)*DCOS(H26*0.75+H27*0.25)+DCOS(検索入力!$A$7)*dsin(H26*0.75+H27*0.25))/(dsin(N26*0.75+N27*0.25)*DCOS(H26*0.75+H27*0.25)))/PI()*180 -> -26.9967593 | T26: 09:54:49.379
A27: 2012-01-09T12:00:00 | B27: 288.2368368 | C27: 5.23596583 | D27: 1.019094203 | E27: 0.03349552031 | F27: 0.1339820813 | G27: 0.6908139772 | H27: -22.19797152 | I27: =IF(270<=B27,ATAN(dtan(B27)*DCOS($J$2))/PI()*180+360,IF(B27>90,ATAN(dtan(B27)*DCOS($J$2))/PI()*180+180,ATAN(dtan(B27)*DCOS($J$2))/PI()*180)) -> 289.7548619 | J27: 6.07210031 | K27: 0.2820281945 | L27: 6.762914287 | M27: 24.96061654 | N27: =adcos((-dsin(検索入力!$A$7)*dsin(H27)-dsin($J$5))/(DCOS(検索入力!$A$7)*DCOS(H27))) -> 74.43817132 | O27: 07:01:21.005 | P27: =ATAN((-dsin(検索入力!$A$7)*DCOS(N27*0.75+N26*0.25)*DCOS(H27*0.75+H26*0.25)+DCOS(検索入力!$A$7)*dsin(H27*0.75+H26*0.25))/(dsin(N27*0.75+N26*0.25)*DCOS(H27*0.75+H26*0.25)))/PI()*180 -> -26.91204547 | Q27: 11:59:05.767 | R27: 16:57:04.290 | S27: =ATAN((-dsin(検索入力!$A$7)*DCOS(N27*0.75+N28*0.25)*DCOS(H27*0.75+H28*0.25)+DCOS(検索入力!$A$7)*dsin(H27*0.75+H28*0.25))/(dsin(N27*0.75+N28*0.25)*DCOS(H27*0.75+H28*0.25)))/PI()*180 -> -26.82505321 | T27: 09:55:43.285
A28: 2012-01-10T12:00:00 | B28: 289.2559797 | C28: 6.255060033 | D28: 1.019029168 | E28: 0.03343048258 | F28: 0.1337219303 | G28: 0.8247960585 | H28: -22.05732565 | I28: =IF(270<=B28,ATAN(dtan(B28)*DCOS($J$2))/PI()*180+360,IF(B28>90,ATAN(dtan(B28)*DCOS($J$2))/PI()*180+180,ATAN(dtan(B28)*DCOS($J$2))/PI()*180)) -> 290.8445118 | J28: 6.354128504 | K28: 0.2731283374 | L28: 7.178924563 | M28: 24.41101606 | N28: =adcos((-dsin(検索入力!$A$7)*dsin(H28)-dsin($J$5))/(DCOS(検索入力!$A$7)*DCOS(H28))) -> 74.55686767 | O28: 07:01:17.961 | P28: =ATAN((-dsin(検索入力!$A$7)*DCOS(N28*0.75+N27*0.25)*DCOS(H28*0.75+H27*0.25)+DCOS(検索入力!$A$7)*dsin(H28*0.75+H27*0.25))/(dsin(N28*0.75+N27*0.25)*DCOS(H28*0.75+H27*0.25)))/PI()*180 -> -26.73578132 | Q28: 11:59:30.727 | R28: 16:57:57.945 | S28: =ATAN((-dsin(検索入力!$A$7)*DCOS(N28*0.75+N29*0.25)*DCOS(H28*0.75+H29*0.25)+DCOS(検索入力!$A$7)*dsin(H28*0.75+H29*0.25))/(dsin(N28*0.75+N29*0.25)*DCOS(H28*0.75+H29*0.25)))/PI()*180 -> -26.64425626 | T28: 09:56:39.984
A29: 2012-01-11T12:00:00 | B29: 290.2750576 | C29: 7.274089201 | D29: 1.018953612 | E29: 0.03335492242 | F29: 0.1334196897 | G29: 0.9585179888 | H29: -21.90949159 | I29: =IF(270<=B29,ATAN(dtan(B29)*DCOS($J$2))/PI()*180+360,IF(B29>90,ATAN(dtan(B29)*DCOS($J$2))/PI()*180+180,ATAN(dtan(B29)*DCOS($J$2))/PI()*180)) -> 291.9318718 | J29: 6.627256842 | K29: 0.2638747586 | L29: 7.58577483 | M29: 23.8376669 | N29: =adcos((-dsin(検索入力!$A$7)*dsin(H29)-dsin($J$5))/(DCOS(検索入力!$A$7)*DCOS(H29))) -> 74.68131062 | O29: 07:01:12.988 | P29: =ATAN((-dsin(検索入力!$A$7)*DCOS(N29*0.75+N28*0.25)*DCOS(H29*0.75+H28*0.25)+DCOS(検索入力!$A$7)*dsin(H29*0.75+H28*0.25))/(dsin(N29*0.75+N28*0.25)*DCOS(H29*0.75+H28*0.25)))/PI()*180 -> -26.55047679 | Q29: 11:59:55.138 | R29: 16:58:52.418 | S29: =ATAN((-dsin(検索入力!$A$7)*DCOS(N29*0.75+N30*0.25)*DCOS(H29*0.75+H30*0.25)+DCOS(検索入力!$A$7)*dsin(H29*0.75+H30*0.25))/(dsin(N29*0.75+N30*0.25)*DCOS(H29*0.75+H30*0.25)))/PI()*180 -> -26.45447049 | T29: 09:57:39.430
A30: 2012-01-12T12:00:00 | B30: 291.2940598 | C30: 8.293042813 | D30: 1.018867562 | E30: 0.03326886802 | F30: 0.1330754721 | G30: 1.091937679 | H30: -21.75454051 | I30: =IF(270<=B30,ATAN(dtan(B30)*DCOS($J$2))/PI()*180+360,IF(B30>90,ATAN(dtan(B30)*DCOS($J$2))/PI()*180+180,ATAN(dtan(B30)*DCOS($J$2))/PI()*180)) -> 293.0168427 | J30: 6.8911316 | K30: 0.2542843227 | L30: 7.983069279 | M30: 23.24158769 | N30: =adcos((-dsin(検索入力!$A$7)*dsin(H30)-dsin($J$5))/(DCOS(検索入力!$A$7)*DCOS(H30))) -> 74.81139657 | O30: 07:01:06.087 | P30: =ATAN((-dsin(検索入力!$A$7)*DCOS(N30*0.75+N29*0.25)*DCOS(H30*0.75+H29*0.25)+DCOS(検索入力!$A$7)*dsin(H30*0.75+H29*0.25))/(dsin(N30*0.75+N29*0.25)*DCOS(H30*0.75+H29*0.25)))/PI()*180 -> -26.35623608 | Q30: 12:00:18.976 | R30: 16:59:47.659 | S30: =ATAN((-dsin(検索入力!$A$7)*DCOS(N30*0.75+N31*0.25)*DCOS(H30*0.75+H31*0.25)+DCOS(検索入力!$A$7)*dsin(H30*0.75+H31*0.25))/(dsin(N30*0.75+N31*0.25)*DCOS(H30*0.75+H31*0.25)))/PI()*180 -> -26.25580215 | T30: 09:58:41.572
A31: 2012-01-13T12:00:00 | B31: 292.3129761 | C31: 9.311910375 | D31: 1.01877105 | E31: 0.03317235147 | F31: 0.1326894059 | G31: 1.225013151 | H31: -21.59254661 | I31: =IF(270<=B31,ATAN(dtan(B31)*DCOS($J$2))/PI()*180+360,IF(B31>90,ATAN(dtan(B31)*DCOS($J$2))/PI()*180+180,ATAN(dtan(B31)*DCOS($J$2))/PI()*180)) -> 294.0993301 | J31: 7.145415923 | K31: 0.2443743212 | L31: 8.370429074 | M31: 22.62382363 | N31: =adcos((-dsin(検索入力!$A$7)*dsin(H31)-dsin($J$5))/(DCOS(検索入力!$A$7)*DCOS(H31))) -> 74.94701883 | O31: 07:00:57.260 | P31: =ATAN((-dsin(検索入力!$A$7)*DCOS(N31*0.75+N30*0.25)*DCOS(H31*0.75+H30*0.25)+DCOS(検索入力!$A$7)*dsin(H31*0.75+H30*0.25))/(dsin(N31*0.75+N30*0.25)*DCOS(H31*0.75+H30*0.25)))/PI()*180 -> -26.15316742 | Q31: 12:00:42.218 | R31: 17:00:43.621 | S31: =ATAN((-dsin(検索入力!$A$7)*DCOS(N31*0.75+N32*0.25)*DCOS(H31*0.75+H32*0.25)+DCOS(検索入力!$A$7)*dsin(H31*0.75+H32*0.25))/(dsin(N31*0.75+N32*0.25)*DCOS(H31*0.75+H32*0.25)))/PI()*180 -> -26.04836146 | T31: 09:59:46.361
A32: 2012-01-14T12:00:00 | B32: 293.3317958 | C32: 10.33068142 | D32: 1.018664112 | E32: 0.03306540872 | F32: 0.1322616349 | G32: 1.357702556 | H32: -21.42358704 | I32: =IF(270<=B32,ATAN(dtan(B32)*DCOS($J$2))/PI()*180+360,IF(B32>90,ATAN(dtan(B32)*DCOS($J$2))/PI()*180+180,ATAN(dtan(B32)*DCOS($J$2))/PI()*180)) -> 295.1792433 | J32: 7.389790244 | K32: 0.2341624207 | L32: 8.747492801 | M32: 21.98544334 | N32: =adcos((-dsin(検索入力!$A$7)*dsin(H32)-dsin($J$5))/(DCOS(検索入力!$A$7)*DCOS(H32))) -> 75.08806788 | O32: 07:00:46.512 | P32: =ATAN((-dsin(検索入力!$A$7)*DCOS(N32*0.75+N31*0.25)*DCOS(H32*0.75+H31*0.25)+DCOS(検索入力!$A$7)*dsin(H32*0.75+H31*0.25))/(dsin(N32*0.75+N31*0.25)*DCOS(H32*0.75+H31*0.25)))/PI()*180 -> -25.94138295 | Q32: 12:01:04.842 | R32: 17:01:40.256 | S32: =ATAN((-dsin(検索入力!$A$7)*DCOS(N32*0.75+N33*0.25)*DCOS(H32*0.75+H33*0.25)+DCOS(検索入力!$A$7)*dsin(H32*0.75+H33*0.25))/(dsin(N32*0.75+N33*0.25)*DCOS(H32*0.75+H33*0.25)))/PI()*180 -> -25.83226238 | T32: 10:00:53.744
A33: 2012-01-15T12:00:00 | B33: 294.3505085 | C33: 11.34934554 | D33: 1.018546789 | E33: 0.03294807961 | F33: 0.1317923185 | G33: 1.489964191 | H33: -21.24774174 | I33: =IF(270<=B33,ATAN(dtan(B33)*DCOS($J$2))/PI()*180+360,IF(B33>90,ATAN(dtan(B33)*DCOS($J$2))/PI()*180+180,ATAN(dtan(B33)*DCOS($J$2))/PI()*180)) -> 296.2564967 | J33: 7.623952665 | K33: 0.2236666101 | L33: 9.113916856 | M33: 21.32753572 | N33: =adcos((-dsin(検索入力!$A$7)*dsin(H33)-dsin($J$5))/(DCOS(検索入力!$A$7)*DCOS(H33))) -> 75.2344317 | O33: 07:00:33.849 | P33: =ATAN((-dsin(検索入力!$A$7)*DCOS(N33*0.75+N32*0.25)*DCOS(H33*0.75+H32*0.25)+DCOS(検索入力!$A$7)*dsin(H33*0.75+H32*0.25))/(dsin(N33*0.75+N32*0.25)*DCOS(H33*0.75+H32*0.25)))/PI()*180 -> -25.72099844 | Q33: 12:01:26.827 | R33: 17:02:37.516 | S33: =ATAN((-dsin(検索入力!$A$7)*DCOS(N33*0.75+N34*0.25)*DCOS(H33*0.75+H34*0.25)+DCOS(検索入力!$A$7)*dsin(H33*0.75+H34*0.25))/(dsin(N33*0.75+N34*0.25)*DCOS(H33*0.75+H34*0.25)))/PI()*180 -> -25.60762246 | T33: 10:02:03.667
A34: 2012-01-16T12:00:00 | B34: 295.369104 | C34: 12.36789232 | D34: 1.018419123 | E34: 0.0328204078 | F34: 0.1312816312 | G34: 1.62175651 | H34: -21.06509339 | I34: =IF(270<=B34,ATAN(dtan(B34)*DCOS($J$2))/PI()*180+360,IF(B34>90,ATAN(dtan(B34)*DCOS($J$2))/PI()*180+180,ATAN(dtan(B34)*DCOS($J$2))/PI()*180)) -> 297.3310088 | J34: 7.847619275 | K34: 0.2129051495 | L34: 9.469375785 | M34: 20.65120684 | N34: =adcos((-dsin(検索入力!$A$7)*dsin(H34)-dsin($J$5))/(DCOS(検索入力!$A$7)*DCOS(H34))) -> 75.38599601 | O34: 07:00:19.277 | P34: =ATAN((-dsin(検索入力!$A$7)*DCOS(N34*0.75+N33*0.25)*DCOS(H34*0.75+H33*0.25)+DCOS(検索入力!$A$7)*dsin(H34*0.75+H33*0.25))/(dsin(N34*0.75+N33*0.25)*DCOS(H34*0.75+H33*0.25)))/PI()*180 -> -25.49213313 | Q34: 12:01:48.155 | R34: 17:03:35.355 | S34: =ATAN((-dsin(検索入力!$A$7)*DCOS(N34*0.75+N35*0.25)*DCOS(H34*0.75+H35*0.25)+DCOS(検索入力!$A$7)*dsin(H34*0.75+H35*0.25))/(dsin(N34*0.75+N35*0.25)*DCOS(H34*0.75+H35*0.25)))/PI()*180 -> -25.37456257 | T34: 10:03:16.078
A35: 2012-01-17T12:00:00 | B35: 296.3875718 | C35: 13.38631145 | D35: 1.018281162 | E35: 0.03268244074 | F35: 0.130729763 | G35: 1.753038141 | H35: -20.87572725 | I35: =IF(270<=B35,ATAN(dtan(B35)*DCOS($J$2))/PI()*180+360,IF(B35>90,ATAN(dtan(B35)*DCOS($J$2))/PI()*180+180,ATAN(dtan(B35)*DCOS($J$2))/PI()*180)) -> 298.4027029 | J35: 8.060524425 | K35: 0.2018965186 | L35: 9.813562566 | M35: 19.9575769 | N35: =adcos((-dsin(検索入力!$A$7)*dsin(H35)-dsin($J$5))/(DCOS(検索入力!$A$7)*DCOS(H35))) -> 75.54264462 | O35: 07:00:02.807 | P35: =ATAN((-dsin(検索入力!$A$7)*DCOS(N35*0.75+N34*0.25)*DCOS(H35*0.75+H34*0.25)+DCOS(検索入力!$A$7)*dsin(H35*0.75+H34*0.25))/(dsin(N35*0.75+N34*0.25)*DCOS(H35*0.75+H34*0.25)))/PI()*180 -> -25.25490948 | Q35: 12:02:08.806 | R35: 17:04:33.727 | S35: =ATAN((-dsin(検索入力!$A$7)*DCOS(N35*0.75+N36*0.25)*DCOS(H35*0.75+H36*0.25)+DCOS(検索入力!$A$7)*dsin(H35*0.75+H36*0.25))/(dsin(N35*0.75+N36*0.25)*DCOS(H35*0.75+H36*0.25)))/PI()*180 -> -25.13320674 | T35: 10:04:30.920
A36: 2012-01-18T12:00:00 | B36: 297.4059016 | C36: 14.40459261 | D36: 1.018132958 | E36: 0.0325342297 | F36: 0.1301369188 | G36: 1.883767904 | H36: -20.67973107 | I36: =IF(270<=B36,ATAN(dtan(B36)*DCOS($J$2))/PI()*180+360,IF(B36>90,ATAN(dtan(B36)*DCOS($J$2))/PI()*180+180,ATAN(dtan(B36)*DCOS($J$2))/PI()*180)) -> 299.4715068 | J36: 8.262420943 | K36: 0.1906593674 | L36: 10.14618885 | M36: 19.24777717 | N36: =adcos((-dsin(検索入力!$A$7)*dsin(H36)-dsin($J$5))/(DCOS(検索入力!$A$7)*DCOS(H36))) -> 75.70425966 | O36: 06:59:44.449 | P36: =ATAN((-dsin(検索入力!$A$7)*DCOS(N36*0.75+N35*0.25)*DCOS(H36*0.75+H35*0.25)+DCOS(検索入力!$A$7)*dsin(H36*0.75+H35*0.25))/(dsin(N36*0.75+N35*0.25)*DCOS(H36*0.75+H35*0.25)))/PI()*180 -> -25.00945302 | Q36: 12:02:28.763 | R36: 17:05:32.585 | S36: =ATAN((-dsin(検索入力!$A$7)*DCOS(N36*0.75+N37*0.25)*DCOS(H36*0.75+H37*0.25)+DCOS(検索入力!$A$7)*dsin(H36*0.75+H37*0.25))/(dsin(N36*0.75+N37*0.25)*DCOS(H36*0.75+H37*0.25)))/PI()*180 -> -24.8836819 | T36: 10:05:48.137
A37: 2012-01-19T12:00:00 | B37: 298.4240831 | C37: 15.42272557 | D37: 1.017974566 | E37: 0.03237582967 | F37: 0.1295033187 | G37: 2.013904823 | H37: -20.47719496 | I37: =IF(270<=B37,ATAN(dtan(B37)*DCOS($J$2))/PI()*180+360,IF(B37>90,ATAN(dtan(B37)*DCOS($J$2))/PI()*180+180,ATAN(dtan(B37)*DCOS($J$2))/PI()*180)) -> 300.5373532 | J37: 8.453080311 | K37: 0.1792124668 | L37: 10.46698513 | M37: 18.52294713 | N37: =adcos((-dsin(検索入力!$A$7)*dsin(H37)-dsin($J$5))/(DCOS(検索入力!$A$7)*DCOS(H37))) -> 75.8707219 | O37: 06:59:24.214 | P37: =ATAN((-dsin(検索入力!$A$7)*DCOS(N37*0.75+N36*0.25)*DCOS(H37*0.75+H36*0.25)+DCOS(検索入力!$A$7)*dsin(H37*0.75+H36*0.25))/(dsin(N37*0.75+N36*0.25)*DCOS(H37*0.75+H36*0.25)))/PI()*180 -> -24.75589207 | Q37: 12:02:48.011 | R37: 17:06:31.886 | S37: =ATAN((-dsin(検索入力!$A$7)*DCOS(N37*0.75+N38*0.25)*DCOS(H37*0.75+H38*0.25)+DCOS(検索入力!$A$7)*dsin(H37*0.75+H38*0.25))/(dsin(N37*0.75+N38*0.25)*DCOS(H37*0.75+H38*0.25)))/PI()*180 -> -24.62611772 | T37: 10:07:07.673
A38: 2012-01-20T12:00:00 | B38: 299.4421063 | C38: 16.44070013 | D38: 1.017806044 | E38: 0.03220729937 | F38: 0.1288291975 | G38: 2.143408141 | H38: -20.26821129 | I38: =IF(270<=B38,ATAN(dtan(B38)*DCOS($J$2))/PI()*180+360,IF(B38>90,ATAN(dtan(B38)*DCOS($J$2))/PI()*180+180,ATAN(dtan(B38)*DCOS($J$2))/PI()*180)) -> 301.6001795 | J38: 8.632292777 | K38: 0.1675746613 | L38: 10.77570092 | M38: 17.78423153 | N38: =adcos((-dsin(検索入力!$A$7)*dsin(H38)-dsin($J$5))/(DCOS(検索入力!$A$7)*DCOS(H38))) -> 76.04191097 | O38: 06:59:02.116 | P38: =ATAN((-dsin(検索入力!$A$7)*DCOS(N38*0.75+N37*0.25)*DCOS(H38*0.75+H37*0.25)+DCOS(検索入力!$A$7)*dsin(H38*0.75+H37*0.25))/(dsin(N38*0.75+N37*0.25)*DCOS(H38*0.75+H37*0.25)))/PI()*180 -> -24.49435757 | Q38: 12:03:06.534 | R38: 17:07:31.586 | S38: =ATAN((-dsin(検索入力!$A$7)*DCOS(N38*0.75+N39*0.25)*DCOS(H38*0.75+H39*0.25)+DCOS(検索入力!$A$7)*dsin(H38*0.75+H39*0.25))/(dsin(N38*0.75+N39*0.25)*DCOS(H38*0.75+H39*0.25)))/PI()*180 -> -24.36064638 | T38: 10:08:29.470
A39: 2012-01-21T12:00:00 | B39: 300.459961 | C39: 17.45850618 | D39: 1.017627454 | E39: 0.03202870123 | F39: 0.1281148049 | G39: 2.272237339 | H39: -20.05287458 | I39: =IF(270<=B39,ATAN(dtan(B39)*DCOS($J$2))/PI()*180+360,IF(B39>90,ATAN(dtan(B39)*DCOS($J$2))/PI()*180+180,ATAN(dtan(B39)*DCOS($J$2))/PI()*180)) -> 302.6599278 | J39: 8.799867439 | K39: 0.1557648232 | L39: 11.07210478 | M39: 17.03277769 | N39: =adcos((-dsin(検索入力!$A$7)*dsin(H39)-dsin($J$5))/(DCOS(検索入力!$A$7)*DCOS(H39))) -> 76.21770568 | O39: 06:58:38.171 | P39: =ATAN((-dsin(検索入力!$A$7)*DCOS(N39*0.75+N38*0.25)*DCOS(H39*0.75+H38*0.25)+DCOS(検索入力!$A$7)*dsin(H39*0.75+H38*0.25))/(dsin(N39*0.75+N38*0.25)*DCOS(H39*0.75+H38*0.25)))/PI()*180 -> -24.22498288 | Q39: 12:03:24.318 | R39: 17:08:31.643 | S39: =ATAN((-dsin(検索入力!$A$7)*DCOS(N39*0.75+N40*0.25)*DCOS(H39*0.75+H40*0.25)+DCOS(検索入力!$A$7)*dsin(H39*0.75+H40*0.25))/(dsin(N39*0.75+N40*0.25)*DCOS(H39*0.75+H40*0.25)))/PI()*180 -> -24.08740237 | T39: 10:09:53.472
A40: 2012-01-22T12:00:00 | B40: 301.477637 | C40: 18.47613363 | D40: 1.017438863 | E40: 0.0318401013 | F40: 0.1273604052 | G40: 2.400352144 | H40: -19.83128135 | I40: =IF(270<=B40,ATAN(dtan(B40)*DCOS($J$2))/PI()*180+360,IF(B40>90,ATAN(dtan(B40)*DCOS($J$2))/PI()*180+180,ATAN(dtan(B40)*DCOS($J$2))/PI()*180)) -> 303.7165451 | J40: 8.955632262 | K40: 0.1438018083 | L40: 11.35598441 | M40: 16.26973281 | N40: =adcos((-dsin(検索入力!$A$7)*dsin(H40)-dsin($J$5))/(DCOS(検索入力!$A$7)*DCOS(H40))) -> 76.39798424 | O40: 06:58:12.393 | P40: =ATAN((-dsin(検索入力!$A$7)*DCOS(N40*0.75+N39*0.25)*DCOS(H40*0.75+H39*0.25)+DCOS(検索入力!$A$7)*dsin(H40*0.75+H39*0.25))/(dsin(N40*0.75+N39*0.25)*DCOS(H40*0.75+H39*0.25)))/PI()*180 -> -23.94790358 | Q40: 12:03:41.351 | R40: 17:09:32.013 | S40: =ATAN((-dsin(検索入力!$A$7)*DCOS(N40*0.75+N41*0.25)*DCOS(H40*0.75+H41*0.25)+DCOS(検索入力!$A$7)*dsin(H40*0.75+H41*0.25))/(dsin(N40*0.75+N41*0.25)*DCOS(H40*0.75+H41*0.25)))/PI()*180 -> -23.80652229 | T40: 10:11:19.620
A41: 2012-01-23T12:00:00 | B41: 302.4951245 | C41: 19.4935725 | D41: 1.017240341 | E41: 0.03164156927 | F41: 0.1265662771 | G41: 2.527712549 | H41: -19.60353006 | I41: =IF(270<=B41,ATAN(dtan(B41)*DCOS($J$2))/PI()*180+360,IF(B41>90,ATAN(dtan(B41)*DCOS($J$2))/PI()*180+180,ATAN(dtan(B41)*DCOS($J$2))/PI()*180)) -> 304.769983 | J41: 9.09943407 | K41: 0.1317044132 | L41: 11.62714662 | M41: 15.49624142 | N41: =adcos((-dsin(検索入力!$A$7)*dsin(H41)-dsin($J$5))/(DCOS(検索入力!$A$7)*DCOS(H41))) -> 76.58262453 | O41: 06:57:44.802 | P41: =ATAN((-dsin(検索入力!$A$7)*DCOS(N41*0.75+N40*0.25)*DCOS(H41*0.75+H40*0.25)+DCOS(検索入力!$A$7)*dsin(H41*0.75+H40*0.25))/(dsin(N41*0.75+N40*0.25)*DCOS(H41*0.75+H40*0.25)))/PI()*180 -> -23.66325725 | Q41: 12:03:57.621 | R41: 17:10:32.658 | S41: =ATAN((-dsin(検索入力!$A$7)*DCOS(N41*0.75+N42*0.25)*DCOS(H41*0.75+H42*0.25)+DCOS(検索入力!$A$7)*dsin(H41*0.75+H42*0.25))/(dsin(N41*0.75+N42*0.25)*DCOS(H41*0.75+H42*0.25)))/PI()*180 -> -23.51814466 | T41: 10:12:47.856
A42: 2012-01-24T12:00:00 | B42: 303.5124134 | C42: 20.51081284 | D42: 1.01703196 | E42: 0.03143317837 | F42: 0.1257327135 | G42: 2.654278826 | H42: -19.36972093 | I42: =IF(270<=B42,ATAN(dtan(B42)*DCOS($J$2))/PI()*180+360,IF(B42>90,ATAN(dtan(B42)*DCOS($J$2))/PI()*180+180,ATAN(dtan(B42)*DCOS($J$2))/PI()*180)) -> 305.8201981 | J42: 9.231138483 | K42: 0.1194913353 | L42: 11.88541731 | M42: 14.71344293 | N42: =adcos((-dsin(検索入力!$A$7)*dsin(H42)-dsin($J$5))/(DCOS(検索入力!$A$7)*DCOS(H42))) -> 76.77150433 | O42: 06:57:15.415 | P42: =ATAN((-dsin(検索入力!$A$7)*DCOS(N42*0.75+N41*0.25)*DCOS(H42*0.75+H41*0.25)+DCOS(検索入力!$A$7)*dsin(H42*0.75+H41*0.25))/(dsin(N42*0.75+N41*0.25)*DCOS(H42*0.75+H41*0.25)))/PI()*180 -> -23.37118331 | Q42: 12:04:13.117 | R42: 17:11:33.536 | S42: =ATAN((-dsin(検索入力!$A$7)*DCOS(N42*0.75+N43*0.25)*DCOS(H42*0.75+H43*0.25)+DCOS(検索入力!$A$7)*dsin(H42*0.75+H43*0.25))/(dsin(N42*0.75+N43*0.25)*DCOS(H42*0.75+H43*0.25)))/PI()*180 -> -23.22240973 | T42: 10:14:18.122
A43: 2012-01-25T12:00:00 | B43: 304.529494 | C43: 21.5278448 | D43: 1.016813797 | E43: 0.03121500541 | F43: 0.1248600216 | G43: 2.78001154 | H43: -19.1299559 | I43: =IF(270<=B43,ATAN(dtan(B43)*DCOS($J$2))/PI()*180+360,IF(B43>90,ATAN(dtan(B43)*DCOS($J$2))/PI()*180+180,ATAN(dtan(B43)*DCOS($J$2))/PI()*180)) -> 306.8671514 | J43: 9.350629819 | K43: 0.1071811341 | L43: 12.13064136 | M43: 13.92246935 | N43: =adcos((-dsin(検索入力!$A$7)*dsin(H43)-dsin($J$5))/(DCOS(検索入力!$A$7)*DCOS(H43))) -> 76.96450151 | O43: 06:56:44.252 | P43: =ATAN((-dsin(検索入力!$A$7)*DCOS(N43*0.75+N42*0.25)*DCOS(H43*0.75+H42*0.25)+DCOS(検索入力!$A$7)*dsin(H43*0.75+H42*0.25))/(dsin(N43*0.75+N42*0.25)*DCOS(H43*0.75+H42*0.25)))/PI()*180 -> -23.07182278 | Q43: 12:04:27.830 | R43: 17:12:34.611 | S43: =ATAN((-dsin(検索入力!$A$7)*DCOS(N43*0.75+N44*0.25)*DCOS(H43*0.75+H44*0.25)+DCOS(検索入力!$A$7)*dsin(H43*0.75+H44*0.25))/(dsin(N43*0.75+N44*0.25)*DCOS(H43*0.75+H44*0.25)))/PI()*180 -> -22.9194593 | T43: 10:15:50.359
A44: 2012-01-26T12:00:00 | B44: 305.5463563 | C44: 22.54465859 | D44: 1.016585933 | E44: 0.03098713065 | F44: 0.1239485226 | G44: 2.904871561 | H44: -18.88433847 | I44: =IF(270<=B44,ATAN(dtan(B44)*DCOS($J$2))/PI()*180+360,IF(B44>90,ATAN(dtan(B44)*DCOS($J$2))/PI()*180+180,ATAN(dtan(B44)*DCOS($J$2))/PI()*180)) -> 307.9108091 | J44: 9.457810953 | K44: 0.09479219482 | L44: 12.36268251 | M44: 13.12444304 | N44: =adcos((-dsin(検索入力!$A$7)*dsin(H44)-dsin($J$5))/(DCOS(検索入力!$A$7)*DCOS(H44))) -> 77.16149433 | O44: 06:56:11.333 | P44: =ATAN((-dsin(検索入力!$A$7)*DCOS(N44*0.75+N43*0.25)*DCOS(H44*0.75+H43*0.25)+DCOS(検索入力!$A$7)*dsin(H44*0.75+H43*0.25))/(dsin(N44*0.75+N43*0.25)*DCOS(H44*0.75+H43*0.25)))/PI()*180 -> -22.76531818 | Q44: 12:04:41.753 | R44: 17:13:35.845 | S44: =ATAN((-dsin(検索入力!$A$7)*DCOS(N44*0.75+N45*0.25)*DCOS(H44*0.75+H45*0.25)+DCOS(検索入力!$A$7)*dsin(H44*0.75+H45*0.25))/(dsin(N44*0.75+N45*0.25)*DCOS(H44*0.75+H45*0.25)))/PI()*180 -> -22.60943652 | T44: 10:17:24.511
A45: 2012-01-27T12:00:00 | B45: 306.5629908 | C45: 23.56124453 | D45: 1.016348452 | E45: 0.03074963781 | F45: 0.1229985513 | G45: 3.028820084 | H45: -18.6329736 | I45: =IF(270<=B45,ATAN(dtan(B45)*DCOS($J$2))/PI()*180+360,IF(B45>90,ATAN(dtan(B45)*DCOS($J$2))/PI()*180+180,ATAN(dtan(B45)*DCOS($J$2))/PI()*180)) -> 308.9511416 | J45: 9.552603148 | K45: 0.08234269439 | L45: 12.58142323 | M45: 12.32047474 | N45: =adcos((-dsin(検索入力!$A$7)*dsin(H45)-dsin($J$5))/(DCOS(検索入力!$A$7)*DCOS(H45))) -> 77.36236155 | O45: 06:55:36.682 | P45: =ATAN((-dsin(検索入力!$A$7)*DCOS(N45*0.75+N44*0.25)*DCOS(H45*0.75+H44*0.25)+DCOS(検索入力!$A$7)*dsin(H45*0.75+H44*0.25))/(dsin(N45*0.75+N44*0.25)*DCOS(H45*0.75+H44*0.25)))/PI()*180 -> -22.45181326 | Q45: 12:04:54.877 | R45: 17:14:37.202 | S45: =ATAN((-dsin(検索入力!$A$7)*DCOS(N45*0.75+N46*0.25)*DCOS(H45*0.75+H46*0.25)+DCOS(検索入力!$A$7)*dsin(H45*0.75+H46*0.25))/(dsin(N45*0.75+N46*0.25)*DCOS(H45*0.75+H46*0.25)))/PI()*180 -> -22.29248574 | T45: 10:19:00.520
A46: 2012-01-28T12:00:00 | B46: 307.5793878 | C46: 24.57759298 | D46: 1.01610144 | E46: 0.03050261402 | F46: 0.1220104561 | G46: 3.151818635 | H46: -18.37596763 | I46: =IF(270<=B46,ATAN(dtan(B46)*DCOS($J$2))/PI()*180+360,IF(B46>90,ATAN(dtan(B46)*DCOS($J$2))/PI()*180+180,ATAN(dtan(B46)*DCOS($J$2))/PI()*180)) -> 309.9881243 | J46: 9.634945842 | K46: 0.06985056956 | L46: 12.78676448 | M46: 11.51166154 | N46: =adcos((-dsin(検索入力!$A$7)*dsin(H46)-dsin($J$5))/(DCOS(検索入力!$A$7)*DCOS(H46))) -> 77.5669827 | O46: 06:55:00.319 | P46: =ATAN((-dsin(検索入力!$A$7)*DCOS(N46*0.75+N45*0.25)*DCOS(H46*0.75+H45*0.25)+DCOS(検索入力!$A$7)*dsin(H46*0.75+H45*0.25))/(dsin(N46*0.75+N45*0.25)*DCOS(H46*0.75+H45*0.25)))/PI()*180 -> -22.13145291 | Q46: 12:05:07.198 | R46: 17:15:38.647 | S46: =ATAN((-dsin(検索入力!$A$7)*DCOS(N46*0.75+N47*0.25)*DCOS(H46*0.75+H47*0.25)+DCOS(検索入力!$A$7)*dsin(H46*0.75+H47*0.25))/(dsin(N46*0.75+N47*0.25)*DCOS(H46*0.75+H47*0.25)))/PI()*180 -> -21.96875231 | T46: 10:20:38.328
A47: 2012-01-29T12:00:00 | B47: 308.5955378 | C47: 25.59369442 | D47: 1.015844988 | E47: 0.03024614974 | F47: 0.120984599 | G47: 3.273829091 | H47: -18.11342814 | I47: =IF(270<=B47,ATAN(dtan(B47)*DCOS($J$2))/PI()*180+360,IF(B47>90,ATAN(dtan(B47)*DCOS($J$2))/PI()*180+180,ATAN(dtan(B47)*DCOS($J$2))/PI()*180)) -> 311.0217369 | J47: 9.704796412 | K47: 0.05733348719 | L47: 12.9786255 | M47: 10.69908517 | N47: =adcos((-dsin(検索入力!$A$7)*dsin(H47)-dsin($J$5))/(DCOS(検索入力!$A$7)*DCOS(H47))) -> 77.77523821 | O47: 06:54:22.270 | P47: =ATAN((-dsin(検索入力!$A$7)*DCOS(N47*0.75+N46*0.25)*DCOS(H47*0.75+H46*0.25)+DCOS(検索入力!$A$7)*dsin(H47*0.75+H46*0.25))/(dsin(N47*0.75+N46*0.25)*DCOS(H47*0.75+H46*0.25)))/PI()*180 -> -21.80438294 | Q47: 12:05:18.710 | R47: 17:16:40.148 | S47: =ATAN((-dsin(検索入力!$A$7)*DCOS(N47*0.75+N48*0.25)*DCOS(H47*0.75+H48*0.25)+DCOS(検索入力!$A$7)*dsin(H47*0.75+H48*0.25))/(dsin(N47*0.75+N48*0.25)*DCOS(H47*0.75+H48*0.25)))/PI()*180 -> -21.63838247 | T47: 10:22:17.878
A48: 2012-01-30T12:00:00 | B48: 309.6114313 | C48: 26.6095394 | D48: 1.015579189 | E48: 0.02998033874 | F48: 0.1199213549 | G48: 3.39481369 | H48: -17.84546388 | I48: =IF(270<=B48,ATAN(dtan(B48)*DCOS($J$2))/PI()*180+360,IF(B48>90,ATAN(dtan(B48)*DCOS($J$2))/PI()*180+180,ATAN(dtan(B48)*DCOS($J$2))/PI()*180)) -> 312.0519638 | J48: 9.762129899 | K48: 0.04480881688 | L48: 13.15694359 | M48: 9.88381031 | N48: =adcos((-dsin(検索入力!$A$7)*dsin(H48)-dsin($J$5))/(DCOS(検索入力!$A$7)*DCOS(H48))) -> 77.9870096 | O48: 06:53:42.558 | P48: =ATAN((-dsin(検索入力!$A$7)*DCOS(N48*0.75+N47*0.25)*DCOS(H48*0.75+H47*0.25)+DCOS(検索入力!$A$7)*dsin(H48*0.75+H47*0.25))/(dsin(N48*0.75+N47*0.25)*DCOS(H48*0.75+H47*0.25)))/PI()*180 -> -21.47074995 | Q48: 12:05:29.409 | R48: 17:17:41.672 | S48: =ATAN((-dsin(検索入力!$A$7)*DCOS(N48*0.75+N49*0.25)*DCOS(H48*0.75+H49*0.25)+DCOS(検索入力!$A$7)*dsin(H48*0.75+H49*0.25))/(dsin(N48*0.75+N49*0.25)*DCOS(H48*0.75+H49*0.25)))/PI()*180 -> -21.30152315 | T48: 10:23:59.114
A49: 2012-01-31T12:00:00 | B49: 310.627059 | C49: 27.62511859 | D49: 1.015304142 | E49: 0.02970527802 | F49: 0.1188211121 | G49: 3.514735045 | H49: -17.57218464 | I49: =IF(270<=B49,ATAN(dtan(B49)*DCOS($J$2))/PI()*180+360,IF(B49>90,ATAN(dtan(B49)*DCOS($J$2))/PI()*180+180,ATAN(dtan(B49)*DCOS($J$2))/PI()*180)) -> 313.0787937 | J49: 9.806938716 | K49: 0.03229360581 | L49: 13.32167376 | M49: 9.066883074 | N49: =adcos((-dsin(検索入力!$A$7)*dsin(H49)-dsin($J$5))/(DCOS(検索入力!$A$7)*DCOS(H49))) -> 78.20217965 | O49: 06:53:01.209 | P49: =ATAN((-dsin(検索入力!$A$7)*DCOS(N49*0.75+N48*0.25)*DCOS(H49*0.75+H48*0.25)+DCOS(検索入力!$A$7)*dsin(H49*0.75+H48*0.25))/(dsin(N49*0.75+N48*0.25)*DCOS(H49*0.75+H48*0.25)))/PI()*180 -> -21.13070116 | Q49: 12:05:39.292 | R49: 17:18:43.189 | S49: =ATAN((-dsin(検索入力!$A$7)*DCOS(N49*0.75+N50*0.25)*DCOS(H49*0.75+H50*0.25)+DCOS(検索入力!$A$7)*dsin(H49*0.75+H50*0.25))/(dsin(N49*0.75+N50*0.25)*DCOS(H49*0.75+H50*0.25)))/PI()*180 -> -20.95832182 | T49: 10:25:41.981
A50: 2012-02-01T12:00:00 | B50: 311.6424116 | C50: 28.64042274 | D50: 1.015019945 | E50: 0.0294210678 | F50: 0.1176842712 | G50: 3.633556157 | H50: -17.29370117 | I50: =IF(270<=B50,ATAN(dtan(B50)*DCOS($J$2))/PI()*180+360,IF(B50>90,ATAN(dtan(B50)*DCOS($J$2))/PI()*180+180,ATAN(dtan(B50)*DCOS($J$2))/PI()*180)) -> 314.1022197 | J50: 9.839232322 | K50: 0.01980455586 | L50: 13.47278848 | M50: 8.249329624 | N50: =adcos((-dsin(検索入力!$A$7)*dsin(H50)-dsin($J$5))/(DCOS(検索入力!$A$7)*DCOS(H50))) -> 78.42063253 | O50: 06:52:18.248 | P50: =ATAN((-dsin(検索入力!$A$7)*DCOS(N50*0.75+N49*0.25)*DCOS(H50*0.75+H49*0.25)+DCOS(検索入力!$A$7)*dsin(H50*0.75+H49*0.25))/(dsin(N50*0.75+N49*0.25)*DCOS(H50*0.75+H49*0.25)))/PI()*180 -> -20.78438429 | Q50: 12:05:48.359 | R50: 17:19:44.671 | S50: =ATAN((-dsin(検索入力!$A$7)*DCOS(N50*0.75+N51*0.25)*DCOS(H50*0.75+H51*0.25)+DCOS(検索入力!$A$7)*dsin(H50*0.75+H51*0.25))/(dsin(N50*0.75+N51*0.25)*DCOS(H50*0.75+H51*0.25)))/PI()*180 -> -20.60892641 | T50: 10:27:26.423
A51: 2012-02-02T12:00:00 | B51: 312.6574801 | C51: 29.65544268 | D51: 1.014726703 | E51: 0.02912781142 | F51: 0.1165112457 | G51: 3.751240428 | H51: -17.0101251 | I51: =IF(270<=B51,ATAN(dtan(B51)*DCOS($J$2))/PI()*180+360,IF(B51>90,ATAN(dtan(B51)*DCOS($J$2))/PI()*180+180,ATAN(dtan(B51)*DCOS($J$2))/PI()*180)) -> 315.1222393 | J51: 9.859036877 | K51: 0.007358002933 | L51: 13.61027731 | M51: 7.432154918 | N51: =adcos((-dsin(検索入力!$A$7)*dsin(H51)-dsin($J$5))/(DCOS(検索入力!$A$7)*DCOS(H51))) -> 78.64225392 | O51: 06:51:33.703 | P51: =ATAN((-dsin(検索入力!$A$7)*DCOS(N51*0.75+N50*0.25)*DCOS(H51*0.75+H50*0.25)+DCOS(検索入力!$A$7)*dsin(H51*0.75+H50*0.25))/(dsin(N51*0.75+N50*0.25)*DCOS(H51*0.75+H50*0.25)))/PI()*180 -> -20.43194739 | Q51: 12:05:56.609 | R51: 17:20:46.088 | S51: =ATAN((-dsin(検索入力!$A$7)*DCOS(N51*0.75+N52*0.25)*DCOS(H51*0.75+H52*0.25)+DCOS(検索入力!$A$7)*dsin(H51*0.75+H52*0.25))/(dsin(N51*0.75+N52*0.25)*DCOS(H51*0.75+H52*0.25)))/PI()*180 -> -20.25348509 | T51: 10:29:12.386
A52: 2012-02-03T12:00:00 | B52: 313.6722552 | C52: 30.67016938 | D52: 1.014424521 | E52: 0.02882561531 | F52: 0.1153024613 | G52: 3.867751674 | H52: -16.72156882 | I52: =IF(270<=B52,ATAN(dtan(B52)*DCOS($J$2))/PI()*180+360,IF(B52>90,ATAN(dtan(B52)*DCOS($J$2))/PI()*180+180,ATAN(dtan(B52)*DCOS($J$2))/PI()*180)) -> 316.1388539 | J52: 9.86639488 | K52: -0.005030101576 | L52: 13.73414655 | M52: 6.616341581 | N52: =adcos((-dsin(検索入力!$A$7)*dsin(H52)-dsin($J$5))/(DCOS(検索入力!$A$7)*DCOS(H52))) -> 78.86693116 | O52: 06:50:47.600 | P52: =ATAN((-dsin(検索入力!$A$7)*DCOS(N52*0.75+N51*0.25)*DCOS(H52*0.75+H51*0.25)+DCOS(検索入力!$A$7)*dsin(H52*0.75+H51*0.25))/(dsin(N52*0.75+N51*0.25)*DCOS(H52*0.75+H51*0.25)))/PI()*180 -> -20.07353875 | Q52: 12:06:04.041 | R52: 17:21:47.416 | S52: =ATAN((-dsin(検索入力!$A$7)*DCOS(N52*0.75+N53*0.25)*DCOS(H52*0.75+H53*0.25)+DCOS(検索入力!$A$7)*dsin(H52*0.75+H53*0.25))/(dsin(N52*0.75+N53*0.25)*DCOS(H52*0.75+H53*0.25)))/PI()*180 -> -19.8921462 | T52: 10:30:59.816
A53: 2012-02-04T12:00:00 | B53: 314.6867282 | C53: 31.6845939 | D53: 1.01411351 | E53: 0.02851458892 | F53: 0.1140583557 | G53: 3.983054135 | H53: -16.42814541 | I53: =IF(270<=B53,ATAN(dtan(B53)*DCOS($J$2))/PI()*180+360,IF(B53>90,ATAN(dtan(B53)*DCOS($J$2))/PI()*180+180,ATAN(dtan(B53)*DCOS($J$2))/PI()*180)) -> 317.1520694 | J53: 9.861364779 | K53: -0.01734420716 | L53: 13.84441891 | M53: 5.802848912 | N53: =adcos((-dsin(検索入力!$A$7)*dsin(H53)-dsin($J$5))/(DCOS(検索入力!$A$7)*DCOS(H53))) -> 79.09455334 | O53: 06:49:59.968 | P53: =ATAN((-dsin(検索入力!$A$7)*DCOS(N53*0.75+N52*0.25)*DCOS(H53*0.75+H52*0.25)+DCOS(検索入力!$A$7)*dsin(H53*0.75+H52*0.25))/(dsin(N53*0.75+N52*0.25)*DCOS(H53*0.75+H52*0.25)))/PI()*180 -> -19.70930674 | Q53: 12:06:10.657 | R53: 17:22:48.628 | S53: =ATAN((-dsin(検索入力!$A$7)*DCOS(N53*0.75+N54*0.25)*DCOS(H53*0.75+H54*0.25)+DCOS(検索入力!$A$7)*dsin(H53*0.75+H54*0.25))/(dsin(N53*0.75+N54*0.25)*DCOS(H53*0.75+H54*0.25)))/PI()*180 -> -19.52505812 | T53: 10:32:48.661
A54: 2012-02-05T12:00:00 | B54: 315.7008901 | C54: 32.69870741 | D54: 1.013793781 | E54: 0.02819484467 | F54: 0.1127793787 | G54: 4.097112491 | H54: -16.12996856 | I54: =IF(270<=B54,ATAN(dtan(B54)*DCOS($J$2))/PI()*180+360,IF(B54>90,ATAN(dtan(B54)*DCOS($J$2))/PI()*180+180,ATAN(dtan(B54)*DCOS($J$2))/PI()*180)) -> 318.1618953 | J54: 9.844020572 | K54: -0.02956917856 | L54: 13.94113306 | M54: 4.992612008 | N54: =adcos((-dsin(検索入力!$A$7)*dsin(H54)-dsin($J$5))/(DCOS(検索入力!$A$7)*DCOS(H54))) -> 79.32501142 | O54: 06:49:10.834 | P54: =ATAN((-dsin(検索入力!$A$7)*DCOS(N54*0.75+N53*0.25)*DCOS(H54*0.75+H53*0.25)+DCOS(検索入力!$A$7)*dsin(H54*0.75+H53*0.25))/(dsin(N54*0.75+N53*0.25)*DCOS(H54*0.75+H53*0.25)))/PI()*180 -> -19.3393997 | Q54: 12:06:16.460 | R54: 17:23:49.702 | S54: =ATAN((-dsin(検索入力!$A$7)*DCOS(N54*0.75+N55*0.25)*DCOS(H54*0.75+H55*0.25)+DCOS(検索入力!$A$7)*dsin(H54*0.75+H55*0.25))/(dsin(N54*0.75+N55*0.25)*DCOS(H54*0.75+H55*0.25)))/PI()*180 -> -19.15236914 | T54: 10:34:38.868
A55: 2012-02-06T12:00:00 | B55: 316.7147323 | C55: 33.7125012 | D55: 1.013465449 | E55: 0.02786649788 | F55: 0.1114659915 | G55: 4.20989187 | H55: -15.82715247 | I55: =IF(270<=B55,ATAN(dtan(B55)*DCOS($J$2))/PI()*180+360,IF(B55>90,ATAN(dtan(B55)*DCOS($J$2))/PI()*180+180,ATAN(dtan(B55)*DCOS($J$2))/PI()*180)) -> 319.1683452 | J55: 9.814451393 | K55: -0.0416903081 | L55: 14.02434326 | M55: 4.186541005 | N55: =adcos((-dsin(検索入力!$A$7)*dsin(H55)-dsin($J$5))/(DCOS(検索入力!$A$7)*DCOS(H55))) -> 79.55819829 | O55: 06:48:20.228 | P55: =ATAN((-dsin(検索入力!$A$7)*DCOS(N55*0.75+N54*0.25)*DCOS(H55*0.75+H54*0.25)+DCOS(検索入力!$A$7)*dsin(H55*0.75+H54*0.25))/(dsin(N55*0.75+N54*0.25)*DCOS(H55*0.75+H54*0.25)))/PI()*180 -> -18.96396585 | Q55: 12:06:21.453 | R55: 17:24:50.615 | S55: =ATAN((-dsin(検索入力!$A$7)*DCOS(N55*0.75+N56*0.25)*DCOS(H55*0.75+H56*0.25)+DCOS(検索入力!$A$7)*dsin(H55*0.75+H56*0.25))/(dsin(N55*0.75+N56*0.25)*DCOS(H55*0.75+H56*0.25)))/PI()*180 -> -18.77422737 | T55: 10:36:30.387
A56: 2012-02-07T12:00:00 | B56: 317.7282462 | C56: 34.72596664 | D56: 1.013128634 | E56: 0.02752966671 | F56: 0.1101186669 | G56: 4.321357861 | H56: -15.51981178 | I56: =IF(270<=B56,ATAN(dtan(B56)*DCOS($J$2))/PI()*180+360,IF(B56>90,ATAN(dtan(B56)*DCOS($J$2))/PI()*180+180,ATAN(dtan(B56)*DCOS($J$2))/PI()*180)) -> 320.1714365 | J56: 9.772761085 | K56: -0.05369332615 | L56: 14.09411895 | M56: 3.385520443 | N56: =adcos((-dsin(検索入力!$A$7)*dsin(H56)-dsin($J$5))/(DCOS(検索入力!$A$7)*DCOS(H56))) -> 79.79400886 | O56: 06:47:28.179 | P56: =ATAN((-dsin(検索入力!$A$7)*DCOS(N56*0.75+N55*0.25)*DCOS(H56*0.75+H55*0.25)+DCOS(検索入力!$A$7)*dsin(H56*0.75+H55*0.25))/(dsin(N56*0.75+N55*0.25)*DCOS(H56*0.75+H55*0.25)))/PI()*180 -> -18.58315318 | Q56: 12:06:25.639 | R56: 17:25:51.348 | S56: =ATAN((-dsin(検索入力!$A$7)*DCOS(N56*0.75+N57*0.25)*DCOS(H56*0.75+H57*0.25)+DCOS(検索入力!$A$7)*dsin(H56*0.75+H57*0.25))/(dsin(N56*0.75+N57*0.25)*DCOS(H56*0.75+H57*0.25)))/PI()*180 -> -18.39078064 | T56: 10:38:23.169
A57: 2012-02-08T12:00:00 | B57: 318.7414232 | C57: 35.73909528 | D57: 1.012783456 | E57: 0.02718447212 | F57: 0.1087378885 | G57: 4.431476528 | H57: -15.20806151 | I57: =IF(270<=B57,ATAN(dtan(B57)*DCOS($J$2))/PI()*180+360,IF(B57>90,ATAN(dtan(B57)*DCOS($J$2))/PI()*180+180,ATAN(dtan(B57)*DCOS($J$2))/PI()*180)) -> 321.1711902 | J57: 9.719067759 | K57: -0.06556440971 | L57: 14.15054429 | M57: 2.590408725 | N57: =adcos((-dsin(検索入力!$A$7)*dsin(H57)-dsin($J$5))/(DCOS(検索入力!$A$7)*DCOS(H57))) -> 80.03234012 | O57: 06:46:34.717 | P57: =ATAN((-dsin(検索入力!$A$7)*DCOS(N57*0.75+N56*0.25)*DCOS(H57*0.75+H56*0.25)+DCOS(検索入力!$A$7)*dsin(H57*0.75+H56*0.25))/(dsin(N57*0.75+N56*0.25)*DCOS(H57*0.75+H56*0.25)))/PI()*180 -> -18.19710932 | Q57: 12:06:29.025 | R57: 17:26:51.879 | S57: =ATAN((-dsin(検索入力!$A$7)*DCOS(N57*0.75+N58*0.25)*DCOS(H57*0.75+H58*0.25)+DCOS(検索入力!$A$7)*dsin(H57*0.75+H58*0.25))/(dsin(N57*0.75+N58*0.25)*DCOS(H57*0.75+H58*0.25)))/PI()*180 -> -18.00217641 | T57: 10:40:17.162
A58: 2012-02-09T12:00:00 | B58: 319.7542551 | C58: 36.75187874 | D58: 1.012430039 | E58: 0.02683103775 | F58: 0.107324151 | G58: 4.540214417 | H58: -14.89201698 | I58: =IF(270<=B58,ATAN(dtan(B58)*DCOS($J$2))/PI()*180+360,IF(B58>90,ATAN(dtan(B58)*DCOS($J$2))/PI()*180+180,ATAN(dtan(B58)*DCOS($J$2))/PI()*180)) -> 322.1676309 | J58: 9.653503349 | K58: -0.07729018934 | L58: 14.19371777 | M58: 1.802037701 | N58: =adcos((-dsin(検索入力!$A$7)*dsin(H58)-dsin($J$5))/(DCOS(検索入力!$A$7)*DCOS(H58))) -> 80.27309121 | O58: 06:45:39.871 | P58: =ATAN((-dsin(検索入力!$A$7)*DCOS(N58*0.75+N57*0.25)*DCOS(H58*0.75+H57*0.25)+DCOS(検索入力!$A$7)*dsin(H58*0.75+H57*0.25))/(dsin(N58*0.75+N57*0.25)*DCOS(H58*0.75+H57*0.25)))/PI()*180 -> -17.80598151 | Q58: 12:06:31.615 | R58: 17:27:52.192 | S58: =ATAN((-dsin(検索入力!$A$7)*DCOS(N58*0.75+N59*0.25)*DCOS(H58*0.75+H59*0.25)+DCOS(検索入力!$A$7)*dsin(H58*0.75+H59*0.25))/(dsin(N58*0.75+N59*0.25)*DCOS(H58*0.75+H59*0.25)))/PI()*180 -> -17.60856165 | T58: 10:42:12.321
A59: 2012-02-10T12:00:00 | B59: 320.7667335 | C59: 37.76430877 | D59: 1.012068508 | E59: 0.02646948994 | F59: 0.1058779598 | G59: 4.647538568 | H59: -14.57179373 | I59: =IF(270<=B59,ATAN(dtan(B59)*DCOS($J$2))/PI()*180+360,IF(B59>90,ATAN(dtan(B59)*DCOS($J$2))/PI()*180+180,ATAN(dtan(B59)*DCOS($J$2))/PI()*180)) -> 323.1607867 | J59: 9.57621316 | K59: -0.0888577543 | L59: 14.22375173 | M59: 1.021212327 | N59: =adcos((-dsin(検索入力!$A$7)*dsin(H59)-dsin($J$5))/(DCOS(検索入力!$A$7)*DCOS(H59))) -> 80.51616345 | O59: 06:44:43.672 | P59: =ATAN((-dsin(検索入力!$A$7)*DCOS(N59*0.75+N58*0.25)*DCOS(H59*0.75+H58*0.25)+DCOS(検索入力!$A$7)*dsin(H59*0.75+H58*0.25))/(dsin(N59*0.75+N58*0.25)*DCOS(H59*0.75+H58*0.25)))/PI()*180 -> -17.40991648 | Q59: 12:06:33.417 | R59: 17:28:52.269 | S59: =ATAN((-dsin(検索入力!$A$7)*DCOS(N59*0.75+N60*0.25)*DCOS(H59*0.75+H60*0.25)+DCOS(検索入力!$A$7)*dsin(H59*0.75+H60*0.25))/(dsin(N59*0.75+N60*0.25)*DCOS(H59*0.75+H60*0.25)))/PI()*180 -> -17.21008282 | T59: 10:44:08.598
A60: 2012-02-11T12:00:00 | B60: 321.7788503 | C60: 38.77637728 | D60: 1.011698994 | E60: 0.02609995757 | F60: 0.1043998303 | G60: 4.753416527 | H60: -14.24750745 | I60: =IF(270<=B60,ATAN(dtan(B60)*DCOS($J$2))/PI()*180+360,IF(B60>90,ATAN(dtan(B60)*DCOS($J$2))/PI()*180+180,ATAN(dtan(B60)*DCOS($J$2))/PI()*180)) -> 324.1506892 | J60: 9.487355405 | K60: -0.1002546563 | L60: 14.24077193 | M60: 0.2487104402 | N60: =adcos((-dsin(検索入力!$A$7)*dsin(H60)-dsin($J$5))/(DCOS(検索入力!$A$7)*DCOS(H60))) -> 80.7614604 | O60: 06:43:46.150 | P60: =ATAN((-dsin(検索入力!$A$7)*DCOS(N60*0.75+N59*0.25)*DCOS(H60*0.75+H59*0.25)+DCOS(検索入力!$A$7)*dsin(H60*0.75+H59*0.25))/(dsin(N60*0.75+N59*0.25)*DCOS(H60*0.75+H59*0.25)))/PI()*180 -> -17.00906038 | Q60: 12:06:34.438 | R60: 17:29:52.097 | S60: =ATAN((-dsin(検索入力!$A$7)*DCOS(N60*0.75+N61*0.25)*DCOS(H60*0.75+H61*0.25)+DCOS(検索入力!$A$7)*dsin(H60*0.75+H61*0.25))/(dsin(N60*0.75+N61*0.25)*DCOS(H60*0.75+H61*0.25)))/PI()*180 -> -16.80688575 | T60: 10:46:05.946
A61: 2012-02-12T12:00:00 | B61: 322.7905976 | C61: 39.78807628 | D61: 1.011321626 | E61: 0.02572257207 | F61: 0.1028902883 | G61: 4.857816358 | H61: -13.91927396 | I61: =IF(270<=B61,ATAN(dtan(B61)*DCOS($J$2))/PI()*180+360,IF(B61>90,ATAN(dtan(B61)*DCOS($J$2))/PI()*180+180,ATAN(dtan(B61)*DCOS($J$2))/PI()*180)) -> 325.1373728 | J61: 9.387100749 | K61: -0.1114689115 | L61: 14.24491711 | M61: -0.514717397 | N61: =adcos((-dsin(検索入力!$A$7)*dsin(H61)-dsin($J$5))/(DCOS(検索入力!$A$7)*DCOS(H61))) -> 81.00888783 | O61: 06:42:47.337 | P61: =ATAN((-dsin(検索入力!$A$7)*DCOS(N61*0.75+N60*0.25)*DCOS(H61*0.75+H60*0.25)+DCOS(検索入力!$A$7)*dsin(H61*0.75+H60*0.25))/(dsin(N61*0.75+N60*0.25)*DCOS(H61*0.75+H60*0.25)))/PI()*180 -> -16.60355871 | Q61: 12:06:34.687 | R61: 17:30:51.659 | S61: =ATAN((-dsin(検索入力!$A$7)*DCOS(N61*0.75+N62*0.25)*DCOS(H61*0.75+H62*0.25)+DCOS(検索入力!$A$7)*dsin(H61*0.75+H62*0.25))/(dsin(N61*0.75+N62*0.25)*DCOS(H61*0.75+H62*0.25)))/PI()*180 -> -16.3991156 | T61: 10:48:04.322
A62: 2012-02-13T12:00:00 | B62: 323.8019676 | C62: 40.7993979 | D62: 1.01093654 | E62: 0.0253374673 | F62: 0.1013498692 | G62: 4.960706646 | H62: -13.58720911 | I62: =IF(270<=B62,ATAN(dtan(B62)*DCOS($J$2))/PI()*180+360,IF(B62>90,ATAN(dtan(B62)*DCOS($J$2))/PI()*180+180,ATAN(dtan(B62)*DCOS($J$2))/PI()*180)) -> 326.1208755 | J62: 9.275631838 | K62: -0.1224890018 | L62: 14.23633848 | M62: -1.268347958 | N62: =adcos((-dsin(検索入力!$A$7)*dsin(H62)-dsin($J$5))/(DCOS(検索入力!$A$7)*DCOS(H62))) -> 81.25835383 | O62: 06:41:47.264 | P62: =ATAN((-dsin(検索入力!$A$7)*DCOS(N62*0.75+N61*0.25)*DCOS(H62*0.75+H61*0.25)+DCOS(検索入力!$A$7)*dsin(H62*0.75+H61*0.25))/(dsin(N62*0.75+N61*0.25)*DCOS(H62*0.75+H61*0.25)))/PI()*180 -> -16.19355625 | Q62: 12:06:34.172 | R62: 17:31:50.945 | S62: =ATAN((-dsin(検索入力!$A$7)*DCOS(N62*0.75+N63*0.25)*DCOS(H62*0.75+H63*0.25)+DCOS(検索入力!$A$7)*dsin(H62*0.75+H63*0.25))/(dsin(N62*0.75+N63*0.25)*DCOS(H62*0.75+H63*0.25)))/PI()*180 -> -15.98691677 | T62: 10:50:03.681
A63: 2012-02-14T12:00:00 | B63: 324.8129524 | C63: 41.81033444 | D63: 1.010543871 | E63: 0.02494477952 | F63: 0.09977911808 | G63: 5.062056515 | H63: -13.25142874 | I63: =IF(270<=B63,ATAN(dtan(B63)*DCOS($J$2))/PI()*180+360,IF(B63>90,ATAN(dtan(B63)*DCOS($J$2))/PI()*180+180,ATAN(dtan(B63)*DCOS($J$2))/PI()*180)) -> 327.1012381 | J63: 9.153142836 | K63: -0.1333038738 | L63: 14.21519935 | M63: -2.011485346 | N63: =adcos((-dsin(検索入力!$A$7)*dsin(H63)-dsin($J$5))/(DCOS(検索入力!$A$7)*DCOS(H63))) -> 81.50976872 | O63: 06:40:45.961 | P63: =ATAN((-dsin(検索入力!$A$7)*DCOS(N63*0.75+N62*0.25)*DCOS(H63*0.75+H62*0.25)+DCOS(検索入力!$A$7)*dsin(H63*0.75+H62*0.25))/(dsin(N63*0.75+N62*0.25)*DCOS(H63*0.75+H62*0.25)))/PI()*180 -> -15.77919704 | Q63: 12:06:32.904 | R63: 17:32:49.942 | S63: =ATAN((-dsin(検索入力!$A$7)*DCOS(N63*0.75+N64*0.25)*DCOS(H63*0.75+H64*0.25)+DCOS(検索入力!$A$7)*dsin(H63*0.75+H64*0.25))/(dsin(N63*0.75+N64*0.25)*DCOS(H63*0.75+H64*0.25)))/PI()*180 -> -15.57043289 | T63: 10:52:03.981
A64: 2012-02-15T12:00:00 | B64: 325.8235445 | C64: 42.82087831 | D64: 1.010143758 | E64: 0.0245446473 | F64: 0.09817858919 | G64: 5.161835633 | H64: -12.91204864 | I64: =IF(270<=B64,ATAN(dtan(B64)*DCOS($J$2))/PI()*180+360,IF(B64>90,ATAN(dtan(B64)*DCOS($J$2))/PI()*180+180,ATAN(dtan(B64)*DCOS($J$2))/PI()*180)) -> 328.0785043 | J64: 9.019838962 | K64: -0.1439029377 | L64: 14.1816746 | M64: -2.743460909 | N64: =adcos((-dsin(検索入力!$A$7)*dsin(H64)-dsin($J$5))/(DCOS(検索入力!$A$7)*DCOS(H64))) -> 81.76304514 | O64: 06:39:43.461 | P64: =ATAN((-dsin(検索入力!$A$7)*DCOS(N64*0.75+N63*0.25)*DCOS(H64*0.75+H63*0.25)+DCOS(検索入力!$A$7)*dsin(H64*0.75+H63*0.25))/(dsin(N64*0.75+N63*0.25)*DCOS(H64*0.75+H63*0.25)))/PI()*180 -> -15.36062427 | Q64: 12:06:30.892 | R64: 17:33:48.641 | S64: =ATAN((-dsin(検索入力!$A$7)*DCOS(N64*0.75+N65*0.25)*DCOS(H64*0.75+H65*0.25)+DCOS(検索入力!$A$7)*dsin(H64*0.75+H65*0.25))/(dsin(N64*0.75+N65*0.25)*DCOS(H64*0.75+H65*0.25)))/PI()*180 -> -15.14980674 | T64: 10:54:05.180
A65: 2012-02-16T12:00:00 | B65: 326.8337365 | C65: 43.83102207 | D65: 1.009736341 | E65: 0.02413721144 | F65: 0.09654884575 | G65: 5.260014222 | H65: -12.56918446 | I65: =IF(270<=B65,ATAN(dtan(B65)*DCOS($J$2))/PI()*180+360,IF(B65>90,ATAN(dtan(B65)*DCOS($J$2))/PI()*180+180,ATAN(dtan(B65)*DCOS($J$2))/PI()*180)) -> 329.0527205 | J65: 8.875936024 | K65: -0.1542760641 | L65: 14.13595025 | M65: -3.4636331 | N65: =adcos((-dsin(検索入力!$A$7)*dsin(H65)-dsin($J$5))/(DCOS(検索入力!$A$7)*DCOS(H65))) -> 82.01809799 | O65: 06:38:39.795 | P65: =ATAN((-dsin(検索入力!$A$7)*DCOS(N65*0.75+N64*0.25)*DCOS(H65*0.75+H64*0.25)+DCOS(検索入力!$A$7)*dsin(H65*0.75+H64*0.25))/(dsin(N65*0.75+N64*0.25)*DCOS(H65*0.75+H64*0.25)))/PI()*180 -> -14.93798029 | Q65: 12:06:28.149 | R65: 17:34:47.031 | S65: =ATAN((-dsin(検索入力!$A$7)*DCOS(N65*0.75+N66*0.25)*DCOS(H65*0.75+H66*0.25)+DCOS(検索入力!$A$7)*dsin(H65*0.75+H66*0.25))/(dsin(N65*0.75+N66*0.25)*DCOS(H65*0.75+H66*0.25)))/PI()*180 -> -14.7251802 | T65: 10:56:07.237
A66: 2012-02-17T12:00:00 | B66: 327.8435211 | C66: 44.84075841 | D66: 1.009321764 | E66: 0.02372261493 | F66: 0.09489045971 | G66: 5.356563068 | H66: -12.22295174 | I66: =IF(270<=B66,ATAN(dtan(B66)*DCOS($J$2))/PI()*180+360,IF(B66>90,ATAN(dtan(B66)*DCOS($J$2))/PI()*180+180,ATAN(dtan(B66)*DCOS($J$2))/PI()*180)) -> 330.0239361 | J66: 8.72165996 | K66: -0.1644135809 | L66: 14.07822303 | M66: -4.171387274 | N66: =adcos((-dsin(検索入力!$A$7)*dsin(H66)-dsin($J$5))/(DCOS(検索入力!$A$7)*DCOS(H66))) -> 82.27484445 | O66: 06:37:34.993 | P66: =ATAN((-dsin(検索入力!$A$7)*DCOS(N66*0.75+N65*0.25)*DCOS(H66*0.75+H65*0.25)+DCOS(検索入力!$A$7)*dsin(H66*0.75+H65*0.25))/(dsin(N66*0.75+N65*0.25)*DCOS(H66*0.75+H65*0.25)))/PI()*180 -> -14.51140652 | Q66: 12:06:24.685 | R66: 17:35:45.107 | S66: =ATAN((-dsin(検索入力!$A$7)*DCOS(N66*0.75+N67*0.25)*DCOS(H66*0.75+H67*0.25)+DCOS(検索入力!$A$7)*dsin(H66*0.75+H67*0.25))/(dsin(N66*0.75+N67*0.25)*DCOS(H66*0.75+H67*0.25)))/PI()*180 -> -14.29669423 | T66: 10:58:10.113
A67: 2012-02-18T12:00:00 | B67: 328.8528911 | C67: 45.85008018 | D67: 1.008900173 | E67: 0.02330100285 | F67: 0.0932040114 | G67: 5.451453528 | H67: -11.87346579 | I67: =IF(270<=B67,ATAN(dtan(B67)*DCOS($J$2))/PI()*180+360,IF(B67>90,ATAN(dtan(B67)*DCOS($J$2))/PI()*180+180,ATAN(dtan(B67)*DCOS($J$2))/PI()*180)) -> 330.9922027 | J67: 8.557246379 | K67: -0.1743062685 | L67: 14.00869991 | M67: -4.866135427 | N67: =adcos((-dsin(検索入力!$A$7)*dsin(H67)-dsin($J$5))/(DCOS(検索入力!$A$7)*DCOS(H67))) -> 82.53320393 | O67: 06:36:29.089 | P67: =ATAN((-dsin(検索入力!$A$7)*DCOS(N67*0.75+N66*0.25)*DCOS(H67*0.75+H66*0.25)+DCOS(検索入力!$A$7)*dsin(H67*0.75+H66*0.25))/(dsin(N67*0.75+N66*0.25)*DCOS(H67*0.75+H66*0.25)))/PI()*180 -> -14.08104344 | Q67: 12:06:20.514 | R67: 17:36:42.860 | S67: =ATAN((-dsin(検索入力!$A$7)*DCOS(N67*0.75+N68*0.25)*DCOS(H67*0.75+H68*0.25)+DCOS(検索入力!$A$7)*dsin(H67*0.75+H68*0.25))/(dsin(N67*0.75+N68*0.25)*DCOS(H67*0.75+H68*0.25)))/PI()*180 -> -13.86448884 | T67: 11:00:13.771
A68: 2012-02-19T12:00:00 | B68: 329.8618394 | C68: 46.85898035 | D68: 1.008471712 | E68: 0.02287252232 | F68: 0.0914900893 | G68: 5.544657539 | H68: -11.5208417 | I68: =IF(270<=B68,ATAN(dtan(B68)*DCOS($J$2))/PI()*180+360,IF(B68>90,ATAN(dtan(B68)*DCOS($J$2))/PI()*180+180,ATAN(dtan(B68)*DCOS($J$2))/PI()*180)) -> 331.9575745 | J68: 8.382940111 | K68: -0.1839453543 | L68: 13.92759765 | M68: -5.547315897 | N68: =adcos((-dsin(検索入力!$A$7)*dsin(H68)-dsin($J$5))/(DCOS(検索入力!$A$7)*DCOS(H68))) -> 82.79309809 | O68: 06:35:22.115 | P68: =ATAN((-dsin(検索入力!$A$7)*DCOS(N68*0.75+N67*0.25)*DCOS(H68*0.75+H67*0.25)+DCOS(検索入力!$A$7)*dsin(H68*0.75+H67*0.25))/(dsin(N68*0.75+N67*0.25)*DCOS(H68*0.75+H67*0.25)))/PI()*180 -> -13.64703058 | Q68: 12:06:15.648 | R68: 17:37:40.286 | S68: =ATAN((-dsin(検索入力!$A$7)*DCOS(N68*0.75+N69*0.25)*DCOS(H68*0.75+H69*0.25)+DCOS(検索入力!$A$7)*dsin(H68*0.75+H69*0.25))/(dsin(N68*0.75+N69*0.25)*DCOS(H68*0.75+H69*0.25)))/PI()*180 -> -13.42870305 | T68: 11:02:18.171
A69: 2012-02-20T12:00:00 | B69: 330.8703593 | C69: 47.86745206 | D69: 1.008036533 | E69: 0.02243732242 | F69: 0.08974928969 | G69: 5.636147629 | H69: -11.16519427 | I69: =IF(270<=B69,ATAN(dtan(B69)*DCOS($J$2))/PI()*180+360,IF(B69>90,ATAN(dtan(B69)*DCOS($J$2))/PI()*180+180,ATAN(dtan(B69)*DCOS($J$2))/PI()*180)) -> 332.920108 | J69: 8.198994756 | K69: -0.1933225066 | L69: 13.83514239 | M69: -6.214393015 | N69: =adcos((-dsin(検索入力!$A$7)*dsin(H69)-dsin($J$5))/(DCOS(検索入力!$A$7)*DCOS(H69))) -> 83.05445077 | O69: 06:34:14.100 | P69: =ATAN((-dsin(検索入力!$A$7)*DCOS(N69*0.75+N68*0.25)*DCOS(H69*0.75+H68*0.25)+DCOS(検索入力!$A$7)*dsin(H69*0.75+H68*0.25))/(dsin(N69*0.75+N68*0.25)*DCOS(H69*0.75+H68*0.25)))/PI()*180 -> -13.20950646 | Q69: 12:06:10.101 | R69: 17:38:37.379 | S69: =ATAN((-dsin(検索入力!$A$7)*DCOS(N69*0.75+N70*0.25)*DCOS(H69*0.75+H70*0.25)+DCOS(検索入力!$A$7)*dsin(H69*0.75+H70*0.25))/(dsin(N69*0.75+N70*0.25)*DCOS(H69*0.75+H70*0.25)))/PI()*180 -> -12.98947487 | T69: 11:04:23.279
A70: 2012-02-21T12:00:00 | B70: 331.878444 | C70: 48.87548859 | D70: 1.007594786 | E70: 0.02199555411 | F70: 0.08798221643 | G70: 5.725896918 | H70: -10.80663803 | I70: =IF(270<=B70,ATAN(dtan(B70)*DCOS($J$2))/PI()*180+360,IF(B70>90,ATAN(dtan(B70)*DCOS($J$2))/PI()*180+180,ATAN(dtan(B70)*DCOS($J$2))/PI()*180)) -> 333.879862 | J70: 8.00567225 | K70: -0.2024298285 | L70: 13.73156917 | M70: -6.866856721 | N70: =adcos((-dsin(検索入力!$A$7)*dsin(H70)-dsin($J$5))/(DCOS(検索入力!$A$7)*DCOS(H70))) -> 83.31718799 | O70: 06:33:05.079 | P70: =ATAN((-dsin(検索入力!$A$7)*DCOS(N70*0.75+N69*0.25)*DCOS(H70*0.75+H69*0.25)+DCOS(検索入力!$A$7)*dsin(H70*0.75+H69*0.25))/(dsin(N70*0.75+N69*0.25)*DCOS(H70*0.75+H69*0.25)))/PI()*180 -> -12.76860856 | Q70: 12:06:03.886 | R70: 17:39:34.138 | S70: =ATAN((-dsin(検索入力!$A$7)*DCOS(N70*0.75+N71*0.25)*DCOS(H70*0.75+H71*0.25)+DCOS(検索入力!$A$7)*dsin(H70*0.75+H71*0.25))/(dsin(N70*0.75+N71*0.25)*DCOS(H70*0.75+H71*0.25)))/PI()*180 -> -12.54694129 | T70: 11:06:29.059
A71: 2012-02-22T12:00:00 | B71: 332.8860869 | C71: 49.88308338 | D71: 1.007146624 | E71: 0.02154737015 | F71: 0.08618948062 | G71: 5.813879135 | H71: -10.44528714 | I71: =IF(270<=B71,ATAN(dtan(B71)*DCOS($J$2))/PI()*180+360,IF(B71>90,ATAN(dtan(B71)*DCOS($J$2))/PI()*180+180,ATAN(dtan(B71)*DCOS($J$2))/PI()*180)) -> 334.8368975 | J71: 7.803242421 | K71: -0.2112598498 | L71: 13.61712156 | M71: -7.504222148 | N71: =adcos((-dsin(検索入力!$A$7)*dsin(H71)-dsin($J$5))/(DCOS(検索入力!$A$7)*DCOS(H71))) -> 83.5812379 | O71: 06:31:55.082 | P71: =ATAN((-dsin(検索入力!$A$7)*DCOS(N71*0.75+N70*0.25)*DCOS(H71*0.75+H70*0.25)+DCOS(検索入力!$A$7)*dsin(H71*0.75+H70*0.25))/(dsin(N71*0.75+N70*0.25)*DCOS(H71*0.75+H70*0.25)))/PI()*180 -> -12.32447336 | Q71: 12:05:57.019 | R71: 17:40:30.558 | S71: =ATAN((-dsin(検索入力!$A$7)*DCOS(N71*0.75+N72*0.25)*DCOS(H71*0.75+H72*0.25)+DCOS(検索入力!$A$7)*dsin(H71*0.75+H72*0.25))/(dsin(N71*0.75+N72*0.25)*DCOS(H71*0.75+H72*0.25)))/PI()*180 -> -12.10123824 | T71: 11:08:35.476
A72: 2012-02-23T12:00:00 | B72: 333.8932816 | C72: 50.89023 | D72: 1.0066922 | E72: 0.02109292508 | F72: 0.08437170031 | G72: 5.900068615 | H72: -10.08125542 | I72: =IF(270<=B72,ATAN(dtan(B72)*DCOS($J$2))/PI()*180+360,IF(B72>90,ATAN(dtan(B72)*DCOS($J$2))/PI()*180+180,ATAN(dtan(B72)*DCOS($J$2))/PI()*180)) -> 335.7912773 | J72: 7.591982572 | K72: -0.2198055199 | L72: 13.49205119 | M72: -8.126029178 | N72: =adcos((-dsin(検索入力!$A$7)*dsin(H72)-dsin($J$5))/(DCOS(検索入力!$A$7)*DCOS(H72))) -> 83.84653071 | O72: 06:30:44.141 | P72: =ATAN((-dsin(検索入力!$A$7)*DCOS(N72*0.75+N71*0.25)*DCOS(H72*0.75+H71*0.25)+DCOS(検索入力!$A$7)*dsin(H72*0.75+H71*0.25))/(dsin(N72*0.75+N71*0.25)*DCOS(H72*0.75+H71*0.25)))/PI()*180 -> -11.87723627 | Q72: 12:05:49.515 | R72: 17:41:26.639 | S72: =ATAN((-dsin(検索入力!$A$7)*DCOS(N72*0.75+N73*0.25)*DCOS(H72*0.75+H73*0.25)+DCOS(検索入力!$A$7)*dsin(H72*0.75+H73*0.25))/(dsin(N72*0.75+N73*0.25)*DCOS(H72*0.75+H73*0.25)))/PI()*180 -> -11.6525006 | T72: 11:10:42.498
A73: 2012-02-24T12:00:00 | B73: 334.9000219 | C73: 51.8969222 | D73: =$H$4*(1+$H$3*DCOS(C73))^2*(1-$H$3*dsin(C73)*PI()/180*(1+$H$3*DCOS(C73))) -> 1.006231672 | E73: 0.02063237506 | F73: =4*E73 -> 0.08252950025 | G73: 5.984440316 | H73: -9.714656287 | I73: =IF(270<=B73,ATAN(dtan(B73)*DCOS($J$2))/PI()*180+360,IF(B73>90,ATAN(dtan(B73)*DCOS($J$2))/PI()*180+180,ATAN(dtan(B73)*DCOS($J$2))/PI()*180)) -> 336.7430662 | J73: 7.372177052 | K73: -0.2280601998 | L73: 13.35661737 | M73: -8.731841973 | N73: =adcos((-dsin(検索入力!$A$7)*dsin(H73)-dsin($J$5))/(DCOS(検索入力!$A$7)*DCOS(H73))) -> 84.11299868 | O73: 06:29:32.289 | P73: =ATAN((-dsin(検索入力!$A$7)*DCOS(N73*0.75+N72*0.25)*DCOS(H73*0.75+H72*0.25)+DCOS(検索入力!$A$7)*dsin(H73*0.75+H72*0.25))/(dsin(N73*0.75+N72*0.25)*DCOS(H73*0.75+H72*0.25)))/PI()*180 -> -11.42703163 | Q73: 12:05:41.389 | R73: 17:42:22.380 | S73: =ATAN((-dsin(検索入力!$A$7)*DCOS(N73*0.75+N74*0.25)*DCOS(H73*0.75+H74*0.25)+DCOS(検索入力!$A$7)*dsin(H73*0.75+H74*0.25))/(dsin(N73*0.75+N74*0.25)*DCOS(H73*0.75+H74*0.25)))/PI()*180 -> -11.2008622 | T73: 11:12:50.091
A74: 2012-02-25T12:00:00 | B74: =IF(B73+(A74-A73)*D73/$H$4*$L$3<360,B73+(A74-A73)*D73/$H$4*$L$3,B73+(A74-A73)*D73/$H$4*$L$3-360) -> 335.9063016 | C74: =IF(C73+D73*(A74-A73)<360,C73+D73*(A74-A73),C73+D73*(A74-A73)-360) -> 52.90315388 | D74: 1.005765197 | E74: 0.02016587789 | F74: 0.08066351155 | G74: 6.066969816 | H74: -9.345602761 | I74: =IF(270<=B74,ATAN(dtan(B74)*DCOS($J$2))/PI()*180+360,IF(B74>90,ATAN(dtan(B74)*DCOS($J$2))/PI()*180+180,ATAN(dtan(B74)*DCOS($J$2))/PI()*180)) -> 337.6923309 | J74: 7.144116852 | K74: -0.2360176531 | L74: 13.21108667 | M74: -9.321248492 | N74: =adcos((-dsin(検索入力!$A$7)*dsin(H74)-dsin($J$5))/(DCOS(検索入力!$A$7)*DCOS(H74))) -> 84.38057607 | O74: 06:28:19.557 | P74: =ATAN((-dsin(検索入力!$A$7)*DCOS(N74*0.75+N73*0.25)*DCOS(H74*0.75+H73*0.25)+DCOS(検索入力!$A$7)*dsin(H74*0.75+H73*0.25))/(dsin(N74*0.75+N73*0.25)*DCOS(H74*0.75+H73*0.25)))/PI()*180 -> -10.97399275 | Q74: 12:05:32.657 | R74: 17:43:17.783 | S74: =ATAN((-dsin(検索入力!$A$7)*DCOS(N74*0.75+N75*0.25)*DCOS(H74*0.75+H75*0.25)+DCOS(検索入力!$A$7)*dsin(H74*0.75+H75*0.25))/(dsin(N74*0.75+N75*0.25)*DCOS(H74*0.75+H75*0.25)))/PI()*180 -> -10.7464558 | T74: 11:14:58.226
A75: 2012-02-26T12:00:00 | B75: 336.9121149 | C75: 53.90891907 | D75: 1.005292935 | E75: 0.01969359285 | F75: 0.0787743714 | G75: 6.147633327 | H75: -8.974207426 | I75: =IF(270<=B75,ATAN(dtan(B75)*DCOS($J$2))/PI()*180+360,IF(B75>90,ATAN(dtan(B75)*DCOS($J$2))/PI()*180+180,ATAN(dtan(B75)*DCOS($J$2))/PI()*180)) -> 338.6391397 | J75: 6.908099199 | K75: -0.2436720378 | L75: 13.05573253 | M75: -9.893859985 | N75: =adcos((-dsin(検索入力!$A$7)*dsin(H75)-dsin($J$5))/(DCOS(検索入力!$A$7)*DCOS(H75))) -> 84.64919905 | O75: 06:27:05.976 | P75: =ATAN((-dsin(検索入力!$A$7)*DCOS(N75*0.75+N74*0.25)*DCOS(H75*0.75+H74*0.25)+DCOS(検索入力!$A$7)*dsin(H75*0.75+H74*0.25))/(dsin(N75*0.75+N74*0.25)*DCOS(H75*0.75+H74*0.25)))/PI()*180 -> -10.51825184 | Q75: 12:05:23.336 | R75: 17:44:12.847 | S75: =ATAN((-dsin(検索入力!$A$7)*DCOS(N75*0.75+N76*0.25)*DCOS(H75*0.75+H76*0.25)+DCOS(検索入力!$A$7)*dsin(H75*0.75+H76*0.25))/(dsin(N75*0.75+N76*0.25)*DCOS(H75*0.75+H76*0.25)))/PI()*180 -> -10.28941309 | T75: 11:17:06.871
A76: 2012-02-27T12:00:00 | B76: 337.9174558 | C76: 54.91421201 | D76: 1.004815045 | E76: 0.0192156807 | F76: 0.0768627228 | G76: 6.226407699 | H76: -8.600582419 | I76: =IF(270<=B76,ATAN(dtan(B76)*DCOS($J$2))/PI()*180+360,IF(B76>90,ATAN(dtan(B76)*DCOS($J$2))/PI()*180+180,ATAN(dtan(B76)*DCOS($J$2))/PI()*180)) -> 339.5835626 | J76: 6.664427161 | K76: -0.2510178975 | L76: 12.89083486 | M76: -10.44931048 | N76: =adcos((-dsin(検索入力!$A$7)*dsin(H76)-dsin($J$5))/(DCOS(検索入力!$A$7)*DCOS(H76))) -> 84.91880567 | O76: 06:25:51.579 | P76: =ATAN((-dsin(検索入力!$A$7)*DCOS(N76*0.75+N75*0.25)*DCOS(H76*0.75+H75*0.25)+DCOS(検索入力!$A$7)*dsin(H76*0.75+H75*0.25))/(dsin(N76*0.75+N75*0.25)*DCOS(H76*0.75+H75*0.25)))/PI()*180 -> -10.05994007 | Q76: 12:05:13.442 | R76: 17:45:07.575 | S76: =ATAN((-dsin(検索入力!$A$7)*DCOS(N76*0.75+N77*0.25)*DCOS(H76*0.75+H77*0.25)+DCOS(検索入力!$A$7)*dsin(H76*0.75+H77*0.25))/(dsin(N76*0.75+N77*0.25)*DCOS(H76*0.75+H77*0.25)))/PI()*180 -> -9.829864701 | T76: 11:19:15.996
A77: 2012-02-28T12:00:00 | B77: 338.9223189 | C77: 55.91902705 | D77: 1.004331691 | E77: 0.01873230356 | F77: 0.07492921424 | G77: 6.303270422 | H77: -8.224839415 | I77: =IF(270<=B77,ATAN(dtan(B77)*DCOS($J$2))/PI()*180+360,IF(B77>90,ATAN(dtan(B77)*DCOS($J$2))/PI()*180+180,ATAN(dtan(B77)*DCOS($J$2))/PI()*180)) -> 340.5256712 | J77: 6.413409264 | K77: -0.2580501521 | L77: 12.71667969 | M77: -10.98725627 | N77: =adcos((-dsin(検索入力!$A$7)*dsin(H77)-dsin($J$5))/(DCOS(検索入力!$A$7)*DCOS(H77))) -> 85.18933582 | O77: 06:24:36.396 | P77: =ATAN((-dsin(検索入力!$A$7)*DCOS(N77*0.75+N76*0.25)*DCOS(H77*0.75+H76*0.25)+DCOS(検索入力!$A$7)*dsin(H77*0.75+H76*0.25))/(dsin(N77*0.75+N76*0.25)*DCOS(H77*0.75+H76*0.25)))/PI()*180 -> -9.599187548 | Q77: 12:05:02.993 | R77: 17:46:01.970 | S77: =ATAN((-dsin(検索入力!$A$7)*DCOS(N77*0.75+N78*0.25)*DCOS(H77*0.75+H78*0.25)+DCOS(検索入力!$A$7)*dsin(H77*0.75+H78*0.25))/(dsin(N77*0.75+N78*0.25)*DCOS(H77*0.75+H78*0.25)))/PI()*180 -> -9.36794022 | T77: 11:21:25.574
A78: 2012-02-29T12:00:00 | B78: 339.9266985 | C78: 56.92335874 | D78: 1.003843036 | E78: 0.01824362486 | F78: 0.07297449942 | G78: 6.378199636 | H78: -7.847089613 | I78: =IF(270<=B78,ATAN(dtan(B78)*DCOS($J$2))/PI()*180+360,IF(B78>90,ATAN(dtan(B78)*DCOS($J$2))/PI()*180+180,ATAN(dtan(B78)*DCOS($J$2))/PI()*180)) -> 341.4655383 | J78: 6.155359111 | K78: -0.2647640891 | L78: 12.53355875 | M78: -11.50737538 | N78: =adcos((-dsin(検索入力!$A$7)*dsin(H78)-dsin($J$5))/(DCOS(検索入力!$A$7)*DCOS(H78))) -> 85.4607311 | O78: 06:23:20.461 | P78: =ATAN((-dsin(検索入力!$A$7)*DCOS(N78*0.75+N77*0.25)*DCOS(H78*0.75+H77*0.25)+DCOS(検索入力!$A$7)*dsin(H78*0.75+H77*0.25))/(dsin(N78*0.75+N77*0.25)*DCOS(H78*0.75+H77*0.25)))/PI()*180 -> -9.136123324 | Q78: 12:04:52.006 | R78: 17:46:56.036 | S78: =ATAN((-dsin(検索入力!$A$7)*DCOS(N78*0.75+N79*0.25)*DCOS(H78*0.75+H79*0.25)+DCOS(検索入力!$A$7)*dsin(H78*0.75+H79*0.25))/(dsin(N78*0.75+N79*0.25)*DCOS(H78*0.75+H79*0.25)))/PI()*180 -> -8.903768174 | T78: 11:23:35.576
A79: 2012-03-01T12:00:00 | B79: 340.9305895 | C79: 57.92720178 | D79: 1.003349244 | E79: 0.01774980924 | F79: 0.07099923694 | G79: 6.451174135 | H79: -7.467443724 | I79: =IF(270<=B79,ATAN(dtan(B79)*DCOS($J$2))/PI()*180+360,IF(B79>90,ATAN(dtan(B79)*DCOS($J$2))/PI()*180+180,ATAN(dtan(B79)*DCOS($J$2))/PI()*180)) -> 342.4032383 | J79: 5.890595022 | K79: -0.2711553543 | L79: 12.34176916 | M79: -12.00936704 | N79: =adcos((-dsin(検索入力!$A$7)*dsin(H79)-dsin($J$5))/(DCOS(検索入力!$A$7)*DCOS(H79))) -> 85.73293484 | O79: 06:22:03.803 | P79: =ATAN((-dsin(検索入力!$A$7)*DCOS(N79*0.75+N78*0.25)*DCOS(H79*0.75+H78*0.25)+DCOS(検索入力!$A$7)*dsin(H79*0.75+H78*0.25))/(dsin(N79*0.75+N78*0.25)*DCOS(H79*0.75+H78*0.25)))/PI()*180 -> -8.670875411 | Q79: 12:04:40.498 | R79: 17:47:49.778 | S79: =ATAN((-dsin(検索入力!$A$7)*DCOS(N79*0.75+N80*0.25)*DCOS(H79*0.75+H80*0.25)+DCOS(検索入力!$A$7)*dsin(H79*0.75+H80*0.25))/(dsin(N79*0.75+N80*0.25)*DCOS(H79*0.75+H80*0.25)))/PI()*180 -> -8.43747606 | T79: 11:25:45.975
A80: 2012-03-02T12:00:00 | B80: 341.9339867 | C80: 58.93055102 | D80: 1.002850481 | E80: 0.01725102251 | F80: 0.06900409005 | G80: 6.522173372 | H80: -7.086011963 | I80: =IF(270<=B80,ATAN(dtan(B80)*DCOS($J$2))/PI()*180+360,IF(B80>90,ATAN(dtan(B80)*DCOS($J$2))/PI()*180+180,ATAN(dtan(B80)*DCOS($J$2))/PI()*180)) -> 343.3388466 | J80: 5.619439668 | K80: -0.2772199429 | L80: 12.14161304 | M80: -12.49295117 | N80: =adcos((-dsin(検索入力!$A$7)*dsin(H80)-dsin($J$5))/(DCOS(検索入力!$A$7)*DCOS(H80))) -> 86.00589197 | O80: 06:20:46.454 | P80: =ATAN((-dsin(検索入力!$A$7)*DCOS(N80*0.75+N79*0.25)*DCOS(H80*0.75+H79*0.25)+DCOS(検索入力!$A$7)*dsin(H80*0.75+H79*0.25))/(dsin(N80*0.75+N79*0.25)*DCOS(H80*0.75+H79*0.25)))/PI()*180 -> -8.203570795 | Q80: 12:04:28.489 | R80: 17:48:43.199 | S80: =ATAN((-dsin(検索入力!$A$7)*DCOS(N80*0.75+N81*0.25)*DCOS(H80*0.75+H81*0.25)+DCOS(検索入力!$A$7)*dsin(H80*0.75+H81*0.25))/(dsin(N80*0.75+N81*0.25)*DCOS(H80*0.75+H81*0.25)))/PI()*180 -> -7.969190356 | T80: 11:27:56.745
A81: 2012-03-03T12:00:00 | B81: 342.9368851 | C81: 59.93340151 | D81: 1.002346914 | E81: 0.01674743158 | F81: 0.0669897263 | G81: 6.591177462 | H81: -6.70290404 | I81: =IF(270<=B81,ATAN(dtan(B81)*DCOS($J$2))/PI()*180+360,IF(B81>90,ATAN(dtan(B81)*DCOS($J$2))/PI()*180+180,ATAN(dtan(B81)*DCOS($J$2))/PI()*180)) -> 344.27244 | J81: 5.342219725 | K81: -0.2829541907 | L81: 11.93339719 | M81: -12.95786786 | N81: =adcos((-dsin(検索入力!$A$7)*dsin(H81)-dsin($J$5))/(DCOS(検索入力!$A$7)*DCOS(H81))) -> 86.27954899 | O81: 06:19:28.447 | P81: =ATAN((-dsin(検索入力!$A$7)*DCOS(N81*0.75+N80*0.25)*DCOS(H81*0.75+H80*0.25)+DCOS(検索入力!$A$7)*dsin(H81*0.75+H80*0.25))/(dsin(N81*0.75+N80*0.25)*DCOS(H81*0.75+H80*0.25)))/PI()*180 -> -7.734335448 | Q81: 12:04:15.996 | R81: 17:49:36.306 | S81: =ATAN((-dsin(検索入力!$A$7)*DCOS(N81*0.75+N82*0.25)*DCOS(H81*0.75+H82*0.25)+DCOS(検索入力!$A$7)*dsin(H81*0.75+H82*0.25))/(dsin(N81*0.75+N82*0.25)*DCOS(H81*0.75+H82*0.25)))/PI()*180 -> -7.499036534 | T81: 11:30:07.860
A82: 2012-03-04T12:00:00 | B82: 343.9392799 | C82: 60.93574842 | D82: 1.001838711 | E82: 0.01623920433 | F82: 0.06495681731 | G82: 6.658167189 | H82: =adsin(dsin(B82)*dsin($J$2)) -> -6.318229159 | I82: =IF(270<=B82,ATAN(dtan(B82)*DCOS($J$2))/PI()*180+360,IF(B82>90,ATAN(dtan(B82)*DCOS($J$2))/PI()*180+180,ATAN(dtan(B82)*DCOS($J$2))/PI()*180)) -> 345.2040962 | J82: =(I82-B82)*4 -> 5.059265534 | K82: =J83-J82 -> -0.2883547647 | L82: =G82+J82 -> 11.71743272 | M82: -13.40387684 | N82: =adcos((-dsin(検索入力!$A$7)*dsin(H82)-dsin($J$5))/(DCOS(検索入力!$A$7)*DCOS(H82))) -> 86.55385386 | O82: 06:18:09.811 | P82: =ATAN((-dsin(検索入力!$A$7)*DCOS(N82*0.75+N81*0.25)*DCOS(H82*0.75+H81*0.25)+DCOS(検索入力!$A$7)*dsin(H82*0.75+H81*0.25))/(dsin(N82*0.75+N81*0.25)*DCOS(H82*0.75+H81*0.25)))/PI()*180 -> -7.263294349 | Q82: =(12+(L82+$J$3)/60)/24 -> 12:04:03.038 | R82: 17:50:29.106 | S82: =ATAN((-dsin(検索入力!$A$7)*DCOS(N82*0.75+N83*0.25)*DCOS(H82*0.75+H83*0.25)+DCOS(検索入力!$A$7)*dsin(H82*0.75+H83*0.25))/(dsin(N82*0.75+N83*0.25)*DCOS(H82*0.75+H83*0.25)))/PI()*180 -> -7.027139083 | T82: 11:32:19.295
A83: 2012-03-05T12:00:00 | B83: 344.9411664 | C83: 61.93758713 | D83: 1.001326041 | E83: 0.01572650961 | F83: 0.06290603845 | G83: 6.723124006 | H83: -5.932096006 | I83: =IF(270<=B83,ATAN(dtan(B83)*DCOS($J$2))/PI()*180+360,IF(B83>90,ATAN(dtan(B83)*DCOS($J$2))/PI()*180+180,ATAN(dtan(B83)*DCOS($J$2))/PI()*180)) -> 346.1338941 | J83: 4.77091077 | K83: -0.2934186552 | L83: 11.49403478 | M83: -13.830757 | N83: =adcos((-dsin(検索入力!$A$7)*dsin(H83)-dsin($J$5))/(DCOS(検索入力!$A$7)*DCOS(H83))) -> 86.82875599 | O83: =0.75*Q83+0.25*Q82-(0.75*N83+0.25*N82)*4/60/24 -> 06:16:50.578 | P83: =ATAN((-dsin(検索入力!$A$7)*DCOS(N83*0.75+N82*0.25)*DCOS(H83*0.75+H82*0.25)+DCOS(検索入力!$A$7)*dsin(H83*0.75+H82*0.25))/(dsin(N83*0.75+N82*0.25)*DCOS(H83*0.75+H82*0.25)))/PI()*180 -> -6.7905715 | Q83: 12:03:49.634 | R83: =0.75*Q83+0.25*Q84+(0.75*N83+0.25*N84)*4/60/24 -> 17:51:21.605 | S83: =ATAN((-dsin(検索入力!$A$7)*DCOS(N83*0.75+N84*0.25)*DCOS(H83*0.75+H84*0.25)+DCOS(検索入力!$A$7)*dsin(H83*0.75+H84*0.25))/(dsin(N83*0.75+N84*0.25)*DCOS(H83*0.75+H84*0.25)))/PI()*180 -> -6.553621526 | T83: =R83-O83 -> 11:34:31.027
A84: 2012-03-06T12:00:00 | B84: 345.9425403 | C84: 62.93891317 | D84: 1.000809073 | E84: 0.01520951713 | F84: 0.06083806854 | G84: 6.786030044 | H84: -5.544612755 | I84: =IF(270<=B84,ATAN(dtan(B84)*DCOS($J$2))/PI()*180+360,IF(B84>90,ATAN(dtan(B84)*DCOS($J$2))/PI()*180+180,ATAN(dtan(B84)*DCOS($J$2))/PI()*180)) -> 347.0619133 | J84: 4.477492115 | K84: -0.2981431667 | L84: 11.26352216 | M84: -14.23830589 | N84: =adcos((-dsin(検索入力!$A$7)*dsin(H84)-dsin($J$5))/(DCOS(検索入力!$A$7)*DCOS(H84))) -> 87.10420611 | O84: 06:15:30.779 | P84: =ATAN((-dsin(検索入力!$A$7)*DCOS(N84*0.75+N83*0.25)*DCOS(H84*0.75+H83*0.25)+DCOS(検索入力!$A$7)*dsin(H84*0.75+H83*0.25))/(dsin(N84*0.75+N83*0.25)*DCOS(H84*0.75+H83*0.25)))/PI()*180 -> -6.316289951 | Q84: 12:03:35.803 | R84: 17:52:13.810 | S84: =ATAN((-dsin(検索入力!$A$7)*DCOS(N84*0.75+N85*0.25)*DCOS(H84*0.75+H85*0.25)+DCOS(検索入力!$A$7)*dsin(H84*0.75+H85*0.25))/(dsin(N84*0.75+N85*0.25)*DCOS(H84*0.75+H85*0.25)))/PI()*180 -> -6.078606445 | T84: 11:36:43.032
A85: 2012-03-07T12:00:00 | B85: 346.9433972 | C85: 63.93972225 | D85: 1.000287978 | E85: 0.0146883974 | F85: 0.05875358961 | G85: 6.846868113 | H85: -5.155887061 | I85: =IF(270<=B85,ATAN(dtan(B85)*DCOS($J$2))/PI()*180+360,IF(B85>90,ATAN(dtan(B85)*DCOS($J$2))/PI()*180+180,ATAN(dtan(B85)*DCOS($J$2))/PI()*180)) -> 347.9882344 | J85: 4.179348948 | K85: -0.3025259101 | L85: 11.02621706 | M85: =(F85+K85)*60 -> -14.62633923 | N85: =adcos((-dsin(検索入力!$A$7)*dsin(H85)-dsin($J$5))/(DCOS(検索入力!$A$7)*DCOS(H85))) -> 87.38015623 | O85: 06:14:10.444 | P85: =ATAN((-dsin(検索入力!$A$7)*DCOS(N85*0.75+N84*0.25)*DCOS(H85*0.75+H84*0.25)+DCOS(検索入力!$A$7)*dsin(H85*0.75+H84*0.25))/(dsin(N85*0.75+N84*0.25)*DCOS(H85*0.75+H84*0.25)))/PI()*180 -> -5.840571822 | Q85: 12:03:21.565 | R85: 17:53:05.730 | S85: =ATAN((-dsin(検索入力!$A$7)*DCOS(N85*0.75+N86*0.25)*DCOS(H85*0.75+H86*0.25)+DCOS(検索入力!$A$7)*dsin(H85*0.75+H86*0.25))/(dsin(N85*0.75+N86*0.25)*DCOS(H85*0.75+H86*0.25)))/PI()*180 -> -5.602215504 | T85: 11:38:55.286
A86: 2012-03-08T12:00:00 | B86: 347.9437329 | C86: 64.94001022 | D86: 0.9997629277 | E86: =D86*$L$3/$H$4-$L$4 -> 0.01416332165 | F86: 0.05665328658 | G86: 6.905621702 | H86: -4.766026065 | I86: =IF(270<=B86,ATAN(dtan(B86)*DCOS($J$2))/PI()*180+360,IF(B86>90,ATAN(dtan(B86)*DCOS($J$2))/PI()*180+180,ATAN(dtan(B86)*DCOS($J$2))/PI()*180)) -> 348.9129387 | J86: 3.876823038 | K86: -0.3065647943 | L86: 10.78244474 | M86: -14.99469046 | N86: =adcos((-dsin(検索入力!$A$7)*dsin(H86)-dsin($J$5))/(DCOS(検索入力!$A$7)*DCOS(H86))) -> 87.65655954 | O86: 06:12:49.605 | P86: =ATAN((-dsin(検索入力!$A$7)*DCOS(N86*0.75+N85*0.25)*DCOS(H86*0.75+H85*0.25)+DCOS(検索入力!$A$7)*dsin(H86*0.75+H85*0.25))/(dsin(N86*0.75+N85*0.25)*DCOS(H86*0.75+H85*0.25)))/PI()*180 -> -5.363538326 | Q86: 12:03:06.939 | R86: 17:53:57.373 | S86: =ATAN((-dsin(検索入力!$A$7)*DCOS(N86*0.75+N87*0.25)*DCOS(H86*0.75+H87*0.25)+DCOS(検索入力!$A$7)*dsin(H86*0.75+H87*0.25))/(dsin(N86*0.75+N87*0.25)*DCOS(H86*0.75+H87*0.25)))/PI()*180 -> -5.124569473 | T86: 11:41:07.768
A87: 2012-03-09T12:00:00 | B87: 348.9435436 | C87: 65.93977315 | D87: 0.9992340931 | E87: 0.01363446175 | F87: 0.054537847 | G87: =G86+F86*(A87-A86) -> 6.962274989 | H87: -4.375136394 | I87: =IF(270<=B87,ATAN(dtan(B87)*DCOS($J$2))/PI()*180+360,IF(B87>90,ATAN(dtan(B87)*DCOS($J$2))/PI()*180+180,ATAN(dtan(B87)*DCOS($J$2))/PI()*180)) -> 349.8361082 | J87: 3.570258243 | K87: -0.3102580186 | L87: 10.53253323 | M87: -15.3432103 | N87: =adcos((-dsin(検索入力!$A$7)*dsin(H87)-dsin($J$5))/(DCOS(検索入力!$A$7)*DCOS(H87))) -> 87.93337038 | O87: 06:11:28.292 | P87: =ATAN((-dsin(検索入力!$A$7)*DCOS(N87*0.75+N86*0.25)*DCOS(H87*0.75+H86*0.25)+DCOS(検索入力!$A$7)*dsin(H87*0.75+H86*0.25))/(dsin(N87*0.75+N86*0.25)*DCOS(H87*0.75+H86*0.25)))/PI()*180 -> -4.8853098 | Q87: 12:02:51.944 | R87: 17:54:48.748 | S87: =ATAN((-dsin(検索入力!$A$7)*DCOS(N87*0.75+N88*0.25)*DCOS(H87*0.75+H88*0.25)+DCOS(検索入力!$A$7)*dsin(H87*0.75+H88*0.25))/(dsin(N87*0.75+N88*0.25)*DCOS(H87*0.75+H88*0.25)))/PI()*180 -> -4.645788261 | T87: 11:43:20.455
A88: 2012-03-10T12:00:00 | B88: 349.9428254 | C88: 66.93900725 | D88: 0.998701647 | E88: 0.01310199019 | F88: 0.05240796074 | G88: 7.016812836 | H88: -3.983324163 | I88: =IF(270<=B88,ATAN(dtan(B88)*DCOS($J$2))/PI()*180+360,IF(B88>90,ATAN(dtan(B88)*DCOS($J$2))/PI()*180+180,ATAN(dtan(B88)*DCOS($J$2))/PI()*180)) -> 350.7578255 | J88: 3.260000225 | K88: -0.3136040655 | L88: 10.27681306 | M88: -15.67176629 | N88: =adcos((-dsin(検索入力!$A$7)*dsin(H88)-dsin($J$5))/(DCOS(検索入力!$A$7)*DCOS(H88))) -> 88.21054411 | O88: 06:10:06.536 | P88: =ATAN((-dsin(検索入力!$A$7)*DCOS(N88*0.75+N87*0.25)*DCOS(H88*0.75+H87*0.25)+DCOS(検索入力!$A$7)*dsin(H88*0.75+H87*0.25))/(dsin(N88*0.75+N87*0.25)*DCOS(H88*0.75+H87*0.25)))/PI()*180 -> -4.406005728 | Q88: 12:02:36.601 | R88: 17:55:39.863 | S88: =ATAN((-dsin(検索入力!$A$7)*DCOS(N88*0.75+N89*0.25)*DCOS(H88*0.75+H89*0.25)+DCOS(検索入力!$A$7)*dsin(H88*0.75+H89*0.25))/(dsin(N88*0.75+N89*0.25)*DCOS(H88*0.75+H89*0.25)))/PI()*180 -> -4.165990936 | T88: 11:45:33.327
A89: 2012-03-11T12:00:00 | B89: 350.9415748 | C89: 67.93770889 | D89: 0.9981657623 | E89: 0.01256607994 | F89: 0.05026431976 | G89: 7.069220797 | H89: -3.590694982 | I89: =IF(270<=B89,ATAN(dtan(B89)*DCOS($J$2))/PI()*180+360,IF(B89>90,ATAN(dtan(B89)*DCOS($J$2))/PI()*180+180,ATAN(dtan(B89)*DCOS($J$2))/PI()*180)) -> 351.6781738 | J89: 2.946396159 | K89: -0.3166016933 | L89: 10.01561696 | M89: -15.98024241 | N89: =adcos((-dsin(検索入力!$A$7)*dsin(H89)-dsin($J$5))/(DCOS(検索入力!$A$7)*DCOS(H89))) -> 88.48803708 | O89: 06:08:44.368 | P89: =ATAN((-dsin(検索入力!$A$7)*DCOS(N89*0.75+N88*0.25)*DCOS(H89*0.75+H88*0.25)+DCOS(検索入力!$A$7)*dsin(H89*0.75+H88*0.25))/(dsin(N89*0.75+N88*0.25)*DCOS(H89*0.75+H88*0.25)))/PI()*180 -> -3.925744775 | Q89: 12:02:20.929 | R89: 17:56:30.729 | S89: =ATAN((-dsin(検索入力!$A$7)*DCOS(N89*0.75+N90*0.25)*DCOS(H89*0.75+H90*0.25)+DCOS(検索入力!$A$7)*dsin(H89*0.75+H90*0.25))/(dsin(N89*0.75+N90*0.25)*DCOS(H89*0.75+H90*0.25)))/PI()*180 -> -3.685295765 | T89: 11:47:46.361
A90: 2012-03-12T12:00:00 | B90: 351.9397882 | C90: 68.93587465 | D90: 0.9976266126 | E90: 0.01202690445 | F90: 0.04810761781 | G90: 7.119485117 | H90: -3.197353957 | I90: =IF(270<=B90,ATAN(dtan(B90)*DCOS($J$2))/PI()*180+360,IF(B90>90,ATAN(dtan(B90)*DCOS($J$2))/PI()*180+180,ATAN(dtan(B90)*DCOS($J$2))/PI()*180)) -> 352.5972368 | J90: 2.629794466 | K90: -0.3192499294 | L90: 9.749279583 | M90: -16.2685387 | N90: =adcos((-dsin(検索入力!$A$7)*dsin(H90)-dsin($J$5))/(DCOS(検索入力!$A$7)*DCOS(H90))) -> 88.76580653 | O90: 06:07:21.816 | P90: =ATAN((-dsin(検索入力!$A$7)*DCOS(N90*0.75+N89*0.25)*DCOS(H90*0.75+H89*0.25)+DCOS(検索入力!$A$7)*dsin(H90*0.75+H89*0.25))/(dsin(N90*0.75+N89*0.25)*DCOS(H90*0.75+H89*0.25)))/PI()*180 -> -3.444644811 | Q90: 12:02:04.949 | R90: 17:57:21.355 | S90: =ATAN((-dsin(検索入力!$A$7)*DCOS(N90*0.75+N91*0.25)*DCOS(H90*0.75+H91*0.25)+DCOS(検索入力!$A$7)*dsin(H90*0.75+H91*0.25))/(dsin(N90*0.75+N91*0.25)*DCOS(H90*0.75+H91*0.25)))/PI()*180 -> -3.203820234 | T90: 11:49:59.539
A91: 2012-03-13T12:00:00 | B91: 352.9374625 | C91: 69.93350127 | D91: 0.9970843716 | E91: 0.01148463754 | F91: 0.04593855016 | G91: 7.167592734 | H91: -2.803405703 | I91: =IF(270<=B91,ATAN(dtan(B91)*DCOS($J$2))/PI()*180+360,IF(B91>90,ATAN(dtan(B91)*DCOS($J$2))/PI()*180+180,ATAN(dtan(B91)*DCOS($J$2))/PI()*180)) -> 353.5150986 | J91: 2.310544537 | K91: -0.3215480641 | L91: 9.478137271 | M91: -16.53657084 | N91: =adcos((-dsin(検索入力!$A$7)*dsin(H91)-dsin($J$5))/(DCOS(検索入力!$A$7)*DCOS(H91))) -> 89.04381052 | O91: 06:05:58.913 | P91: =ATAN((-dsin(検索入力!$A$7)*DCOS(N91*0.75+N90*0.25)*DCOS(H91*0.75+H90*0.25)+DCOS(検索入力!$A$7)*dsin(H91*0.75+H90*0.25))/(dsin(N91*0.75+N90*0.25)*DCOS(H91*0.75+H90*0.25)))/PI()*180 -> -2.962822951 | Q91: 12:01:48.680 | R91: 17:58:11.752 | S91: =ATAN((-dsin(検索入力!$A$7)*DCOS(N91*0.75+N92*0.25)*DCOS(H91*0.75+H92*0.25)+DCOS(検索入力!$A$7)*dsin(H91*0.75+H92*0.25))/(dsin(N91*0.75+N92*0.25)*DCOS(H91*0.75+H92*0.25)))/PI()*180 -> -2.72168109 | T91: 11:52:12.839
A92: 2012-03-14T12:00:00 | B92: 353.9345945 | C92: 70.93058564 | D92: 0.9965392134 | E92: 0.01093945333 | F92: 0.04375781333 | G92: 7.213531285 | H92: -2.408954344 | I92: =IF(270<=B92,ATAN(dtan(B92)*DCOS($J$2))/PI()*180+360,IF(B92>90,ATAN(dtan(B92)*DCOS($J$2))/PI()*180+180,ATAN(dtan(B92)*DCOS($J$2))/PI()*180)) -> 354.4318436 | J92: 1.988996472 | K92: -0.3234956443 | L92: 9.202527757 | M92: -16.78426986 | N92: =adcos((-dsin(検索入力!$A$7)*dsin(H92)-dsin($J$5))/(DCOS(検索入力!$A$7)*DCOS(H92))) -> 89.32200785 | O92: 06:04:35.688 | P92: =ATAN((-dsin(検索入力!$A$7)*DCOS(N92*0.75+N91*0.25)*DCOS(H92*0.75+H91*0.25)+DCOS(検索入力!$A$7)*dsin(H92*0.75+H91*0.25))/(dsin(N92*0.75+N91*0.25)*DCOS(H92*0.75+H91*0.25)))/PI()*180 -> -2.480395579 | Q92: 12:01:32.144 | R92: 17:59:01.930 | S92: =ATAN((-dsin(検索入力!$A$7)*DCOS(N92*0.75+N93*0.25)*DCOS(H92*0.75+H93*0.25)+DCOS(検索入力!$A$7)*dsin(H92*0.75+H93*0.25))/(dsin(N92*0.75+N93*0.25)*DCOS(H92*0.75+H93*0.25)))/PI()*180 -> -2.238994364 | T92: 11:54:26.243
A93: 2012-03-15T12:00:00 | B93: 354.9311813 | C93: 71.92712485 | D93: 0.9959913124 | E93: 0.01039152621 | F93: 0.04156610483 | G93: 7.257289098 | H93: -2.014103526 | I93: =IF(270<=B93,ATAN(dtan(B93)*DCOS($J$2))/PI()*180+360,IF(B93>90,ATAN(dtan(B93)*DCOS($J$2))/PI()*180+180,ATAN(dtan(B93)*DCOS($J$2))/PI()*180)) -> 355.3475565 | J93: 1.665500828 | K93: -0.3250924679 | L93: 8.922789926 | M93: -17.01158178 | N93: =adcos((-dsin(検索入力!$A$7)*dsin(H93)-dsin($J$5))/(DCOS(検索入力!$A$7)*DCOS(H93))) -> 89.600358 | O93: 06:03:12.171 | P93: =ATAN((-dsin(検索入力!$A$7)*DCOS(N93*0.75+N92*0.25)*DCOS(H93*0.75+H92*0.25)+DCOS(検索入力!$A$7)*dsin(H93*0.75+H92*0.25))/(dsin(N93*0.75+N92*0.25)*DCOS(H93*0.75+H92*0.25)))/PI()*180 -> -1.997478384 | Q93: 12:01:15.359 | R93: 17:59:51.900 | S93: =ATAN((-dsin(検索入力!$A$7)*DCOS(N93*0.75+N94*0.25)*DCOS(H93*0.75+H94*0.25)+DCOS(検索入力!$A$7)*dsin(H93*0.75+H94*0.25))/(dsin(N93*0.75+N94*0.25)*DCOS(H93*0.75+H94*0.25)))/PI()*180 -> -1.755875414 | T93: 11:56:39.730
A94: 2012-03-16T12:00:00 | B94: 355.9272202 | C94: 72.92311616 | D94: 0.9954408432 | E94: 0.009841030726 | F94: 0.0393641229 | G94: 7.298855203 | H94: -1.618956424 | I94: =IF(270<=B94,ATAN(dtan(B94)*DCOS($J$2))/PI()*180+360,IF(B94>90,ATAN(dtan(B94)*DCOS($J$2))/PI()*180+180,ATAN(dtan(B94)*DCOS($J$2))/PI()*180)) -> 356.2623222 | J94: 1.34040836 | K94: -0.3263385786 | L94: 8.639263563 | M94: -17.21846734 | N94: =adcos((-dsin(検索入力!$A$7)*dsin(H94)-dsin($J$5))/(DCOS(検索入力!$A$7)*DCOS(H94))) -> 89.87882103 | O94: 06:01:48.391 | P94: =ATAN((-dsin(検索入力!$A$7)*DCOS(N94*0.75+N93*0.25)*DCOS(H94*0.75+H93*0.25)+DCOS(検索入力!$A$7)*dsin(H94*0.75+H93*0.25))/(dsin(N94*0.75+N93*0.25)*DCOS(H94*0.75+H93*0.25)))/PI()*180 -> -1.514186398 | Q94: 12:00:58.348 | R94: 18:00:41.672 | S94: =ATAN((-dsin(検索入力!$A$7)*DCOS(N94*0.75+N95*0.25)*DCOS(H94*0.75+H95*0.25)+DCOS(検索入力!$A$7)*dsin(H94*0.75+H95*0.25))/(dsin(N94*0.75+N95*0.25)*DCOS(H94*0.75+H95*0.25)))/PI()*180 -> -1.27243895 | T94: 11:58:53.281
A95: 2012-03-17T12:00:00 | B95: 356.9227085 | C95: 73.91855701 | D95: 0.9948879805 | E95: 0.009288141566 | F95: 0.03715256627 | G95: 7.338219326 | H95: -1.223615749 | I95: =IF(270<=B95,ATAN(dtan(B95)*DCOS($J$2))/PI()*180+360,IF(B95>90,ATAN(dtan(B95)*DCOS($J$2))/PI()*180+180,ATAN(dtan(B95)*DCOS($J$2))/PI()*180)) -> 357.176226 | J95: 1.014069782 | K95: -0.3272342611 | L95: 8.352289107 | M95: -17.40490169 | N95: =adcos((-dsin(検索入力!$A$7)*dsin(H95)-dsin($J$5))/(DCOS(検索入力!$A$7)*DCOS(H95))) -> 90.15735753 | O95: 06:00:24.380 | P95: =ATAN((-dsin(検索入力!$A$7)*DCOS(N95*0.75+N94*0.25)*DCOS(H95*0.75+H94*0.25)+DCOS(検索入力!$A$7)*dsin(H95*0.75+H94*0.25))/(dsin(N95*0.75+N94*0.25)*DCOS(H95*0.75+H94*0.25)))/PI()*180 -> -1.030634022 | Q95: 12:00:41.129 | R95: 18:01:31.258 | S95: =ATAN((-dsin(検索入力!$A$7)*DCOS(N95*0.75+N96*0.25)*DCOS(H95*0.75+H96*0.25)+DCOS(検索入力!$A$7)*dsin(H95*0.75+H96*0.25))/(dsin(N95*0.75+N96*0.25)*DCOS(H95*0.75+H96*0.25)))/PI()*180 -> -0.7887990776 | T95: 12:01:06.878
A96: 2012-03-18T12:00:00 | B96: 357.917644 | C96: 74.91344499 | D96: 0.9943328989 | E96: 0.008733033461 | F96: 0.03493213384 | G96: 7.375371892 | H96: -0.8281837617 | I96: =IF(270<=B96,ATAN(dtan(B96)*DCOS($J$2))/PI()*180+360,IF(B96>90,ATAN(dtan(B96)*DCOS($J$2))/PI()*180+180,ATAN(dtan(B96)*DCOS($J$2))/PI()*180)) -> 358.0893529 | J96: 0.6868355206 | K96: -0.3277800363 | L96: 8.062207412 | M96: -17.57087415 | N96: =adcos((-dsin(検索入力!$A$7)*dsin(H96)-dsin($J$5))/(DCOS(検索入力!$A$7)*DCOS(H96))) -> 90.43592851 | O96: 05:59:00.167 | P96: =ATAN((-dsin(検索入力!$A$7)*DCOS(N96*0.75+N95*0.25)*DCOS(H96*0.75+H95*0.25)+DCOS(検索入力!$A$7)*dsin(H96*0.75+H95*0.25))/(dsin(N96*0.75+N95*0.25)*DCOS(H96*0.75+H95*0.25)))/PI()*180 -> -0.5469350698 | Q96: 12:00:23.724 | R96: 18:02:20.669 | S96: =ATAN((-dsin(検索入力!$A$7)*DCOS(N96*0.75+N97*0.25)*DCOS(H96*0.75+H97*0.25)+DCOS(検索入力!$A$7)*dsin(H96*0.75+H97*0.25))/(dsin(N96*0.75+N97*0.25)*DCOS(H96*0.75+H97*0.25)))/PI()*180 -> -0.3050693244 | T96: 12:03:20.501
A97: 2012-03-19T12:00:00 | B97: 358.9120244 | C97: 75.90777789 | D97: 0.9937757732 | E97: 0.008175881132 | F97: 0.03270352453 | G97: 7.410304026 | H97: -0.4327622821 | I97: =IF(270<=B97,ATAN(dtan(B97)*DCOS($J$2))/PI()*180+360,IF(B97>90,ATAN(dtan(B97)*DCOS($J$2))/PI()*180+180,ATAN(dtan(B97)*DCOS($J$2))/PI()*180)) -> 359.0017883 | J97: 0.3590554843 | K97: -0.3279766577 | L97: 7.76935951 | M97: -17.71638799 | N97: =adcos((-dsin(検索入力!$A$7)*dsin(H97)-dsin($J$5))/(DCOS(検索入力!$A$7)*DCOS(H97))) -> 90.71449538 | O97: 05:57:35.781 | P97: =ATAN((-dsin(検索入力!$A$7)*DCOS(N97*0.75+N96*0.25)*DCOS(H97*0.75+H96*0.25)+DCOS(検索入力!$A$7)*dsin(H97*0.75+H96*0.25))/(dsin(N97*0.75+N96*0.25)*DCOS(H97*0.75+H96*0.25)))/PI()*180 -> -0.06320279639 | Q97: 12:00:06.154 | R97: 18:03:09.915 | S97: =ATAN((-dsin(検索入力!$A$7)*DCOS(N97*0.75+N98*0.25)*DCOS(H97*0.75+H98*0.25)+DCOS(検索入力!$A$7)*dsin(H97*0.75+H98*0.25))/(dsin(N97*0.75+N98*0.25)*DCOS(H97*0.75+H98*0.25)))/PI()*180 -> 0.1786373177 | T97: 12:05:34.133
A98: 2012-03-20T12:00:00 | B98: 359.9058477 | C98: 76.90155366 | D98: 0.993216778 | E98: 0.007616859229 | F98: 0.03046743692 | G98: 7.44300755 | H98: -0.03745269796 | I98: =IF(270<=B98,ATAN(dtan(B98)*DCOS($J$2))/PI()*180+360,IF(B98>90,ATAN(dtan(B98)*DCOS($J$2))/PI()*180+180,ATAN(dtan(B98)*DCOS($J$2))/PI()*180)) -> 359.9136174 | J98: 0.03107882657 | K98: -0.3278251074 | L98: 7.474086377 | M98: -17.84146023 | N98: =adcos((-dsin(検索入力!$A$7)*dsin(H98)-dsin($J$5))/(DCOS(検索入力!$A$7)*DCOS(H98))) -> 90.99301981 | O98: 05:56:11.253 | P98: =ATAN((-dsin(検索入力!$A$7)*DCOS(N98*0.75+N97*0.25)*DCOS(H98*0.75+H97*0.25)+DCOS(検索入力!$A$7)*dsin(H98*0.75+H97*0.25))/(dsin(N98*0.75+N97*0.25)*DCOS(H98*0.75+H97*0.25)))/PI()*180 -> 0.4204500627 | Q98: 11:59:48.437 | R98: 18:03:59.008 | S98: =ATAN((-dsin(検索入力!$A$7)*DCOS(N98*0.75+N99*0.25)*DCOS(H98*0.75+H99*0.25)+DCOS(検索入力!$A$7)*dsin(H98*0.75+H99*0.25))/(dsin(N98*0.75+N99*0.25)*DCOS(H98*0.75+H99*0.25)))/PI()*180 -> 0.66220836 | T98: 12:07:47.755
A99: 2012-03-21T12:00:00 | B99: 0.8991118942 | C99: 77.89477044 | D99: 0.9926560878 | E99: 0.007056142273 | F99: 0.02822456909 | G99: 7.473474987 | H99: 0.3576440221 | I99: =IF(270<=B99,ATAN(dtan(B99)*DCOS($J$2))/PI()*180+360,IF(B99>90,ATAN(dtan(B99)*DCOS($J$2))/PI()*180+180,ATAN(dtan(B99)*DCOS($J$2))/PI()*180)) -> 0.824925324 | J99: -0.2967462809 | K99: -0.327326593 | L99: 7.176728706 | M99: -17.94612144 | N99: =adcos((-dsin(検索入力!$A$7)*dsin(H99)-dsin($J$5))/(DCOS(検索入力!$A$7)*DCOS(H99))) -> 91.27146369 | O99: 05:54:46.611 | P99: =ATAN((-dsin(検索入力!$A$7)*DCOS(N99*0.75+N98*0.25)*DCOS(H99*0.75+H98*0.25)+DCOS(検索入力!$A$7)*dsin(H99*0.75+H98*0.25))/(dsin(N99*0.75+N98*0.25)*DCOS(H99*0.75+H98*0.25)))/PI()*180 -> 0.9039112564 | Q99: 11:59:30.596 | R99: 18:04:47.960 | S99: =ATAN((-dsin(検索入力!$A$7)*DCOS(N99*0.75+N100*0.25)*DCOS(H99*0.75+H100*0.25)+DCOS(検索入力!$A$7)*dsin(H99*0.75+H100*0.25))/(dsin(N99*0.75+N100*0.25)*DCOS(H99*0.75+H100*0.25)))/PI()*180 -> 1.14553178 | T99: 12:10:01.349
A100: 2012-03-22T12:00:00 | B100: 1.891815395 | C100: 78.88742653 | D100: 0.992093877 | E100: 0.006493904587 | F100: 0.02597561835 | G100: 7.501699556 | H100: 0.7524273176 | I100: =IF(270<=B100,ATAN(dtan(B100)*DCOS($J$2))/PI()*180+360,IF(B100>90,ATAN(dtan(B100)*DCOS($J$2))/PI()*180+180,ATAN(dtan(B100)*DCOS($J$2))/PI()*180)) -> 1.735797176 | J100: -0.6240728739 | K100: -0.3264825446 | L100: 6.877626682 | M100: -18.03041558 | N100: =adcos((-dsin(検索入力!$A$7)*dsin(H100)-dsin($J$5))/(DCOS(検索入力!$A$7)*DCOS(H100))) -> 91.54978906 | O100: 05:53:21.886 | P100: =ATAN((-dsin(検索入力!$A$7)*DCOS(N100*0.75+N99*0.25)*DCOS(H100*0.75+H99*0.25)+DCOS(検索入力!$A$7)*dsin(H100*0.75+H99*0.25))/(dsin(N100*0.75+N99*0.25)*DCOS(H100*0.75+H99*0.25)))/PI()*180 -> 1.387068982 | Q100: 11:59:12.650 | R100: 18:05:36.782 | S100: =ATAN((-dsin(検索入力!$A$7)*DCOS(N100*0.75+N101*0.25)*DCOS(H100*0.75+H101*0.25)+DCOS(検索入力!$A$7)*dsin(H100*0.75+H101*0.25))/(dsin(N100*0.75+N101*0.25)*DCOS(H100*0.75+H101*0.25)))/PI()*180 -> 1.628495986 | T100: 12:12:14.895
A101: 2012-03-23T12:00:00 | B101: 2.883956658 | C101: 79.8795204 | D101: 0.9915303196 | E101: 0.005930320247 | F101: 0.02372128099 | G101: 7.527675175 | H101: 1.146797025 | I101: =IF(270<=B101,ATAN(dtan(B101)*DCOS($J$2))/PI()*180+360,IF(B101>90,ATAN(dtan(B101)*DCOS($J$2))/PI()*180+180,ATAN(dtan(B101)*DCOS($J$2))/PI()*180)) -> 2.646317803 | J101: -0.9505554185 | K101: -0.3252946127 | L101: 6.577119756 | M101: -18.0943999 | N101: =adcos((-dsin(検索入力!$A$7)*dsin(H101)-dsin($J$5))/(DCOS(検索入力!$A$7)*DCOS(H101))) -> 91.82795802 | O101: 05:51:57.107 | P101: =ATAN((-dsin(検索入力!$A$7)*DCOS(N101*0.75+N100*0.25)*DCOS(H101*0.75+H100*0.25)+DCOS(検索入力!$A$7)*dsin(H101*0.75+H100*0.25))/(dsin(N101*0.75+N100*0.25)*DCOS(H101*0.75+H100*0.25)))/PI()*180 -> 1.869811848 | Q101: 11:58:54.619 | R101: 18:06:25.484 | S101: =ATAN((-dsin(検索入力!$A$7)*DCOS(N101*0.75+N102*0.25)*DCOS(H101*0.75+H102*0.25)+DCOS(検索入力!$A$7)*dsin(H101*0.75+H102*0.25))/(dsin(N101*0.75+N102*0.25)*DCOS(H101*0.75+H102*0.25)))/PI()*180 -> 2.110989779 | T101: 12:14:28.377
A102: 2012-03-24T12:00:00 | B102: 3.875534336 | C102: 80.87105072 | D102: 0.9909655893 | E102: 0.005365563015 | F102: 0.02146225206 | G102: 7.551396456 | H102: 1.540653366 | I102: =IF(270<=B102,ATAN(dtan(B102)*DCOS($J$2))/PI()*180+360,IF(B102>90,ATAN(dtan(B102)*DCOS($J$2))/PI()*180+180,ATAN(dtan(B102)*DCOS($J$2))/PI()*180)) -> 3.556571828 | J102: -1.275850031 | K102: -0.3237646656 | L102: 6.275546424 | M102: -18.13814481 | N102: =adcos((-dsin(検索入力!$A$7)*dsin(H102)-dsin($J$5))/(DCOS(検索入力!$A$7)*DCOS(H102))) -> 92.10593268 | O102: 05:50:32.303 | P102: =ATAN((-dsin(検索入力!$A$7)*DCOS(N102*0.75+N101*0.25)*DCOS(H102*0.75+H101*0.25)+DCOS(検索入力!$A$7)*dsin(H102*0.75+H101*0.25))/(dsin(N102*0.75+N101*0.25)*DCOS(H102*0.75+H101*0.25)))/PI()*180 -> 2.352028841 | Q102: 11:58:36.525 | R102: 18:07:14.079 | S102: =ATAN((-dsin(検索入力!$A$7)*DCOS(N102*0.75+N103*0.25)*DCOS(H102*0.75+H103*0.25)+DCOS(検索入力!$A$7)*dsin(H102*0.75+H103*0.25))/(dsin(N102*0.75+N103*0.25)*DCOS(H102*0.75+H103*0.25)))/PI()*180 -> 2.59290232 | T102: 12:16:41.776
A103: 2012-03-25T12:00:00 | B103: 4.866547258 | C103: 81.86201631 | D103: 0.9903998596 | E103: 0.004799806289 | F103: 0.01919922516 | G103: 7.572858708 | H103: 1.933896934 | I103: =IF(270<=B103,ATAN(dtan(B103)*DCOS($J$2))/PI()*180+360,IF(B103>90,ATAN(dtan(B103)*DCOS($J$2))/PI()*180+180,ATAN(dtan(B103)*DCOS($J$2))/PI()*180)) -> 4.466643583 | J103: -1.599614697 | K103: -0.3218947883 | L103: 5.973244011 | M103: -18.16173379 | N103: =adcos((-dsin(検索入力!$A$7)*dsin(H103)-dsin($J$5))/(DCOS(検索入力!$A$7)*DCOS(H103))) -> 92.38367504 | O103: 05:49:07.504 | P103: =ATAN((-dsin(検索入力!$A$7)*DCOS(N103*0.75+N102*0.25)*DCOS(H103*0.75+H102*0.25)+DCOS(検索入力!$A$7)*dsin(H103*0.75+H102*0.25))/(dsin(N103*0.75+N102*0.25)*DCOS(H103*0.75+H102*0.25)))/PI()*180 -> 2.833609286 | Q103: 11:58:18.387 | R103: 18:08:02.577 | S103: =ATAN((-dsin(検索入力!$A$7)*DCOS(N103*0.75+N104*0.25)*DCOS(H103*0.75+H104*0.25)+DCOS(検索入力!$A$7)*dsin(H103*0.75+H104*0.25))/(dsin(N103*0.75+N104*0.25)*DCOS(H103*0.75+H104*0.25)))/PI()*180 -> 3.074123088 | T103: 12:18:55.073
A104: 2012-03-26T12:00:00 | B104: 5.856994422 | C104: 82.85241617 | D104: 0.9898333034 | E104: 0.004233223041 | F104: 0.01693289216 | G104: 7.592057933 | H104: 2.326428687 | I104: =IF(270<=B104,ATAN(dtan(B104)*DCOS($J$2))/PI()*180+360,IF(B104>90,ATAN(dtan(B104)*DCOS($J$2))/PI()*180+180,ATAN(dtan(B104)*DCOS($J$2))/PI()*180)) -> 5.376617051 | J104: -1.921509485 | K104: -0.3196872811 | L104: 5.670548448 | M104: -18.16526333 | N104: =adcos((-dsin(検索入力!$A$7)*dsin(H104)-dsin($J$5))/(DCOS(検索入力!$A$7)*DCOS(H104))) -> 92.66114697 | O104: 05:47:42.738 | P104: =ATAN((-dsin(検索入力!$A$7)*DCOS(N104*0.75+N103*0.25)*DCOS(H104*0.75+H103*0.25)+DCOS(検索入力!$A$7)*dsin(H104*0.75+H103*0.25))/(dsin(N104*0.75+N103*0.25)*DCOS(H104*0.75+H103*0.25)))/PI()*180 -> 3.314442809 | Q104: 11:58:00.225 | R104: 18:08:50.989 | S104: =ATAN((-dsin(検索入力!$A$7)*DCOS(N104*0.75+N105*0.25)*DCOS(H104*0.75+H105*0.25)+DCOS(検索入力!$A$7)*dsin(H104*0.75+H105*0.25))/(dsin(N104*0.75+N105*0.25)*DCOS(H104*0.75+H105*0.25)))/PI()*180 -> 3.554541852 | T104: 12:21:08.250
A105: 2012-03-27T12:00:00 | B105: 6.846875004 | C105: 83.84224947 | D105: 0.9892660932 | E105: 0.003665985765 | F105: 0.01466394306 | G105: 7.608990825 | H105: 2.718149929 | I105: =IF(270<=B105,ATAN(dtan(B105)*DCOS($J$2))/PI()*180+360,IF(B105>90,ATAN(dtan(B105)*DCOS($J$2))/PI()*180+180,ATAN(dtan(B105)*DCOS($J$2))/PI()*180)) -> 6.286575812 | J105: -2.241196766 | K105: -0.3171446584 | L105: 5.367794059 | M105: -18.14884292 | N105: =adcos((-dsin(検索入力!$A$7)*dsin(H105)-dsin($J$5))/(DCOS(検索入力!$A$7)*DCOS(H105))) -> 92.93831012 | O105: 05:46:18.036 | P105: =ATAN((-dsin(検索入力!$A$7)*DCOS(N105*0.75+N104*0.25)*DCOS(H105*0.75+H104*0.25)+DCOS(検索入力!$A$7)*dsin(H105*0.75+H104*0.25))/(dsin(N105*0.75+N104*0.25)*DCOS(H105*0.75+H104*0.25)))/PI()*180 -> 3.79441931 | Q105: 11:57:42.060 | R105: 18:09:39.326 | S105: =ATAN((-dsin(検索入力!$A$7)*DCOS(N105*0.75+N106*0.25)*DCOS(H105*0.75+H106*0.25)+DCOS(検索入力!$A$7)*dsin(H105*0.75+H106*0.25))/(dsin(N105*0.75+N106*0.25)*DCOS(H105*0.75+H106*0.25)))/PI()*180 -> 4.034048628 | T105: 12:23:21.289
A106: 2012-03-28T12:00:00 | B106: 7.836188348 | C106: 84.83151557 | D106: 0.988698401 | E106: 0.00309826642 | F106: 0.01239306568 | G106: 7.623654768 | H106: 3.108962306 | I106: =IF(270<=B106,ATAN(dtan(B106)*DCOS($J$2))/PI()*180+360,IF(B106>90,ATAN(dtan(B106)*DCOS($J$2))/PI()*180+180,ATAN(dtan(B106)*DCOS($J$2))/PI()*180)) -> 7.196602991 | J106: -2.558341425 | K106: -0.3142696487 | L106: 5.065313343 | M106: -18.11259498 | N106: =adcos((-dsin(検索入力!$A$7)*dsin(H106)-dsin($J$5))/(DCOS(検索入力!$A$7)*DCOS(H106))) -> 93.21512583 | O106: 05:44:53.427 | P106: =ATAN((-dsin(検索入力!$A$7)*DCOS(N106*0.75+N105*0.25)*DCOS(H106*0.75+H105*0.25)+DCOS(検索入力!$A$7)*dsin(H106*0.75+H105*0.25))/(dsin(N106*0.75+N105*0.25)*DCOS(H106*0.75+H105*0.25)))/PI()*180 -> 4.273428915 | Q106: 11:57:23.911 | R106: 18:10:27.599 | S106: =ATAN((-dsin(検索入力!$A$7)*DCOS(N106*0.75+N107*0.25)*DCOS(H106*0.75+H107*0.25)+DCOS(検索入力!$A$7)*dsin(H106*0.75+H107*0.25))/(dsin(N106*0.75+N107*0.25)*DCOS(H106*0.75+H107*0.25)))/PI()*180 -> 4.512533649 | T106: 12:25:34.172
A107: 2012-03-29T12:00:00 | B107: 8.824933972 | C107: 85.82021397 | D107: 0.9881303981 | E107: 0.002530236382 | F107: 0.01012094553 | G107: 7.636047834 | H107: 3.498767789 | I107: =IF(270<=B107,ATAN(dtan(B107)*DCOS($J$2))/PI()*180+360,IF(B107>90,ATAN(dtan(B107)*DCOS($J$2))/PI()*180+180,ATAN(dtan(B107)*DCOS($J$2))/PI()*180)) -> 8.106781204 | J107: -2.872611073 | K107: -0.3110651939 | L107: 4.76343676 | M107: -18.0566549 | N107: =adcos((-dsin(検索入力!$A$7)*dsin(H107)-dsin($J$5))/(DCOS(検索入力!$A$7)*DCOS(H107))) -> 93.49155507 | O107: 05:43:28.939 | P107: =ATAN((-dsin(検索入力!$A$7)*DCOS(N107*0.75+N106*0.25)*DCOS(H107*0.75+H106*0.25)+DCOS(検索入力!$A$7)*dsin(H107*0.75+H106*0.25))/(dsin(N107*0.75+N106*0.25)*DCOS(H107*0.75+H106*0.25)))/PI()*180 -> 4.751361953 | Q107: 11:57:05.798 | R107: 18:11:15.817 | S107: =ATAN((-dsin(検索入力!$A$7)*DCOS(N107*0.75+N108*0.25)*DCOS(H107*0.75+H108*0.25)+DCOS(検索入力!$A$7)*dsin(H107*0.75+H108*0.25))/(dsin(N107*0.75+N108*0.25)*DCOS(H107*0.75+H108*0.25)))/PI()*180 -> 4.989887326 | T107: 12:27:46.879
A108: 2012-03-30T12:00:00 | B108: 9.813111567 | C108: 86.80834437 | D108: 0.9875622552 | E108: 0.001962066387 | F108: 0.00784826555 | G108: 7.646168779 | H108: 3.887468664 | I108: =IF(270<=B108,ATAN(dtan(B108)*DCOS($J$2))/PI()*180+360,IF(B108>90,ATAN(dtan(B108)*DCOS($J$2))/PI()*180+180,ATAN(dtan(B108)*DCOS($J$2))/PI()*180)) -> 9.0171925 | J108: -3.183676267 | K108: -0.30753445 | L108: 4.462492512 | M108: -17.98117107 | N108: =adcos((-dsin(検索入力!$A$7)*dsin(H108)-dsin($J$5))/(DCOS(検索入力!$A$7)*DCOS(H108))) -> 93.7675584 | O108: 05:42:04.602 | P108: =ATAN((-dsin(検索入力!$A$7)*DCOS(N108*0.75+N107*0.25)*DCOS(H108*0.75+H107*0.25)+DCOS(検索入力!$A$7)*dsin(H108*0.75+H107*0.25))/(dsin(N108*0.75+N107*0.25)*DCOS(H108*0.75+H107*0.25)))/PI()*180 -> 5.228108911 | Q108: 11:56:47.742 | R108: 18:12:03.993 | S108: =ATAN((-dsin(検索入力!$A$7)*DCOS(N108*0.75+N109*0.25)*DCOS(H108*0.75+H109*0.25)+DCOS(検索入力!$A$7)*dsin(H108*0.75+H109*0.25))/(dsin(N108*0.75+N109*0.25)*DCOS(H108*0.75+H109*0.25)))/PI()*180 -> 5.466000218 | T108: 12:29:59.391
A109: 2012-03-31T12:00:00 | B109: 10.80072099 | C109: 87.79590662 | D109: 0.9869941425 | E109: 0.001393926483 | F109: 0.00557570593 | G109: 7.654017045 | H109: 4.274967527 | I109: =IF(270<=B109,ATAN(dtan(B109)*DCOS($J$2))/PI()*180+360,IF(B109>90,ATAN(dtan(B109)*DCOS($J$2))/PI()*180+180,ATAN(dtan(B109)*DCOS($J$2))/PI()*180)) -> 9.927918312 | J109: -3.491210717 | K109: -0.3036807872 | L109: 4.162806328 | M109: -17.88630487 | N109: =adcos((-dsin(検索入力!$A$7)*dsin(H109)-dsin($J$5))/(DCOS(検索入力!$A$7)*DCOS(H109))) -> 94.04309584 | O109: 05:40:40.445 | P109: =ATAN((-dsin(検索入力!$A$7)*DCOS(N109*0.75+N108*0.25)*DCOS(H109*0.75+H108*0.25)+DCOS(検索入力!$A$7)*dsin(H109*0.75+H108*0.25))/(dsin(N109*0.75+N108*0.25)*DCOS(H109*0.75+H108*0.25)))/PI()*180 -> 5.703560407 | Q109: 11:56:29.760 | R109: 18:12:52.134 | S109: =ATAN((-dsin(検索入力!$A$7)*DCOS(N109*0.75+N110*0.25)*DCOS(H109*0.75+H110*0.25)+DCOS(検索入力!$A$7)*dsin(H109*0.75+H110*0.25))/(dsin(N109*0.75+N110*0.25)*DCOS(H109*0.75+H110*0.25)))/PI()*180 -> 5.940762993 | T109: 12:32:11.689
A110: 2012-04-01T12:00:00 | B110: 11.78776228 | C110: 88.78290076 | D110: 0.9864262291 | E110: 0.0008259859754 | F110: 0.003303943902 | G110: 7.659592751 | H110: 4.661167263 | I110: =IF(270<=B110,ATAN(dtan(B110)*DCOS($J$2))/PI()*180+360,IF(B110>90,ATAN(dtan(B110)*DCOS($J$2))/PI()*180+180,ATAN(dtan(B110)*DCOS($J$2))/PI()*180)) -> 10.8390394 | J110: -3.794891504 | K110: -0.2995077909 | L110: 3.864701246 | M110: -17.77223082 | N110: =adcos((-dsin(検索入力!$A$7)*dsin(H110)-dsin($J$5))/(DCOS(検索入力!$A$7)*DCOS(H110))) -> 94.31812687 | O110: 05:39:16.497 | P110: =ATAN((-dsin(検索入力!$A$7)*DCOS(N110*0.75+N109*0.25)*DCOS(H110*0.75+H109*0.25)+DCOS(検索入力!$A$7)*dsin(H110*0.75+H109*0.25))/(dsin(N110*0.75+N109*0.25)*DCOS(H110*0.75+H109*0.25)))/PI()*180 -> 6.177607155 | Q110: 11:56:11.874 | R110: 18:13:40.250 | S110: =ATAN((-dsin(検索入力!$A$7)*DCOS(N110*0.75+N111*0.25)*DCOS(H110*0.75+H111*0.25)+DCOS(検索入力!$A$7)*dsin(H110*0.75+H111*0.25))/(dsin(N110*0.75+N111*0.25)*DCOS(H110*0.75+H111*0.25)))/PI()*180 -> 6.4140664 | T110: 12:34:23.753
A111: 2012-04-02T12:00:00 | B111: 12.77423562 | C111: 89.76932699 | D111: 0.9858586836 | E111: 0.0002584133861 | F111: 0.001033653544 | G111: 7.662896695 | H111: 5.045971048 | I111: =IF(270<=B111,ATAN(dtan(B111)*DCOS($J$2))/PI()*180+360,IF(B111>90,ATAN(dtan(B111)*DCOS($J$2))/PI()*180+180,ATAN(dtan(B111)*DCOS($J$2))/PI()*180)) -> 11.7506358 | J111: -4.094399295 | K111: -0.2950192631 | L111: 3.568497399 | M111: -17.63913657 | N111: =adcos((-dsin(検索入力!$A$7)*dsin(H111)-dsin($J$5))/(DCOS(検索入力!$A$7)*DCOS(H111))) -> 94.5926103 | O111: 05:37:52.787 | P111: =ATAN((-dsin(検索入力!$A$7)*DCOS(N111*0.75+N110*0.25)*DCOS(H111*0.75+H110*0.25)+DCOS(検索入力!$A$7)*dsin(H111*0.75+H110*0.25))/(dsin(N111*0.75+N110*0.25)*DCOS(H111*0.75+H110*0.25)))/PI()*180 -> 6.650139929 | Q111: 11:55:54.102 | R111: 18:14:28.352 | S111: =ATAN((-dsin(検索入力!$A$7)*DCOS(N111*0.75+N112*0.25)*DCOS(H111*0.75+H112*0.25)+DCOS(検索入力!$A$7)*dsin(H111*0.75+H112*0.25))/(dsin(N111*0.75+N112*0.25)*DCOS(H111*0.75+H112*0.25)))/PI()*180 -> 6.885801232 | T111: 12:36:35.565
A112: 2012-04-03T12:00:00 | B112: 13.76014139 | C112: 90.75518568 | D112: 0.9852916737 | E112: -0.0003086236009 | F112: -0.001234494403 | G112: 7.663930348 | H112: 5.42928233 | I112: =IF(270<=B112,ATAN(dtan(B112)*DCOS($J$2))/PI()*180+360,IF(B112>90,ATAN(dtan(B112)*DCOS($J$2))/PI()*180+180,ATAN(dtan(B112)*DCOS($J$2))/PI()*180)) -> 12.66278675 | J112: -4.389418558 | K112: -0.2902192232 | L112: 3.27451179 | M112: -17.48722306 | N112: =adcos((-dsin(検索入力!$A$7)*dsin(H112)-dsin($J$5))/(DCOS(検索入力!$A$7)*DCOS(H112))) -> 94.86650426 | O112: 05:36:29.345 | P112: =ATAN((-dsin(検索入力!$A$7)*DCOS(N112*0.75+N111*0.25)*DCOS(H112*0.75+H111*0.25)+DCOS(検索入力!$A$7)*dsin(H112*0.75+H111*0.25))/(dsin(N112*0.75+N111*0.25)*DCOS(H112*0.75+H111*0.25)))/PI()*180 -> 7.121049535 | Q112: 11:55:36.463 | R112: 18:15:16.448 | S112: =ATAN((-dsin(検索入力!$A$7)*DCOS(N112*0.75+N113*0.25)*DCOS(H112*0.75+H113*0.25)+DCOS(検索入力!$A$7)*dsin(H112*0.75+H113*0.25))/(dsin(N112*0.75+N113*0.25)*DCOS(H112*0.75+H113*0.25)))/PI()*180 -> 7.3558583 | T112: 12:38:47.103
A113: 2012-04-04T12:00:00 | B113: 14.74548013 | C113: 91.74047735 | D113: 0.9847253661 | E113: -0.0008749581833 | F113: -0.003499832733 | G113: 7.662695854 | H113: 5.811004828 | I113: =IF(270<=B113,ATAN(dtan(B113)*DCOS($J$2))/PI()*180+360,IF(B113>90,ATAN(dtan(B113)*DCOS($J$2))/PI()*180+180,ATAN(dtan(B113)*DCOS($J$2))/PI()*180)) -> 13.57557068 | J113: -4.679637782 | K113: -0.2851119104 | L113: 2.983058072 | M113: -17.31670459 | N113: =adcos((-dsin(検索入力!$A$7)*dsin(H113)-dsin($J$5))/(DCOS(検索入力!$A$7)*DCOS(H113))) -> 95.13976609 | O113: 05:35:06.199 | P113: =ATAN((-dsin(検索入力!$A$7)*DCOS(N113*0.75+N112*0.25)*DCOS(H113*0.75+H112*0.25)+DCOS(検索入力!$A$7)*dsin(H113*0.75+H112*0.25))/(dsin(N113*0.75+N112*0.25)*DCOS(H113*0.75+H112*0.25)))/PI()*180 -> 7.590226778 | Q113: 11:55:18.975 | R113: 18:16:04.545 | S113: =ATAN((-dsin(検索入力!$A$7)*DCOS(N113*0.75+N114*0.25)*DCOS(H113*0.75+H114*0.25)+DCOS(検索入力!$A$7)*dsin(H113*0.75+H114*0.25))/(dsin(N113*0.75+N114*0.25)*DCOS(H113*0.75+H114*0.25)))/PI()*180 -> 7.824128397 | T113: 12:40:58.346
A114: 2012-04-05T12:00:00 | B114: 15.73025253 | C114: 92.72520272 | D114: 0.9841599269 | E114: -0.001440424487 | F114: -0.005761697946 | G114: 7.659196021 | H114: 6.191042518 | I114: =IF(270<=B114,ATAN(dtan(B114)*DCOS($J$2))/PI()*180+360,IF(B114>90,ATAN(dtan(B114)*DCOS($J$2))/PI()*180+180,ATAN(dtan(B114)*DCOS($J$2))/PI()*180)) -> 14.4890651 | J114: -4.964749692 | K114: -0.279701785 | L114: 2.694446329 | M114: -17.12780898 | N114: =adcos((-dsin(検索入力!$A$7)*dsin(H114)-dsin($J$5))/(DCOS(検索入力!$A$7)*DCOS(H114))) -> 95.41235229 | O114: 05:33:43.379 | P114: =ATAN((-dsin(検索入力!$A$7)*DCOS(N114*0.75+N113*0.25)*DCOS(H114*0.75+H113*0.25)+DCOS(検索入力!$A$7)*dsin(H114*0.75+H113*0.25))/(dsin(N114*0.75+N113*0.25)*DCOS(H114*0.75+H113*0.25)))/PI()*180 -> 8.057562432 | Q114: 11:55:01.659 | R114: 18:16:52.653 | S114: =ATAN((-dsin(検索入力!$A$7)*DCOS(N114*0.75+N115*0.25)*DCOS(H114*0.75+H115*0.25)+DCOS(検索入力!$A$7)*dsin(H114*0.75+H115*0.25))/(dsin(N114*0.75+N115*0.25)*DCOS(H114*0.75+H115*0.25)))/PI()*180 -> 8.290502269 | T114: 12:43:09.275
A115: 2012-04-06T12:00:00 | B115: 16.71445946 | C115: 93.70936264 | D115: 0.9835955207 | E115: -0.002004857608 | F115: -0.008019430433 | G115: 7.653434323 | H115: 6.56929963 | I115: =IF(270<=B115,ATAN(dtan(B115)*DCOS($J$2))/PI()*180+360,IF(B115>90,ATAN(dtan(B115)*DCOS($J$2))/PI()*180+180,ATAN(dtan(B115)*DCOS($J$2))/PI()*180)) -> 15.40334659 | J115: -5.244451477 | K115: -0.2739935309 | L115: 2.408982846 | M115: -16.92077768 | N115: =adcos((-dsin(検索入力!$A$7)*dsin(H115)-dsin($J$5))/(DCOS(検索入力!$A$7)*DCOS(H115))) -> 95.68421847 | O115: 05:32:20.912 | P115: =ATAN((-dsin(検索入力!$A$7)*DCOS(N115*0.75+N114*0.25)*DCOS(H115*0.75+H114*0.25)+DCOS(検索入力!$A$7)*dsin(H115*0.75+H114*0.25))/(dsin(N115*0.75+N114*0.25)*DCOS(H115*0.75+H114*0.25)))/PI()*180 -> 8.52294721 | Q115: 11:54:44.531 | R115: 18:17:40.779 | S115: =ATAN((-dsin(検索入力!$A$7)*DCOS(N115*0.75+N116*0.25)*DCOS(H115*0.75+H116*0.25)+DCOS(検索入力!$A$7)*dsin(H115*0.75+H116*0.25))/(dsin(N115*0.75+N116*0.25)*DCOS(H115*0.75+H116*0.25)))/PI()*180 -> 8.754870589 | T115: 12:45:19.867
A116: 2012-04-07T12:00:00 | B116: 17.69810196 | C116: 94.69295816 | D116: 0.9830323115 | E116: -0.002568093661 | F116: -0.01027237464 | G116: 7.645414893 | H116: 6.945680638 | I116: =IF(270<=B116,ATAN(dtan(B116)*DCOS($J$2))/PI()*180+360,IF(B116>90,ATAN(dtan(B116)*DCOS($J$2))/PI()*180+180,ATAN(dtan(B116)*DCOS($J$2))/PI()*180)) -> 16.31849071 | J116: -5.518445008 | K116: -0.2679920579 | L116: 2.126969885 | M116: -16.69586595 | N116: =adcos((-dsin(検索入力!$A$7)*dsin(H116)-dsin($J$5))/(DCOS(検索入力!$A$7)*DCOS(H116))) -> 95.95531929 | O116: 05:30:58.830 | P116: =ATAN((-dsin(検索入力!$A$7)*DCOS(N116*0.75+N115*0.25)*DCOS(H116*0.75+H115*0.25)+DCOS(検索入力!$A$7)*dsin(H116*0.75+H115*0.25))/(dsin(N116*0.75+N115*0.25)*DCOS(H116*0.75+H115*0.25)))/PI()*180 -> 8.986271738 | Q116: 11:54:27.610 | R116: 18:18:28.930 | S116: =ATAN((-dsin(検索入力!$A$7)*DCOS(N116*0.75+N117*0.25)*DCOS(H116*0.75+H117*0.25)+DCOS(検索入力!$A$7)*dsin(H116*0.75+H117*0.25))/(dsin(N116*0.75+N117*0.25)*DCOS(H116*0.75+H117*0.25)))/PI()*180 -> 9.21712393 | T116: 12:47:30.100
A117: 2012-04-08T12:00:00 | B117: 18.68118123 | C117: 95.67599048 | D117: 0.9824704622 | E117: -0.003129969815 | F117: -0.01251987926 | G117: 7.635142518 | H117: 7.320090259 | I117: =IF(270<=B117,ATAN(dtan(B117)*DCOS($J$2))/PI()*180+360,IF(B117>90,ATAN(dtan(B117)*DCOS($J$2))/PI()*180+180,ATAN(dtan(B117)*DCOS($J$2))/PI()*180)) -> 17.23457196 | J117: -5.786437066 | K117: -0.261702504 | L117: 1.848705452 | M117: -16.453343 | N117: =adcos((-dsin(検索入力!$A$7)*dsin(H117)-dsin($J$5))/(DCOS(検索入力!$A$7)*DCOS(H117))) -> 96.22560835 | O117: 05:29:37.160 | P117: =ATAN((-dsin(検索入力!$A$7)*DCOS(N117*0.75+N116*0.25)*DCOS(H117*0.75+H116*0.25)+DCOS(検索入力!$A$7)*dsin(H117*0.75+H116*0.25))/(dsin(N117*0.75+N116*0.25)*DCOS(H117*0.75+H116*0.25)))/PI()*180 -> 9.447426527 | Q117: 11:54:10.914 | R117: 18:19:17.113 | S117: =ATAN((-dsin(検索入力!$A$7)*DCOS(N117*0.75+N118*0.25)*DCOS(H117*0.75+H118*0.25)+DCOS(検索入力!$A$7)*dsin(H117*0.75+H118*0.25))/(dsin(N117*0.75+N118*0.25)*DCOS(H117*0.75+H118*0.25)))/PI()*180 -> 9.677152734 | T117: 12:49:39.953
A118: 2012-04-09T12:00:00 | B118: 19.66369861 | C118: 96.65846094 | D118: 0.9819101345 | E118: -0.00369032434 | F118: -0.01476129736 | G118: 7.622622639 | H118: 7.692433442 | I118: =IF(270<=B118,ATAN(dtan(B118)*DCOS($J$2))/PI()*180+360,IF(B118>90,ATAN(dtan(B118)*DCOS($J$2))/PI()*180+180,ATAN(dtan(B118)*DCOS($J$2))/PI()*180)) -> 18.15166372 | J118: -6.04813957 | K118: -0.2551302385 | L118: 1.574483069 | M118: -16.19349215 | N118: =adcos((-dsin(検索入力!$A$7)*dsin(H118)-dsin($J$5))/(DCOS(検索入力!$A$7)*DCOS(H118))) -> 96.49503821 | O118: 05:28:15.931 | P118: =ATAN((-dsin(検索入力!$A$7)*DCOS(N118*0.75+N117*0.25)*DCOS(H118*0.75+H117*0.25)+DCOS(検索入力!$A$7)*dsin(H118*0.75+H117*0.25))/(dsin(N118*0.75+N117*0.25)*DCOS(H118*0.75+H117*0.25)))/PI()*180 -> 9.906301946 | Q118: 11:53:54.461 | R118: 18:20:05.333 | S118: =ATAN((-dsin(検索入力!$A$7)*DCOS(N118*0.75+N119*0.25)*DCOS(H118*0.75+H119*0.25)+DCOS(検索入力!$A$7)*dsin(H118*0.75+H119*0.25))/(dsin(N118*0.75+N119*0.25)*DCOS(H118*0.75+H119*0.25)))/PI()*180 -> 10.13484729 | T118: 12:51:49.402
A119: 2012-04-10T12:00:00 | B119: 20.64565565 | C119: 97.64037107 | D119: 0.9813514888 | E119: -0.004248996642 | F119: -0.01699598657 | G119: 7.607861341 | H119: 8.062615372 | I119: =IF(270<=B119,ATAN(dtan(B119)*DCOS($J$2))/PI()*180+360,IF(B119>90,ATAN(dtan(B119)*DCOS($J$2))/PI()*180+180,ATAN(dtan(B119)*DCOS($J$2))/PI()*180)) -> 19.0698382 | J119: -6.303269808 | K119: -0.2482808643 | L119: 1.304591533 | M119: -15.91661105 | N119: =adcos((-dsin(検索入力!$A$7)*dsin(H119)-dsin($J$5))/(DCOS(検索入力!$A$7)*DCOS(H119))) -> 96.76356028 | O119: 05:26:55.173 | P119: =ATAN((-dsin(検索入力!$A$7)*DCOS(N119*0.75+N118*0.25)*DCOS(H119*0.75+H118*0.25)+DCOS(検索入力!$A$7)*dsin(H119*0.75+H118*0.25))/(dsin(N119*0.75+N118*0.25)*DCOS(H119*0.75+H118*0.25)))/PI()*180 -> 10.3627882 | Q119: 11:53:38.267 | R119: 18:20:53.597 | S119: =ATAN((-dsin(検索入力!$A$7)*DCOS(N119*0.75+N120*0.25)*DCOS(H119*0.75+H120*0.25)+DCOS(検索入力!$A$7)*dsin(H119*0.75+H120*0.25))/(dsin(N119*0.75+N120*0.25)*DCOS(H119*0.75+H120*0.25)))/PI()*180 -> 10.59009772 | T119: 12:53:58.424
A120: 2012-04-11T12:00:00 | B120: 21.62705401 | C120: 98.62172256 | D120: 0.9807946848 | E120: -0.004805827306 | F120: -0.01922330923 | G120: 7.590865355 | H120: 8.43054146 | I120: =IF(270<=B120,ATAN(dtan(B120)*DCOS($J$2))/PI()*180+360,IF(B120>90,ATAN(dtan(B120)*DCOS($J$2))/PI()*180+180,ATAN(dtan(B120)*DCOS($J$2))/PI()*180)) -> 19.98916634 | J120: -6.551550673 | K120: -0.241160221 | L120: 1.039314682 | M120: -15.62301182 | N120: =adcos((-dsin(検索入力!$A$7)*dsin(H120)-dsin($J$5))/(DCOS(検索入力!$A$7)*DCOS(H120))) -> 97.03112475 | O120: 05:25:34.914 | P120: =ATAN((-dsin(検索入力!$A$7)*DCOS(N120*0.75+N119*0.25)*DCOS(H120*0.75+H119*0.25)+DCOS(検索入力!$A$7)*dsin(H120*0.75+H119*0.25))/(dsin(N120*0.75+N119*0.25)*DCOS(H120*0.75+H119*0.25)))/PI()*180 -> 10.81677531 | Q120: 11:53:22.351 | R120: 18:21:41.908 | S120: =ATAN((-dsin(検索入力!$A$7)*DCOS(N120*0.75+N121*0.25)*DCOS(H120*0.75+H121*0.25)+DCOS(検索入力!$A$7)*dsin(H120*0.75+H121*0.25))/(dsin(N120*0.75+N121*0.25)*DCOS(H120*0.75+H121*0.25)))/PI()*180 -> 11.04279393 | T120: 12:56:06.994
A121: 2012-04-12T12:00:00 | B121: 22.60789554 | C121: 99.60251725 | D121: 0.9802398804 | E121: -0.005360658134 | F121: -0.02144263253 | G121: 7.571642046 | H121: 8.796117345 | I121: =IF(270<=B121,ATAN(dtan(B121)*DCOS($J$2))/PI()*180+360,IF(B121>90,ATAN(dtan(B121)*DCOS($J$2))/PI()*180+180,ATAN(dtan(B121)*DCOS($J$2))/PI()*180)) -> 20.90971782 | J121: -6.792710894 | K121: -0.2337743879 | L121: 0.778931152 | M121: -15.31302123 | N121: =adcos((-dsin(検索入力!$A$7)*dsin(H121)-dsin($J$5))/(DCOS(検索入力!$A$7)*DCOS(H121))) -> 97.29768059 | O121: 05:24:15.184 | P121: =ATAN((-dsin(検索入力!$A$7)*DCOS(N121*0.75+N120*0.25)*DCOS(H121*0.75+H120*0.25)+DCOS(検索入力!$A$7)*dsin(H121*0.75+H120*0.25))/(dsin(N121*0.75+N120*0.25)*DCOS(H121*0.75+H120*0.25)))/PI()*180 -> 11.26815308 | Q121: 11:53:06.728 | R121: 18:22:30.273 | S121: =ATAN((-dsin(検索入力!$A$7)*DCOS(N121*0.75+N122*0.25)*DCOS(H121*0.75+H122*0.25)+DCOS(検索入力!$A$7)*dsin(H121*0.75+H122*0.25))/(dsin(N121*0.75+N122*0.25)*DCOS(H121*0.75+H122*0.25)))/PI()*180 -> 11.49282562 | T121: 12:58:15.089
A122: 2012-04-13T12:00:00 | B122: 23.58818224 | C122: 100.5827571 | D122: 0.9796872328 | E122: -0.005913332175 | F122: -0.0236533287 | G122: 7.550199413 | H122: 9.159248894 | I122: =IF(270<=B122,ATAN(dtan(B122)*DCOS($J$2))/PI()*180+360,IF(B122>90,ATAN(dtan(B122)*DCOS($J$2))/PI()*180+180,ATAN(dtan(B122)*DCOS($J$2))/PI()*180)) -> 21.83156092 | J122: -7.026485282 | K122: -0.2261296868 | L122: 0.5237141315 | M122: -14.98698093 | N122: =adcos((-dsin(検索入力!$A$7)*dsin(H122)-dsin($J$5))/(DCOS(検索入力!$A$7)*DCOS(H122))) -> 97.56317548 | O122: 05:22:56.011 | P122: =ATAN((-dsin(検索入力!$A$7)*DCOS(N122*0.75+N121*0.25)*DCOS(H122*0.75+H121*0.25)+DCOS(検索入力!$A$7)*dsin(H122*0.75+H121*0.25))/(dsin(N122*0.75+N121*0.25)*DCOS(H122*0.75+H121*0.25)))/PI()*180 -> 11.71681109 | Q122: 11:52:51.415 | R122: 18:23:18.693 | S122: =ATAN((-dsin(検索入力!$A$7)*DCOS(N122*0.75+N123*0.25)*DCOS(H122*0.75+H123*0.25)+DCOS(検索入力!$A$7)*dsin(H122*0.75+H123*0.25))/(dsin(N122*0.75+N123*0.25)*DCOS(H122*0.75+H123*0.25)))/PI()*180 -> 11.94008225 | T122: 13:00:22.682
A123: 2012-04-14T12:00:00 | B123: 24.56791627 | C123: 101.5624444 | D123: 0.9791368975 | E123: -0.00646369377 | F123: -0.02585477508 | G123: 7.526546084 | H123: 9.5198422 | I123: =IF(270<=B123,ATAN(dtan(B123)*DCOS($J$2))/PI()*180+360,IF(B123>90,ATAN(dtan(B123)*DCOS($J$2))/PI()*180+180,ATAN(dtan(B123)*DCOS($J$2))/PI()*180)) -> 22.75476253 | J123: -7.252614968 | K123: -0.218232685 | L123: 0.273931116 | M123: -14.64524761 | N123: =adcos((-dsin(検索入力!$A$7)*dsin(H123)-dsin($J$5))/(DCOS(検索入力!$A$7)*DCOS(H123))) -> 97.82755571 | O123: 05:21:37.424 | P123: =ATAN((-dsin(検索入力!$A$7)*DCOS(N123*0.75+N122*0.25)*DCOS(H123*0.75+H122*0.25)+DCOS(検索入力!$A$7)*dsin(H123*0.75+H122*0.25))/(dsin(N123*0.75+N122*0.25)*DCOS(H123*0.75+H122*0.25)))/PI()*180 -> 12.16263869 | Q123: 11:52:36.428 | R123: 18:24:07.173 | S123: =ATAN((-dsin(検索入力!$A$7)*DCOS(N123*0.75+N124*0.25)*DCOS(H123*0.75+H124*0.25)+DCOS(検索入力!$A$7)*dsin(H123*0.75+H124*0.25))/(dsin(N123*0.75+N124*0.25)*DCOS(H123*0.75+H124*0.25)))/PI()*180 -> 12.38445304 | T123: 13:02:29.748
A124: 2012-04-15T12:00:00 | B124: 25.54709993 | C124: 102.5415813 | D124: 0.9785890288 | E124: -0.007011588581 | F124: -0.02804635432 | G124: 7.500691309 | H124: 9.877803587 | I124: =IF(270<=B124,ATAN(dtan(B124)*DCOS($J$2))/PI()*180+360,IF(B124>90,ATAN(dtan(B124)*DCOS($J$2))/PI()*180+180,ATAN(dtan(B124)*DCOS($J$2))/PI()*180)) -> 23.67938802 | J124: -7.470847653 | K124: -0.2100901984 | L124: 0.02984365587 | M124: -14.28819316 | N124: =adcos((-dsin(検索入力!$A$7)*dsin(H124)-dsin($J$5))/(DCOS(検索入力!$A$7)*DCOS(H124))) -> 98.09076621 | O124: 05:20:19.453 | P124: =ATAN((-dsin(検索入力!$A$7)*DCOS(N124*0.75+N123*0.25)*DCOS(H124*0.75+H123*0.25)+DCOS(検索入力!$A$7)*dsin(H124*0.75+H123*0.25))/(dsin(N124*0.75+N123*0.25)*DCOS(H124*0.75+H123*0.25)))/PI()*180 -> 12.60552494 | Q124: 11:52:21.783 | R124: 18:24:55.714 | S124: =ATAN((-dsin(検索入力!$A$7)*DCOS(N124*0.75+N125*0.25)*DCOS(H124*0.75+H125*0.25)+DCOS(検索入力!$A$7)*dsin(H124*0.75+H125*0.25))/(dsin(N124*0.75+N125*0.25)*DCOS(H124*0.75+H125*0.25)))/PI()*180 -> 12.82582692 | T124: 13:04:36.261
A125: 2012-04-16T12:00:00 | B125: 26.5257357 | C125: 103.5201703 | D125: 0.9780437798 | E125: -0.007556863622 | F125: -0.03022745449 | G125: 7.472644955 | H125: 10.23303961 | I125: =IF(270<=B125,ATAN(dtan(B125)*DCOS($J$2))/PI()*180+360,IF(B125>90,ATAN(dtan(B125)*DCOS($J$2))/PI()*180+180,ATAN(dtan(B125)*DCOS($J$2))/PI()*180)) -> 24.60550124 | J125: -7.680937852 | K125: -0.2017092939 | L125: -0.2082928968 | M125: -13.9162049 | N125: =adcos((-dsin(検索入力!$A$7)*dsin(H125)-dsin($J$5))/(DCOS(検索入力!$A$7)*DCOS(H125))) -> 98.35275046 | O125: 05:19:02.125 | P125: =ATAN((-dsin(検索入力!$A$7)*DCOS(N125*0.75+N124*0.25)*DCOS(H125*0.75+H124*0.25)+DCOS(検索入力!$A$7)*dsin(H125*0.75+H124*0.25))/(dsin(N125*0.75+N124*0.25)*DCOS(H125*0.75+H124*0.25)))/PI()*180 -> 13.04535864 | Q125: 11:52:07.494 | R125: 18:25:44.317 | S125: =ATAN((-dsin(検索入力!$A$7)*DCOS(N125*0.75+N126*0.25)*DCOS(H125*0.75+H126*0.25)+DCOS(検索入力!$A$7)*dsin(H125*0.75+H126*0.25))/(dsin(N125*0.75+N126*0.25)*DCOS(H125*0.75+H126*0.25)))/PI()*180 -> 13.26409255 | T125: 13:06:42.192
A126: 2012-04-17T12:00:00 | B126: 27.5038262 | C126: 104.4982141 | D126: 0.9775013021 | E126: -0.008099367301 | F126: -0.0323974692 | G126: 7.4424175 | H126: 10.58545707 | I126: =IF(270<=B126,ATAN(dtan(B126)*DCOS($J$2))/PI()*180+360,IF(B126>90,ATAN(dtan(B126)*DCOS($J$2))/PI()*180+180,ATAN(dtan(B126)*DCOS($J$2))/PI()*180)) -> 25.53316441 | J126: -7.882647146 | K126: -0.1930972926 | L126: -0.4402296452 | M126: -13.52968571 | N126: =adcos((-dsin(検索入力!$A$7)*dsin(H126)-dsin($J$5))/(DCOS(検索入力!$A$7)*DCOS(H126))) -> 98.61345045 | O126: 05:17:45.471 | P126: =ATAN((-dsin(検索入力!$A$7)*DCOS(N126*0.75+N125*0.25)*DCOS(H126*0.75+H125*0.25)+DCOS(検索入力!$A$7)*dsin(H126*0.75+H125*0.25))/(dsin(N126*0.75+N125*0.25)*DCOS(H126*0.75+H125*0.25)))/PI()*180 -> 13.48202832 | Q126: 11:51:53.578 | R126: 18:26:32.985 | S126: =ATAN((-dsin(検索入力!$A$7)*DCOS(N126*0.75+N127*0.25)*DCOS(H126*0.75+H127*0.25)+DCOS(検索入力!$A$7)*dsin(H126*0.75+H127*0.25))/(dsin(N126*0.75+N127*0.25)*DCOS(H126*0.75+H127*0.25)))/PI()*180 -> 13.69913829 | T126: 13:08:47.514
A127: 2012-04-18T12:00:00 | B127: 28.48137419 | C127: 105.4757154 | D127: 0.9769617457 | E127: -0.008638949439 | F127: -0.03455579776 | G127: 7.410020031 | H127: 10.93496299 | I127: =IF(270<=B127,ATAN(dtan(B127)*DCOS($J$2))/PI()*180+360,IF(B127>90,ATAN(dtan(B127)*DCOS($J$2))/PI()*180+180,ATAN(dtan(B127)*DCOS($J$2))/PI()*180)) -> 26.46243808 | J127: -8.075744438 | K127: -0.1842617722 | L127: -0.665724407 | M127: -13.1290542 | N127: =adcos((-dsin(検索入力!$A$7)*dsin(H127)-dsin($J$5))/(DCOS(検索入力!$A$7)*DCOS(H127))) -> 98.87280665 | O127: 05:16:29.519 | P127: =ATAN((-dsin(検索入力!$A$7)*DCOS(N127*0.75+N126*0.25)*DCOS(H127*0.75+H126*0.25)+DCOS(検索入力!$A$7)*dsin(H127*0.75+H126*0.25))/(dsin(N127*0.75+N126*0.25)*DCOS(H127*0.75+H126*0.25)))/PI()*180 -> 13.9154222 | Q127: 11:51:40.049 | R127: 18:27:21.717 | S127: =ATAN((-dsin(検索入力!$A$7)*DCOS(N127*0.75+N128*0.25)*DCOS(H127*0.75+H128*0.25)+DCOS(検索入力!$A$7)*dsin(H127*0.75+H128*0.25))/(dsin(N127*0.75+N128*0.25)*DCOS(H127*0.75+H128*0.25)))/PI()*180 -> 14.13085223 | T127: 13:10:52.198
A128: 2012-04-19T12:00:00 | B128: 29.4583826 | C128: 106.4526771 | D128: 0.9764252595 | E128: -0.009175461311 | F128: -0.03670184525 | G128: 7.375464234 | H128: 11.28146466 | I128: =IF(270<=B128,ATAN(dtan(B128)*DCOS($J$2))/PI()*180+360,IF(B128>90,ATAN(dtan(B128)*DCOS($J$2))/PI()*180+180,ATAN(dtan(B128)*DCOS($J$2))/PI()*180)) -> 27.39338104 | J128: -8.26000621 | K128: -0.1752105691 | L128: -0.884541977 | M128: -12.71474486 | N128: =adcos((-dsin(検索入力!$A$7)*dsin(H128)-dsin($J$5))/(DCOS(検索入力!$A$7)*DCOS(H128))) -> 99.13075797 | O128: 05:15:14.297 | P128: =ATAN((-dsin(検索入力!$A$7)*DCOS(N128*0.75+N127*0.25)*DCOS(H128*0.75+H127*0.25)+DCOS(検索入力!$A$7)*dsin(H128*0.75+H127*0.25))/(dsin(N128*0.75+N127*0.25)*DCOS(H128*0.75+H127*0.25)))/PI()*180 -> 14.34542818 | Q128: 11:51:26.919 | R128: 18:28:10.512 | S128: =ATAN((-dsin(検索入力!$A$7)*DCOS(N128*0.75+N129*0.25)*DCOS(H128*0.75+H129*0.25)+DCOS(検索入力!$A$7)*dsin(H128*0.75+H129*0.25))/(dsin(N128*0.75+N129*0.25)*DCOS(H128*0.75+H129*0.25)))/PI()*180 -> 14.55912212 | T128: 13:12:56.215
A129: 2012-04-20T12:00:00 | B129: 30.43485449 | C129: 107.4291024 | D129: 0.9758919906 | E129: -0.00970875567 | F129: -0.03883502268 | G129: 7.338762388 | H129: 11.62486964 | I129: =IF(270<=B129,ATAN(dtan(B129)*DCOS($J$2))/PI()*180+360,IF(B129>90,ATAN(dtan(B129)*DCOS($J$2))/PI()*180+180,ATAN(dtan(B129)*DCOS($J$2))/PI()*180)) -> 28.3260503 | J129: -8.43521678 | K129: -0.1659517811 | L129: -1.096454391 | M129: -12.28720823 | N129: =adcos((-dsin(検索入力!$A$7)*dsin(H129)-dsin($J$5))/(DCOS(検索入力!$A$7)*DCOS(H129))) -> 99.38724172 | O129: 05:13:59.834 | P129: =ATAN((-dsin(検索入力!$A$7)*DCOS(N129*0.75+N128*0.25)*DCOS(H129*0.75+H128*0.25)+DCOS(検索入力!$A$7)*dsin(H129*0.75+H128*0.25))/(dsin(N129*0.75+N128*0.25)*DCOS(H129*0.75+H128*0.25)))/PI()*180 -> 14.77193388 | Q129: 11:51:14.205 | R129: 18:28:59.368 | S129: =ATAN((-dsin(検索入力!$A$7)*DCOS(N129*0.75+N130*0.25)*DCOS(H129*0.75+H130*0.25)+DCOS(検索入力!$A$7)*dsin(H129*0.75+H130*0.25))/(dsin(N129*0.75+N130*0.25)*DCOS(H129*0.75+H130*0.25)))/PI()*180 -> 14.98383542 | T129: 13:14:59.534
A130: 2012-04-21T12:00:00 | B130: 31.4107931 | C130: 108.4049944 | D130: 0.9753620848 | E130: -0.01023868677 | F130: -0.0409547471 | G130: 7.299927366 | H130: 11.96508574 | I130: =IF(270<=B130,ATAN(dtan(B130)*DCOS($J$2))/PI()*180+360,IF(B130>90,ATAN(dtan(B130)*DCOS($J$2))/PI()*180+180,ATAN(dtan(B130)*DCOS($J$2))/PI()*180)) -> 29.26050096 | J130: -8.601168561 | K130: -0.1564937686 | L130: -1.301241195 | M130: -11.84691094 | N130: =adcos((-dsin(検索入力!$A$7)*dsin(H130)-dsin($J$5))/(DCOS(検索入力!$A$7)*DCOS(H130))) -> 99.64219362 | O130: 05:12:46.160 | P130: =ATAN((-dsin(検索入力!$A$7)*DCOS(N130*0.75+N129*0.25)*DCOS(H130*0.75+H129*0.25)+DCOS(検索入力!$A$7)*dsin(H130*0.75+H129*0.25))/(dsin(N130*0.75+N129*0.25)*DCOS(H130*0.75+H129*0.25)))/PI()*180 -> 15.19482661 | Q130: 11:51:01.918 | R130: 18:29:48.284 | S130: =ATAN((-dsin(検索入力!$A$7)*DCOS(N130*0.75+N131*0.25)*DCOS(H130*0.75+H131*0.25)+DCOS(検索入力!$A$7)*dsin(H130*0.75+H131*0.25))/(dsin(N130*0.75+N131*0.25)*DCOS(H130*0.75+H131*0.25)))/PI()*180 -> 15.40487928 | T130: 13:17:02.124
A131: 2012-04-22T12:00:00 | B131: 32.38620177 | C131: 109.3803564 | D131: 0.9748356863 | E131: -0.01076511042 | F131: -0.04306044167 | G131: 7.258972618 | H131: 12.30202106 | I131: =IF(270<=B131,ATAN(dtan(B131)*DCOS($J$2))/PI()*180+360,IF(B131>90,ATAN(dtan(B131)*DCOS($J$2))/PI()*180+180,ATAN(dtan(B131)*DCOS($J$2))/PI()*180)) -> 30.19678619 | J131: -8.757662329 | K131: -0.1468451567 | L131: -1.498689711 | M131: -11.3943359 | N131: =adcos((-dsin(検索入力!$A$7)*dsin(H131)-dsin($J$5))/(DCOS(検索入力!$A$7)*DCOS(H131))) -> 99.89554769 | O131: 05:11:33.302 | P131: =ATAN((-dsin(検索入力!$A$7)*DCOS(N131*0.75+N130*0.25)*DCOS(H131*0.75+H130*0.25)+DCOS(検索入力!$A$7)*dsin(H131*0.75+H130*0.25))/(dsin(N131*0.75+N130*0.25)*DCOS(H131*0.75+H130*0.25)))/PI()*180 -> 15.61399335 | Q131: 11:50:50.071 | R131: 18:30:37.255 | S131: =ATAN((-dsin(検索入力!$A$7)*DCOS(N131*0.75+N132*0.25)*DCOS(H131*0.75+H132*0.25)+DCOS(検索入力!$A$7)*dsin(H131*0.75+H132*0.25))/(dsin(N131*0.75+N132*0.25)*DCOS(H131*0.75+H132*0.25)))/PI()*180 -> 15.82214054 | T131: 13:19:03.953
A132: 2012-04-23T12:00:00 | B132: 33.36108402 | C132: 110.3551921 | D132: 0.9743129377 | E132: -0.01128788396 | F132: -0.04515153583 | G132: 7.215912177 | H132: 12.63558399 | I132: =IF(270<=B132,ATAN(dtan(B132)*DCOS($J$2))/PI()*180+360,IF(B132>90,ATAN(dtan(B132)*DCOS($J$2))/PI()*180+180,ATAN(dtan(B132)*DCOS($J$2))/PI()*180)) -> 31.13495714 | J132: -8.904507486 | K132: -0.1370148359 | L132: -1.688595309 | M132: -10.92998231 | N132: =adcos((-dsin(検索入力!$A$7)*dsin(H132)-dsin($J$5))/(DCOS(検索入力!$A$7)*DCOS(H132))) -> 100.1472363 | O132: 05:10:21.289 | P132: =ATAN((-dsin(検索入力!$A$7)*DCOS(N132*0.75+N131*0.25)*DCOS(H132*0.75+H131*0.25)+DCOS(検索入力!$A$7)*dsin(H132*0.75+H131*0.25))/(dsin(N132*0.75+N131*0.25)*DCOS(H132*0.75+H131*0.25)))/PI()*180 -> 16.02932082 | Q132: 11:50:38.676 | R132: 18:31:26.278 | S132: =ATAN((-dsin(検索入力!$A$7)*DCOS(N132*0.75+N133*0.25)*DCOS(H132*0.75+H133*0.25)+DCOS(検索入力!$A$7)*dsin(H132*0.75+H133*0.25))/(dsin(N132*0.75+N133*0.25)*DCOS(H132*0.75+H133*0.25)))/PI()*180 -> 16.23550576 | T132: 13:21:04.988
A133: 2012-04-24T12:00:00 | B133: 34.33544349 | C133: 111.3295051 | D133: 0.9737939801 | E133: -0.01180686633 | F133: -0.04722746533 | G133: 7.170760641 | H133: 12.96568324 | I133: =IF(270<=B133,ATAN(dtan(B133)*DCOS($J$2))/PI()*180+360,IF(B133>90,ATAN(dtan(B133)*DCOS($J$2))/PI()*180+180,ATAN(dtan(B133)*DCOS($J$2))/PI()*180)) -> 32.07506291 | J133: -9.041522322 | K133: -0.1270119633 | L133: -1.870761681 | M133: -10.45436572 | N133: =adcos((-dsin(検索入力!$A$7)*dsin(H133)-dsin($J$5))/(DCOS(検索入力!$A$7)*DCOS(H133))) -> 100.3971902 | O133: 05:09:10.150 | P133: =ATAN((-dsin(検索入力!$A$7)*DCOS(N133*0.75+N132*0.25)*DCOS(H133*0.75+H132*0.25)+DCOS(検索入力!$A$7)*dsin(H133*0.75+H132*0.25))/(dsin(N133*0.75+N132*0.25)*DCOS(H133*0.75+H132*0.25)))/PI()*180 -> 16.44069539 | Q133: 11:50:27.746 | R133: 18:32:15.347 | S133: =ATAN((-dsin(検索入力!$A$7)*DCOS(N133*0.75+N134*0.25)*DCOS(H133*0.75+H134*0.25)+DCOS(検索入力!$A$7)*dsin(H133*0.75+H134*0.25))/(dsin(N133*0.75+N134*0.25)*DCOS(H133*0.75+H134*0.25)))/PI()*180 -> 16.64486117 | T133: 13:23:05.197
A134: 2012-04-25T12:00:00 | B134: 35.30928398 | C134: 112.3032991 | D134: 0.973278953 | E134: -0.0123219181 | F134: -0.04928767239 | G134: 7.123533176 | H134: 13.29222786 | I134: =IF(270<=B134,ATAN(dtan(B134)*DCOS($J$2))/PI()*180+360,IF(B134>90,ATAN(dtan(B134)*DCOS($J$2))/PI()*180+180,ATAN(dtan(B134)*DCOS($J$2))/PI()*180)) -> 33.01715041 | J134: -9.168534285 | K134: -0.1168459623 | L134: -2.04500111 | M134: -9.968018084 | N134: =adcos((-dsin(検索入力!$A$7)*dsin(H134)-dsin($J$5))/(DCOS(検索入力!$A$7)*DCOS(H134))) -> 100.6453383 | O134: 05:07:59.913 | P134: =ATAN((-dsin(検索入力!$A$7)*DCOS(N134*0.75+N133*0.25)*DCOS(H134*0.75+H133*0.25)+DCOS(検索入力!$A$7)*dsin(H134*0.75+H133*0.25))/(dsin(N134*0.75+N133*0.25)*DCOS(H134*0.75+H133*0.25)))/PI()*180 -> 16.84800318 | Q134: 11:50:17.292 | R134: 18:33:04.457 | S134: =ATAN((-dsin(検索入力!$A$7)*DCOS(N134*0.75+N135*0.25)*DCOS(H134*0.75+H135*0.25)+DCOS(検索入力!$A$7)*dsin(H134*0.75+H135*0.25))/(dsin(N134*0.75+N135*0.25)*DCOS(H134*0.75+H135*0.25)))/PI()*180 -> 17.05009277 | T134: 13:25:04.544
A135: 2012-04-26T12:00:00 | B135: 36.28260942 | C135: 113.276578 | D135: 0.972767994 | E135: -0.01283290144 | F135: -0.05133160575 | G135: 7.074245503 | H135: 13.61512722 | I135: =IF(270<=B135,ATAN(dtan(B135)*DCOS($J$2))/PI()*180+360,IF(B135>90,ATAN(dtan(B135)*DCOS($J$2))/PI()*180+180,ATAN(dtan(B135)*DCOS($J$2))/PI()*180)) -> 33.96126436 | J135: -9.285380248 | K135: -0.1065265231 | L135: -2.211134744 | M135: -9.471487732 | N135: =adcos((-dsin(検索入力!$A$7)*dsin(H135)-dsin($J$5))/(DCOS(検索入力!$A$7)*DCOS(H135))) -> 100.8916079 | O135: 05:06:50.606 | P135: =ATAN((-dsin(検索入力!$A$7)*DCOS(N135*0.75+N134*0.25)*DCOS(H135*0.75+H134*0.25)+DCOS(検索入力!$A$7)*dsin(H135*0.75+H134*0.25))/(dsin(N135*0.75+N134*0.25)*DCOS(H135*0.75+H134*0.25)))/PI()*180 -> 17.25113004 | Q135: 11:50:07.324 | R135: 18:33:53.601 | S135: =ATAN((-dsin(検索入力!$A$7)*DCOS(N135*0.75+N136*0.25)*DCOS(H135*0.75+H136*0.25)+DCOS(検索入力!$A$7)*dsin(H135*0.75+H136*0.25))/(dsin(N135*0.75+N136*0.25)*DCOS(H135*0.75+H136*0.25)))/PI()*180 -> 17.45108624 | T135: 13:27:02.995
A136: 2012-04-27T12:00:00 | B136: 37.25542388 | C136: 114.249346 | D136: 0.9722612395 | E136: -0.01333968019 | F136: -0.05335872077 | G136: 7.022913898 | H136: 13.93429107 | I136: =IF(270<=B136,ATAN(dtan(B136)*DCOS($J$2))/PI()*180+360,IF(B136>90,ATAN(dtan(B136)*DCOS($J$2))/PI()*180+180,ATAN(dtan(B136)*DCOS($J$2))/PI()*180)) -> 34.90744719 | J136: -9.391906771 | K136: -0.09606360122 | L136: -2.368992873 | M136: -8.96533932 | N136: =adcos((-dsin(検索入力!$A$7)*dsin(H136)-dsin($J$5))/(DCOS(検索入力!$A$7)*DCOS(H136))) -> 101.1359246 | O136: 05:05:42.257 | P136: =ATAN((-dsin(検索入力!$A$7)*DCOS(N136*0.75+N135*0.25)*DCOS(H136*0.75+H135*0.25)+DCOS(検索入力!$A$7)*dsin(H136*0.75+H135*0.25))/(dsin(N136*0.75+N135*0.25)*DCOS(H136*0.75+H135*0.25)))/PI()*180 -> 17.64996153 | Q136: 11:49:57.852 | R136: 18:34:42.770 | S136: =ATAN((-dsin(検索入力!$A$7)*DCOS(N136*0.75+N137*0.25)*DCOS(H136*0.75+H137*0.25)+DCOS(検索入力!$A$7)*dsin(H136*0.75+H137*0.25))/(dsin(N136*0.75+N137*0.25)*DCOS(H136*0.75+H137*0.25)))/PI()*180 -> 17.84772705 | T136: 13:29:00.513
A137: 2012-04-28T12:00:00 | B137: 38.22773156 | C137: 115.2216072 | D137: =$H$4*(1+$H$3*DCOS(C137))^2*(1-$H$3*dsin(C137)*PI()/180*(1+$H$3*DCOS(C137))) -> 0.9717588238 | E137: -0.01384211989 | F137: =4*E137 -> -0.05536847956 | G137: 6.969555177 | H137: 14.24962957 | I137: =IF(270<=B137,ATAN(dtan(B137)*DCOS($J$2))/PI()*180+360,IF(B137>90,ATAN(dtan(B137)*DCOS($J$2))/PI()*180+180,ATAN(dtan(B137)*DCOS($J$2))/PI()*180)) -> 35.85573896 | J137: -9.487970372 | K137: -0.08546741645 | L137: -2.518415195 | M137: -8.450153761 | N137: =adcos((-dsin(検索入力!$A$7)*dsin(H137)-dsin($J$5))/(DCOS(検索入力!$A$7)*DCOS(H137))) -> 101.3782122 | O137: 05:04:34.895 | P137: =ATAN((-dsin(検索入力!$A$7)*DCOS(N137*0.75+N136*0.25)*DCOS(H137*0.75+H136*0.25)+DCOS(検索入力!$A$7)*dsin(H137*0.75+H136*0.25))/(dsin(N137*0.75+N136*0.25)*DCOS(H137*0.75+H136*0.25)))/PI()*180 -> 18.04438302 | Q137: 11:49:48.887 | R137: 18:35:31.956 | S137: =ATAN((-dsin(検索入力!$A$7)*DCOS(N137*0.75+N138*0.25)*DCOS(H137*0.75+H138*0.25)+DCOS(検索入力!$A$7)*dsin(H137*0.75+H138*0.25))/(dsin(N137*0.75+N138*0.25)*DCOS(H137*0.75+H138*0.25)))/PI()*180 -> 18.23990045 | T137: 13:30:57.062
A138: 2012-04-29T12:00:00 | B138: =IF(B137+(A138-A137)*D137/$H$4*$L$3<360,B137+(A138-A137)*D137/$H$4*$L$3,B137+(A138-A137)*D137/$H$4*$L$3-360) -> 39.1995368 | C138: =IF(C137+D137*(A138-A137)<360,C137+D137*(A138-A137),C137+D137*(A138-A137)-360) -> 116.1933661 | D138: 0.9712608797 | E138: -0.01434008775 | F138: -0.05736035098 | G138: 6.914186697 | H138: 14.56105326 | I138: =IF(270<=B138,ATAN(dtan(B138)*DCOS($J$2))/PI()*180+360,IF(B138>90,ATAN(dtan(B138)*DCOS($J$2))/PI()*180+180,ATAN(dtan(B138)*DCOS($J$2))/PI()*180)) -> 36.80617735 | J138: -9.573437788 | K138: -0.07474845077 | L138: -2.659251091 | M138: -7.926528105 | N138: =adcos((-dsin(検索入力!$A$7)*dsin(H138)-dsin($J$5))/(DCOS(検索入力!$A$7)*DCOS(H138))) -> 101.6183927 | O138: 05:03:28.546 | P138: =ATAN((-dsin(検索入力!$A$7)*DCOS(N138*0.75+N137*0.25)*DCOS(H138*0.75+H137*0.25)+DCOS(検索入力!$A$7)*dsin(H138*0.75+H137*0.25))/(dsin(N138*0.75+N137*0.25)*DCOS(H138*0.75+H137*0.25)))/PI()*180 -> 18.43427961 | Q138: 11:49:40.437 | R138: 18:36:21.149 | S138: =ATAN((-dsin(検索入力!$A$7)*DCOS(N138*0.75+N139*0.25)*DCOS(H138*0.75+H139*0.25)+DCOS(検索入力!$A$7)*dsin(H138*0.75+H139*0.25))/(dsin(N138*0.75+N139*0.25)*DCOS(H138*0.75+H139*0.25)))/PI()*180 -> 18.62749145 | T138: 13:32:52.603
A139: 2012-04-30T12:00:00 | B139: 40.17084407 | C139: 117.1646269 | D139: 0.9707675383 | E139: -0.0148334527 | F139: -0.0593338108 | G139: 6.856826346 | H139: 14.86847314 | I139: =IF(270<=B139,ATAN(dtan(B139)*DCOS($J$2))/PI()*180+360,IF(B139>90,ATAN(dtan(B139)*DCOS($J$2))/PI()*180+180,ATAN(dtan(B139)*DCOS($J$2))/PI()*180)) -> 37.75879751 | J139: -9.648186239 | K139: -0.06391744556 | L139: -2.791359893 | M139: -7.395075382 | N139: =adcos((-dsin(検索入力!$A$7)*dsin(H139)-dsin($J$5))/(DCOS(検索入力!$A$7)*DCOS(H139))) -> 101.8563868 | O139: 05:02:23.239 | P139: =ATAN((-dsin(検索入力!$A$7)*DCOS(N139*0.75+N138*0.25)*DCOS(H139*0.75+H138*0.25)+DCOS(検索入力!$A$7)*dsin(H139*0.75+H138*0.25))/(dsin(N139*0.75+N138*0.25)*DCOS(H139*0.75+H138*0.25)))/PI()*180 -> 18.81953628 | Q139: 11:49:32.510 | R139: 18:37:10.338 | S139: =ATAN((-dsin(検索入力!$A$7)*DCOS(N139*0.75+N140*0.25)*DCOS(H139*0.75+H140*0.25)+DCOS(検索入力!$A$7)*dsin(H139*0.75+H140*0.25))/(dsin(N139*0.75+N140*0.25)*DCOS(H139*0.75+H140*0.25)))/PI()*180 -> 19.01038494 | T139: 13:34:47.099
A140: 2012-05-01T12:00:00 | B140: 41.14165797 | C140: 118.1353945 | D140: 0.9702789289 | E140: -0.01532208543 | F140: -0.06128834173 | G140: 6.797492535 | H140: 15.17180069 | I140: =IF(270<=B140,ATAN(dtan(B140)*DCOS($J$2))/PI()*180+360,IF(B140>90,ATAN(dtan(B140)*DCOS($J$2))/PI()*180+180,ATAN(dtan(B140)*DCOS($J$2))/PI()*180)) -> 38.71363205 | J140: -9.712103685 | K140: -0.05298539806 | L140: -2.914611149 | M140: -6.856424388 | N140: =adcos((-dsin(検索入力!$A$7)*dsin(H140)-dsin($J$5))/(DCOS(検索入力!$A$7)*DCOS(H140))) -> 102.0921131 | O140: 05:01:19.001 | P140: =ATAN((-dsin(検索入力!$A$7)*DCOS(N140*0.75+N139*0.25)*DCOS(H140*0.75+H139*0.25)+DCOS(検索入力!$A$7)*dsin(H140*0.75+H139*0.25))/(dsin(N140*0.75+N139*0.25)*DCOS(H140*0.75+H139*0.25)))/PI()*180 -> 19.2000378 | Q140: 11:49:25.115 | R140: 18:37:59.511 | S140: =ATAN((-dsin(検索入力!$A$7)*DCOS(N140*0.75+N141*0.25)*DCOS(H140*0.75+H141*0.25)+DCOS(検索入力!$A$7)*dsin(H140*0.75+H141*0.25))/(dsin(N140*0.75+N141*0.25)*DCOS(H140*0.75+H141*0.25)))/PI()*180 -> 19.38846563 | T140: 13:36:40.510
A141: 2012-05-02T12:00:00 | B141: 42.11198324 | C141: 119.1056734 | D141: 0.9697951791 | E141: -0.01580585838 | F141: -0.06322343351 | G141: 6.736204194 | H141: 15.47094788 | I141: =IF(270<=B141,ATAN(dtan(B141)*DCOS($J$2))/PI()*180+360,IF(B141>90,ATAN(dtan(B141)*DCOS($J$2))/PI()*180+180,ATAN(dtan(B141)*DCOS($J$2))/PI()*180)) -> 39.67071097 | J141: -9.765089083 | K141: -0.04196355713 | L141: -3.028884889 | M141: -6.311219439 | N141: =adcos((-dsin(検索入力!$A$7)*dsin(H141)-dsin($J$5))/(DCOS(検索入力!$A$7)*DCOS(H141))) -> 102.3254887 | O141: 05:00:15.858 | P141: =ATAN((-dsin(検索入力!$A$7)*DCOS(N141*0.75+N140*0.25)*DCOS(H141*0.75+H140*0.25)+DCOS(検索入力!$A$7)*dsin(H141*0.75+H140*0.25))/(dsin(N141*0.75+N140*0.25)*DCOS(H141*0.75+H140*0.25)))/PI()*180 -> 19.57566885 | Q141: 11:49:18.259 | R141: 18:38:48.655 | S141: =ATAN((-dsin(検索入力!$A$7)*DCOS(N141*0.75+N142*0.25)*DCOS(H141*0.75+H142*0.25)+DCOS(検索入力!$A$7)*dsin(H141*0.75+H142*0.25))/(dsin(N141*0.75+N142*0.25)*DCOS(H141*0.75+H142*0.25)))/PI()*180 -> 19.76161817 | T141: 13:38:32.797
A142: 2012-05-03T12:00:00 | B142: 43.08182474 | C142: 120.0754686 | D142: 0.9693164146 | E142: -0.01628464574 | F142: -0.06513858297 | G142: 6.67298076 | H142: 15.76582719 | I142: =IF(270<=B142,ATAN(dtan(B142)*DCOS($J$2))/PI()*180+360,IF(B142>90,ATAN(dtan(B142)*DCOS($J$2))/PI()*180+180,ATAN(dtan(B142)*DCOS($J$2))/PI()*180)) -> 40.63006158 | J142: -9.80705264 | K142: -0.03086341805 | L142: -3.13407188 | M142: -5.760120061 | N142: =adcos((-dsin(検索入力!$A$7)*dsin(H142)-dsin($J$5))/(DCOS(検索入力!$A$7)*DCOS(H142))) -> 102.556429 | O142: 04:59:13.839 | P142: =ATAN((-dsin(検索入力!$A$7)*DCOS(N142*0.75+N141*0.25)*DCOS(H142*0.75+H141*0.25)+DCOS(検索入力!$A$7)*dsin(H142*0.75+H141*0.25))/(dsin(N142*0.75+N141*0.25)*DCOS(H142*0.75+H141*0.25)))/PI()*180 -> 19.94631403 | Q142: 11:49:11.948 | R142: 18:39:37.756 | S142: =ATAN((-dsin(検索入力!$A$7)*DCOS(N142*0.75+N143*0.25)*DCOS(H142*0.75+H143*0.25)+DCOS(検索入力!$A$7)*dsin(H142*0.75+H143*0.25))/(dsin(N142*0.75+N143*0.25)*DCOS(H142*0.75+H143*0.25)))/PI()*180 -> 20.12972711 | T142: 13:40:23.917
A143: 2012-05-04T12:00:00 | B143: 44.05118746 | C143: 121.044785 | D143: 0.9688427594 | E143: -0.01675832353 | F143: -0.0670332941 | G143: 6.607842177 | H143: 16.0563517 | I143: =IF(270<=B143,ATAN(dtan(B143)*DCOS($J$2))/PI()*180+360,IF(B143>90,ATAN(dtan(B143)*DCOS($J$2))/PI()*180+180,ATAN(dtan(B143)*DCOS($J$2))/PI()*180)) -> 41.59170844 | J143: -9.837916058 | K143: -0.01969671653 | L143: -3.230073881 | M143: -5.203800638 | N143: =adcos((-dsin(検索入力!$A$7)*dsin(H143)-dsin($J$5))/(DCOS(検索入力!$A$7)*DCOS(H143))) -> 102.784848 | O143: 04:58:12.969 | P143: =ATAN((-dsin(検索入力!$A$7)*DCOS(N143*0.75+N142*0.25)*DCOS(H143*0.75+H142*0.25)+DCOS(検索入力!$A$7)*dsin(H143*0.75+H142*0.25))/(dsin(N143*0.75+N142*0.25)*DCOS(H143*0.75+H142*0.25)))/PI()*180 -> 20.3118579 | Q143: 11:49:06.188 | R143: 18:40:26.799 | S143: =ATAN((-dsin(検索入力!$A$7)*DCOS(N143*0.75+N144*0.25)*DCOS(H143*0.75+H144*0.25)+DCOS(検索入力!$A$7)*dsin(H143*0.75+H144*0.25))/(dsin(N143*0.75+N144*0.25)*DCOS(H143*0.75+H144*0.25)))/PI()*180 -> 20.49267702 | T143: 13:42:13.830
A144: 2012-05-05T12:00:00 | B144: 45.02007649 | C144: 122.0136278 | D144: 0.9683743358 | E144: -0.01722676953 | F144: -0.06890707814 | G144: 6.540808883 | H144: 16.34243508 | I144: =IF(270<=B144,ATAN(dtan(B144)*DCOS($J$2))/PI()*180+360,IF(B144>90,ATAN(dtan(B144)*DCOS($J$2))/PI()*180+180,ATAN(dtan(B144)*DCOS($J$2))/PI()*180)) -> 42.5556733 | J144: -9.857612774 | K144: -0.008475421729 | L144: -3.316803891 | M144: -4.642949992 | N144: =adcos((-dsin(検索入力!$A$7)*dsin(H144)-dsin($J$5))/(DCOS(検索入力!$A$7)*DCOS(H144))) -> 103.010658 | O144: 04:57:13.275 | P144: =ATAN((-dsin(検索入力!$A$7)*DCOS(N144*0.75+N143*0.25)*DCOS(H144*0.75+H143*0.25)+DCOS(検索入力!$A$7)*dsin(H144*0.75+H143*0.25))/(dsin(N144*0.75+N143*0.25)*DCOS(H144*0.75+H143*0.25)))/PI()*180 -> 20.67218502 | Q144: 11:49:00.984 | R144: 18:41:15.768 | S144: =ATAN((-dsin(検索入力!$A$7)*DCOS(N144*0.75+N145*0.25)*DCOS(H144*0.75+H145*0.25)+DCOS(検索入力!$A$7)*dsin(H144*0.75+H145*0.25))/(dsin(N144*0.75+N145*0.25)*DCOS(H144*0.75+H145*0.25)))/PI()*180 -> 20.85035249 | T144: 13:44:02.492
A145: 2012-05-06T12:00:00 | B145: 45.98849708 | C145: 122.9820021 | D145: 0.967911264 | E145: -0.01768986339 | F145: -0.07075945357 | G145: 6.471901805 | H145: 16.62399161 | I145: =IF(270<=B145,ATAN(dtan(B145)*DCOS($J$2))/PI()*180+360,IF(B145>90,ATAN(dtan(B145)*DCOS($J$2))/PI()*180+180,ATAN(dtan(B145)*DCOS($J$2))/PI()*180)) -> 43.52197503 | J145: -9.866088196 | K145: 0.002788271629 | L145: -3.394186391 | M145: -4.078270916 | N145: =adcos((-dsin(検索入力!$A$7)*dsin(H145)-dsin($J$5))/(DCOS(検索入力!$A$7)*DCOS(H145))) -> 103.2337698 | O145: 04:56:14.784 | P145: =ATAN((-dsin(検索入力!$A$7)*DCOS(N145*0.75+N144*0.25)*DCOS(H145*0.75+H144*0.25)+DCOS(検索入力!$A$7)*dsin(H145*0.75+H144*0.25))/(dsin(N145*0.75+N144*0.25)*DCOS(H145*0.75+H144*0.25)))/PI()*180 -> 21.02718004 | Q145: 11:48:56.341 | R145: 18:42:04.645 | S145: =ATAN((-dsin(検索入力!$A$7)*DCOS(N145*0.75+N146*0.25)*DCOS(H145*0.75+H146*0.25)+DCOS(検索入力!$A$7)*dsin(H145*0.75+H146*0.25))/(dsin(N145*0.75+N146*0.25)*DCOS(H145*0.75+H146*0.25)))/PI()*180 -> 21.20263822 | T145: 13:45:49.862
A146: 2012-05-07T12:00:00 | B146: 46.95645458 | C146: 123.9499134 | D146: 0.9674536627 | E146: -0.01814748656 | F146: -0.07258994625 | G146: 6.401142351 | H146: =adsin(dsin(B146)*dsin($J$2)) -> 16.90093629 | I146: =IF(270<=B146,ATAN(dtan(B146)*DCOS($J$2))/PI()*180+360,IF(B146>90,ATAN(dtan(B146)*DCOS($J$2))/PI()*180+180,ATAN(dtan(B146)*DCOS($J$2))/PI()*180)) -> 44.49062959 | J146: =(I146-B146)*4 -> -9.863299925 | K146: =J147-J146 -> 0.0140819522 | L146: =G146+J146 -> -3.462157573 | M146: -3.510479643 | N146: =adcos((-dsin(検索入力!$A$7)*dsin(H146)-dsin($J$5))/(DCOS(検索入力!$A$7)*DCOS(H146))) -> 103.4540927 | O146: 04:55:17.519 | P146: =ATAN((-dsin(検索入力!$A$7)*DCOS(N146*0.75+N145*0.25)*DCOS(H146*0.75+H145*0.25)+DCOS(検索入力!$A$7)*dsin(H146*0.75+H145*0.25))/(dsin(N146*0.75+N145*0.25)*DCOS(H146*0.75+H145*0.25)))/PI()*180 -> 21.37672769 | Q146: =(12+(L146+$J$3)/60)/24 -> 11:48:52.263 | R146: 18:42:53.414 | S146: =ATAN((-dsin(検索入力!$A$7)*DCOS(N146*0.75+N147*0.25)*DCOS(H146*0.75+H147*0.25)+DCOS(検索入力!$A$7)*dsin(H146*0.75+H147*0.25))/(dsin(N146*0.75+N147*0.25)*DCOS(H146*0.75+H147*0.25)))/PI()*180 -> 21.54941902 | T146: 13:47:35.894
A147: 2012-05-08T12:00:00 | B147: 47.92395445 | C147: 124.917367 | D147: 0.9670016485 | E147: -0.01859952236 | F147: -0.07439808944 | G147: 6.328552405 | H147: 17.1731848 | I147: =IF(270<=B147,ATAN(dtan(B147)*DCOS($J$2))/PI()*180+360,IF(B147>90,ATAN(dtan(B147)*DCOS($J$2))/PI()*180+180,ATAN(dtan(B147)*DCOS($J$2))/PI()*180)) -> 45.46164995 | J147: -9.849217972 | K147: 0.02539300195 | L147: -3.520665567 | M147: -2.940305249 | N147: =adcos((-dsin(検索入力!$A$7)*dsin(H147)-dsin($J$5))/(DCOS(検索入力!$A$7)*DCOS(H147))) -> 103.6715349 | O147: =0.75*Q147+0.25*Q146-(0.75*N147+0.25*N146)*4/60/24 -> 04:54:21.508 | P147: =ATAN((-dsin(検索入力!$A$7)*DCOS(N147*0.75+N146*0.25)*DCOS(H147*0.75+H146*0.25)+DCOS(検索入力!$A$7)*dsin(H147*0.75+H146*0.25))/(dsin(N147*0.75+N146*0.25)*DCOS(H147*0.75+H146*0.25)))/PI()*180 -> 21.72071292 | Q147: 11:48:48.752 | R147: =0.75*Q147+0.25*Q148+(0.75*N147+0.25*N148)*4/60/24 -> 18:43:42.053 | S147: =ATAN((-dsin(検索入力!$A$7)*DCOS(N147*0.75+N148*0.25)*DCOS(H147*0.75+H148*0.25)+DCOS(検索入力!$A$7)*dsin(H147*0.75+H148*0.25))/(dsin(N147*0.75+N148*0.25)*DCOS(H147*0.75+H148*0.25)))/PI()*180 -> 21.89057997 | T147: =R147-O147 -> 13:49:20.546
A148: 2012-05-09T12:00:00 | B148: 48.89100228 | C148: 125.8843687 | D148: 0.9665553362 | E148: -0.01904585595 | F148: -0.07618342382 | G148: 6.254154316 | H148: 17.44065361 | I148: =IF(270<=B148,ATAN(dtan(B148)*DCOS($J$2))/PI()*180+360,IF(B148>90,ATAN(dtan(B148)*DCOS($J$2))/PI()*180+180,ATAN(dtan(B148)*DCOS($J$2))/PI()*180)) -> 46.43504604 | J148: -9.82382497 | K148: 0.03670860718 | L148: -3.569670655 | M148: -2.368488999 | N148: =adcos((-dsin(検索入力!$A$7)*dsin(H148)-dsin($J$5))/(DCOS(検索入力!$A$7)*DCOS(H148))) -> 103.886003 | O148: 04:53:26.774 | P148: =ATAN((-dsin(検索入力!$A$7)*DCOS(N148*0.75+N147*0.25)*DCOS(H148*0.75+H147*0.25)+DCOS(検索入力!$A$7)*dsin(H148*0.75+H147*0.25))/(dsin(N148*0.75+N147*0.25)*DCOS(H148*0.75+H147*0.25)))/PI()*180 -> 22.05902091 | Q148: 11:48:45.812 | R148: 18:44:30.544 | S148: =ATAN((-dsin(検索入力!$A$7)*DCOS(N148*0.75+N149*0.25)*DCOS(H148*0.75+H149*0.25)+DCOS(検索入力!$A$7)*dsin(H148*0.75+H149*0.25))/(dsin(N148*0.75+N149*0.25)*DCOS(H148*0.75+H149*0.25)))/PI()*180 -> 22.22600637 | T148: 13:51:03.770
A149: 2012-05-10T12:00:00 | B149: 49.85760379 | C149: 126.850924 | D149: 0.9661148388 | E149: -0.0194863744 | F149: -0.07794549759 | G149: 6.177970892 | H149: 17.70325999 | I149: =IF(270<=B149,ATAN(dtan(B149)*DCOS($J$2))/PI()*180+360,IF(B149>90,ATAN(dtan(B149)*DCOS($J$2))/PI()*180+180,ATAN(dtan(B149)*DCOS($J$2))/PI()*180)) -> 47.41082469 | J149: -9.787116363 | K149: 0.0480157706 | L149: -3.609145471 | M149: =(F149+K149)*60 -> -1.79578362 | N149: =adcos((-dsin(検索入力!$A$7)*dsin(H149)-dsin($J$5))/(DCOS(検索入力!$A$7)*DCOS(H149))) -> 104.0974025 | O149: 04:52:33.343 | P149: =ATAN((-dsin(検索入力!$A$7)*DCOS(N149*0.75+N148*0.25)*DCOS(H149*0.75+H148*0.25)+DCOS(検索入力!$A$7)*dsin(H149*0.75+H148*0.25))/(dsin(N149*0.75+N148*0.25)*DCOS(H149*0.75+H148*0.25)))/PI()*180 -> 22.39153715 | Q149: 11:48:43.443 | R149: 18:45:18.865 | S149: =ATAN((-dsin(検索入力!$A$7)*DCOS(N149*0.75+N150*0.25)*DCOS(H149*0.75+H150*0.25)+DCOS(検索入力!$A$7)*dsin(H149*0.75+H150*0.25))/(dsin(N149*0.75+N150*0.25)*DCOS(H149*0.75+H150*0.25)))/PI()*180 -> 22.55558392 | T149: 13:52:45.522
A150: 2012-05-11T12:00:00 | B150: 50.82376477 | C150: 127.8170388 | D150: 0.9656802674 | E150: =D150*$L$3/$H$4-$L$4 -> -0.01992096663 | F150: -0.0796838665 | G150: 6.100025394 | H150: 17.96092204 | I150: =IF(270<=B150,ATAN(dtan(B150)*DCOS($J$2))/PI()*180+360,IF(B150>90,ATAN(dtan(B150)*DCOS($J$2))/PI()*180+180,ATAN(dtan(B150)*DCOS($J$2))/PI()*180)) -> 48.38898962 | J150: -9.739100593 | K150: 0.05930132456 | L150: -3.639075198 | M150: -1.222952517 | N150: =adcos((-dsin(検索入力!$A$7)*dsin(H150)-dsin($J$5))/(DCOS(検索入力!$A$7)*DCOS(H150))) -> 104.3056378 | O150: 04:51:41.237 | P150: =ATAN((-dsin(検索入力!$A$7)*DCOS(N150*0.75+N149*0.25)*DCOS(H150*0.75+H149*0.25)+DCOS(検索入力!$A$7)*dsin(H150*0.75+H149*0.25))/(dsin(N150*0.75+N149*0.25)*DCOS(H150*0.75+H149*0.25)))/PI()*180 -> 22.71814753 | Q150: 11:48:41.647 | R150: 18:46:06.993 | S150: =ATAN((-dsin(検索入力!$A$7)*DCOS(N150*0.75+N151*0.25)*DCOS(H150*0.75+H151*0.25)+DCOS(検索入力!$A$7)*dsin(H150*0.75+H151*0.25))/(dsin(N150*0.75+N151*0.25)*DCOS(H150*0.75+H151*0.25)))/PI()*180 -> 22.87919873 | T150: 13:54:25.756
A151: 2012-05-12T12:00:00 | B151: 51.78949116 | C151: 128.7827191 | D151: 0.965251731 | E151: -0.02034952347 | F151: -0.08139809388 | G151: =G150+F150*(A151-A150) -> 6.020341528 | H151: 18.21355878 | I151: =IF(270<=B151,ATAN(dtan(B151)*DCOS($J$2))/PI()*180+360,IF(B151>90,ATAN(dtan(B151)*DCOS($J$2))/PI()*180+180,ATAN(dtan(B151)*DCOS($J$2))/PI()*180)) -> 49.36954134 | J151: -9.679799268 | K151: 0.07055194536 | L151: -3.65945774 | M151: -0.6507689108 | N151: =adcos((-dsin(検索入力!$A$7)*dsin(H151)-dsin($J$5))/(DCOS(検索入力!$A$7)*DCOS(H151))) -> 104.5106122 | O151: 04:50:50.482 | P151: =ATAN((-dsin(検索入力!$A$7)*DCOS(N151*0.75+N150*0.25)*DCOS(H151*0.75+H150*0.25)+DCOS(検索入力!$A$7)*dsin(H151*0.75+H150*0.25))/(dsin(N151*0.75+N150*0.25)*DCOS(H151*0.75+H150*0.25)))/PI()*180 -> 23.03873839 | Q151: 11:48:40.425 | R151: 18:46:54.906 | S151: =ATAN((-dsin(検索入力!$A$7)*DCOS(N151*0.75+N152*0.25)*DCOS(H151*0.75+H152*0.25)+DCOS(検索入力!$A$7)*dsin(H151*0.75+H152*0.25))/(dsin(N151*0.75+N152*0.25)*DCOS(H151*0.75+H152*0.25)))/PI()*180 -> 23.1967374 | T151: 13:56:04.424
A152: 2012-05-13T12:00:00 | B152: 52.754789 | C152: 129.7479708 | D152: 0.964829337 | E152: -0.02077193767 | F152: -0.08308775068 | G152: 5.938943434 | H152: 18.46109019 | I152: =IF(270<=B152,ATAN(dtan(B152)*DCOS($J$2))/PI()*180+360,IF(B152>90,ATAN(dtan(B152)*DCOS($J$2))/PI()*180+180,ATAN(dtan(B152)*DCOS($J$2))/PI()*180)) -> 50.35247717 | J152: -9.609247323 | K152: 0.08175416872 | L152: -3.670303889 | M152: -0.08001491778 | N152: =adcos((-dsin(検索入力!$A$7)*dsin(H152)-dsin($J$5))/(DCOS(検索入力!$A$7)*DCOS(H152))) -> 104.712228 | O152: 04:50:01.099 | P152: =ATAN((-dsin(検索入力!$A$7)*DCOS(N152*0.75+N151*0.25)*DCOS(H152*0.75+H151*0.25)+DCOS(検索入力!$A$7)*dsin(H152*0.75+H151*0.25))/(dsin(N152*0.75+N151*0.25)*DCOS(H152*0.75+H151*0.25)))/PI()*180 -> 23.35319665 | Q152: 11:48:39.774 | R152: 18:47:42.578 | S152: =ATAN((-dsin(検索入力!$A$7)*DCOS(N152*0.75+N153*0.25)*DCOS(H152*0.75+H153*0.25)+DCOS(検索入力!$A$7)*dsin(H152*0.75+H153*0.25))/(dsin(N152*0.75+N153*0.25)*DCOS(H152*0.75+H153*0.25)))/PI()*180 -> 23.50808716 | T152: 13:57:41.479
A153: 2012-05-14T12:00:00 | B153: 53.71966442 | C153: 130.7128002 | D153: 0.9644131906 | E153: -0.02118810388 | F153: -0.08475241554 | G153: 5.855855683 | H153: 18.70343722 | I153: =IF(270<=B153,ATAN(dtan(B153)*DCOS($J$2))/PI()*180+360,IF(B153>90,ATAN(dtan(B153)*DCOS($J$2))/PI()*180+180,ATAN(dtan(B153)*DCOS($J$2))/PI()*180)) -> 51.33779113 | J153: -9.527493154 | K153: 0.09289440633 | L153: -3.671637471 | M153: 0.4885194476 | N153: =adcos((-dsin(検索入力!$A$7)*dsin(H153)-dsin($J$5))/(DCOS(検索入力!$A$7)*DCOS(H153))) -> 104.9103868 | O153: 04:49:13.110 | P153: =ATAN((-dsin(検索入力!$A$7)*DCOS(N153*0.75+N152*0.25)*DCOS(H153*0.75+H152*0.25)+DCOS(検索入力!$A$7)*dsin(H153*0.75+H152*0.25))/(dsin(N153*0.75+N152*0.25)*DCOS(H153*0.75+H152*0.25)))/PI()*180 -> 23.66140985 | Q153: 11:48:39.694 | R153: 18:48:29.985 | S153: =ATAN((-dsin(検索入力!$A$7)*DCOS(N153*0.75+N154*0.25)*DCOS(H153*0.75+H154*0.25)+DCOS(検索入力!$A$7)*dsin(H153*0.75+H154*0.25))/(dsin(N153*0.75+N154*0.25)*DCOS(H153*0.75+H154*0.25)))/PI()*180 -> 23.8131359 | T153: 13:59:16.874
A154: 2012-05-15T12:00:00 | B154: 54.68412367 | C154: 131.6772134 | D154: 0.9640033954 | E154: -0.0215979187 | F154: -0.08639167479 | G154: 5.771103268 | H154: 18.9405219 | I154: =IF(270<=B154,ATAN(dtan(B154)*DCOS($J$2))/PI()*180+360,IF(B154>90,ATAN(dtan(B154)*DCOS($J$2))/PI()*180+180,ATAN(dtan(B154)*DCOS($J$2))/PI()*180)) -> 52.32547398 | J154: -9.434598748 | K154: 0.1039589637 | L154: -3.66349548 | M154: 1.054037332 | N154: =adcos((-dsin(検索入力!$A$7)*dsin(H154)-dsin($J$5))/(DCOS(検索入力!$A$7)*DCOS(H154))) -> 105.1049895 | O154: 04:48:26.539 | P154: =ATAN((-dsin(検索入力!$A$7)*DCOS(N154*0.75+N153*0.25)*DCOS(H154*0.75+H153*0.25)+DCOS(検索入力!$A$7)*dsin(H154*0.75+H153*0.25))/(dsin(N154*0.75+N153*0.25)*DCOS(H154*0.75+H153*0.25)))/PI()*180 -> 23.96326627 | Q154: 11:48:40.182 | R154: 18:49:17.100 | S154: =ATAN((-dsin(検索入力!$A$7)*DCOS(N154*0.75+N155*0.25)*DCOS(H154*0.75+H155*0.25)+DCOS(検索入力!$A$7)*dsin(H154*0.75+H155*0.25))/(dsin(N154*0.75+N155*0.25)*DCOS(H154*0.75+H155*0.25)))/PI()*180 -> 24.1117723 | T154: 14:00:50.561
A155: 2012-05-16T12:00:00 | B155: 55.64817311 | C155: 132.6412168 | D155: 0.9636000527 | E155: -0.02200128063 | F155: -0.08800512252 | G155: 5.684711593 | H155: 19.17226735 | I155: =IF(270<=B155,ATAN(dtan(B155)*DCOS($J$2))/PI()*180+360,IF(B155>90,ATAN(dtan(B155)*DCOS($J$2))/PI()*180+180,ATAN(dtan(B155)*DCOS($J$2))/PI()*180)) -> 53.31551316 | J155: -9.330639784 | K155: 0.1149340588 | L155: -3.645928191 | M155: 1.615736174 | N155: =adcos((-dsin(検索入力!$A$7)*dsin(H155)-dsin($J$5))/(DCOS(検索入力!$A$7)*DCOS(H155))) -> 105.2959362 | O155: 04:47:41.405 | P155: =ATAN((-dsin(検索入力!$A$7)*DCOS(N155*0.75+N154*0.25)*DCOS(H155*0.75+H154*0.25)+DCOS(検索入力!$A$7)*dsin(H155*0.75+H154*0.25))/(dsin(N155*0.75+N154*0.25)*DCOS(H155*0.75+H154*0.25)))/PI()*180 -> 24.258655 | Q155: 11:48:41.236 | R155: 18:50:03.896 | S155: =ATAN((-dsin(検索入力!$A$7)*DCOS(N155*0.75+N156*0.25)*DCOS(H155*0.75+H156*0.25)+DCOS(検索入力!$A$7)*dsin(H155*0.75+H156*0.25))/(dsin(N155*0.75+N156*0.25)*DCOS(H155*0.75+H156*0.25)))/PI()*180 -> 24.40388592 | T155: 14:02:22.491
A156: 2012-05-17T12:00:00 | B156: 56.61181919 | C156: 133.6048168 | D156: 0.9632032622 | E156: -0.02239809015 | F156: -0.08959236058 | G156: 5.59670647 | H156: 19.39859786 | I156: =IF(270<=B156,ATAN(dtan(B156)*DCOS($J$2))/PI()*180+360,IF(B156>90,ATAN(dtan(B156)*DCOS($J$2))/PI()*180+180,ATAN(dtan(B156)*DCOS($J$2))/PI()*180)) -> 54.30789276 | J156: -9.215705725 | K156: 0.1258058422 | L156: -3.618999255 | M156: 2.1728089 | N156: =adcos((-dsin(検索入力!$A$7)*dsin(H156)-dsin($J$5))/(DCOS(検索入力!$A$7)*DCOS(H156))) -> 105.483127 | O156: 04:46:57.729 | P156: =ATAN((-dsin(検索入力!$A$7)*DCOS(N156*0.75+N155*0.25)*DCOS(H156*0.75+H155*0.25)+DCOS(検索入力!$A$7)*dsin(H156*0.75+H155*0.25))/(dsin(N156*0.75+N155*0.25)*DCOS(H156*0.75+H155*0.25)))/PI()*180 -> 24.54746608 | Q156: 11:48:42.852 | R156: 18:50:50.346 | S156: =ATAN((-dsin(検索入力!$A$7)*DCOS(N156*0.75+N157*0.25)*DCOS(H156*0.75+H157*0.25)+DCOS(検索入力!$A$7)*dsin(H156*0.75+H157*0.25))/(dsin(N156*0.75+N157*0.25)*DCOS(H156*0.75+H157*0.25)))/PI()*180 -> 24.68936728 | T156: 14:03:52.617
A157: 2012-05-18T12:00:00 | B157: 57.57506846 | C157: 134.5680201 | D157: 0.9628131213 | E157: -0.02278824965 | F157: -0.09115299862 | G157: 5.50711411 | H157: 19.61943895 | I157: =IF(270<=B157,ATAN(dtan(B157)*DCOS($J$2))/PI()*180+360,IF(B157>90,ATAN(dtan(B157)*DCOS($J$2))/PI()*180+180,ATAN(dtan(B157)*DCOS($J$2))/PI()*180)) -> 55.30259349 | J157: -9.089899883 | K157: 0.1365604183 | L157: -3.582785773 | M157: 2.724445182 | N157: =adcos((-dsin(検索入力!$A$7)*dsin(H157)-dsin($J$5))/(DCOS(検索入力!$A$7)*DCOS(H157))) -> 105.6664612 | O157: 04:46:15.531 | P157: =ATAN((-dsin(検索入力!$A$7)*DCOS(N157*0.75+N156*0.25)*DCOS(H157*0.75+H156*0.25)+DCOS(検索入力!$A$7)*dsin(H157*0.75+H156*0.25))/(dsin(N157*0.75+N156*0.25)*DCOS(H157*0.75+H156*0.25)))/PI()*180 -> 24.82959058 | Q157: 11:48:45.025 | R157: 18:51:36.419 | S157: =ATAN((-dsin(検索入力!$A$7)*DCOS(N157*0.75+N158*0.25)*DCOS(H157*0.75+H158*0.25)+DCOS(検索入力!$A$7)*dsin(H157*0.75+H158*0.25))/(dsin(N157*0.75+N158*0.25)*DCOS(H157*0.75+H158*0.25)))/PI()*180 -> 24.96810803 | T157: 14:05:20.888
A158: 2012-05-19T12:00:00 | B158: 58.53792757 | C158: 135.5308332 | D158: 0.9624297257 | E158: -0.02317166353 | F158: -0.09268665413 | G158: 5.415961111 | H158: 19.83471739 | I158: =IF(270<=B158,ATAN(dtan(B158)*DCOS($J$2))/PI()*180+360,IF(B158>90,ATAN(dtan(B158)*DCOS($J$2))/PI()*180+180,ATAN(dtan(B158)*DCOS($J$2))/PI()*180)) -> 56.2995927 | J158: -8.953339465 | K158: 0.147183867 | L158: -3.537378354 | M158: 3.269832771 | N158: =adcos((-dsin(検索入力!$A$7)*dsin(H158)-dsin($J$5))/(DCOS(検索入力!$A$7)*DCOS(H158))) -> 105.8458383 | O158: 04:45:34.830 | P158: =ATAN((-dsin(検索入力!$A$7)*DCOS(N158*0.75+N157*0.25)*DCOS(H158*0.75+H157*0.25)+DCOS(検索入力!$A$7)*dsin(H158*0.75+H157*0.25))/(dsin(N158*0.75+N157*0.25)*DCOS(H158*0.75+H157*0.25)))/PI()*180 -> 25.1049207 | Q158: 11:48:47.749 | R158: 18:52:22.087 | S158: =ATAN((-dsin(検索入力!$A$7)*DCOS(N158*0.75+N159*0.25)*DCOS(H158*0.75+H159*0.25)+DCOS(検索入力!$A$7)*dsin(H158*0.75+H159*0.25))/(dsin(N158*0.75+N159*0.25)*DCOS(H158*0.75+H159*0.25)))/PI()*180 -> 25.24000096 | T158: 14:06:47.257
A159: 2012-05-20T12:00:00 | B159: 59.50040326 | C159: 136.4932629 | D159: 0.9620531691 | E159: -0.02354823811 | F159: -0.09419295245 | G159: 5.323274457 | H159: 20.04436131 | I159: =IF(270<=B159,ATAN(dtan(B159)*DCOS($J$2))/PI()*180+360,IF(B159>90,ATAN(dtan(B159)*DCOS($J$2))/PI()*180+180,ATAN(dtan(B159)*DCOS($J$2))/PI()*180)) -> 57.29886436 | J159: -8.806155598 | K159: 0.157662267 | L159: -3.482881141 | M159: 3.808158876 | N159: =adcos((-dsin(検索入力!$A$7)*dsin(H159)-dsin($J$5))/(DCOS(検索入力!$A$7)*DCOS(H159))) -> 106.0211576 | O159: 04:44:55.643 | P159: =ATAN((-dsin(検索入力!$A$7)*DCOS(N159*0.75+N158*0.25)*DCOS(H159*0.75+H158*0.25)+DCOS(検索入力!$A$7)*dsin(H159*0.75+H158*0.25))/(dsin(N159*0.75+N158*0.25)*DCOS(H159*0.75+H158*0.25)))/PI()*180 -> 25.3733499 | Q159: 11:48:51.019 | R159: 18:53:07.319 | S159: =ATAN((-dsin(検索入力!$A$7)*DCOS(N159*0.75+N160*0.25)*DCOS(H159*0.75+H160*0.25)+DCOS(検索入力!$A$7)*dsin(H159*0.75+H160*0.25))/(dsin(N159*0.75+N160*0.25)*DCOS(H159*0.75+H160*0.25)))/PI()*180 -> 25.50494021 | T159: 14:08:11.676
A160: 2012-05-21T12:00:00 | B160: 60.46250238 | C160: 137.4553161 | D160: 0.9616835432 | E160: -0.0239178817 | F160: -0.09567152682 | G160: 5.229081505 | H160: 20.24830022 | I160: =IF(270<=B160,ATAN(dtan(B160)*DCOS($J$2))/PI()*180+360,IF(B160>90,ATAN(dtan(B160)*DCOS($J$2))/PI()*180+180,ATAN(dtan(B160)*DCOS($J$2))/PI()*180)) -> 58.30037905 | J160: -8.648493331 | K160: 0.1679817204 | L160: -3.419411826 | M160: 4.338611612 | N160: =adcos((-dsin(検索入力!$A$7)*dsin(H160)-dsin($J$5))/(DCOS(検索入力!$A$7)*DCOS(H160))) -> 106.1923187 | O160: 04:44:17.988 | P160: =ATAN((-dsin(検索入力!$A$7)*DCOS(N160*0.75+N159*0.25)*DCOS(H160*0.75+H159*0.25)+DCOS(検索入力!$A$7)*dsin(H160*0.75+H159*0.25))/(dsin(N160*0.75+N159*0.25)*DCOS(H160*0.75+H159*0.25)))/PI()*180 -> 25.63477301 | Q160: 11:48:54.827 | R160: 18:53:52.083 | S160: =ATAN((-dsin(検索入力!$A$7)*DCOS(N160*0.75+N161*0.25)*DCOS(H160*0.75+H161*0.25)+DCOS(検索入力!$A$7)*dsin(H160*0.75+H161*0.25))/(dsin(N160*0.75+N161*0.25)*DCOS(H160*0.75+H161*0.25)))/PI()*180 -> 25.76282134 | T160: 14:09:34.094
A161: 2012-05-22T12:00:00 | B161: 61.42423186 | C161: 138.4169996 | D161: 0.9613209376 | E161: -0.02428050459 | F161: -0.09712201837 | G161: 5.133409978 | H161: 20.44646507 | I161: =IF(270<=B161,ATAN(dtan(B161)*DCOS($J$2))/PI()*180+360,IF(B161>90,ATAN(dtan(B161)*DCOS($J$2))/PI()*180+180,ATAN(dtan(B161)*DCOS($J$2))/PI()*180)) -> 59.30410395 | J161: -8.48051161 | K161: 0.1781283767 | L161: -3.347101633 | M161: 4.860381501 | N161: =adcos((-dsin(検索入力!$A$7)*dsin(H161)-dsin($J$5))/(DCOS(検索入力!$A$7)*DCOS(H161))) -> 106.3592215 | O161: 04:43:41.882 | P161: =ATAN((-dsin(検索入力!$A$7)*DCOS(N161*0.75+N160*0.25)*DCOS(H161*0.75+H160*0.25)+DCOS(検索入力!$A$7)*dsin(H161*0.75+H160*0.25))/(dsin(N161*0.75+N160*0.25)*DCOS(H161*0.75+H160*0.25)))/PI()*180 -> 25.88908634 | Q161: 11:48:59.166 | R161: 18:54:36.347 | S161: =ATAN((-dsin(検索入力!$A$7)*DCOS(N161*0.75+N162*0.25)*DCOS(H161*0.75+H162*0.25)+DCOS(検索入力!$A$7)*dsin(H161*0.75+H162*0.25))/(dsin(N161*0.75+N162*0.25)*DCOS(H161*0.75+H162*0.25)))/PI()*180 -> 26.01354145 | T161: 14:10:54.465
A162: 2012-05-23T12:00:00 | B162: 62.38559871 | C162: 139.3783206 | D162: 0.9609654402 | E162: -0.02463601904 | F162: -0.09854407615 | G162: 5.036287959 | H162: 20.63878836 | I162: =IF(270<=B162,ATAN(dtan(B162)*DCOS($J$2))/PI()*180+360,IF(B162>90,ATAN(dtan(B162)*DCOS($J$2))/PI()*180+180,ATAN(dtan(B162)*DCOS($J$2))/PI()*180)) -> 60.3100029 | J162: -8.302383234 | K162: 0.1880884599 | L162: -3.266095274 | M162: 5.372663023 | N162: =adcos((-dsin(検索入力!$A$7)*dsin(H162)-dsin($J$5))/(DCOS(検索入力!$A$7)*DCOS(H162))) -> 106.5217665 | O162: 04:43:07.340 | P162: =ATAN((-dsin(検索入力!$A$7)*DCOS(N162*0.75+N161*0.25)*DCOS(H162*0.75+H161*0.25)+DCOS(検索入力!$A$7)*dsin(H162*0.75+H161*0.25))/(dsin(N162*0.75+N161*0.25)*DCOS(H162*0.75+H161*0.25)))/PI()*180 -> 26.13618782 | Q162: 11:49:04.026 | R162: 18:55:20.079 | S162: =ATAN((-dsin(検索入力!$A$7)*DCOS(N162*0.75+N163*0.25)*DCOS(H162*0.75+H163*0.25)+DCOS(検索入力!$A$7)*dsin(H162*0.75+H163*0.25))/(dsin(N162*0.75+N163*0.25)*DCOS(H162*0.75+H163*0.25)))/PI()*180 -> 26.25699932 | T162: 14:12:12.739
A163: 2012-05-24T12:00:00 | B163: 63.34661005 | C163: 140.339286 | D163: 0.9606171365 | E163: -0.0249843393 | F163: -0.09993735718 | G163: 4.937743883 | H163: 20.82520414 | I163: =IF(270<=B163,ATAN(dtan(B163)*DCOS($J$2))/PI()*180+360,IF(B163>90,ATAN(dtan(B163)*DCOS($J$2))/PI()*180+180,ATAN(dtan(B163)*DCOS($J$2))/PI()*180)) -> 61.31803636 | J163: -8.114294774 | K163: 0.1978482941 | L163: -3.17655089 | M163: 5.874656216 | N163: =adcos((-dsin(検索入力!$A$7)*dsin(H163)-dsin($J$5))/(DCOS(検索入力!$A$7)*DCOS(H163))) -> 106.6798547 | O163: 04:42:34.376 | P163: =ATAN((-dsin(検索入力!$A$7)*DCOS(N163*0.75+N162*0.25)*DCOS(H163*0.75+H162*0.25)+DCOS(検索入力!$A$7)*dsin(H163*0.75+H162*0.25))/(dsin(N163*0.75+N162*0.25)*DCOS(H163*0.75+H162*0.25)))/PI()*180 -> 26.37597711 | Q163: 11:49:09.399 | R163: 18:56:03.245 | S163: =ATAN((-dsin(検索入力!$A$7)*DCOS(N163*0.75+N164*0.25)*DCOS(H163*0.75+H164*0.25)+DCOS(検索入力!$A$7)*dsin(H163*0.75+H164*0.25))/(dsin(N163*0.75+N164*0.25)*DCOS(H163*0.75+H164*0.25)))/PI()*180 -> 26.49309553 | T163: 14:13:28.869
A164: 2012-05-25T12:00:00 | B164: 64.30727307 | C164: 141.2999032 | D164: 0.9602761105 | E164: -0.02532538161 | F164: -0.1013015264 | G164: 4.837806526 | H164: 21.00564809 | I164: =IF(270<=B164,ATAN(dtan(B164)*DCOS($J$2))/PI()*180+360,IF(B164>90,ATAN(dtan(B164)*DCOS($J$2))/PI()*180+180,ATAN(dtan(B164)*DCOS($J$2))/PI()*180)) -> 62.32816145 | J164: -7.91644648 | K164: 0.2073943317 | L164: -3.078639954 | M164: 6.365568316 | N164: =adcos((-dsin(検索入力!$A$7)*dsin(H164)-dsin($J$5))/(DCOS(検索入力!$A$7)*DCOS(H164))) -> 106.8333882 | O164: 04:42:03.004 | P164: =ATAN((-dsin(検索入力!$A$7)*DCOS(N164*0.75+N163*0.25)*DCOS(H164*0.75+H163*0.25)+DCOS(検索入力!$A$7)*dsin(H164*0.75+H163*0.25))/(dsin(N164*0.75+N163*0.25)*DCOS(H164*0.75+H163*0.25)))/PI()*180 -> 26.60835574 | Q164: 11:49:15.274 | R164: 18:56:45.811 | S164: =ATAN((-dsin(検索入力!$A$7)*DCOS(N164*0.75+N165*0.25)*DCOS(H164*0.75+H165*0.25)+DCOS(検索入力!$A$7)*dsin(H164*0.75+H165*0.25))/(dsin(N164*0.75+N165*0.25)*DCOS(H164*0.75+H165*0.25)))/PI()*180 -> 26.72173258 | T164: 14:14:42.807
A165: 2012-05-26T12:00:00 | B165: 65.26759505 | C165: 142.2601793 | D165: 0.9599424438 | E165: -0.02565906421 | F165: -0.1026362568 | G165: 4.736505 | H165: 21.1800576 | I165: =IF(270<=B165,ATAN(dtan(B165)*DCOS($J$2))/PI()*180+360,IF(B165>90,ATAN(dtan(B165)*DCOS($J$2))/PI()*180+180,ATAN(dtan(B165)*DCOS($J$2))/PI()*180)) -> 63.34033201 | J165: -7.709052148 | K165: 0.2167131808 | L165: -2.972547148 | M165: 6.84461544 | N165: =adcos((-dsin(検索入力!$A$7)*dsin(H165)-dsin($J$5))/(DCOS(検索入力!$A$7)*DCOS(H165))) -> 106.98227 | O165: 04:41:33.236 | P165: =ATAN((-dsin(検索入力!$A$7)*DCOS(N165*0.75+N164*0.25)*DCOS(H165*0.75+H164*0.25)+DCOS(検索入力!$A$7)*dsin(H165*0.75+H164*0.25))/(dsin(N165*0.75+N164*0.25)*DCOS(H165*0.75+H164*0.25)))/PI()*180 -> 26.83322722 | Q165: 11:49:21.639 | R165: 18:57:27.743 | S165: =ATAN((-dsin(検索入力!$A$7)*DCOS(N165*0.75+N166*0.25)*DCOS(H165*0.75+H166*0.25)+DCOS(検索入力!$A$7)*dsin(H165*0.75+H166*0.25))/(dsin(N165*0.75+N166*0.25)*DCOS(H165*0.75+H166*0.25)))/PI()*180 -> 26.94281503 | T165: 14:15:54.507
A166: 2012-05-27T12:00:00 | B166: 66.22758334 | C166: 143.2201217 | D166: 0.9596162163 | E166: -0.02598530734 | F166: -0.1039412294 | G166: 4.633868743 | H166: 21.34837181 | I166: =IF(270<=B166,ATAN(dtan(B166)*DCOS($J$2))/PI()*180+360,IF(B166>90,ATAN(dtan(B166)*DCOS($J$2))/PI()*180+180,ATAN(dtan(B166)*DCOS($J$2))/PI()*180)) -> 64.3544986 | J166: -7.492338967 | K166: 0.2257916343 | L166: -2.858470224 | M166: 7.311024293 | N166: =adcos((-dsin(検索入力!$A$7)*dsin(H166)-dsin($J$5))/(DCOS(検索入力!$A$7)*DCOS(H166))) -> 107.1264046 | O166: 04:41:05.084 | P166: =ATAN((-dsin(検索入力!$A$7)*DCOS(N166*0.75+N165*0.25)*DCOS(H166*0.75+H165*0.25)+DCOS(検索入力!$A$7)*dsin(H166*0.75+H165*0.25))/(dsin(N166*0.75+N165*0.25)*DCOS(H166*0.75+H165*0.25)))/PI()*180 -> 27.05049717 | Q166: 11:49:28.484 | R166: 18:58:09.006 | S166: =ATAN((-dsin(検索入力!$A$7)*DCOS(N166*0.75+N167*0.25)*DCOS(H166*0.75+H167*0.25)+DCOS(検索入力!$A$7)*dsin(H166*0.75+H167*0.25))/(dsin(N166*0.75+N167*0.25)*DCOS(H166*0.75+H167*0.25)))/PI()*180 -> 27.15624961 | T166: 14:17:03.923
A167: 2012-05-28T12:00:00 | B167: 67.18724539 | C167: 144.1797379 | D167: 0.9592975056 | E167: -0.02630403324 | F167: -0.105216133 | G167: 4.529927513 | H167: 21.51053168 | I167: =IF(270<=B167,ATAN(dtan(B167)*DCOS($J$2))/PI()*180+360,IF(B167>90,ATAN(dtan(B167)*DCOS($J$2))/PI()*180+180,ATAN(dtan(B167)*DCOS($J$2))/PI()*180)) -> 65.37060856 | J167: -7.266547333 | K167: 0.2346166981 | L167: -2.736619819 | M167: 7.764033906 | N167: =adcos((-dsin(検索入力!$A$7)*dsin(H167)-dsin($J$5))/(DCOS(検索入力!$A$7)*DCOS(H167))) -> 107.2656979 | O167: 04:40:38.557 | P167: =ATAN((-dsin(検索入力!$A$7)*DCOS(N167*0.75+N166*0.25)*DCOS(H167*0.75+H166*0.25)+DCOS(検索入力!$A$7)*dsin(H167*0.75+H166*0.25))/(dsin(N167*0.75+N166*0.25)*DCOS(H167*0.75+H166*0.25)))/PI()*180 -> 27.2600735 | Q167: 11:49:35.795 | R167: 18:58:49.565 | S167: =ATAN((-dsin(検索入力!$A$7)*DCOS(N167*0.75+N168*0.25)*DCOS(H167*0.75+H168*0.25)+DCOS(検索入力!$A$7)*dsin(H167*0.75+H168*0.25))/(dsin(N167*0.75+N168*0.25)*DCOS(H167*0.75+H168*0.25)))/PI()*180 -> 27.36194539 | T167: 14:18:11.008
A168: 2012-05-29T12:00:00 | B168: 68.14658872 | C168: 145.1390354 | D168: 0.9589863876 | E168: -0.02661516615 | F168: -0.1064606646 | G168: 4.42471138 | H168: 21.66648005 | I168: =IF(270<=B168,ATAN(dtan(B168)*DCOS($J$2))/PI()*180+360,IF(B168>90,ATAN(dtan(B168)*DCOS($J$2))/PI()*180+180,ATAN(dtan(B168)*DCOS($J$2))/PI()*180)) -> 66.38860606 | J168: -7.031930635 | K168: 0.2431756212 | L168: -2.607219254 | M168: 8.202897396 | N168: =adcos((-dsin(検索入力!$A$7)*dsin(H168)-dsin($J$5))/(DCOS(検索入力!$A$7)*DCOS(H168))) -> 107.4000573 | O168: 04:40:13.666 | P168: =ATAN((-dsin(検索入力!$A$7)*DCOS(N168*0.75+N167*0.25)*DCOS(H168*0.75+H167*0.25)+DCOS(検索入力!$A$7)*dsin(H168*0.75+H167*0.25))/(dsin(N168*0.75+N167*0.25)*DCOS(H168*0.75+H167*0.25)))/PI()*180 -> 27.46186646 | Q168: 11:49:43.559 | R168: 18:59:29.383 | S168: =ATAN((-dsin(検索入力!$A$7)*DCOS(N168*0.75+N169*0.25)*DCOS(H168*0.75+H169*0.25)+DCOS(検索入力!$A$7)*dsin(H168*0.75+H169*0.25))/(dsin(N168*0.75+N169*0.25)*DCOS(H168*0.75+H169*0.25)))/PI()*180 -> 27.5598139 | T168: 14:19:15.718
A169: 2012-05-30T12:00:00 | B169: 69.10562091 | C169: 146.0980218 | D169: 0.9586829359 | E169: -0.02691863232 | F169: -0.1076745293 | G169: 4.318250716 | H169: 21.81616169 | I169: =IF(270<=B169,ATAN(dtan(B169)*DCOS($J$2))/PI()*180+360,IF(B169>90,ATAN(dtan(B169)*DCOS($J$2))/PI()*180+180,ATAN(dtan(B169)*DCOS($J$2))/PI()*180)) -> 67.40843215 | J169: -6.788755014 | K169: 0.2514559247 | L169: -2.470504298 | M169: 8.626883727 | N169: =adcos((-dsin(検索入力!$A$7)*dsin(H169)-dsin($J$5))/(DCOS(検索入力!$A$7)*DCOS(H169))) -> 107.5293923 | O169: 04:39:50.417 | P169: =ATAN((-dsin(検索入力!$A$7)*DCOS(N169*0.75+N168*0.25)*DCOS(H169*0.75+H168*0.25)+DCOS(検索入力!$A$7)*dsin(H169*0.75+H168*0.25))/(dsin(N169*0.75+N168*0.25)*DCOS(H169*0.75+H168*0.25)))/PI()*180 -> 27.65578885 | Q169: 11:49:51.762 | R169: 19:00:08.426 | S169: =ATAN((-dsin(検索入力!$A$7)*DCOS(N169*0.75+N170*0.25)*DCOS(H169*0.75+H170*0.25)+DCOS(検索入力!$A$7)*dsin(H169*0.75+H170*0.25))/(dsin(N169*0.75+N170*0.25)*DCOS(H169*0.75+H170*0.25)))/PI()*180 -> 27.74976921 | T169: 14:20:18.009
A170: 2012-05-31T12:00:00 | B170: 70.06434963 | C170: 147.0567048 | D170: 0.9583872223 | E170: -0.02721436002 | F170: -0.1088574401 | G170: 4.210576187 | H170: 21.95952338 | I170: =IF(270<=B170,ATAN(dtan(B170)*DCOS($J$2))/PI()*180+360,IF(B170>90,ATAN(dtan(B170)*DCOS($J$2))/PI()*180+180,ATAN(dtan(B170)*DCOS($J$2))/PI()*180)) -> 68.43002486 | J170: -6.537299089 | K170: 0.2594454315 | L170: -2.326722902 | M170: 9.035279487 | N170: =adcos((-dsin(検索入力!$A$7)*dsin(H170)-dsin($J$5))/(DCOS(検索入力!$A$7)*DCOS(H170))) -> 107.6536144 | O170: 04:39:28.818 | P170: =ATAN((-dsin(検索入力!$A$7)*DCOS(N170*0.75+N169*0.25)*DCOS(H170*0.75+H169*0.25)+DCOS(検索入力!$A$7)*dsin(H170*0.75+H169*0.25))/(dsin(N170*0.75+N169*0.25)*DCOS(H170*0.75+H169*0.25)))/PI()*180 -> 27.84175611 | Q170: 11:50:00.389 | R170: 19:00:46.656 | S170: =ATAN((-dsin(検索入力!$A$7)*DCOS(N170*0.75+N171*0.25)*DCOS(H170*0.75+H171*0.25)+DCOS(検索入力!$A$7)*dsin(H170*0.75+H171*0.25))/(dsin(N170*0.75+N171*0.25)*DCOS(H170*0.75+H171*0.25)))/PI()*180 -> 27.93172816 | T170: 14:21:17.839
A171: 2012-06-01T12:00:00 | B171: 71.02278263 | C171: 148.015092 | D171: 0.9580993166 | E171: -0.02750227952 | F171: -0.1100091181 | G171: 4.101718746 | H171: 22.09651394 | I171: =IF(270<=B171,ATAN(dtan(B171)*DCOS($J$2))/PI()*180+360,IF(B171>90,ATAN(dtan(B171)*DCOS($J$2))/PI()*180+180,ATAN(dtan(B171)*DCOS($J$2))/PI()*180)) -> 69.45331922 | J171: -6.277853657 | K171: 0.2671322957 | L171: -2.176134911 | M171: 9.42739066 | N171: =adcos((-dsin(検索入力!$A$7)*dsin(H171)-dsin($J$5))/(DCOS(検索入力!$A$7)*DCOS(H171))) -> 107.7726375 | O171: 04:39:08.873 | P171: =ATAN((-dsin(検索入力!$A$7)*DCOS(N171*0.75+N170*0.25)*DCOS(H171*0.75+H170*0.25)+DCOS(検索入力!$A$7)*dsin(H171*0.75+H170*0.25))/(dsin(N171*0.75+N170*0.25)*DCOS(H171*0.75+H170*0.25)))/PI()*180 -> 28.01968647 | Q171: 11:50:09.424 | R171: 19:01:24.038 | S171: =ATAN((-dsin(検索入力!$A$7)*DCOS(N171*0.75+N172*0.25)*DCOS(H171*0.75+H172*0.25)+DCOS(検索入力!$A$7)*dsin(H171*0.75+H172*0.25))/(dsin(N171*0.75+N172*0.25)*DCOS(H171*0.75+H172*0.25)))/PI()*180 -> 28.10561041 | T171: 14:22:15.165
A172: 2012-06-02T12:00:00 | B172: 71.98092771 | C172: 148.9731913 | D172: 0.9578192864 | E172: -0.0277823231 | F172: -0.1111292924 | G172: 3.991709628 | H172: 22.2270843 | I172: =IF(270<=B172,ATAN(dtan(B172)*DCOS($J$2))/PI()*180+360,IF(B172>90,ATAN(dtan(B172)*DCOS($J$2))/PI()*180+180,ATAN(dtan(B172)*DCOS($J$2))/PI()*180)) -> 70.47824737 | J172: -6.010721362 | K172: 0.2745050322 | L172: -2.019011733 | M172: 9.802544385 | N172: =adcos((-dsin(検索入力!$A$7)*dsin(H172)-dsin($J$5))/(DCOS(検索入力!$A$7)*DCOS(H172))) -> 107.8863779 | O172: 04:38:50.588 | P172: =ATAN((-dsin(検索入力!$A$7)*DCOS(N172*0.75+N171*0.25)*DCOS(H172*0.75+H171*0.25)+DCOS(検索入力!$A$7)*dsin(H172*0.75+H171*0.25))/(dsin(N172*0.75+N171*0.25)*DCOS(H172*0.75+H171*0.25)))/PI()*180 -> 28.18950106 | Q172: 11:50:18.851 | R172: 19:02:00.535 | S172: =ATAN((-dsin(検索入力!$A$7)*DCOS(N172*0.75+N173*0.25)*DCOS(H172*0.75+H173*0.25)+DCOS(検索入力!$A$7)*dsin(H172*0.75+H173*0.25))/(dsin(N172*0.75+N173*0.25)*DCOS(H172*0.75+H173*0.25)))/PI()*180 -> 28.2713386 | T172: 14:23:09.947
A173: 2012-06-03T12:00:00 | B173: 72.93879275 | C173: 149.9310106 | D173: 0.9575471974 | E173: -0.02805442509 | F173: -0.1122177004 | G173: 3.880580336 | H173: 22.35118757 | I173: =IF(270<=B173,ATAN(dtan(B173)*DCOS($J$2))/PI()*180+360,IF(B173>90,ATAN(dtan(B173)*DCOS($J$2))/PI()*180+180,ATAN(dtan(B173)*DCOS($J$2))/PI()*180)) -> 71.50473866 | J173: -5.736216329 | K173: 0.2815525453 | L173: -1.855635993 | M173: 10.16009069 | N173: =adcos((-dsin(検索入力!$A$7)*dsin(H173)-dsin($J$5))/(DCOS(検索入力!$A$7)*DCOS(H173))) -> 107.9947547 | O173: 04:38:33.965 | P173: =ATAN((-dsin(検索入力!$A$7)*DCOS(N173*0.75+N172*0.25)*DCOS(H173*0.75+H172*0.25)+DCOS(検索入力!$A$7)*dsin(H173*0.75+H172*0.25))/(dsin(N173*0.75+N172*0.25)*DCOS(H173*0.75+H172*0.25)))/PI()*180 -> 28.35112407 | Q173: 11:50:28.654 | R173: 19:02:36.111 | S173: =ATAN((-dsin(検索入力!$A$7)*DCOS(N173*0.75+N174*0.25)*DCOS(H173*0.75+H174*0.25)+DCOS(検索入力!$A$7)*dsin(H173*0.75+H174*0.25))/(dsin(N173*0.75+N174*0.25)*DCOS(H173*0.75+H174*0.25)))/PI()*180 -> 28.42883849 | T173: 14:24:02.146
A174: 2012-06-04T12:00:00 | B174: 73.89638568 | C174: 150.8885578 | D174: 0.9572831133 | E174: -0.0283185218 | F174: -0.1132740872 | G174: 3.768362636 | H174: 22.46877907 | I174: =IF(270<=B174,ATAN(dtan(B174)*DCOS($J$2))/PI()*180+360,IF(B174>90,ATAN(dtan(B174)*DCOS($J$2))/PI()*180+180,ATAN(dtan(B174)*DCOS($J$2))/PI()*180)) -> 72.53271973 | J174: -5.454663784 | K174: 0.2882641577 | L174: -1.686301148 | M174: 10.49940423 | N174: =adcos((-dsin(検索入力!$A$7)*dsin(H174)-dsin($J$5))/(DCOS(検索入力!$A$7)*DCOS(H174))) -> 108.0976897 | O174: 04:38:19.004 | P174: =ATAN((-dsin(検索入力!$A$7)*DCOS(N174*0.75+N173*0.25)*DCOS(H174*0.75+H173*0.25)+DCOS(検索入力!$A$7)*dsin(H174*0.75+H173*0.25))/(dsin(N174*0.75+N173*0.25)*DCOS(H174*0.75+H173*0.25)))/PI()*180 -> 28.50448286 | Q174: 11:50:38.814 | R174: 19:03:10.729 | S174: =ATAN((-dsin(検索入力!$A$7)*DCOS(N174*0.75+N175*0.25)*DCOS(H174*0.75+H175*0.25)+DCOS(検索入力!$A$7)*dsin(H174*0.75+H175*0.25))/(dsin(N174*0.75+N175*0.25)*DCOS(H174*0.75+H175*0.25)))/PI()*180 -> 28.57803906 | T174: 14:24:51.725
A175: 2012-06-05T12:00:00 | B175: 74.85371452 | C175: 151.8458409 | D175: 0.9570270957 | E175: -0.02857455157 | F175: -0.1142982063 | G175: 3.655088548 | H175: 22.57981639 | I175: =IF(270<=B175,ATAN(dtan(B175)*DCOS($J$2))/PI()*180+360,IF(B175>90,ATAN(dtan(B175)*DCOS($J$2))/PI()*180+180,ATAN(dtan(B175)*DCOS($J$2))/PI()*180)) -> 73.56211461 | J175: -5.166399626 | K175: 0.2946296386 | L175: -1.511311078 | M175: 10.81988594 | N175: =adcos((-dsin(検索入力!$A$7)*dsin(H175)-dsin($J$5))/(DCOS(検索入力!$A$7)*DCOS(H175))) -> 108.1951082 | O175: 04:38:05.708 | P175: =ATAN((-dsin(検索入力!$A$7)*DCOS(N175*0.75+N174*0.25)*DCOS(H175*0.75+H174*0.25)+DCOS(検索入力!$A$7)*dsin(H175*0.75+H174*0.25))/(dsin(N175*0.75+N174*0.25)*DCOS(H175*0.75+H174*0.25)))/PI()*180 -> 28.64950808 | Q175: 11:50:49.313 | R175: 19:03:44.354 | S175: =ATAN((-dsin(検索入力!$A$7)*DCOS(N175*0.75+N176*0.25)*DCOS(H175*0.75+H176*0.25)+DCOS(検索入力!$A$7)*dsin(H175*0.75+H176*0.25))/(dsin(N175*0.75+N176*0.25)*DCOS(H175*0.75+H176*0.25)))/PI()*180 -> 28.71887267 | T175: 14:25:38.646
A176: 2012-06-06T12:00:00 | B176: 75.81078732 | C176: 152.802868 | D176: 0.9567792044 | E176: -0.02882245478 | F176: -0.1152898191 | G176: 3.540790342 | H176: 22.68425944 | I176: =IF(270<=B176,ATAN(dtan(B176)*DCOS($J$2))/PI()*180+360,IF(B176>90,ATAN(dtan(B176)*DCOS($J$2))/PI()*180+180,ATAN(dtan(B176)*DCOS($J$2))/PI()*180)) -> 74.59284483 | J176: -4.871769988 | K176: 0.3006392304 | L176: -1.330979646 | M176: 11.12096468 | N176: =adcos((-dsin(検索入力!$A$7)*dsin(H176)-dsin($J$5))/(DCOS(検索入力!$A$7)*DCOS(H176))) -> 108.2869383 | O176: 04:37:54.073 | P176: =ATAN((-dsin(検索入力!$A$7)*DCOS(N176*0.75+N175*0.25)*DCOS(H176*0.75+H175*0.25)+DCOS(検索入力!$A$7)*dsin(H176*0.75+H175*0.25))/(dsin(N176*0.75+N175*0.25)*DCOS(H176*0.75+H175*0.25)))/PI()*180 -> 28.7861338 | Q176: 11:51:00.133 | R176: 19:04:16.949 | S176: =ATAN((-dsin(検索入力!$A$7)*DCOS(N176*0.75+N177*0.25)*DCOS(H176*0.75+H177*0.25)+DCOS(検索入力!$A$7)*dsin(H176*0.75+H177*0.25))/(dsin(N176*0.75+N177*0.25)*DCOS(H176*0.75+H177*0.25)))/PI()*180 -> 28.85127514 | T176: 14:26:22.876
A177: 2012-06-07T12:00:00 | B177: 76.76761223 | C177: 153.7596472 | D177: 0.9565394968 | E177: -0.02906217381 | F177: -0.1162486952 | G177: 3.425500523 | H177: 22.7820705 | I177: =IF(270<=B177,ATAN(dtan(B177)*DCOS($J$2))/PI()*180+360,IF(B177>90,ATAN(dtan(B177)*DCOS($J$2))/PI()*180+180,ATAN(dtan(B177)*DCOS($J$2))/PI()*180)) -> 75.62482954 | J177: -4.571130757 | K177: 0.3062836756 | L177: -1.145630234 | M177: 11.40209882 | N177: =adcos((-dsin(検索入力!$A$7)*dsin(H177)-dsin($J$5))/(DCOS(検索入力!$A$7)*DCOS(H177))) -> 108.3731121 | O177: 04:37:44.097 | P177: =ATAN((-dsin(検索入力!$A$7)*DCOS(N177*0.75+N176*0.25)*DCOS(H177*0.75+H176*0.25)+DCOS(検索入力!$A$7)*dsin(H177*0.75+H176*0.25))/(dsin(N177*0.75+N176*0.25)*DCOS(H177*0.75+H176*0.25)))/PI()*180 -> 28.91429762 | Q177: 11:51:11.254 | R177: 19:04:48.479 | S177: =ATAN((-dsin(検索入力!$A$7)*DCOS(N177*0.75+N178*0.25)*DCOS(H177*0.75+H178*0.25)+DCOS(検索入力!$A$7)*dsin(H177*0.75+H178*0.25))/(dsin(N177*0.75+N178*0.25)*DCOS(H177*0.75+H178*0.25)))/PI()*180 -> 28.97518588 | T177: 14:27:04.381
A178: 2012-06-08T12:00:00 | B178: 77.72419741 | C178: 154.7161867 | D178: 0.9563080286 | E178: -0.02929365306 | F178: -0.1171746122 | G178: 3.309251828 | H178: 22.87321427 | I178: =IF(270<=B178,ATAN(dtan(B178)*DCOS($J$2))/PI()*180+360,IF(B178>90,ATAN(dtan(B178)*DCOS($J$2))/PI()*180+180,ATAN(dtan(B178)*DCOS($J$2))/PI()*180)) -> 76.65798564 | J178: -4.264847082 | K178: 0.3115542423 | L178: -0.9555952539 | M178: 11.6627778 | N178: =adcos((-dsin(検索入力!$A$7)*dsin(H178)-dsin($J$5))/(DCOS(検索入力!$A$7)*DCOS(H178))) -> 108.4535651 | O178: 04:37:35.777 | P178: =ATAN((-dsin(検索入力!$A$7)*DCOS(N178*0.75+N177*0.25)*DCOS(H178*0.75+H177*0.25)+DCOS(検索入力!$A$7)*dsin(H178*0.75+H177*0.25))/(dsin(N178*0.75+N177*0.25)*DCOS(H178*0.75+H177*0.25)))/PI()*180 -> 29.0339408 | Q178: 11:51:22.656 | R178: 19:05:18.908 | S178: =ATAN((-dsin(検索入力!$A$7)*DCOS(N178*0.75+N179*0.25)*DCOS(H178*0.75+H179*0.25)+DCOS(検索入力!$A$7)*dsin(H178*0.75+H179*0.25))/(dsin(N178*0.75+N179*0.25)*DCOS(H178*0.75+H179*0.25)))/PI()*180 -> 29.09054802 | T178: 14:27:43.131
A179: 2012-06-09T12:00:00 | B179: 78.68055112 | C179: 155.6724947 | D179: 0.9560848533 | E179: -0.02951683897 | F179: -0.1180673559 | G179: 3.192077216 | H179: 22.95765791 | I179: =IF(270<=B179,ATAN(dtan(B179)*DCOS($J$2))/PI()*180+360,IF(B179>90,ATAN(dtan(B179)*DCOS($J$2))/PI()*180+180,ATAN(dtan(B179)*DCOS($J$2))/PI()*180)) -> 77.69222791 | J179: -3.953292839 | K179: 0.3164427478 | L179: -0.7612156239 | M179: 11.90252352 | N179: =adcos((-dsin(検索入力!$A$7)*dsin(H179)-dsin($J$5))/(DCOS(検索入力!$A$7)*DCOS(H179))) -> 108.5282366 | O179: 04:37:29.107 | P179: =ATAN((-dsin(検索入力!$A$7)*DCOS(N179*0.75+N178*0.25)*DCOS(H179*0.75+H178*0.25)+DCOS(検索入力!$A$7)*dsin(H179*0.75+H178*0.25))/(dsin(N179*0.75+N178*0.25)*DCOS(H179*0.75+H178*0.25)))/PI()*180 -> 29.14500835 | Q179: 11:51:34.319 | R179: 19:05:48.201 | S179: =ATAN((-dsin(検索入力!$A$7)*DCOS(N179*0.75+N180*0.25)*DCOS(H179*0.75+H180*0.25)+DCOS(検索入力!$A$7)*dsin(H179*0.75+H180*0.25))/(dsin(N179*0.75+N180*0.25)*DCOS(H179*0.75+H180*0.25)))/PI()*180 -> 29.19730847 | T179: 14:28:19.095
A180: 2012-06-10T12:00:00 | B180: 79.63668163 | C180: 156.6285796 | D180: 0.9558700226 | E180: -0.02973168 | F180: -0.11892672 | G180: 3.07400986 | H180: 23.03537107 | I180: =IF(270<=B180,ATAN(dtan(B180)*DCOS($J$2))/PI()*180+360,IF(B180>90,ATAN(dtan(B180)*DCOS($J$2))/PI()*180+180,ATAN(dtan(B180)*DCOS($J$2))/PI()*180)) -> 78.72746911 | J180: -3.636850092 | K180: 0.3209415827 | L180: -0.562840232 | M180: 12.12089176 | N180: =adcos((-dsin(検索入力!$A$7)*dsin(H180)-dsin($J$5))/(DCOS(検索入力!$A$7)*DCOS(H180))) -> 108.59707 | O180: 04:37:24.079 | P180: =ATAN((-dsin(検索入力!$A$7)*DCOS(N180*0.75+N179*0.25)*DCOS(H180*0.75+H179*0.25)+DCOS(検索入力!$A$7)*dsin(H180*0.75+H179*0.25))/(dsin(N180*0.75+N179*0.25)*DCOS(H180*0.75+H179*0.25)))/PI()*180 -> 29.24744915 | Q180: 11:51:46.222 | R180: 19:06:16.325 | S180: =ATAN((-dsin(検索入力!$A$7)*DCOS(N180*0.75+N181*0.25)*DCOS(H180*0.75+H181*0.25)+DCOS(検索入力!$A$7)*dsin(H180*0.75+H181*0.25))/(dsin(N180*0.75+N181*0.25)*DCOS(H180*0.75+H181*0.25)))/PI()*180 -> 29.2954181 | T180: 14:28:52.246
A181: 2012-06-11T12:00:00 | B181: 80.59259731 | C181: 157.5844496 | D181: 0.9556635858 | E181: -0.02993812662 | F181: -0.1197525065 | G181: 2.95508314 | H181: 23.10632594 | I181: =IF(270<=B181,ATAN(dtan(B181)*DCOS($J$2))/PI()*180+360,IF(B181>90,ATAN(dtan(B181)*DCOS($J$2))/PI()*180+180,ATAN(dtan(B181)*DCOS($J$2))/PI()*180)) -> 79.76362019 | J181: -3.315908509 | K181: 0.3250437316 | L181: -0.3608253692 | M181: 12.31747351 | N181: =adcos((-dsin(検索入力!$A$7)*dsin(H181)-dsin($J$5))/(DCOS(検索入力!$A$7)*DCOS(H181))) -> 108.6600129 | O181: 04:37:20.686 | P181: =ATAN((-dsin(検索入力!$A$7)*DCOS(N181*0.75+N180*0.25)*DCOS(H181*0.75+H180*0.25)+DCOS(検索入力!$A$7)*dsin(H181*0.75+H180*0.25))/(dsin(N181*0.75+N180*0.25)*DCOS(H181*0.75+H180*0.25)))/PI()*180 -> 29.34121602 | Q181: 11:51:58.342 | R181: 19:06:43.245 | S181: =ATAN((-dsin(検索入力!$A$7)*DCOS(N181*0.75+N182*0.25)*DCOS(H181*0.75+H182*0.25)+DCOS(検索入力!$A$7)*dsin(H181*0.75+H182*0.25))/(dsin(N181*0.75+N182*0.25)*DCOS(H181*0.75+H182*0.25)))/PI()*180 -> 29.38483172 | T181: 14:29:22.559
A182: 2012-06-12T12:00:00 | B182: 81.54830654 | C182: 158.5401132 | D182: 0.9554655906 | E182: -0.03013613133 | F182: -0.1205445253 | G182: 2.835330633 | H182: 23.17049727 | I182: =IF(270<=B182,ATAN(dtan(B182)*DCOS($J$2))/PI()*180+360,IF(B182>90,ATAN(dtan(B182)*DCOS($J$2))/PI()*180+180,ATAN(dtan(B182)*DCOS($J$2))/PI()*180)) -> 80.80059035 | J182: -2.990864777 | K182: 0.3287427935 | L182: -0.1555341441 | M182: 12.49189609 | N182: =adcos((-dsin(検索入力!$A$7)*dsin(H182)-dsin($J$5))/(DCOS(検索入力!$A$7)*DCOS(H182))) -> 108.7170173 | O182: 04:37:18.917 | P182: =ATAN((-dsin(検索入力!$A$7)*DCOS(N182*0.75+N181*0.25)*DCOS(H182*0.75+H181*0.25)+DCOS(検索入力!$A$7)*dsin(H182*0.75+H181*0.25))/(dsin(N182*0.75+N181*0.25)*DCOS(H182*0.75+H181*0.25)))/PI()*180 -> 29.42626585 | Q182: 11:52:10.660 | R182: 19:07:08.928 | S182: =ATAN((-dsin(検索入力!$A$7)*DCOS(N182*0.75+N183*0.25)*DCOS(H182*0.75+H183*0.25)+DCOS(検索入力!$A$7)*dsin(H182*0.75+H183*0.25))/(dsin(N182*0.75+N183*0.25)*DCOS(H182*0.75+H183*0.25)))/PI()*180 -> 29.4655083 | T182: 14:29:50.012
A183: 2012-06-13T12:00:00 | B183: 82.50381777 | C183: 159.4955788 | D183: 0.9552760823 | E183: -0.03032564867 | F183: -0.1213025947 | G183: 2.714786108 | H183: 23.22786243 | I183: =IF(270<=B183,ATAN(dtan(B183)*DCOS($J$2))/PI()*180+360,IF(B183>90,ATAN(dtan(B183)*DCOS($J$2))/PI()*180+180,ATAN(dtan(B183)*DCOS($J$2))/PI()*180)) -> 81.83828728 | J183: -2.662121984 | K183: 0.3320330006 | L183: 0.0526641241 | M183: 12.64382435 | N183: =adcos((-dsin(検索入力!$A$7)*dsin(H183)-dsin($J$5))/(DCOS(検索入力!$A$7)*DCOS(H183))) -> 108.7680395 | O183: 04:37:18.761 | P183: =ATAN((-dsin(検索入力!$A$7)*DCOS(N183*0.75+N182*0.25)*DCOS(H183*0.75+H182*0.25)+DCOS(検索入力!$A$7)*dsin(H183*0.75+H182*0.25))/(dsin(N183*0.75+N182*0.25)*DCOS(H183*0.75+H182*0.25)))/PI()*180 -> 29.50255965 | Q183: 11:52:23.152 | R183: 19:07:33.342 | S183: =ATAN((-dsin(検索入力!$A$7)*DCOS(N183*0.75+N184*0.25)*DCOS(H183*0.75+H184*0.25)+DCOS(検索入力!$A$7)*dsin(H183*0.75+H184*0.25))/(dsin(N183*0.75+N184*0.25)*DCOS(H183*0.75+H184*0.25)))/PI()*180 -> 29.53741092 | T183: 14:30:14.582
A184: 2012-06-14T12:00:00 | B184: 83.45913948 | C184: 160.4508549 | D184: 0.9550951044 | E184: -0.03050663519 | F184: -0.1220265407 | G184: 2.593483513 | H184: 23.27840142 | I184: =IF(270<=B184,ATAN(dtan(B184)*DCOS($J$2))/PI()*180+360,IF(B184>90,ATAN(dtan(B184)*DCOS($J$2))/PI()*180+180,ATAN(dtan(B184)*DCOS($J$2))/PI()*180)) -> 82.87661724 | J184: -2.330088983 | K184: 0.3349092345 | L184: 0.26339453 | M184: 12.77296163 | N184: =adcos((-dsin(検索入力!$A$7)*dsin(H184)-dsin($J$5))/(DCOS(検索入力!$A$7)*DCOS(H184))) -> 108.8130404 | O184: 04:37:20.205 | P184: =ATAN((-dsin(検索入力!$A$7)*DCOS(N184*0.75+N183*0.25)*DCOS(H184*0.75+H183*0.25)+DCOS(検索入力!$A$7)*dsin(H184*0.75+H183*0.25))/(dsin(N184*0.75+N183*0.25)*DCOS(H184*0.75+H183*0.25)))/PI()*180 -> 29.57006264 | Q184: 11:52:35.796 | R184: 19:07:56.455 | S184: =ATAN((-dsin(検索入力!$A$7)*DCOS(N184*0.75+N185*0.25)*DCOS(H184*0.75+H185*0.25)+DCOS(検索入力!$A$7)*dsin(H184*0.75+H185*0.25))/(dsin(N184*0.75+N185*0.25)*DCOS(H184*0.75+H185*0.25)))/PI()*180 -> 29.60050695 | T184: 14:30:36.250
A185: 2012-06-15T12:00:00 | B185: 84.4142802 | C185: 161.40595 | D185: 0.9549226984 | E185: -0.03067904946 | F185: -0.1227161978 | G185: 2.471456972 | H185: 23.32209689 | I185: =IF(270<=B185,ATAN(dtan(B185)*DCOS($J$2))/PI()*180+360,IF(B185>90,ATAN(dtan(B185)*DCOS($J$2))/PI()*180+180,ATAN(dtan(B185)*DCOS($J$2))/PI()*180)) -> 83.91548527 | J185: -1.995179749 | K185: 0.3373670417 | L185: 0.4762772238 | M185: 12.87905063 | N185: =adcos((-dsin(検索入力!$A$7)*dsin(H185)-dsin($J$5))/(DCOS(検索入力!$A$7)*DCOS(H185))) -> 108.8519857 | O185: 04:37:23.236 | P185: =ATAN((-dsin(検索入力!$A$7)*DCOS(N185*0.75+N184*0.25)*DCOS(H185*0.75+H184*0.25)+DCOS(検索入力!$A$7)*dsin(H185*0.75+H184*0.25))/(dsin(N185*0.75+N184*0.25)*DCOS(H185*0.75+H184*0.25)))/PI()*180 -> 29.62874432 | Q185: 11:52:48.569 | R185: 19:08:18.237 | S185: =ATAN((-dsin(検索入力!$A$7)*DCOS(N185*0.75+N186*0.25)*DCOS(H185*0.75+H186*0.25)+DCOS(検索入力!$A$7)*dsin(H185*0.75+H186*0.25))/(dsin(N185*0.75+N186*0.25)*DCOS(H185*0.75+H186*0.25)))/PI()*180 -> 29.65476805 | T185: 14:30:55.001
A186: 2012-06-16T12:00:00 | B186: 85.36924851 | C186: 162.3608727 | D186: 0.9547589036 | E186: -0.03084285208 | F186: -0.1233714083 | G186: 2.348740775 | H186: 23.35893417 | I186: =IF(270<=B186,ATAN(dtan(B186)*DCOS($J$2))/PI()*180+360,IF(B186>90,ATAN(dtan(B186)*DCOS($J$2))/PI()*180+180,ATAN(dtan(B186)*DCOS($J$2))/PI()*180)) -> 84.95479534 | J186: -1.657812707 | K186: 0.3394026461 | L186: 0.6909280677 | M186: 12.96187427 | N186: =adcos((-dsin(検索入力!$A$7)*dsin(H186)-dsin($J$5))/(DCOS(検索入力!$A$7)*DCOS(H186))) -> 108.8848458 | O186: 04:37:27.837 | P186: =ATAN((-dsin(検索入力!$A$7)*DCOS(N186*0.75+N185*0.25)*DCOS(H186*0.75+H185*0.25)+DCOS(検索入力!$A$7)*dsin(H186*0.75+H185*0.25))/(dsin(N186*0.75+N185*0.25)*DCOS(H186*0.75+H185*0.25)))/PI()*180 -> 29.67857854 | Q186: 11:53:01.448 | R186: 19:08:38.656 | S186: =ATAN((-dsin(検索入力!$A$7)*DCOS(N186*0.75+N187*0.25)*DCOS(H186*0.75+H187*0.25)+DCOS(検索入力!$A$7)*dsin(H186*0.75+H187*0.25))/(dsin(N186*0.75+N187*0.25)*DCOS(H186*0.75+H187*0.25)))/PI()*180 -> 29.70017026 | T186: 14:31:10.820
A187: 2012-06-17T12:00:00 | B187: 86.32405302 | C187: 163.3156316 | D187: 0.9546037574 | E187: -0.03099800567 | F187: -0.1239920227 | G187: 2.225369366 | H187: 23.38890129 | I187: =IF(270<=B187,ATAN(dtan(B187)*DCOS($J$2))/PI()*180+360,IF(B187>90,ATAN(dtan(B187)*DCOS($J$2))/PI()*180+180,ATAN(dtan(B187)*DCOS($J$2))/PI()*180)) -> 85.9944505 | J187: -1.318410061 | K187: 0.3410129602 | L187: 0.9069593055 | M187: 13.02125625 | N187: =adcos((-dsin(検索入力!$A$7)*dsin(H187)-dsin($J$5))/(DCOS(検索入力!$A$7)*DCOS(H187))) -> 108.9115961 | O187: 04:37:33.991 | P187: =ATAN((-dsin(検索入力!$A$7)*DCOS(N187*0.75+N186*0.25)*DCOS(H187*0.75+H186*0.25)+DCOS(検索入力!$A$7)*dsin(H187*0.75+H186*0.25))/(dsin(N187*0.75+N186*0.25)*DCOS(H187*0.75+H186*0.25)))/PI()*180 -> 29.71954353 | Q187: 11:53:14.410 | R187: 19:08:57.685 | S187: =ATAN((-dsin(検索入力!$A$7)*DCOS(N187*0.75+N188*0.25)*DCOS(H187*0.75+H188*0.25)+DCOS(検索入力!$A$7)*dsin(H187*0.75+H188*0.25))/(dsin(N187*0.75+N188*0.25)*DCOS(H187*0.75+H188*0.25)))/PI()*180 -> 29.73669401 | T187: 14:31:23.694
A188: 2012-06-18T12:00:00 | B188: 87.27870237 | C188: 164.2702353 | D188: 0.9544572951 | E188: -0.0311444749 | F188: -0.1245778996 | G188: 2.101377344 | H188: 23.41198899 | I188: =IF(270<=B188,ATAN(dtan(B188)*DCOS($J$2))/PI()*180+360,IF(B188>90,ATAN(dtan(B188)*DCOS($J$2))/PI()*180+180,ATAN(dtan(B188)*DCOS($J$2))/PI()*180)) -> 87.0343531 | J188: -0.9773971006 | K188: 0.3421955942 | L188: 1.123980243 | M188: 13.05706168 | N188: =adcos((-dsin(検索入力!$A$7)*dsin(H188)-dsin($J$5))/(DCOS(検索入力!$A$7)*DCOS(H188))) -> 108.9322168 | O188: 04:37:41.681 | P188: =ATAN((-dsin(検索入力!$A$7)*DCOS(N188*0.75+N187*0.25)*DCOS(H188*0.75+H187*0.25)+DCOS(検索入力!$A$7)*dsin(H188*0.75+H187*0.25))/(dsin(N188*0.75+N187*0.25)*DCOS(H188*0.75+H187*0.25)))/PI()*180 -> 29.75162196 | Q188: 11:53:27.431 | R188: 19:09:15.296 | S188: =ATAN((-dsin(検索入力!$A$7)*DCOS(N188*0.75+N189*0.25)*DCOS(H188*0.75+H189*0.25)+DCOS(検索入力!$A$7)*dsin(H188*0.75+H189*0.25))/(dsin(N188*0.75+N189*0.25)*DCOS(H188*0.75+H189*0.25)))/PI()*180 -> 29.76432422 | T188: 14:31:33.615
A189: 2012-06-19T12:00:00 | B189: 88.23320526 | C189: 165.2246926 | D189: 0.9543195502 | E189: -0.03128222642 | F189: -0.1251289057 | G189: 1.976799444 | H189: 23.42819074 | I189: =IF(270<=B189,ATAN(dtan(B189)*DCOS($J$2))/PI()*180+360,IF(B189>90,ATAN(dtan(B189)*DCOS($J$2))/PI()*180+180,ATAN(dtan(B189)*DCOS($J$2))/PI()*180)) -> 88.07440488 | J189: -0.6352015064 | K189: 0.3429488626 | L189: 1.341597938 | M189: 13.06919742 | N189: =adcos((-dsin(検索入力!$A$7)*dsin(H189)-dsin($J$5))/(DCOS(検索入力!$A$7)*DCOS(H189))) -> 108.9466933 | O189: 04:37:50.886 | P189: =ATAN((-dsin(検索入力!$A$7)*DCOS(N189*0.75+N188*0.25)*DCOS(H189*0.75+H188*0.25)+DCOS(検索入力!$A$7)*dsin(H189*0.75+H188*0.25))/(dsin(N189*0.75+N188*0.25)*DCOS(H189*0.75+H188*0.25)))/PI()*180 -> 29.77480099 | Q189: 11:53:40.488 | R189: 19:09:31.461 | S189: =ATAN((-dsin(検索入力!$A$7)*DCOS(N189*0.75+N190*0.25)*DCOS(H189*0.75+H190*0.25)+DCOS(検索入力!$A$7)*dsin(H189*0.75+H190*0.25))/(dsin(N189*0.75+N190*0.25)*DCOS(H189*0.75+H190*0.25)))/PI()*180 -> 29.78305028 | T189: 14:31:40.575
A190: 2012-06-20T12:00:00 | B190: 89.18757039 | C190: 166.1790122 | D190: 0.9541905538 | E190: -0.03141122894 | F190: -0.1256449158 | G190: 1.851670538 | H190: 23.43750274 | I190: =IF(270<=B190,ATAN(dtan(B190)*DCOS($J$2))/PI()*180+360,IF(B190>90,ATAN(dtan(B190)*DCOS($J$2))/PI()*180+180,ATAN(dtan(B190)*DCOS($J$2))/PI()*180)) -> 89.11450723 | J190: -0.2922526438 | K190: 0.3432717889 | L190: 1.559417894 | M190: 13.05761239 | N190: =adcos((-dsin(検索入力!$A$7)*dsin(H190)-dsin($J$5))/(DCOS(検索入力!$A$7)*DCOS(H190))) -> 108.9550159 | O190: 04:38:01.585 | P190: =ATAN((-dsin(検索入力!$A$7)*DCOS(N190*0.75+N189*0.25)*DCOS(H190*0.75+H189*0.25)+DCOS(検索入力!$A$7)*dsin(H190*0.75+H189*0.25))/(dsin(N190*0.75+N189*0.25)*DCOS(H190*0.75+H189*0.25)))/PI()*180 -> 29.78907224 | Q190: 11:53:53.557 | R190: 19:09:46.155 | S190: =ATAN((-dsin(検索入力!$A$7)*DCOS(N190*0.75+N191*0.25)*DCOS(H190*0.75+H191*0.25)+DCOS(検索入力!$A$7)*dsin(H190*0.75+H191*0.25))/(dsin(N190*0.75+N191*0.25)*DCOS(H190*0.75+H191*0.25)))/PI()*180 -> 29.79286608 | T190: 14:31:44.570
A191: 2012-06-21T12:00:00 | B191: 90.14180652 | C191: 167.1332027 | D191: 0.9540703354 | E191: -0.03153145318 | F191: -0.1261258127 | G191: 1.726025623 | H191: 23.43992392 | I191: =IF(270<=B191,ATAN(dtan(B191)*DCOS($J$2))/PI()*180+360,IF(B191>90,ATAN(dtan(B191)*DCOS($J$2))/PI()*180+180,ATAN(dtan(B191)*DCOS($J$2))/PI()*180)) -> 90.1545613 | J191: 0.0510191451 | K191: 0.3431641082 | L191: 1.777044768 | M191: 13.02229773 | N191: =adcos((-dsin(検索入力!$A$7)*dsin(H191)-dsin($J$5))/(DCOS(検索入力!$A$7)*DCOS(H191))) -> 108.9571801 | O191: 04:38:13.757 | P191: =ATAN((-dsin(検索入力!$A$7)*DCOS(N191*0.75+N190*0.25)*DCOS(H191*0.75+H190*0.25)+DCOS(検索入力!$A$7)*dsin(H191*0.75+H190*0.25))/(dsin(N191*0.75+N190*0.25)*DCOS(H191*0.75+H190*0.25)))/PI()*180 -> 29.79443188 | Q191: 11:54:06.615 | R191: 19:09:59.354 | S191: =ATAN((-dsin(検索入力!$A$7)*DCOS(N191*0.75+N192*0.25)*DCOS(H191*0.75+H192*0.25)+DCOS(検索入力!$A$7)*dsin(H191*0.75+H192*0.25))/(dsin(N191*0.75+N192*0.25)*DCOS(H191*0.75+H192*0.25)))/PI()*180 -> 29.79377006 | T191: 14:31:45.597
A192: 2012-06-22T12:00:00 | B192: 91.09592242 | C192: 168.0872731 | D192: 0.953958922 | E192: -0.03164287187 | F192: -0.1265714875 | G192: 1.59989981 | H192: 23.43545595 | I192: =IF(270<=B192,ATAN(dtan(B192)*DCOS($J$2))/PI()*180+360,IF(B192>90,ATAN(dtan(B192)*DCOS($J$2))/PI()*180+180,ATAN(dtan(B192)*DCOS($J$2))/PI()*180)) -> 91.19446824 | J192: 0.3941832533 | K192: 0.3426262673 | L192: 1.994083063 | M192: 12.96328679 | N192: =adcos((-dsin(検索入力!$A$7)*dsin(H192)-dsin($J$5))/(DCOS(検索入力!$A$7)*DCOS(H192))) -> 108.9531864 | O192: 04:38:27.377 | P192: =ATAN((-dsin(検索入力!$A$7)*DCOS(N192*0.75+N191*0.25)*DCOS(H192*0.75+H191*0.25)+DCOS(検索入力!$A$7)*dsin(H192*0.75+H191*0.25))/(dsin(N192*0.75+N191*0.25)*DCOS(H192*0.75+H191*0.25)))/PI()*180 -> 29.7908806 | Q192: 11:54:19.637 | R192: 19:10:11.034 | S192: =ATAN((-dsin(検索入力!$A$7)*DCOS(N192*0.75+N193*0.25)*DCOS(H192*0.75+H193*0.25)+DCOS(検索入力!$A$7)*dsin(H192*0.75+H193*0.25))/(dsin(N192*0.75+N193*0.25)*DCOS(H192*0.75+H193*0.25)))/PI()*180 -> 29.78576514 | T192: 14:31:43.657
A193: 2012-06-23T12:00:00 | B193: 92.04992691 | C193: 169.041232 | D193: 0.953856339 | E193: -0.03174545978 | F193: -0.1269818391 | G193: 1.473328322 | H193: 23.42410324 | I193: =IF(270<=B193,ATAN(dtan(B193)*DCOS($J$2))/PI()*180+360,IF(B193>90,ATAN(dtan(B193)*DCOS($J$2))/PI()*180+180,ATAN(dtan(B193)*DCOS($J$2))/PI()*180)) -> 92.23412929 | J193: 0.7368095206 | K193: 0.341659423 | L193: 2.210137843 | M193: 12.88065503 | N193: =adcos((-dsin(検索入力!$A$7)*dsin(H193)-dsin($J$5))/(DCOS(検索入力!$A$7)*DCOS(H193))) -> 108.9430406 | O193: 04:38:42.421 | P193: =ATAN((-dsin(検索入力!$A$7)*DCOS(N193*0.75+N192*0.25)*DCOS(H193*0.75+H192*0.25)+DCOS(検索入力!$A$7)*dsin(H193*0.75+H192*0.25))/(dsin(N193*0.75+N192*0.25)*DCOS(H193*0.75+H192*0.25)))/PI()*180 -> 29.7784236 | Q193: 11:54:32.600 | R193: 19:10:21.173 | S193: =ATAN((-dsin(検索入力!$A$7)*DCOS(N193*0.75+N194*0.25)*DCOS(H193*0.75+H194*0.25)+DCOS(検索入力!$A$7)*dsin(H193*0.75+H194*0.25))/(dsin(N193*0.75+N194*0.25)*DCOS(H193*0.75+H194*0.25)))/PI()*180 -> 29.7688588 | T193: 14:31:38.752
A194: 2012-06-24T12:00:00 | B194: 93.00382881 | C194: 169.9950883 | D194: 0.9537626095 | E194: -0.0318391937 | F194: -0.1273567748 | G194: 1.346346483 | H194: 23.40587292 | I194: =IF(270<=B194,ATAN(dtan(B194)*DCOS($J$2))/PI()*180+360,IF(B194>90,ATAN(dtan(B194)*DCOS($J$2))/PI()*180+180,ATAN(dtan(B194)*DCOS($J$2))/PI()*180)) -> 93.27344604 | J194: 1.078468944 | K194: 0.3402654378 | L194: 2.424815427 | M194: 12.77451978 | N194: =adcos((-dsin(検索入力!$A$7)*dsin(H194)-dsin($J$5))/(DCOS(検索入力!$A$7)*DCOS(H194))) -> 108.9267533 | O194: 04:38:58.863 | P194: =ATAN((-dsin(検索入力!$A$7)*DCOS(N194*0.75+N193*0.25)*DCOS(H194*0.75+H193*0.25)+DCOS(検索入力!$A$7)*dsin(H194*0.75+H193*0.25))/(dsin(N194*0.75+N193*0.25)*DCOS(H194*0.75+H193*0.25)))/PI()*180 -> 29.7570706 | Q194: 11:54:45.481 | R194: 19:10:29.751 | S194: =ATAN((-dsin(検索入力!$A$7)*DCOS(N194*0.75+N195*0.25)*DCOS(H194*0.75+H195*0.25)+DCOS(検索入力!$A$7)*dsin(H194*0.75+H195*0.25))/(dsin(N194*0.75+N195*0.25)*DCOS(H194*0.75+H195*0.25)))/PI()*180 -> 29.743063 | T194: 14:31:30.888
A195: 2012-06-25T12:00:00 | B195: 93.95763697 | C195: 170.9488509 | D195: 0.9536777548 | E195: -0.03192405244 | F195: -0.1276962097 | G195: 1.218989708 | H195: 23.38077483 | I195: =IF(270<=B195,ATAN(dtan(B195)*DCOS($J$2))/PI()*180+360,IF(B195>90,ATAN(dtan(B195)*DCOS($J$2))/PI()*180+180,ATAN(dtan(B195)*DCOS($J$2))/PI()*180)) -> 94.31232057 | J195: 1.418734381 | K195: 0.3384468738 | L195: 2.63772409 | M195: 12.64503984 | N195: =adcos((-dsin(検索入力!$A$7)*dsin(H195)-dsin($J$5))/(DCOS(検索入力!$A$7)*DCOS(H195))) -> 108.9043403 | O195: 04:39:16.675 | P195: =ATAN((-dsin(検索入力!$A$7)*DCOS(N195*0.75+N194*0.25)*DCOS(H195*0.75+H194*0.25)+DCOS(検索入力!$A$7)*dsin(H195*0.75+H194*0.25))/(dsin(N195*0.75+N194*0.25)*DCOS(H195*0.75+H194*0.25)))/PI()*180 -> 29.7268358 | Q195: 11:54:58.255 | R195: 19:10:36.747 | S195: =ATAN((-dsin(検索入力!$A$7)*DCOS(N195*0.75+N196*0.25)*DCOS(H195*0.75+H196*0.25)+DCOS(検索入力!$A$7)*dsin(H195*0.75+H196*0.25))/(dsin(N195*0.75+N196*0.25)*DCOS(H195*0.75+H196*0.25)))/PI()*180 -> 29.70839418 | T195: 14:31:20.072
A196: 2012-06-26T12:00:00 | B196: 94.91136028 | C196: 171.9025287 | D196: 0.9536017941 | E196: -0.03200001682 | F196: -0.1280000673 | G196: 1.091293499 | H196: 23.34882151 | I196: =IF(270<=B196,ATAN(dtan(B196)*DCOS($J$2))/PI()*180+360,IF(B196>90,ATAN(dtan(B196)*DCOS($J$2))/PI()*180+180,ATAN(dtan(B196)*DCOS($J$2))/PI()*180)) -> 95.35065559 | J196: 1.757181255 | K196: 0.336206984 | L196: 2.848474754 | M196: 12.492415 | N196: =adcos((-dsin(検索入力!$A$7)*dsin(H196)-dsin($J$5))/(DCOS(検索入力!$A$7)*DCOS(H196))) -> 108.8758224 | O196: 04:39:35.831 | P196: =ATAN((-dsin(検索入力!$A$7)*DCOS(N196*0.75+N195*0.25)*DCOS(H196*0.75+H195*0.25)+DCOS(検索入力!$A$7)*dsin(H196*0.75+H195*0.25))/(dsin(N196*0.75+N195*0.25)*DCOS(H196*0.75+H195*0.25)))/PI()*180 -> 29.68773787 | Q196: 11:55:10.900 | R196: 19:10:42.145 | S196: =ATAN((-dsin(検索入力!$A$7)*DCOS(N196*0.75+N197*0.25)*DCOS(H196*0.75+H197*0.25)+DCOS(検索入力!$A$7)*dsin(H196*0.75+H197*0.25))/(dsin(N196*0.75+N197*0.25)*DCOS(H196*0.75+H197*0.25)))/PI()*180 -> 29.66487323 | T196: 14:31:06.314
A197: 2012-06-27T12:00:00 | B197: 95.86500762 | C197: 172.8561305 | D197: 0.9535347444 | E197: -0.03206706971 | F197: -0.1282682789 | G197: 0.9632934314 | H197: 23.31002821 | I197: =IF(270<=B197,ATAN(dtan(B197)*DCOS($J$2))/PI()*180+360,IF(B197>90,ATAN(dtan(B197)*DCOS($J$2))/PI()*180+180,ATAN(dtan(B197)*DCOS($J$2))/PI()*180)) -> 96.38835468 | J197: 2.093388239 | K197: 0.3335497022 | L197: 3.056681671 | M197: 12.3168854 | N197: =adcos((-dsin(検索入力!$A$7)*dsin(H197)-dsin($J$5))/(DCOS(検索入力!$A$7)*DCOS(H197))) -> 108.8412255 | O197: 04:39:56.300 | P197: =ATAN((-dsin(検索入力!$A$7)*DCOS(N197*0.75+N196*0.25)*DCOS(H197*0.75+H196*0.25)+DCOS(検索入力!$A$7)*dsin(H197*0.75+H196*0.25))/(dsin(N197*0.75+N196*0.25)*DCOS(H197*0.75+H196*0.25)))/PI()*180 -> 29.6397999 | Q197: 11:55:23.393 | R197: 19:10:45.927 | S197: =ATAN((-dsin(検索入力!$A$7)*DCOS(N197*0.75+N198*0.25)*DCOS(H197*0.75+H198*0.25)+DCOS(検索入力!$A$7)*dsin(H197*0.75+H198*0.25))/(dsin(N197*0.75+N198*0.25)*DCOS(H197*0.75+H198*0.25)))/PI()*180 -> 29.61252541 | T197: 14:30:49.628
A198: 2012-06-28T12:00:00 | B198: 96.81858791 | C198: 173.8096652 | D198: 0.9534766209 | E198: -0.03212519598 | F198: -0.1285007839 | G198: 0.8350251526 | H198: 23.26441279 | I198: =IF(270<=B198,ATAN(dtan(B198)*DCOS($J$2))/PI()*180+360,IF(B198>90,ATAN(dtan(B198)*DCOS($J$2))/PI()*180+180,ATAN(dtan(B198)*DCOS($J$2))/PI()*180)) -> 97.42532239 | J198: 2.426937941 | K198: 0.3304796304 | L198: 3.261963094 | M198: 12.11873079 | N198: =adcos((-dsin(検索入力!$A$7)*dsin(H198)-dsin($J$5))/(DCOS(検索入力!$A$7)*DCOS(H198))) -> 108.8005799 | O198: 04:40:18.053 | P198: =ATAN((-dsin(検索入力!$A$7)*DCOS(N198*0.75+N197*0.25)*DCOS(H198*0.75+H197*0.25)+DCOS(検索入力!$A$7)*dsin(H198*0.75+H197*0.25))/(dsin(N198*0.75+N197*0.25)*DCOS(H198*0.75+H197*0.25)))/PI()*180 -> 29.58304935 | Q198: 11:55:35.710 | R198: 19:10:48.079 | S198: =ATAN((-dsin(検索入力!$A$7)*DCOS(N198*0.75+N199*0.25)*DCOS(H198*0.75+H199*0.25)+DCOS(検索入力!$A$7)*dsin(H198*0.75+H199*0.25))/(dsin(N198*0.75+N199*0.25)*DCOS(H198*0.75+H199*0.25)))/PI()*180 -> 29.55138038 | T198: 14:30:30.026
A199: 2012-06-29T12:00:00 | B199: 97.77211007 | C199: 174.7631418 | D199: 0.9534274367 | E199: -0.03217438251 | F199: -0.12869753 | G199: 0.7065243687 | H199: 23.2119958 | I199: =IF(270<=B199,ATAN(dtan(B199)*DCOS($J$2))/PI()*180+360,IF(B199>90,ATAN(dtan(B199)*DCOS($J$2))/PI()*180+180,ATAN(dtan(B199)*DCOS($J$2))/PI()*180)) -> 98.46146446 | J199: 2.757417572 | K199: 0.327002024 | L199: 3.463941941 | M199: 11.89826964 | N199: =adcos((-dsin(検索入力!$A$7)*dsin(H199)-dsin($J$5))/(DCOS(検索入力!$A$7)*DCOS(H199))) -> 108.7539212 | O199: 04:40:41.058 | P199: =ATAN((-dsin(検索入力!$A$7)*DCOS(N199*0.75+N198*0.25)*DCOS(H199*0.75+H198*0.25)+DCOS(検索入力!$A$7)*dsin(H199*0.75+H198*0.25))/(dsin(N199*0.75+N198*0.25)*DCOS(H199*0.75+H198*0.25)))/PI()*180 -> 29.51751801 | Q199: 11:55:47.829 | R199: 19:10:48.586 | S199: =ATAN((-dsin(検索入力!$A$7)*DCOS(N199*0.75+N200*0.25)*DCOS(H199*0.75+H200*0.25)+DCOS(検索入力!$A$7)*dsin(H199*0.75+H200*0.25))/(dsin(N199*0.75+N200*0.25)*DCOS(H199*0.75+H200*0.25)))/PI()*180 -> 29.48147203 | T199: 14:30:07.528
A200: 2012-06-30T12:00:00 | B200: 98.72558305 | C200: 175.7165693 | D200: 0.9533872029 | E200: -0.03221461823 | F200: -0.1288584729 | G200: 0.5778268386 | H200: 23.15280036 | I200: =IF(270<=B200,ATAN(dtan(B200)*DCOS($J$2))/PI()*180+360,IF(B200>90,ATAN(dtan(B200)*DCOS($J$2))/PI()*180+180,ATAN(dtan(B200)*DCOS($J$2))/PI()*180)) -> 99.49668794 | J200: 3.084419596 | K200: 0.3231227761 | L200: 3.662246435 | M200: 11.65585819 | N200: =adcos((-dsin(検索入力!$A$7)*dsin(H200)-dsin($J$5))/(DCOS(検索入力!$A$7)*DCOS(H200))) -> 108.7012894 | O200: 04:41:05.285 | P200: =ATAN((-dsin(検索入力!$A$7)*DCOS(N200*0.75+N199*0.25)*DCOS(H200*0.75+H199*0.25)+DCOS(検索入力!$A$7)*dsin(H200*0.75+H199*0.25))/(dsin(N200*0.75+N199*0.25)*DCOS(H200*0.75+H199*0.25)))/PI()*180 -> 29.4432419 | Q200: 11:55:59.727 | R200: 19:10:47.437 | S200: =ATAN((-dsin(検索入力!$A$7)*DCOS(N200*0.75+N201*0.25)*DCOS(H200*0.75+H201*0.25)+DCOS(検索入力!$A$7)*dsin(H200*0.75+H201*0.25))/(dsin(N200*0.75+N201*0.25)*DCOS(H200*0.75+H201*0.25)))/PI()*180 -> 29.40283851 | T200: 14:29:42.152
A201: 2012-07-01T12:00:00 | B201: 99.67901579 | C201: 176.6699565 | D201: =$H$4*(1+$H$3*DCOS(C201))^2*(1-$H$3*dsin(C201)*PI()/180*(1+$H$3*DCOS(C201))) -> 0.9533559286 | E201: -0.03224589407 | F201: =4*E201 -> -0.1289835763 | G201: 0.4489683657 | H201: 23.08685217 | I201: =IF(270<=B201,ATAN(dtan(B201)*DCOS($J$2))/PI()*180+360,IF(B201>90,ATAN(dtan(B201)*DCOS($J$2))/PI()*180+180,ATAN(dtan(B201)*DCOS($J$2))/PI()*180)) -> 100.5309014 | J201: 3.407542372 | K201: 0.3188483991 | L201: 3.856510738 | M201: 11.39188937 | N201: =adcos((-dsin(検索入力!$A$7)*dsin(H201)-dsin($J$5))/(DCOS(検索入力!$A$7)*DCOS(H201))) -> 108.6427289 | O201: 04:41:30.700 | P201: =ATAN((-dsin(検索入力!$A$7)*DCOS(N201*0.75+N200*0.25)*DCOS(H201*0.75+H200*0.25)+DCOS(検索入力!$A$7)*dsin(H201*0.75+H200*0.25))/(dsin(N201*0.75+N200*0.25)*DCOS(H201*0.75+H200*0.25)))/PI()*180 -> 29.36026125 | Q201: 11:56:11.383 | R201: 19:10:44.619 | S201: =ATAN((-dsin(検索入力!$A$7)*DCOS(N201*0.75+N202*0.25)*DCOS(H201*0.75+H202*0.25)+DCOS(検索入力!$A$7)*dsin(H201*0.75+H202*0.25))/(dsin(N201*0.75+N202*0.25)*DCOS(H201*0.75+H202*0.25)))/PI()*180 -> 29.3155221 | T201: 14:29:13.919
... 184 more rows

Sheet 2013年
A1: 日付 | B1: 黄経 | C1: 近経 | D1: 近点年角速度 | E1: 偏差 | F1: 日長1（分） | G1: ΔM1 | H1: 太陽高度 | I1: 赤経 | J1: ΔM2 | K1: 日長２（分） | L1: ΔM | M1: 日長 | N1: θ | O1: 日出 | P1: 日出方位 | Q1: 南中 | R1: 日の入り | S1: 日の入り方位 | T1: 日照時間
A2: 2013-01-01T12:00:00 | B2: =IF('2012年'!B384+(A2-'2012年'!A384)*'2012年'!D384/'2012年'!$H$4*'2012年'!$L$3<360,'2012年'!B384+(A2-'2012年'!A384)*'2012年'!D384/'2012年'!$H$4*'2012年'!$L$3,'2012年'!B384+(A2-'2012年'!A384)*'2012年'!D384/'2012年'!$H$4*'2012年'!$L$3-360) -> 280.8544435 | C2: =IF('2012年'!C384+'2012年'!D384*(A2-'2012年'!A384)<360,'2012年'!C384+'2012年'!D384*(A2-'2012年'!A384),'2012年'!C384+'2012年'!D384*(A2-'2012年'!A384)-360) -> 357.8367311 | D2: ='2012年'!$H$4*(1+'2012年'!$H$3*DCOS(C2))^2*(1-'2012年'!$H$3*dsin(C2)*PI()/180*(1+'2012年'!$H$3*DCOS(C2))) -> 1.019249197 | E2: =D2*'2012年'!$L$3/'2012年'!$H$4-'2012年'!$L$4 -> 0.03365052174 | F2: =4*E2 -> 0.134602087 | G2: ='2012年'!G384+'2012年'!F384*(A2-'2012年'!A384) -> -0.2857762982 | H2: =adsin(dsin(B2)*dsin('2012年'!$J$2)) -> -22.99629323 | I2: =IF(270<=B2,ATAN(dtan(B2)*DCOS('2012年'!$J$2))/PI()*180+360,IF(B2>90,ATAN(dtan(B2)*DCOS('2012年'!$J$2))/PI()*180+180,ATAN(dtan(B2)*DCOS('2012年'!$J$2))/PI()*180)) -> 281.8044409 | J2: =(I2-B2)*4 -> 3.79998952 | K2: =J3-J2 -> 0.3345061686 | L2: =G2+J2 -> 3.514213222 | M2: =F2+K2 -> 0.4691082555 | N2: =adcos((-dsin(検索入力!$A$7)*dsin(H2)-dsin(出没角_度))/(DCOS(検索入力!$A$7)*DCOS(H2))) -> 73.75866161 | O2: =0.75*Q2+0.25*'2012年'!Q384-(0.75*N2+0.25*'2012年'!N384)*4/60/24 -> 07:00:45.723 | P2: =ATAN((-dsin(検索入力!$A$7)*DCOS(N2*0.75+'2012年'!N384*0.25)*DCOS(H2*0.75+'2012年'!H384*0.25)+DCOS(検索入力!$A$7)*dsin(H2*0.75+'2012年'!H384*0.25))/(dsin(N2*0.75+'2012年'!N384*0.25)*DCOS(H2*0.75+'2012年'!H384*0.25)))/PI()*180 -> -27.91031371 | Q2: =(12+(L2+'2012年'!$J$3)/60)/24 -> 11:55:50.845 | R2: =0.75*Q2+0.25*Q3+(0.75*N2+0.25*N3)*4/60/24 -> 16:51:04.420 | S2: =ATAN((-dsin(検索入力!$A$7)*DCOS(N2*0.75+N3*0.25)*DCOS(H2*0.75+H3*0.25)+DCOS(検索入力!$A$7)*dsin(H2*0.75+H3*0.25))/(dsin(N2*0.75+N3*0.25)*DCOS(H2*0.75+H3*0.25)))/PI()*180 -> -27.85747776 | T2: =R2-O2 -> 09:50:18.697
A3: 2013-01-02T12:00:00 | B3: =IF(B2+(A3-A2)*D2/'2012年'!$H$4*'2012年'!$L$3<360,B2+(A3-A2)*D2/'2012年'!$H$4*'2012年'!$L$3,B2+(A3-A2)*D2/'2012年'!$H$4*'2012年'!$L$3-360) -> 281.8737414 | C3: =IF(C2+D2*(A3-A2)<360,C2+D2*(A3-A2),C2+D2*(A3-A2)-360) -> 358.8559803 | D3: ='2012年'!$H$4*(1+'2012年'!$H$3*DCOS(C3))^2*(1-'2012年'!$H$3*dsin(C3)*PI()/180*(1+'2012年'!$H$3*DCOS(C3))) -> 1.019261029 | E3: =D3*'2012年'!$L$3/'2012年'!$H$4-'2012年'!$L$4 -> 0.03366235437 | F3: 0.1346494175 | G3: =G2+F2*(A3-A2) -> -0.1511742112 | H3: =adsin(dsin(B3)*dsin('2012年'!$J$2)) -> -22.90953091 | I3: =IF(270<=B3,ATAN(dtan(B3)*DCOS('2012年'!$J$2))/PI()*180+360,IF(B3>90,ATAN(dtan(B3)*DCOS('2012年'!$J$2))/PI()*180+180,ATAN(dtan(B3)*DCOS('2012年'!$J$2))/PI()*180)) -> 282.9073653 | J3: 4.134495689 | K3: 0.3286202505 | L3: 3.983321478 | M3: 0.463269668 | N3: =adcos((-dsin(検索入力!$A$7)*dsin(H3)-dsin(出没角_度))/(DCOS(検索入力!$A$7)*DCOS(H3))) -> 73.83299723 | O3: =0.75*Q3+0.25*Q2-(0.75*N3+0.25*N2)*4/60/24 -> 07:00:56.495 | P3: =ATAN((-dsin(検索入力!$A$7)*DCOS(N3*0.75+N2*0.25)*DCOS(H3*0.75+H2*0.25)+DCOS(検索入力!$A$7)*dsin(H3*0.75+H2*0.25))/(dsin(N3*0.75+N2*0.25)*DCOS(H3*0.75+H2*0.25)))/PI()*180 -> -27.80221542 | Q3: =(12+(L3+'2012年'!$J$3)/60)/24 -> 11:56:18.991 | R3: 16:51:50.702 | S3: =ATAN((-dsin(検索入力!$A$7)*DCOS(N3*0.75+N4*0.25)*DCOS(H3*0.75+H4*0.25)+DCOS(検索入力!$A$7)*dsin(H3*0.75+H4*0.25))/(dsin(N3*0.75+N4*0.25)*DCOS(H3*0.75+H4*0.25)))/PI()*180 -> -27.74454374 | T3: 09:50:54.207
A4: 2013-01-03T12:00:00 | B4: =IF(B3+(A4-A3)*D3/'2012年'!$H$4*'2012年'!$L$3<360,B3+(A4-A3)*D3/'2012年'!$H$4*'2012年'!$L$3,B3+(A4-A3)*D3/'2012年'!$H$4*'2012年'!$L$3-360) -> 282.8930511 | C4: 359.8752413 | D4: ='2012年'!$H$4*(1+'2012年'!$H$3*DCOS(C4))^2*(1-'2012年'!$H$3*dsin(C4)*PI()/180*(1+'2012年'!$H$3*DCOS(C4))) -> 1.019262253 | E4: =D4*'2012年'!$L$3/'2012年'!$H$4-'2012年'!$L$4 -> 0.03366357797 | F4: 0.1346543119 | G4: -0.01652479373 | H4: =adsin(dsin(B4)*dsin('2012年'!$J$2)) -> -22.81516483 | I4: =IF(270<=B4,ATAN(dtan(B4)*DCOS('2012年'!$J$2))/PI()*180+360,IF(B4>90,ATAN(dtan(B4)*DCOS('2012年'!$J$2))/PI()*180+180,ATAN(dtan(B4)*DCOS('2012年'!$J$2))/PI()*180)) -> 284.0088301 | J4: 4.463115939 | K4: 0.3222759428 | L4: 4.446591146 | M4: 0.4569302546 | N4: =adcos((-dsin(検索入力!$A$7)*dsin(H4)-dsin(出没角_度))/(DCOS(検索入力!$A$7)*DCOS(H4))) -> 73.91371095 | O4: 07:01:05.391 | P4: =ATAN((-dsin(検索入力!$A$7)*DCOS(N4*0.75+N3*0.25)*DCOS(H4*0.75+H3*0.25)+DCOS(検索入力!$A$7)*dsin(H4*0.75+H3*0.25))/(dsin(N4*0.75+N3*0.25)*DCOS(H4*0.75+H3*0.25)))/PI()*180 -> -27.68446184 | Q4: =(12+(L4+'2012年'!$J$3)/60)/24 -> 11:56:46.787 | R4: 16:52:38.153 | S4: =ATAN((-dsin(検索入力!$A$7)*DCOS(N4*0.75+N5*0.25)*DCOS(H4*0.75+H5*0.25)+DCOS(検索入力!$A$7)*dsin(H4*0.75+H5*0.25))/(dsin(N4*0.75+N5*0.25)*DCOS(H4*0.75+H5*0.25)))/PI()*180 -> -27.62198821 | T4: 09:51:32.763
A5: 2013-01-04T12:00:00 | B5: =IF(B4+(A5-A4)*D4/'2012年'!$H$4*'2012年'!$L$3<360,B4+(A5-A4)*D4/'2012年'!$H$4*'2012年'!$L$3,B4+(A5-A4)*D4/'2012年'!$H$4*'2012年'!$L$3-360) -> 283.9123621 | C5: 0.8945035513 | D5: ='2012年'!$H$4*(1+'2012年'!$H$3*DCOS(C5))^2*(1-'2012年'!$H$3*dsin(C5)*PI()/180*(1+'2012年'!$H$3*DCOS(C5))) -> 1.019252867 | E5: =D5*'2012年'!$L$3/'2012年'!$H$4-'2012年'!$L$4 -> 0.03365419208 | F5: 0.1346167683 | G5: 0.1181295182 | H5: =adsin(dsin(B5)*dsin('2012年'!$J$2)) -> -22.71324123 | I5: =IF(270<=B5,ATAN(dtan(B5)*DCOS('2012年'!$J$2))/PI()*180+360,IF(B5>90,ATAN(dtan(B5)*DCOS('2012年'!$J$2))/PI()*180+180,ATAN(dtan(B5)*DCOS('2012年'!$J$2))/PI()*180)) -> 285.10871 | J5: 4.785391882 | K5: 0.3154854949 | L5: 4.9035214 | M5: 0.4501022632 | N5: =adcos((-dsin(検索入力!$A$7)*dsin(H5)-dsin(出没角_度))/(DCOS(検索入力!$A$7)*DCOS(H5))) -> 74.00073004 | O5: 07:01:12.395 | P5: =ATAN((-dsin(検索入力!$A$7)*DCOS(N5*0.75+N4*0.25)*DCOS(H5*0.75+H4*0.25)+DCOS(検索入力!$A$7)*dsin(H5*0.75+H4*0.25))/(dsin(N5*0.75+N4*0.25)*DCOS(H5*0.75+H4*0.25)))/PI()*180 -> -27.55712189 | Q5: =(12+(L5+'2012年'!$J$3)/60)/24 -> 11:57:14.203 | R5: 16:53:26.725 | S5: =ATAN((-dsin(検索入力!$A$7)*DCOS(N5*0.75+N6*0.25)*DCOS(H5*0.75+H6*0.25)+DCOS(検索入力!$A$7)*dsin(H5*0.75+H6*0.25))/(dsin(N5*0.75+N6*0.25)*DCOS(H5*0.75+H6*0.25)))/PI()*180 -> -27.48988279 | T5: 09:52:14.330
A6: 2013-01-05T12:00:00 | B6: =IF(B5+(A6-A5)*D5/'2012年'!$H$4*'2012年'!$L$3<360,B5+(A6-A5)*D5/'2012年'!$H$4*'2012年'!$L$3,B5+(A6-A5)*D5/'2012年'!$H$4*'2012年'!$L$3-360) -> 284.9316636 | C6: 1.913756419 | D6: ='2012年'!$H$4*(1+'2012年'!$H$3*DCOS(C6))^2*(1-'2012年'!$H$3*dsin(C6)*PI()/180*(1+'2012年'!$H$3*DCOS(C6))) -> 1.019232876 | E6: =D6*'2012年'!$L$3/'2012年'!$H$4-'2012年'!$L$4 -> 0.03363420022 | F6: 0.1345368009 | G6: 0.2527462865 | H6: =adsin(dsin(B6)*dsin('2012年'!$J$2)) -> -22.60381006 | I6: =IF(270<=B6,ATAN(dtan(B6)*DCOS('2012年'!$J$2))/PI()*180+360,IF(B6>90,ATAN(dtan(B6)*DCOS('2012年'!$J$2))/PI()*180+180,ATAN(dtan(B6)*DCOS('2012年'!$J$2))/PI()*180)) -> 286.206883 | J6: 5.100877377 | K6: 0.3082619444 | L6: 5.353623664 | M6: 0.4427987452 | N6: =adcos((-dsin(検索入力!$A$7)*dsin(H6)-dsin(出没角_度))/(DCOS(検索入力!$A$7)*DCOS(H6))) -> 74.09397671 | O6: 07:01:17.498 | P6: =ATAN((-dsin(検索入力!$A$7)*DCOS(N6*0.75+N5*0.25)*DCOS(H6*0.75+H5*0.25)+DCOS(検索入力!$A$7)*dsin(H6*0.75+H5*0.25))/(dsin(N6*0.75+N5*0.25)*DCOS(H6*0.75+H5*0.25)))/PI()*180 -> -27.4202699 | Q6: =(12+(L6+'2012年'!$J$3)/60)/24 -> 11:57:41.209 | R6: 16:54:16.369 | S6: =ATAN((-dsin(検索入力!$A$7)*DCOS(N6*0.75+N7*0.25)*DCOS(H6*0.75+H7*0.25)+DCOS(検索入力!$A$7)*dsin(H6*0.75+H7*0.25))/(dsin(N6*0.75+N7*0.25)*DCOS(H6*0.75+H7*0.25)))/PI()*180 -> -27.34830448 | T6: 09:52:58.871
A7: 2013-01-06T12:00:00 | B7: =IF(B6+(A7-A6)*D6/'2012年'!$H$4*'2012年'!$L$3<360,B6+(A7-A6)*D6/'2012年'!$H$4*'2012年'!$L$3,B6+(A7-A6)*D6/'2012年'!$H$4*'2012年'!$L$3-360) -> 285.9509452 | C7: 2.932989295 | D7: ='2012年'!$H$4*(1+'2012年'!$H$3*DCOS(C7))^2*(1-'2012年'!$H$3*dsin(C7)*PI()/180*(1+'2012年'!$H$3*DCOS(C7))) -> 1.019202287 | E7: =D7*'2012年'!$L$3/'2012年'!$H$4-'2012年'!$L$4 -> 0.03360360985 | F7: 0.1344144394 | G7: 0.3872830874 | H7: =adsin(dsin(B7)*dsin('2012年'!$J$2)) -> -22.48692491 | I7: =IF(270<=B7,ATAN(dtan(B7)*DCOS('2012年'!$J$2))/PI()*180+360,IF(B7>90,ATAN(dtan(B7)*DCOS('2012年'!$J$2))/PI()*180+180,ATAN(dtan(B7)*DCOS('2012年'!$J$2))/PI()*180)) -> 287.30323 | J7: 5.409139321 | K7: 0.3006190711 | L7: 5.796422409 | M7: 0.4350335105 | N7: =adcos((-dsin(検索入力!$A$7)*dsin(H7)-dsin(出没角_度))/(DCOS(検索入力!$A$7)*DCOS(H7))) -> 74.19336832 | O7: 07:01:20.690 | P7: =ATAN((-dsin(検索入力!$A$7)*DCOS(N7*0.75+N6*0.25)*DCOS(H7*0.75+H6*0.25)+DCOS(検索入力!$A$7)*dsin(H7*0.75+H6*0.25))/(dsin(N7*0.75+N6*0.25)*DCOS(H7*0.75+H6*0.25)))/PI()*180 -> -27.27398546 | Q7: =(12+(L7+'2012年'!$J$3)/60)/24 -> 11:58:07.777 | R7: 16:55:07.038 | S7: =ATAN((-dsin(検索入力!$A$7)*DCOS(N7*0.75+N8*0.25)*DCOS(H7*0.75+H8*0.25)+DCOS(検索入力!$A$7)*dsin(H7*0.75+H8*0.25))/(dsin(N7*0.75+N8*0.25)*DCOS(H7*0.75+H8*0.25)))/PI()*180 -> -27.19733543 | T7: 09:53:46.348
A8: 2013-01-07T12:00:00 | B8: =IF(B7+(A8-A7)*D7/'2012年'!$H$4*'2012年'!$L$3<360,B7+(A8-A7)*D7/'2012年'!$H$4*'2012年'!$L$3,B7+(A8-A7)*D7/'2012年'!$H$4*'2012年'!$L$3-360) -> 286.9701962 | C8: 3.952191582 | D8: ='2012年'!$H$4*(1+'2012年'!$H$3*DCOS(C8))^2*(1-'2012年'!$H$3*dsin(C8)*PI()/180*(1+'2012年'!$H$3*DCOS(C8))) -> 1.019161112 | E8: =D8*'2012年'!$L$3/'2012年'!$H$4-'2012年'!$L$4 -> 0.03356243241 | F8: 0.1342497296 | G8: 0.5216975268 | H8: =adsin(dsin(B8)*dsin('2012年'!$J$2)) -> -22.36264291 | I8: =IF(270<=B8,ATAN(dtan(B8)*DCOS('2012年'!$J$2))/PI()*180+360,IF(B8>90,ATAN(dtan(B8)*DCOS('2012年'!$J$2))/PI()*180+180,ATAN(dtan(B8)*DCOS('2012年'!$J$2))/PI()*180)) -> 288.3976358 | J8: 5.709758392 | K8: 0.2925713496 | L8: 6.231455919 | M8: 0.4268210792 | N8: =adcos((-dsin(検索入力!$A$7)*dsin(H8)-dsin(出没角_度))/(DCOS(検索入力!$A$7)*DCOS(H8))) -> 74.29881763 | O8: 07:01:21.965 | P8: =ATAN((-dsin(検索入力!$A$7)*DCOS(N8*0.75+N7*0.25)*DCOS(H8*0.75+H7*0.25)+DCOS(検索入力!$A$7)*dsin(H8*0.75+H7*0.25))/(dsin(N8*0.75+N7*0.25)*DCOS(H8*0.75+H7*0.25)))/PI()*180 -> -27.11835325 | Q8: =(12+(L8+'2012年'!$J$3)/60)/24 -> 11:58:33.879 | R8: 16:55:58.683 | S8: =ATAN((-dsin(検索入力!$A$7)*DCOS(N8*0.75+N9*0.25)*DCOS(H8*0.75+H9*0.25)+DCOS(検索入力!$A$7)*dsin(H8*0.75+H9*0.25))/(dsin(N8*0.75+N9*0.25)*DCOS(H8*0.75+H9*0.25)))/PI()*180 -> -27.03706278 | T8: 09:54:36.718
A9: 2013-01-08T12:00:00 | B9: =IF(B8+(A9-A8)*D8/'2012年'!$H$4*'2012年'!$L$3<360,B8+(A9-A8)*D8/'2012年'!$H$4*'2012年'!$L$3,B8+(A9-A8)*D8/'2012年'!$H$4*'2012年'!$L$3-360) -> 287.9894059 | C9: 4.971352694 | D9: ='2012年'!$H$4*(1+'2012年'!$H$3*DCOS(C9))^2*(1-'2012年'!$H$3*dsin(C9)*PI()/180*(1+'2012年'!$H$3*DCOS(C9))) -> 1.019109365 | E9: =D9*'2012年'!$L$3/'2012年'!$H$4-'2012年'!$L$4 -> 0.03351068328 | F9: 0.1340427331 | G9: 0.6559472564 | H9: =adsin(dsin(B9)*dsin('2012年'!$J$2)) -> -22.23102467 | I9: =IF(270<=B9,ATAN(dtan(B9)*DCOS('2012年'!$J$2))/PI()*180+360,IF(B9>90,ATAN(dtan(B9)*DCOS('2012年'!$J$2))/PI()*180+180,ATAN(dtan(B9)*DCOS('2012年'!$J$2))/PI()*180)) -> 289.4899884 | J9: 6.002329742 | K9: 0.2841339004 | L9: 6.658276998 | M9: 0.4181766335 | N9: =adcos((-dsin(検索入力!$A$7)*dsin(H9)-dsin(出没角_度))/(DCOS(検索入力!$A$7)*DCOS(H9))) -> 74.41023312 | O9: 07:01:21.315 | P9: =ATAN((-dsin(検索入力!$A$7)*DCOS(N9*0.75+N8*0.25)*DCOS(H9*0.75+H8*0.25)+DCOS(検索入力!$A$7)*dsin(H9*0.75+H8*0.25))/(dsin(N9*0.75+N8*0.25)*DCOS(H9*0.75+H8*0.25)))/PI()*180 -> -26.95346285 | Q9: =(12+(L9+'2012年'!$J$3)/60)/24 -> 11:58:59.489 | R9: 16:56:51.254 | S9: =ATAN((-dsin(検索入力!$A$7)*DCOS(N9*0.75+N10*0.25)*DCOS(H9*0.75+H10*0.25)+DCOS(検索入力!$A$7)*dsin(H9*0.75+H10*0.25))/(dsin(N9*0.75+N10*0.25)*DCOS(H9*0.75+H10*0.25)))/PI()*180 -> -26.8675785 | T9: 09:55:29.939
A10: 2013-01-09T12:00:00 | B10: =IF(B9+(A10-A9)*D9/'2012年'!$H$4*'2012年'!$L$3<360,B9+(A10-A9)*D9/'2012年'!$H$4*'2012年'!$L$3,B9+(A10-A9)*D9/'2012年'!$H$4*'2012年'!$L$3-360) -> 289.008564 | C10: 5.99046206 | D10: ='2012年'!$H$4*(1+'2012年'!$H$3*DCOS(C10))^2*(1-'2012年'!$H$3*dsin(C10)*PI()/180*(1+'2012年'!$H$3*DCOS(C10))) -> 1.019047067 | E10: =D10*'2012年'!$L$3/'2012年'!$H$4-'2012年'!$L$4 -> 0.03344838179 | F10: 0.1337935271 | G10: 0.7899899895 | H10: =adsin(dsin(B10)*dsin('2012年'!$J$2)) -> -22.09213416 | I10: =IF(270<=B10,ATAN(dtan(B10)*DCOS('2012年'!$J$2))/PI()*180+360,IF(B10>90,ATAN(dtan(B10)*DCOS('2012年'!$J$2))/PI()*180+180,ATAN(dtan(B10)*DCOS('2012年'!$J$2))/PI()*180)) -> 290.5801799 | J10: 6.286463642 | K10: 0.2753224394 | L10: 7.076453632 | M10: 0.4091159665 | N10: =adcos((-dsin(検索入力!$A$7)*dsin(H10)-dsin(出没角_度))/(DCOS(検索入力!$A$7)*DCOS(H10))) -> 74.52751921 | O10: 07:01:18.739 | P10: =ATAN((-dsin(検索入力!$A$7)*DCOS(N10*0.75+N9*0.25)*DCOS(H10*0.75+H9*0.25)+DCOS(検索入力!$A$7)*dsin(H10*0.75+H9*0.25))/(dsin(N10*0.75+N9*0.25)*DCOS(H10*0.75+H9*0.25)))/PI()*180 -> -26.77940854 | Q10: =(12+(L10+'2012年'!$J$3)/60)/24 -> 11:59:24.579 | R10: 16:57:44.704 | S10: =ATAN((-dsin(検索入力!$A$7)*DCOS(N10*0.75+N11*0.25)*DCOS(H10*0.75+H11*0.25)+DCOS(検索入力!$A$7)*dsin(H10*0.75+H11*0.25))/(dsin(N10*0.75+N11*0.25)*DCOS(H10*0.75+H11*0.25)))/PI()*180 -> -26.68897918 | T10: 09:56:25.965
A11: 2013-01-10T12:00:00 | B11: =IF(B10+(A11-A10)*D10/'2012年'!$H$4*'2012年'!$L$3<360,B10+(A11-A10)*D10/'2012年'!$H$4*'2012年'!$L$3,B10+(A11-A10)*D10/'2012年'!$H$4*'2012年'!$L$3-360) -> 290.0276597 | C11: 7.009509126 | D11: ='2012年'!$H$4*(1+'2012年'!$H$3*DCOS(C11))^2*(1-'2012年'!$H$3*dsin(C11)*PI()/180*(1+'2012年'!$H$3*DCOS(C11))) -> 1.01897424 | E11: =D11*'2012年'!$L$3/'2012年'!$H$4-'2012年'!$L$4 -> 0.03337555118 | F11: 0.1335022047 | G11: 0.9237835167 | H11: =adsin(dsin(B11)*dsin('2012年'!$J$2)) -> -21.94603861 | I11: =IF(270<=B11,ATAN(dtan(B11)*DCOS('2012年'!$J$2))/PI()*180+360,IF(B11>90,ATAN(dtan(B11)*DCOS('2012年'!$J$2))/PI()*180+180,ATAN(dtan(B11)*DCOS('2012年'!$J$2))/PI()*180)) -> 291.6681062 | J11: 6.561786082 | K11: 0.2661532269 | L11: 7.485569598 | M11: 0.3996554317 | N11: =adcos((-dsin(検索入力!$A$7)*dsin(H11)-dsin(出没角_度))/(DCOS(検索入力!$A$7)*DCOS(H11))) -> 74.65057657 | O11: 07:01:14.235 | P11: =ATAN((-dsin(検索入力!$A$7)*DCOS(N11*0.75+N10*0.25)*DCOS(H11*0.75+H10*0.25)+DCOS(検索入力!$A$7)*dsin(H11*0.75+H10*0.25))/(dsin(N11*0.75+N10*0.25)*DCOS(H11*0.75+H10*0.25)))/PI()*180 -> -26.59628917 | Q11: =(12+(L11+'2012年'!$J$3)/60)/24 -> 11:59:49.126 | R11: 16:58:38.983 | S11: =ATAN((-dsin(検索入力!$A$7)*DCOS(N11*0.75+N12*0.25)*DCOS(H11*0.75+H12*0.25)+DCOS(検索入力!$A$7)*dsin(H11*0.75+H12*0.25))/(dsin(N11*0.75+N12*0.25)*DCOS(H11*0.75+H12*0.25)))/PI()*180 -> -26.50136582 | T11: 09:57:24.748
A12: 2013-01-11T12:00:00 | B12: =IF(B11+(A12-A11)*D11/'2012年'!$H$4*'2012年'!$L$3<360,B11+(A12-A11)*D11/'2012年'!$H$4*'2012年'!$L$3,B11+(A12-A11)*D11/'2012年'!$H$4*'2012年'!$L$3-360) -> 291.0466826 | C12: 8.028483366 | D12: ='2012年'!$H$4*(1+'2012年'!$H$3*DCOS(C12))^2*(1-'2012年'!$H$3*dsin(C12)*PI()/180*(1+'2012年'!$H$3*DCOS(C12))) -> 1.018890911 | E12: =D12*'2012年'!$L$3/'2012年'!$H$4-'2012年'!$L$4 -> 0.03329221864 | F12: 0.1331688746 | G12: 1.057285721 | H12: =adsin(dsin(B12)*dsin('2012年'!$J$2)) -> -21.79280844 | I12: =IF(270<=B12,ATAN(dtan(B12)*DCOS('2012年'!$J$2))/PI()*180+360,IF(B12>90,ATAN(dtan(B12)*DCOS('2012年'!$J$2))/PI()*180+180,ATAN(dtan(B12)*DCOS('2012年'!$J$2))/PI()*180)) -> 292.7536675 | J12: 6.827939309 | K12: 0.2566430155 | L12: 7.88522503 | M12: 0.3898118901 | N12: =adcos((-dsin(検索入力!$A$7)*dsin(H12)-dsin(出没角_度))/(DCOS(検索入力!$A$7)*DCOS(H12))) -> 74.77930242 | O12: 07:01:07.802 | P12: =ATAN((-dsin(検索入力!$A$7)*DCOS(N12*0.75+N11*0.25)*DCOS(H12*0.75+H11*0.25)+DCOS(検索入力!$A$7)*dsin(H12*0.75+H11*0.25))/(dsin(N12*0.75+N11*0.25)*DCOS(H12*0.75+H11*0.25)))/PI()*180 -> -26.40420788 | Q12: =(12+(L12+'2012年'!$J$3)/60)/24 -> 12:00:13.106 | R12: 16:59:34.043 | S12: =ATAN((-dsin(検索入力!$A$7)*DCOS(N12*0.75+N13*0.25)*DCOS(H12*0.75+H13*0.25)+DCOS(検索入力!$A$7)*dsin(H12*0.75+H13*0.25))/(dsin(N12*0.75+N13*0.25)*DCOS(H12*0.75+H13*0.25)))/PI()*180 -> -26.30484367 | T12: 09:58:26.241
A13: 2013-01-12T12:00:00 | B13: =IF(B12+(A13-A12)*D12/'2012年'!$H$4*'2012年'!$L$3<360,B12+(A13-A12)*D12/'2012年'!$H$4*'2012年'!$L$3,B12+(A13-A12)*D12/'2012年'!$H$4*'2012年'!$L$3-360) -> 292.0656222 | C13: 9.047374277 | D13: ='2012年'!$H$4*(1+'2012年'!$H$3*DCOS(C13))^2*(1-'2012年'!$H$3*dsin(C13)*PI()/180*(1+'2012年'!$H$3*DCOS(C13))) -> 1.018797112 | E13: =D13*'2012年'!$L$3/'2012年'!$H$4-'2012年'!$L$4 -> 0.03319841524 | F13: 0.132793661 | G13: 1.190454596 | H13: =adsin(dsin(B13)*dsin('2012年'!$J$2)) -> -21.63251712 | I13: =IF(270<=B13,ATAN(dtan(B13)*DCOS('2012年'!$J$2))/PI()*180+360,IF(B13>90,ATAN(dtan(B13)*DCOS('2012年'!$J$2))/PI()*180+180,ATAN(dtan(B13)*DCOS('2012年'!$J$2))/PI()*180)) -> 293.8367678 | J13: 7.084582324 | K13: 0.2468089976 | L13: 8.27503692 | M13: 0.3796026586 | N13: =adcos((-dsin(検索入力!$A$7)*dsin(H13)-dsin(出没角_度))/(DCOS(検索入力!$A$7)*DCOS(H13))) -> 74.91359079 | O13: 07:00:59.443 | P13: =ATAN((-dsin(検索入力!$A$7)*DCOS(N13*0.75+N12*0.25)*DCOS(H13*0.75+H12*0.25)+DCOS(検索入力!$A$7)*dsin(H13*0.75+H12*0.25))/(dsin(N13*0.75+N12*0.25)*DCOS(H13*0.75+H12*0.25)))/PI()*180 -> -26.20327194 | Q13: =(12+(L13+'2012年'!$J$3)/60)/24 -> 12:00:36.494 | R13: 17:00:29.835 | S13: =ATAN((-dsin(検索入力!$A$7)*DCOS(N13*0.75+N14*0.25)*DCOS(H13*0.75+H14*0.25)+DCOS(検索入力!$A$7)*dsin(H13*0.75+H14*0.25))/(dsin(N13*0.75+N14*0.25)*DCOS(H13*0.75+H14*0.25)))/PI()*180 -> -26.099522 | T13: 09:59:30.392
A14: 2013-01-13T12:00:00 | B14: =IF(B13+(A14-A13)*D13/'2012年'!$H$4*'2012年'!$L$3<360,B13+(A14-A13)*D13/'2012年'!$H$4*'2012年'!$L$3,B13+(A14-A13)*D13/'2012年'!$H$4*'2012年'!$L$3-360) -> 293.084468 | C14: 10.06617139 | D14: ='2012年'!$H$4*(1+'2012年'!$H$3*DCOS(C14))^2*(1-'2012年'!$H$3*dsin(C14)*PI()/180*(1+'2012年'!$H$3*DCOS(C14))) -> 1.018692878 | E14: =D14*'2012年'!$L$3/'2012年'!$H$4-'2012年'!$L$4 -> 0.03309417595 | F14: 0.1323767038 | G14: 1.323248257 | H14: =adsin(dsin(B14)*dsin('2012年'!$J$2)) -> -21.46524108 | I14: =IF(270<=B14,ATAN(dtan(B14)*DCOS('2012年'!$J$2))/PI()*180+360,IF(B14>90,ATAN(dtan(B14)*DCOS('2012年'!$J$2))/PI()*180+180,ATAN(dtan(B14)*DCOS('2012年'!$J$2))/PI()*180)) -> 294.9173158 | J14: 7.331391322 | K14: 0.2366687533 | L14: 8.654639579 | M14: 0.3690454571 | N14: =adcos((-dsin(検索入力!$A$7)*dsin(H14)-dsin(出没角_度))/(DCOS(検索入力!$A$7)*DCOS(H14))) -> 75.05333281 | O14: 07:00:49.161 | P14: =ATAN((-dsin(検索入力!$A$7)*DCOS(N14*0.75+N13*0.25)*DCOS(H14*0.75+H13*0.25)+DCOS(検索入力!$A$7)*dsin(H14*0.75+H13*0.25))/(dsin(N14*0.75+N13*0.25)*DCOS(H14*0.75+H13*0.25)))/PI()*180 -> -25.99359256 | Q14: =(12+(L14+'2012年'!$J$3)/60)/24 -> 12:00:59.270 | R14: 17:01:26.311 | S14: =ATAN((-dsin(検索入力!$A$7)*DCOS(N14*0.75+N15*0.25)*DCOS(H14*0.75+H15*0.25)+DCOS(検索入力!$A$7)*dsin(H14*0.75+H15*0.25))/(dsin(N14*0.75+N15*0.25)*DCOS(H14*0.75+H15*0.25)))/PI()*180 -> -25.88551388 | T14: 10:00:37.150
A15: 2013-01-14T12:00:00 | B15: =IF(B14+(A15-A14)*D14/'2012年'!$H$4*'2012年'!$L$3<360,B14+(A15-A14)*D14/'2012年'!$H$4*'2012年'!$L$3,B14+(A15-A14)*D14/'2012年'!$H$4*'2012年'!$L$3-360) -> 294.1032095 | C15: 11.08486427 | D15: ='2012年'!$H$4*(1+'2012年'!$H$3*DCOS(C15))^2*(1-'2012年'!$H$3*dsin(C15)*PI()/180*(1+'2012年'!$H$3*DCOS(C15))) -> 1.018578247 | E15: =D15*'2012年'!$L$3/'2012年'!$H$4-'2012年'!$L$4 -> 0.03297953957 | F15: 0.1319181583 | G15: 1.455624961 | H15: =adsin(dsin(B15)*dsin('2012年'!$J$2)) -> -21.2910596 | I15: =IF(270<=B15,ATAN(dtan(B15)*DCOS('2012年'!$J$2))/PI()*180+360,IF(B15>90,ATAN(dtan(B15)*DCOS('2012年'!$J$2))/PI()*180+180,ATAN(dtan(B15)*DCOS('2012年'!$J$2))/PI()*180)) -> 295.9952245 | J15: 7.568060075 | K15: 0.2262401979 | L15: 9.023685036 | M15: 0.3581583562 | N15: =adcos((-dsin(検索入力!$A$7)*dsin(H15)-dsin(出没角_度))/(DCOS(検索入力!$A$7)*DCOS(H15))) -> 75.19841706 | O15: 07:00:36.962 | P15: =ATAN((-dsin(検索入力!$A$7)*DCOS(N15*0.75+N14*0.25)*DCOS(H15*0.75+H14*0.25)+DCOS(検索入力!$A$7)*dsin(H15*0.75+H14*0.25))/(dsin(N15*0.75+N14*0.25)*DCOS(H15*0.75+H14*0.25)))/PI()*180 -> -25.77528464 | Q15: =(12+(L15+'2012年'!$J$3)/60)/24 -> 12:01:21.413 | R15: 17:02:23.424 | S15: =ATAN((-dsin(検索入力!$A$7)*DCOS(N15*0.75+N16*0.25)*DCOS(H15*0.75+H16*0.25)+DCOS(検索入力!$A$7)*dsin(H15*0.75+H16*0.25))/(dsin(N15*0.75+N16*0.25)*DCOS(H15*0.75+H16*0.25)))/PI()*180 -> -25.66293599 | T15: 10:01:46.462
A16: 2013-01-15T12:00:00 | B16: =IF(B15+(A16-A15)*D15/'2012年'!$H$4*'2012年'!$L$3<360,B15+(A16-A15)*D15/'2012年'!$H$4*'2012年'!$L$3,B15+(A16-A15)*D15/'2012年'!$H$4*'2012年'!$L$3-360) -> 295.1218364 | C16: 12.10344251 | D16: ='2012年'!$H$4*(1+'2012年'!$H$3*DCOS(C16))^2*(1-'2012年'!$H$3*dsin(C16)*PI()/180*(1+'2012年'!$H$3*DCOS(C16))) -> 1.018453262 | E16: =D16*'2012年'!$L$3/'2012年'!$H$4-'2012年'!$L$4 -> 0.03285454879 | F16: 0.1314181952 | G16: 1.587543119 | H16: =adsin(dsin(B16)*dsin('2012年'!$J$2)) -> -21.1100547 | I16: =IF(270<=B16,ATAN(dtan(B16)*DCOS('2012年'!$J$2))/PI()*180+360,IF(B16>90,ATAN(dtan(B16)*DCOS('2012年'!$J$2))/PI()*180+180,ATAN(dtan(B16)*DCOS('2012年'!$J$2))/PI()*180)) -> 297.0704115 | J16: 7.794300273 | K16: 0.2155415302 | L16: 9.381843392 | M16: 0.3469597254 | N16: =adcos((-dsin(検索入力!$A$7)*dsin(H16)-dsin(出没角_度))/(DCOS(検索入力!$A$7)*DCOS(H16))) -> 75.34872978 | O16: 07:00:22.854 | P16: =ATAN((-dsin(検索入力!$A$7)*DCOS(N16*0.75+N15*0.25)*DCOS(H16*0.75+H15*0.25)+DCOS(検索入力!$A$7)*dsin(H16*0.75+H15*0.25))/(dsin(N16*0.75+N15*0.25)*DCOS(H16*0.75+H15*0.25)))/PI()*180 -> -25.5484666 | Q16: =(12+(L16+'2012年'!$J$3)/60)/24 -> 12:01:42.903 | R16: 17:03:21.128 | S16: =ATAN((-dsin(検索入力!$A$7)*DCOS(N16*0.75+N17*0.25)*DCOS(H16*0.75+H17*0.25)+DCOS(検索入力!$A$7)*dsin(H16*0.75+H17*0.25))/(dsin(N16*0.75+N17*0.25)*DCOS(H16*0.75+H17*0.25)))/PI()*180 -> -25.43190842 | T16: 10:02:58.274
A17: 2013-01-16T12:00:00 | B17: =IF(B16+(A17-A16)*D16/'2012年'!$H$4*'2012年'!$L$3<360,B16+(A17-A16)*D16/'2012年'!$H$4*'2012年'!$L$3,B16+(A17-A16)*D16/'2012年'!$H$4*'2012年'!$L$3-360) -> 296.1403383 | C17: 13.12189578 | D17: ='2012年'!$H$4*(1+'2012年'!$H$3*DCOS(C17))^2*(1-'2012年'!$H$3*dsin(C17)*PI()/180*(1+'2012年'!$H$3*DCOS(C17))) -> 1.01831797 | E17: =D17*'2012年'!$L$3/'2012年'!$H$4-'2012年'!$L$4 -> 0.03271925008 | F17: 0.1308770003 | G17: 1.718961314 | H17: =adsin(dsin(B17)*dsin('2012年'!$J$2)) -> -20.92231101 | I17: =IF(270<=B17,ATAN(dtan(B17)*DCOS('2012年'!$J$2))/PI()*180+360,IF(B17>90,ATAN(dtan(B17)*DCOS('2012年'!$J$2))/PI()*180+180,ATAN(dtan(B17)*DCOS('2012年'!$J$2))/PI()*180)) -> 298.1427988 | J17: 8.009841803 | K17: 0.2045911812 | L17: 9.728803117 | M17: 0.3354681816 | N17: =adcos((-dsin(検索入力!$A$7)*dsin(H17)-dsin(出没角_度))/(DCOS(検索入力!$A$7)*DCOS(H17))) -> 75.50415522 | O17: 07:00:06.844 | P17: =ATAN((-dsin(検索入力!$A$7)*DCOS(N17*0.75+N16*0.25)*DCOS(H17*0.75+H16*0.25)+DCOS(検索入力!$A$7)*dsin(H17*0.75+H16*0.25))/(dsin(N17*0.75+N16*0.25)*DCOS(H17*0.75+H16*0.25)))/PI()*180 -> -25.31326014 | Q17: =(12+(L17+'2012年'!$J$3)/60)/24 -> 12:02:03.720 | R17: 17:04:19.375 | S17: =ATAN((-dsin(検索入力!$A$7)*DCOS(N17*0.75+N18*0.25)*DCOS(H17*0.75+H18*0.25)+DCOS(検索入力!$A$7)*dsin(H17*0.75+H18*0.25))/(dsin(N17*0.75+N18*0.25)*DCOS(H17*0.75+H18*0.25)))/PI()*180 -> -25.19255445 | T17: 10:04:12.531
A18: 2013-01-17T12:00:00 | B18: =IF(B17+(A18-A17)*D17/'2012年'!$H$4*'2012年'!$L$3<360,B17+(A18-A17)*D17/'2012年'!$H$4*'2012年'!$L$3,B17+(A18-A17)*D17/'2012年'!$H$4*'2012年'!$L$3-360) -> 297.1587049 | C18: 14.14021375 | D18: ='2012年'!$H$4*(1+'2012年'!$H$3*DCOS(C18))^2*(1-'2012年'!$H$3*dsin(C18)*PI()/180*(1+'2012年'!$H$3*DCOS(C18))) -> 1.01817242 | E18: =D18*'2012年'!$L$3/'2012年'!$H$4-'2012年'!$L$4 -> 0.03257369371 | F18: 0.1302947748 | G18: 1.849838315 | H18: =adsin(dsin(B18)*dsin('2012年'!$J$2)) -> -20.7279157 | I18: =IF(270<=B18,ATAN(dtan(B18)*DCOS('2012年'!$J$2))/PI()*180+360,IF(B18>90,ATAN(dtan(B18)*DCOS('2012年'!$J$2))/PI()*180+180,ATAN(dtan(B18)*DCOS('2012年'!$J$2))/PI()*180)) -> 299.2123132 | J18: 8.214432984 | K18: 0.193407764 | L18: 10.0642713 | M18: 0.3237025389 | N18: =adcos((-dsin(検索入力!$A$7)*dsin(H18)-dsin(出没角_度))/(DCOS(検索入力!$A$7)*DCOS(H18))) -> 75.66457589 | O18: 06:59:48.943 | P18: =ATAN((-dsin(検索入力!$A$7)*DCOS(N18*0.75+N17*0.25)*DCOS(H18*0.75+H17*0.25)+DCOS(検索入力!$A$7)*dsin(H18*0.75+H17*0.25))/(dsin(N18*0.75+N17*0.25)*DCOS(H18*0.75+H17*0.25)))/PI()*180 -> -25.06979005 | Q18: =(12+(L18+'2012年'!$J$3)/60)/24 -> 12:02:23.848 | R18: 17:05:18.120 | S18: =ATAN((-dsin(検索入力!$A$7)*DCOS(N18*0.75+N19*0.25)*DCOS(H18*0.75+H19*0.25)+DCOS(検索入力!$A$7)*dsin(H18*0.75+H19*0.25))/(dsin(N18*0.75+N19*0.25)*DCOS(H18*0.75+H19*0.25)))/PI()*180 -> -24.94500032 | T18: 10:05:29.177
A19: 2013-01-18T12:00:00 | B19: =IF(B18+(A19-A18)*D18/'2012年'!$H$4*'2012年'!$L$3<360,B18+(A19-A18)*D18/'2012年'!$H$4*'2012年'!$L$3,B18+(A19-A18)*D18/'2012年'!$H$4*'2012年'!$L$3-360) -> 298.176926 | C19: 15.15838617 | D19: ='2012年'!$H$4*(1+'2012年'!$H$3*DCOS(C19))^2*(1-'2012年'!$H$3*dsin(C19)*PI()/180*(1+'2012年'!$H$3*DCOS(C19))) -> 1.018016668 | E19: =D19*'2012年'!$L$3/'2012年'!$H$4-'2012年'!$L$4 -> 0.03241793372 | F19: 0.1296717349 | G19: 1.980133089 | H19: =adsin(dsin(B19)*dsin('2012年'!$J$2)) -> -20.52695831 | I19: =IF(270<=B19,ATAN(dtan(B19)*DCOS('2012年'!$J$2))/PI()*180+360,IF(B19>90,ATAN(dtan(B19)*DCOS('2012年'!$J$2))/PI()*180+180,ATAN(dtan(B19)*DCOS('2012年'!$J$2))/PI()*180)) -> 300.2788862 | J19: 8.407840748 | K19: 0.1820100245 | L19: 10.38797384 | M19: 0.3116817594 | N19: =adcos((-dsin(検索入力!$A$7)*dsin(H19)-dsin(出没角_度))/(DCOS(検索入力!$A$7)*DCOS(H19))) -> 75.82987287 | O19: 06:59:29.163 | P19: =ATAN((-dsin(検索入力!$A$7)*DCOS(N19*0.75+N18*0.25)*DCOS(H19*0.75+H18*0.25)+DCOS(検索入力!$A$7)*dsin(H19*0.75+H18*0.25))/(dsin(N19*0.75+N18*0.25)*DCOS(H19*0.75+H18*0.25)))/PI()*180 -> -24.81818397 | Q19: =(12+(L19+'2012年'!$J$3)/60)/24 -> 12:02:43.270 | R19: 17:06:17.318 | S19: =ATAN((-dsin(検索入力!$A$7)*DCOS(N19*0.75+N20*0.25)*DCOS(H19*0.75+H20*0.25)+DCOS(検索入力!$A$7)*dsin(H19*0.75+H20*0.25))/(dsin(N19*0.75+N20*0.25)*DCOS(H19*0.75+H20*0.25)))/PI()*180 -> -24.68937505 | T19: 10:06:48.155
A20: 2013-01-19T12:00:00 | B20: =IF(B19+(A20-A19)*D19/'2012年'!$H$4*'2012年'!$L$3<360,B19+(A20-A19)*D19/'2012年'!$H$4*'2012年'!$L$3,B19+(A20-A19)*D19/'2012年'!$H$4*'2012年'!$L$3-360) -> 299.1949913 | C20: 16.17640283 | D20: ='2012年'!$H$4*(1+'2012年'!$H$3*DCOS(C20))^2*(1-'2012年'!$H$3*dsin(C20)*PI()/180*(1+'2012年'!$H$3*DCOS(C20))) -> 1.01785077 | E20: =D20*'2012年'!$L$3/'2012年'!$H$4-'2012年'!$L$4 -> 0.03225202786 | F20: 0.1290081114 | G20: 2.109804824 | H20: =adsin(dsin(B20)*dsin('2012年'!$J$2)) -> -20.31953067 | I20: =IF(270<=B20,ATAN(dtan(B20)*DCOS('2012年'!$J$2))/PI()*180+360,IF(B20>90,ATAN(dtan(B20)*DCOS('2012年'!$J$2))/PI()*180+180,ATAN(dtan(B20)*DCOS('2012年'!$J$2))/PI()*180)) -> 301.342454 | J20: 8.589850773 | K20: 0.1704167937 | L20: 10.6996556 | M20: 0.2994249051 | N20: =adcos((-dsin(検索入力!$A$7)*dsin(H20)-dsin(出没角_度))/(DCOS(検索入力!$A$7)*DCOS(H20))) -> 75.99992603 | O20: 06:59:07.517 | P20: =ATAN((-dsin(検索入力!$A$7)*DCOS(N20*0.75+N19*0.25)*DCOS(H20*0.75+H19*0.25)+DCOS(検索入力!$A$7)*dsin(H20*0.75+H19*0.25))/(dsin(N20*0.75+N19*0.25)*DCOS(H20*0.75+H19*0.25)))/PI()*180 -> -24.55857226 | Q20: =(12+(L20+'2012年'!$J$3)/60)/24 -> 12:03:01.971 | R20: 17:07:16.926 | S20: =ATAN((-dsin(検索入力!$A$7)*DCOS(N20*0.75+N21*0.25)*DCOS(H20*0.75+H21*0.25)+DCOS(検索入力!$A$7)*dsin(H20*0.75+H21*0.25))/(dsin(N20*0.75+N21*0.25)*DCOS(H20*0.75+H21*0.25)))/PI()*180 -> -24.42581023 | T20: 10:08:09.409
A21: 2013-01-20T12:00:00 | B21: =IF(B20+(A21-A20)*D20/'2012年'!$H$4*'2012年'!$L$3<360,B20+(A21-A20)*D20/'2012年'!$H$4*'2012年'!$L$3,B20+(A21-A20)*D20/'2012年'!$H$4*'2012年'!$L$3-360) -> 300.2128907 | C21: 17.1942536 | D21: ='2012年'!$H$4*(1+'2012年'!$H$3*DCOS(C21))^2*(1-'2012年'!$H$3*dsin(C21)*PI()/180*(1+'2012年'!$H$3*DCOS(C21))) -> 1.017674788 | E21: =D21*'2012年'!$L$3/'2012年'!$H$4-'2012年'!$L$4 -> 0.03207603759 | F21: 0.1283041504 | G21: 2.238812936 | H21: =adsin(dsin(B21)*dsin('2012年'!$J$2)) -> -20.10572677 | I21: =IF(270<=B21,ATAN(dtan(B21)*DCOS('2012年'!$J$2))/PI()*180+360,IF(B21>90,ATAN(dtan(B21)*DCOS('2012年'!$J$2))/PI()*180+180,ATAN(dtan(B21)*DCOS('2012年'!$J$2))/PI()*180)) -> 302.4029576 | J21: 8.760267567 | K21: 0.1586469413 | L21: 10.9990805 | M21: 0.2869510917 | N21: =adcos((-dsin(検索入力!$A$7)*dsin(H21)-dsin(出没角_度))/(DCOS(検索入力!$A$7)*DCOS(H21))) -> 76.17461438 | O21: 06:58:44.019 | P21: =ATAN((-dsin(検索入力!$A$7)*DCOS(N21*0.75+N20*0.25)*DCOS(H21*0.75+H20*0.25)+DCOS(検索入力!$A$7)*dsin(H21*0.75+H20*0.25))/(dsin(N21*0.75+N20*0.25)*DCOS(H21*0.75+H20*0.25)))/PI()*180 -> -24.29108768 | Q21: =(12+(L21+'2012年'!$J$3)/60)/24 -> 12:03:19.937 | R21: 17:08:16.901 | S21: =ATAN((-dsin(検索入力!$A$7)*DCOS(N21*0.75+N22*0.25)*DCOS(H21*0.75+H22*0.25)+DCOS(検索入力!$A$7)*dsin(H21*0.75+H22*0.25))/(dsin(N21*0.75+N22*0.25)*DCOS(H21*0.75+H22*0.25)))/PI()*180 -> -24.15443979 | T21: 10:09:32.881
A22: 2013-01-21T12:00:00 | B22: =IF(B21+(A22-A21)*D21/'2012年'!$H$4*'2012年'!$L$3<360,B21+(A22-A21)*D21/'2012年'!$H$4*'2012年'!$L$3,B21+(A22-A21)*D21/'2012年'!$H$4*'2012年'!$L$3-360) -> 301.2306141 | C22: 18.21192839 | D22: ='2012年'!$H$4*(1+'2012年'!$H$3*DCOS(C22))^2*(1-'2012年'!$H$3*dsin(C22)*PI()/180*(1+'2012年'!$H$3*DCOS(C22))) -> 1.017488787 | E22: =D22*'2012年'!$L$3/'2012年'!$H$4-'2012年'!$L$4 -> 0.03189002803 | F22: 0.1275601121 | G22: 2.367117086 | H22: =adsin(dsin(B22)*dsin('2012年'!$J$2)) -> -19.88564268 | I22: =IF(270<=B22,ATAN(dtan(B22)*DCOS('2012年'!$J$2))/PI()*180+360,IF(B22>90,ATAN(dtan(B22)*DCOS('2012年'!$J$2))/PI()*180+180,ATAN(dtan(B22)*DCOS('2012年'!$J$2))/PI()*180)) -> 303.4603427 | J22: 8.918914508 | K22: 0.1467193311 | L22: 11.28603159 | M22: 0.2742794432 | N22: =adcos((-dsin(検索入力!$A$7)*dsin(H22)-dsin(出没角_度))/(DCOS(検索入力!$A$7)*DCOS(H22))) -> 76.35381624 | O22: 06:58:18.686 | P22: =ATAN((-dsin(検索入力!$A$7)*DCOS(N22*0.75+N21*0.25)*DCOS(H22*0.75+H21*0.25)+DCOS(検索入力!$A$7)*dsin(H22*0.75+H21*0.25))/(dsin(N22*0.75+N21*0.25)*DCOS(H22*0.75+H21*0.25)))/PI()*180 -> -24.0158653 | Q22: =(12+(L22+'2012年'!$J$3)/60)/24 -> 12:03:37.154 | R22: 17:09:17.200 | S22: =ATAN((-dsin(検索入力!$A$7)*DCOS(N22*0.75+N23*0.25)*DCOS(H22*0.75+H23*0.25)+DCOS(検索入力!$A$7)*dsin(H22*0.75+H23*0.25))/(dsin(N22*0.75+N23*0.25)*DCOS(H22*0.75+H23*0.25)))/PI()*180 -> -23.87539985 | T22: 10:10:58.514
A23: 2013-01-22T12:00:00 | B23: =IF(B22+(A23-A22)*D22/'2012年'!$H$4*'2012年'!$L$3<360,B22+(A23-A22)*D22/'2012年'!$H$4*'2012年'!$L$3,B22+(A23-A22)*D22/'2012年'!$H$4*'2012年'!$L$3-360) -> 302.2481514 | C23: 19.22941718 | D23: ='2012年'!$H$4*(1+'2012年'!$H$3*DCOS(C23))^2*(1-'2012年'!$H$3*dsin(C23)*PI()/180*(1+'2012年'!$H$3*DCOS(C23))) -> 1.017292837 | E23: =D23*'2012年'!$L$3/'2012年'!$H$4-'2012年'!$L$4 -> 0.03169406793 | F23: 0.1267762717 | G23: 2.494677198 | H23: =adsin(dsin(B23)*dsin('2012年'!$J$2)) -> -19.65937638 | I23: =IF(270<=B23,ATAN(dtan(B23)*DCOS('2012年'!$J$2))/PI()*180+360,IF(B23>90,ATAN(dtan(B23)*DCOS('2012年'!$J$2))/PI()*180+180,ATAN(dtan(B23)*DCOS('2012年'!$J$2))/PI()*180)) -> 304.5145599 | J23: 9.065633839 | K23: 0.1346527781 | L23: 11.56031104 | M23: 0.2614290498 | N23: =adcos((-dsin(検索入力!$A$7)*dsin(H23)-dsin(出没角_度))/(DCOS(検索入力!$A$7)*DCOS(H23))) -> 76.53740955 | O23: 06:57:51.534 | P23: =ATAN((-dsin(検索入力!$A$7)*DCOS(N23*0.75+N22*0.25)*DCOS(H23*0.75+H22*0.25)+DCOS(検索入力!$A$7)*dsin(H23*0.75+H22*0.25))/(dsin(N23*0.75+N22*0.25)*DCOS(H23*0.75+H22*0.25)))/PI()*180 -> -23.73304222 | Q23: =(12+(L23+'2012年'!$J$3)/60)/24 -> 12:03:53.611 | R23: 17:10:17.782 | S23: =ATAN((-dsin(検索入力!$A$7)*DCOS(N23*0.75+N24*0.25)*DCOS(H23*0.75+H24*0.25)+DCOS(検索入力!$A$7)*dsin(H23*0.75+H24*0.25))/(dsin(N23*0.75+N24*0.25)*DCOS(H23*0.75+H24*0.25)))/PI()*180 -> -23.58882848 | T23: 10:12:26.248
A24: 2013-01-23T12:00:00 | B24: =IF(B23+(A24-A23)*D23/'2012年'!$H$4*'2012年'!$L$3<360,B23+(A24-A23)*D23/'2012年'!$H$4*'2012年'!$L$3,B23+(A24-A23)*D23/'2012年'!$H$4*'2012年'!$L$3-360) -> 303.2654929 | C24: 20.24671002 | D24: ='2012年'!$H$4*(1+'2012年'!$H$3*DCOS(C24))^2*(1-'2012年'!$H$3*dsin(C24)*PI()/180*(1+'2012年'!$H$3*DCOS(C24))) -> 1.017087008 | E24: =D24*'2012年'!$L$3/'2012年'!$H$4-'2012年'!$L$4 -> 0.03148822961 | F24: 0.1259529184 | G24: 2.62145347 | H24: =adsin(dsin(B24)*dsin('2012年'!$J$2)) -> -19.42702767 | I24: =IF(270<=B24,ATAN(dtan(B24)*DCOS('2012年'!$J$2))/PI()*180+360,IF(B24>90,ATAN(dtan(B24)*DCOS('2012年'!$J$2))/PI()*180+180,ATAN(dtan(B24)*DCOS('2012年'!$J$2))/PI()*180)) -> 305.5655645 | J24: 9.200286617 | K24: 0.1224660075 | L24: 11.82174009 | M24: 0.248418926 | N24: =adcos((-dsin(検索入力!$A$7)*dsin(H24)-dsin(出没角_度))/(DCOS(検索入力!$A$7)*DCOS(H24))) -> 76.72527209 | O24: 06:57:22.581 | P24: =ATAN((-dsin(検索入力!$A$7)*DCOS(N24*0.75+N23*0.25)*DCOS(H24*0.75+H23*0.25)+DCOS(検索入力!$A$7)*dsin(H24*0.75+H23*0.25))/(dsin(N24*0.75+N23*0.25)*DCOS(H24*0.75+H23*0.25)))/PI()*180 -> -23.44275743 | Q24: =(12+(L24+'2012年'!$J$3)/60)/24 -> 12:04:09.296 | R24: 17:11:18.609 | S24: =ATAN((-dsin(検索入力!$A$7)*DCOS(N24*0.75+N25*0.25)*DCOS(H24*0.75+H25*0.25)+DCOS(検索入力!$A$7)*dsin(H24*0.75+H25*0.25))/(dsin(N24*0.75+N25*0.25)*DCOS(H24*0.75+H25*0.25)))/PI()*180 -> -23.29486552 | T24: 10:13:56.027
A25: 2013-01-24T12:00:00 | B25: =IF(B24+(A25-A24)*D24/'2012年'!$H$4*'2012年'!$L$3<360,B24+(A25-A24)*D24/'2012年'!$H$4*'2012年'!$L$3,B24+(A25-A24)*D24/'2012年'!$H$4*'2012年'!$L$3-360) -> 304.2826285 | C25: 21.26379703 | D25: ='2012年'!$H$4*(1+'2012年'!$H$3*DCOS(C25))^2*(1-'2012年'!$H$3*dsin(C25)*PI()/180*(1+'2012年'!$H$3*DCOS(C25))) -> 1.016871378 | E25: =D25*'2012年'!$L$3/'2012年'!$H$4-'2012年'!$L$4 -> 0.03127258895 | F25: 0.1250903558 | G25: 2.747406388 | H25: =adsin(dsin(B25)*dsin('2012年'!$J$2)) -> -19.18869809 | I25: =IF(270<=B25,ATAN(dtan(B25)*DCOS('2012年'!$J$2))/PI()*180+360,IF(B25>90,ATAN(dtan(B25)*DCOS('2012年'!$J$2))/PI()*180+180,ATAN(dtan(B25)*DCOS('2012年'!$J$2))/PI()*180)) -> 306.6133166 | J25: 9.322752625 | K25: 0.1101776159 | L25: 12.07015901 | M25: 0.2352679717 | N25: =adcos((-dsin(検索入力!$A$7)*dsin(H25)-dsin(出没角_度))/(DCOS(検索入力!$A$7)*DCOS(H25))) -> 76.91728169 | O25: 06:56:51.848 | P25: =ATAN((-dsin(検索入力!$A$7)*DCOS(N25*0.75+N24*0.25)*DCOS(H25*0.75+H24*0.25)+DCOS(検索入力!$A$7)*dsin(H25*0.75+H24*0.25))/(dsin(N25*0.75+N24*0.25)*DCOS(H25*0.75+H24*0.25)))/PI()*180 -> -23.14515159 | Q25: =(12+(L25+'2012年'!$J$3)/60)/24 -> 12:04:24.202 | R25: 17:12:19.640 | S25: =ATAN((-dsin(検索入力!$A$7)*DCOS(N25*0.75+N26*0.25)*DCOS(H25*0.75+H26*0.25)+DCOS(検索入力!$A$7)*dsin(H25*0.75+H26*0.25))/(dsin(N25*0.75+N26*0.25)*DCOS(H25*0.75+H26*0.25)))/PI()*180 -> -22.99365241 | T25: 10:15:27.792
A26: 2013-01-25T12:00:00 | B26: =IF(B25+(A26-A25)*D25/'2012年'!$H$4*'2012年'!$L$3<360,B25+(A26-A25)*D25/'2012年'!$H$4*'2012年'!$L$3,B25+(A26-A25)*D25/'2012年'!$H$4*'2012年'!$L$3-360) -> 305.2995484 | C26: 22.2806684 | D26: ='2012年'!$H$4*(1+'2012年'!$H$3*DCOS(C26))^2*(1-'2012年'!$H$3*dsin(C26)*PI()/180*(1+'2012年'!$H$3*DCOS(C26))) -> 1.016646025 | E26: =D26*'2012年'!$L$3/'2012年'!$H$4-'2012年'!$L$4 -> 0.03104722531 | F26: 0.1241889012 | G26: 2.872496744 | H26: =adsin(dsin(B26)*dsin('2012年'!$J$2)) -> -18.94449076 | I26: =IF(270<=B26,ATAN(dtan(B26)*DCOS('2012年'!$J$2))/PI()*180+360,IF(B26>90,ATAN(dtan(B26)*DCOS('2012年'!$J$2))/PI()*180+180,ATAN(dtan(B26)*DCOS('2012年'!$J$2))/PI()*180)) -> 307.657781 | J26: 9.432930241 | K26: 0.09780603419 | L26: 12.30542698 | M26: 0.2219949354 | N26: =adcos((-dsin(検索入力!$A$7)*dsin(H26)-dsin(出没角_度))/(DCOS(検索入力!$A$7)*DCOS(H26))) -> 77.11331651 | O26: 06:56:19.355 | P26: =ATAN((-dsin(検索入力!$A$7)*DCOS(N26*0.75+N25*0.25)*DCOS(H26*0.75+H25*0.25)+DCOS(検索入力!$A$7)*dsin(H26*0.75+H25*0.25))/(dsin(N26*0.75+N25*0.25)*DCOS(H26*0.75+H25*0.25)))/PI()*180 -> -22.84036685 | Q26: =(12+(L26+'2012年'!$J$3)/60)/24 -> 12:04:38.318 | R26: 17:13:20.840 | S26: =ATAN((-dsin(検索入力!$A$7)*DCOS(N26*0.75+N27*0.25)*DCOS(H26*0.75+H27*0.25)+DCOS(検索入力!$A$7)*dsin(H26*0.75+H27*0.25))/(dsin(N26*0.75+N27*0.25)*DCOS(H26*0.75+H27*0.25)))/PI()*180 -> -22.68533197 | T26: 10:17:01.485
A27: 2013-01-26T12:00:00 | B27: =IF(B26+(A27-A26)*D26/'2012年'!$H$4*'2012年'!$L$3<360,B26+(A27-A26)*D26/'2012年'!$H$4*'2012年'!$L$3,B26+(A27-A26)*D26/'2012年'!$H$4*'2012年'!$L$3-360) -> 306.316243 | C27: 23.29731443 | D27: ='2012年'!$H$4*(1+'2012年'!$H$3*DCOS(C27))^2*(1-'2012年'!$H$3*dsin(C27)*PI()/180*(1+'2012年'!$H$3*DCOS(C27))) -> 1.016411032 | E27: =D27*'2012年'!$L$3/'2012年'!$H$4-'2012年'!$L$4 -> 0.03081222154 | F27: 0.1232488861 | G27: 2.996685645 | H27: =adsin(dsin(B27)*dsin('2012年'!$J$2)) -> -18.69451031 | I27: =IF(270<=B27,ATAN(dtan(B27)*DCOS('2012年'!$J$2))/PI()*180+360,IF(B27>90,ATAN(dtan(B27)*DCOS('2012年'!$J$2))/PI()*180+180,ATAN(dtan(B27)*DCOS('2012年'!$J$2))/PI()*180)) -> 308.6989271 | J27: 9.530736275 | K27: 0.0853694932 | L27: 12.52742192 | M27: 0.2086183793 | N27: =adcos((-dsin(検索入力!$A$7)*dsin(H27)-dsin(出没角_度))/(DCOS(検索入力!$A$7)*DCOS(H27))) -> 77.31325515 | O27: 06:55:45.122 | P27: =ATAN((-dsin(検索入力!$A$7)*DCOS(N27*0.75+N26*0.25)*DCOS(H27*0.75+H26*0.25)+DCOS(検索入力!$A$7)*dsin(H27*0.75+H26*0.25))/(dsin(N27*0.75+N26*0.25)*DCOS(H27*0.75+H26*0.25)))/PI()*180 -> -22.52854669 | Q27: =(12+(L27+'2012年'!$J$3)/60)/24 -> 12:04:51.637 | R27: 17:14:22.171 | S27: =ATAN((-dsin(検索入力!$A$7)*DCOS(N27*0.75+N28*0.25)*DCOS(H27*0.75+H28*0.25)+DCOS(検索入力!$A$7)*dsin(H27*0.75+H28*0.25))/(dsin(N27*0.75+N28*0.25)*DCOS(H27*0.75+H28*0.25)))/PI()*180 -> -22.3700483 | T27: 10:18:37.049
A28: 2013-01-27T12:00:00 | B28: =IF(B27+(A28-A27)*D27/'2012年'!$H$4*'2012年'!$L$3<360,B27+(A28-A27)*D27/'2012年'!$H$4*'2012年'!$L$3,B27+(A28-A27)*D27/'2012年'!$H$4*'2012年'!$L$3-360) -> 307.3327026 | C28: 24.31372546 | D28: ='2012年'!$H$4*(1+'2012年'!$H$3*DCOS(C28))^2*(1-'2012年'!$H$3*dsin(C28)*PI()/180*(1+'2012年'!$H$3*DCOS(C28))) -> 1.016166486 | E28: =D28*'2012年'!$L$3/'2012年'!$H$4-'2012年'!$L$4 -> 0.03056766386 | F28: 0.1222706554 | G28: 3.119934532 | H28: =adsin(dsin(B28)*dsin('2012年'!$J$2)) -> -18.43886274 | I28: =IF(270<=B28,ATAN(dtan(B28)*DCOS('2012年'!$J$2))/PI()*180+360,IF(B28>90,ATAN(dtan(B28)*DCOS('2012年'!$J$2))/PI()*180+180,ATAN(dtan(B28)*DCOS('2012年'!$J$2))/PI()*180)) -> 309.736729 | J28: 9.616105768 | K28: 0.07288599108 | L28: 12.7360403 | M28: 0.1951566465 | N28: =adcos((-dsin(検索入力!$A$7)*dsin(H28)-dsin(出没角_度))/(DCOS(検索入力!$A$7)*DCOS(H28))) -> 77.51697695 | O28: 06:55:09.174 | P28: =ATAN((-dsin(検索入力!$A$7)*DCOS(N28*0.75+N27*0.25)*DCOS(H28*0.75+H27*0.25)+DCOS(検索入力!$A$7)*dsin(H28*0.75+H27*0.25))/(dsin(N28*0.75+N27*0.25)*DCOS(H28*0.75+H27*0.25)))/PI()*180 -> -22.20983574 | Q28: =(12+(L28+'2012年'!$J$3)/60)/24 -> 12:05:04.154 | R28: 17:15:23.599 | S28: =ATAN((-dsin(検索入力!$A$7)*DCOS(N28*0.75+N29*0.25)*DCOS(H28*0.75+H29*0.25)+DCOS(検索入力!$A$7)*dsin(H28*0.75+H29*0.25))/(dsin(N28*0.75+N29*0.25)*DCOS(H28*0.75+H29*0.25)))/PI()*180 -> -22.0479465 | T28: 10:20:14.425
A29: 2013-01-28T12:00:00 | B29: =IF(B28+(A29-A28)*D28/'2012年'!$H$4*'2012年'!$L$3<360,B28+(A29-A28)*D28/'2012年'!$H$4*'2012年'!$L$3,B28+(A29-A28)*D28/'2012年'!$H$4*'2012年'!$L$3-360) -> 308.3489176 | C29: 25.32989195 | D29: ='2012年'!$H$4*(1+'2012年'!$H$3*DCOS(C29))^2*(1-'2012年'!$H$3*dsin(C29)*PI()/180*(1+'2012年'!$H$3*DCOS(C29))) -> 1.015912477 | E29: =D29*'2012年'!$L$3/'2012年'!$H$4-'2012年'!$L$4 -> 0.03031364188 | F29: 0.1212545675 | G29: 3.242205187 | H29: =adsin(dsin(B29)*dsin('2012年'!$J$2)) -> -18.17765535 | I29: =IF(270<=B29,ATAN(dtan(B29)*DCOS('2012年'!$J$2))/PI()*180+360,IF(B29>90,ATAN(dtan(B29)*DCOS('2012年'!$J$2))/PI()*180+180,ATAN(dtan(B29)*DCOS('2012年'!$J$2))/PI()*180)) -> 310.7711655 | J29: 9.688991759 | K29: 0.06037326309 | L29: 12.93119695 | M29: 0.1816278306 | N29: =adcos((-dsin(検索入力!$A$7)*dsin(H29)-dsin(出没角_度))/(DCOS(検索入力!$A$7)*DCOS(H29))) -> 77.7243621 | O29: 06:54:31.533 | P29: =ATAN((-dsin(検索入力!$A$7)*DCOS(N29*0.75+N28*0.25)*DCOS(H29*0.75+H28*0.25)+DCOS(検索入力!$A$7)*dsin(H29*0.75+H28*0.25))/(dsin(N29*0.75+N28*0.25)*DCOS(H29*0.75+H28*0.25)))/PI()*180 -> -21.88437959 | Q29: =(12+(L29+'2012年'!$J$3)/60)/24 -> 12:05:15.864 | R29: 17:16:25.091 | S29: =ATAN((-dsin(検索入力!$A$7)*DCOS(N29*0.75+N30*0.25)*DCOS(H29*0.75+H30*0.25)+DCOS(検索入力!$A$7)*dsin(H29*0.75+H30*0.25))/(dsin(N29*0.75+N30*0.25)*DCOS(H29*0.75+H30*0.25)))/PI()*180 -> -21.71917262 | T29: 10:21:53.558
A30: 2013-01-29T12:00:00 | B30: =IF(B29+(A30-A29)*D29/'2012年'!$H$4*'2012年'!$L$3<360,B29+(A30-A29)*D29/'2012年'!$H$4*'2012年'!$L$3,B29+(A30-A29)*D29/'2012年'!$H$4*'2012年'!$L$3-360) -> 309.3648786 | C30: 26.34580442 | D30: ='2012年'!$H$4*(1+'2012年'!$H$3*DCOS(C30))^2*(1-'2012年'!$H$3*dsin(C30)*PI()/180*(1+'2012年'!$H$3*DCOS(C30))) -> 1.015649096 | E30: =D30*'2012年'!$L$3/'2012年'!$H$4-'2012年'!$L$4 -> 0.03005024853 | F30: 0.1202009941 | G30: 3.363459754 | H30: =adsin(dsin(B30)*dsin('2012年'!$J$2)) -> -17.91099659 | I30: =IF(270<=B30,ATAN(dtan(B30)*DCOS('2012年'!$J$2))/PI()*180+360,IF(B30>90,ATAN(dtan(B30)*DCOS('2012年'!$J$2))/PI()*180+180,ATAN(dtan(B30)*DCOS('2012年'!$J$2))/PI()*180)) -> 311.8022198 | J30: 9.749365022 | K30: 0.04784875373 | L30: 13.11282478 | M30: 0.1680497478 | N30: =adcos((-dsin(検索入力!$A$7)*dsin(H30)-dsin(出没角_度))/(DCOS(検索入力!$A$7)*DCOS(H30))) -> 77.93529184 | O30: 06:53:52.223 | P30: =ATAN((-dsin(検索入力!$A$7)*DCOS(N30*0.75+N29*0.25)*DCOS(H30*0.75+H29*0.25)+DCOS(検索入力!$A$7)*dsin(H30*0.75+H29*0.25))/(dsin(N30*0.75+N29*0.25)*DCOS(H30*0.75+H29*0.25)))/PI()*180 -> -21.55232466 | Q30: =(12+(L30+'2012年'!$J$3)/60)/24 -> 12:05:26.761 | R30: 17:17:26.614 | S30: =ATAN((-dsin(検索入力!$A$7)*DCOS(N30*0.75+N31*0.25)*DCOS(H30*0.75+H31*0.25)+DCOS(検索入力!$A$7)*dsin(H30*0.75+H31*0.25))/(dsin(N30*0.75+N31*0.25)*DCOS(H30*0.75+H31*0.25)))/PI()*180 -> -21.38387343 | T30: 10:23:34.391
A31: 2013-01-30T12:00:00 | B31: =IF(B30+(A31-A30)*D30/'2012年'!$H$4*'2012年'!$L$3<360,B30+(A31-A30)*D30/'2012年'!$H$4*'2012年'!$L$3,B30+(A31-A30)*D30/'2012年'!$H$4*'2012年'!$L$3-360) -> 310.3805762 | C31: 27.36145352 | D31: ='2012年'!$H$4*(1+'2012年'!$H$3*DCOS(C31))^2*(1-'2012年'!$H$3*dsin(C31)*PI()/180*(1+'2012年'!$H$3*DCOS(C31))) -> 1.01537644 | E31: =D31*'2012年'!$L$3/'2012年'!$H$4-'2012年'!$L$4 -> 0.02977757996 | F31: 0.1191103198 | G31: 3.483660749 | H31: =adsin(dsin(B31)*dsin('2012年'!$J$2)) -> -17.63899602 | I31: =IF(270<=B31,ATAN(dtan(B31)*DCOS('2012年'!$J$2))/PI()*180+360,IF(B31>90,ATAN(dtan(B31)*DCOS('2012年'!$J$2))/PI()*180+180,ATAN(dtan(B31)*DCOS('2012年'!$J$2))/PI()*180)) -> 312.8298796 | J31: 9.797213776 | K31: 0.03532959098 | L31: 13.28087452 | M31: 0.1544399108 | N31: =adcos((-dsin(検索入力!$A$7)*dsin(H31)-dsin(出没角_度))/(DCOS(検索入力!$A$7)*DCOS(H31))) -> 78.14964864 | O31: 06:53:11.269 | P31: =ATAN((-dsin(検索入力!$A$7)*DCOS(N31*0.75+N30*0.25)*DCOS(H31*0.75+H30*0.25)+DCOS(検索入力!$A$7)*dsin(H31*0.75+H30*0.25))/(dsin(N31*0.75+N30*0.25)*DCOS(H31*0.75+H30*0.25)))/PI()*180 -> -21.21381804 | Q31: =(12+(L31+'2012年'!$J$3)/60)/24 -> 12:05:36.844 | R31: 17:18:28.137 | S31: =ATAN((-dsin(検索入力!$A$7)*DCOS(N31*0.75+N32*0.25)*DCOS(H31*0.75+H32*0.25)+DCOS(検索入力!$A$7)*dsin(H31*0.75+H32*0.25))/(dsin(N31*0.75+N32*0.25)*DCOS(H31*0.75+H32*0.25)))/PI()*180 -> -21.0421963 | T31: 10:25:16.867
A32: 2013-01-31T12:00:00 | B32: =IF(B31+(A32-A31)*D31/'2012年'!$H$4*'2012年'!$L$3<360,B31+(A32-A31)*D31/'2012年'!$H$4*'2012年'!$L$3,B31+(A32-A31)*D31/'2012年'!$H$4*'2012年'!$L$3-360) -> 311.3960011 | C32: 28.37682996 | D32: ='2012年'!$H$4*(1+'2012年'!$H$3*DCOS(C32))^2*(1-'2012年'!$H$3*dsin(C32)*PI()/180*(1+'2012年'!$H$3*DCOS(C32))) -> 1.015094609 | E32: =D32*'2012年'!$L$3/'2012年'!$H$4-'2012年'!$L$4 -> 0.02949573556 | F32: 0.1179829423 | G32: 3.602771068 | H32: =adsin(dsin(B32)*dsin('2012年'!$J$2)) -> -17.36176418 | I32: =IF(270<=B32,ATAN(dtan(B32)*DCOS('2012年'!$J$2))/PI()*180+360,IF(B32>90,ATAN(dtan(B32)*DCOS('2012年'!$J$2))/PI()*180+180,ATAN(dtan(B32)*DCOS('2012年'!$J$2))/PI()*180)) -> 313.854137 | J32: 9.832543367 | K32: 0.02283256289 | L32: 13.43531444 | M32: 0.1408155051 | N32: =adcos((-dsin(検索入力!$A$7)*dsin(H32)-dsin(出没角_度))/(DCOS(検索入力!$A$7)*DCOS(H32))) -> 78.36731631 | O32: 06:52:28.698 | P32: =ATAN((-dsin(検索入力!$A$7)*DCOS(N32*0.75+N31*0.25)*DCOS(H32*0.75+H31*0.25)+DCOS(検索入力!$A$7)*dsin(H32*0.75+H31*0.25))/(dsin(N32*0.75+N31*0.25)*DCOS(H32*0.75+H31*0.25)))/PI()*180 -> -20.86900734 | Q32: =(12+(L32+'2012年'!$J$3)/60)/24 -> 12:05:46.111 | R32: 17:19:29.631 | S32: =ATAN((-dsin(検索入力!$A$7)*DCOS(N32*0.75+N33*0.25)*DCOS(H32*0.75+H33*0.25)+DCOS(検索入力!$A$7)*dsin(H32*0.75+H33*0.25))/(dsin(N32*0.75+N33*0.25)*DCOS(H32*0.75+H33*0.25)))/PI()*180 -> -20.69428903 | T32: 10:27:00.932
A33: 2013-02-01T12:00:00 | B33: =IF(B32+(A33-A32)*D32/'2012年'!$H$4*'2012年'!$L$3<360,B32+(A33-A32)*D32/'2012年'!$H$4*'2012年'!$L$3,B32+(A33-A32)*D32/'2012年'!$H$4*'2012年'!$L$3-360) -> 312.4111442 | C33: 29.39192457 | D33: ='2012年'!$H$4*(1+'2012年'!$H$3*DCOS(C33))^2*(1-'2012年'!$H$3*dsin(C33)*PI()/180*(1+'2012年'!$H$3*DCOS(C33))) -> 1.014803706 | E33: =D33*'2012年'!$L$3/'2012年'!$H$4-'2012年'!$L$4 -> 0.02920481788 | F33: 0.1168192715 | G33: 3.720754011 | H33: =adsin(dsin(B33)*dsin('2012年'!$J$2)) -> -17.07941247 | I33: =IF(270<=B33,ATAN(dtan(B33)*DCOS('2012年'!$J$2))/PI()*180+360,IF(B33>90,ATAN(dtan(B33)*DCOS('2012年'!$J$2))/PI()*180+180,ATAN(dtan(B33)*DCOS('2012年'!$J$2))/PI()*180)) -> 314.8749882 | J33: 9.85537593 | K33: 0.01037409641 | L33: 13.57612994 | M33: 0.1271933679 | N33: =adcos((-dsin(検索入力!$A$7)*dsin(H33)-dsin(出没角_度))/(DCOS(検索入力!$A$7)*DCOS(H33))) -> 78.58818015 | O33: 06:51:44.536 | P33: =ATAN((-dsin(検索入力!$A$7)*DCOS(N33*0.75+N32*0.25)*DCOS(H33*0.75+H32*0.25)+DCOS(検索入力!$A$7)*dsin(H33*0.75+H32*0.25))/(dsin(N33*0.75+N32*0.25)*DCOS(H33*0.75+H32*0.25)))/PI()*180 -> -20.51804054 | Q33: =(12+(L33+'2012年'!$J$3)/60)/24 -> 12:05:54.560 | R33: 17:20:31.068 | S33: =ATAN((-dsin(検索入力!$A$7)*DCOS(N33*0.75+N34*0.25)*DCOS(H33*0.75+H34*0.25)+DCOS(検索入力!$A$7)*dsin(H33*0.75+H34*0.25))/(dsin(N33*0.75+N34*0.25)*DCOS(H33*0.75+H34*0.25)))/PI()*180 -> -20.34029975 | T33: 10:28:46.532
A34: 2013-02-02T12:00:00 | B34: =IF(B33+(A34-A33)*D33/'2012年'!$H$4*'2012年'!$L$3<360,B33+(A34-A33)*D33/'2012年'!$H$4*'2012年'!$L$3,B33+(A34-A33)*D33/'2012年'!$H$4*'2012年'!$L$3-360) -> 313.4259964 | C34: 30.40672827 | D34: ='2012年'!$H$4*(1+'2012年'!$H$3*DCOS(C34))^2*(1-'2012年'!$H$3*dsin(C34)*PI()/180*(1+'2012年'!$H$3*DCOS(C34))) -> 1.014503835 | E34: =D34*'2012年'!$L$3/'2012年'!$H$4-'2012年'!$L$4 -> 0.02890493254 | F34: 0.1156197301 | G34: 3.837573282 | H34: =adsin(dsin(B34)*dsin('2012年'!$J$2)) -> -16.79205312 | I34: =IF(270<=B34,ATAN(dtan(B34)*DCOS('2012年'!$J$2))/PI()*180+360,IF(B34>90,ATAN(dtan(B34)*DCOS('2012年'!$J$2))/PI()*180+180,ATAN(dtan(B34)*DCOS('2012年'!$J$2))/PI()*180)) -> 315.8924339 | J34: 9.865750026 | K34: -0.002029761755 | L34: 13.70332331 | M34: 0.1135899684 | N34: =adcos((-dsin(検索入力!$A$7)*dsin(H34)-dsin(出没角_度))/(DCOS(検索入力!$A$7)*DCOS(H34))) -> 78.81212709 | O34: 06:50:58.810 | P34: =ATAN((-dsin(検索入力!$A$7)*DCOS(N34*0.75+N33*0.25)*DCOS(H34*0.75+H33*0.25)+DCOS(検索入力!$A$7)*dsin(H34*0.75+H33*0.25))/(dsin(N34*0.75+N33*0.25)*DCOS(H34*0.75+H33*0.25)))/PI()*180 -> -20.16106589 | Q34: =(12+(L34+'2012年'!$J$3)/60)/24 -> 12:06:02.191 | R34: 17:21:32.421 | S34: =ATAN((-dsin(検索入力!$A$7)*DCOS(N34*0.75+N35*0.25)*DCOS(H34*0.75+H35*0.25)+DCOS(検索入力!$A$7)*dsin(H34*0.75+H35*0.25))/(dsin(N34*0.75+N35*0.25)*DCOS(H34*0.75+H35*0.25)))/PI()*180 -> -19.98037679 | T34: 10:30:33.611
A35: 2013-02-03T12:00:00 | B35: =IF(B34+(A35-A34)*D34/'2012年'!$H$4*'2012年'!$L$3<360,B34+(A35-A34)*D34/'2012年'!$H$4*'2012年'!$L$3,B34+(A35-A34)*D34/'2012年'!$H$4*'2012年'!$L$3-360) -> 314.4405487 | C35: 31.42123211 | D35: ='2012年'!$H$4*(1+'2012年'!$H$3*DCOS(C35))^2*(1-'2012年'!$H$3*dsin(C35)*PI()/180*(1+'2012年'!$H$3*DCOS(C35))) -> 1.014195105 | E35: =D35*'2012年'!$L$3/'2012年'!$H$4-'2012年'!$L$4 -> 0.02859618821 | F35: 0.1143847528 | G35: 3.953193012 | H35: =adsin(dsin(B35)*dsin('2012年'!$J$2)) -> -16.49979904 | I35: =IF(270<=B35,ATAN(dtan(B35)*DCOS('2012年'!$J$2))/PI()*180+360,IF(B35>90,ATAN(dtan(B35)*DCOS('2012年'!$J$2))/PI()*180+180,ATAN(dtan(B35)*DCOS('2012年'!$J$2))/PI()*180)) -> 316.9064788 | J35: 9.863720264 | K35: -0.01436336195 | L35: 13.81691328 | M35: 0.1000213909 | N35: =adcos((-dsin(検索入力!$A$7)*dsin(H35)-dsin(出没角_度))/(DCOS(検索入力!$A$7)*DCOS(H35))) -> 79.0390458 | O35: 06:50:11.547 | P35: =ATAN((-dsin(検索入力!$A$7)*DCOS(N35*0.75+N34*0.25)*DCOS(H35*0.75+H34*0.25)+DCOS(検索入力!$A$7)*dsin(H35*0.75+H34*0.25))/(dsin(N35*0.75+N34*0.25)*DCOS(H35*0.75+H34*0.25)))/PI()*180 -> -19.79823174 | Q35: =(12+(L35+'2012年'!$J$3)/60)/24 -> 12:06:09.007 | R35: 17:22:33.665 | S35: =ATAN((-dsin(検索入力!$A$7)*DCOS(N35*0.75+N36*0.25)*DCOS(H35*0.75+H36*0.25)+DCOS(検索入力!$A$7)*dsin(H35*0.75+H36*0.25))/(dsin(N35*0.75+N36*0.25)*DCOS(H35*0.75+H36*0.25)))/PI()*180 -> -19.61466851 | T35: 10:32:22.118
A36: 2013-02-04T12:00:00 | B36: =IF(B35+(A36-A35)*D35/'2012年'!$H$4*'2012年'!$L$3<360,B35+(A36-A35)*D35/'2012年'!$H$4*'2012年'!$L$3,B35+(A36-A35)*D35/'2012年'!$H$4*'2012年'!$L$3-360) -> 315.4547922 | C36: 32.43542721 | D36: ='2012年'!$H$4*(1+'2012年'!$H$3*DCOS(C36))^2*(1-'2012年'!$H$3*dsin(C36)*PI()/180*(1+'2012年'!$H$3*DCOS(C36))) -> 1.013877628 | E36: =D36*'2012年'!$L$3/'2012年'!$H$4-'2012年'!$L$4 -> 0.02827869655 | F36: 0.1131147862 | G36: 4.067577765 | H36: =adsin(dsin(B36)*dsin('2012年'!$J$2)) -> -16.20276378 | I36: =IF(270<=B36,ATAN(dtan(B36)*DCOS('2012年'!$J$2))/PI()*180+360,IF(B36>90,ATAN(dtan(B36)*DCOS('2012年'!$J$2))/PI()*180+180,ATAN(dtan(B36)*DCOS('2012年'!$J$2))/PI()*180)) -> 317.9171315 | J36: 9.849356903 | K36: -0.02661146645 | L36: 13.91693467 | M36: 0.08650331973 | N36: =adcos((-dsin(検索入力!$A$7)*dsin(H36)-dsin(出没角_度))/(DCOS(検索入力!$A$7)*DCOS(H36))) -> 79.26882675 | O36: 06:49:22.776 | P36: =ATAN((-dsin(検索入力!$A$7)*DCOS(N36*0.75+N35*0.25)*DCOS(H36*0.75+H35*0.25)+DCOS(検索入力!$A$7)*dsin(H36*0.75+H35*0.25))/(dsin(N36*0.75+N35*0.25)*DCOS(H36*0.75+H35*0.25)))/PI()*180 -> -19.42968645 | Q36: =(12+(L36+'2012年'!$J$3)/60)/24 -> 12:06:15.008 | R36: 17:23:34.776 | S36: =ATAN((-dsin(検索入力!$A$7)*DCOS(N36*0.75+N37*0.25)*DCOS(H36*0.75+H37*0.25)+DCOS(検索入力!$A$7)*dsin(H36*0.75+H37*0.25))/(dsin(N36*0.75+N37*0.25)*DCOS(H36*0.75+H37*0.25)))/PI()*180 -> -19.24332324 | T36: 10:34:12
A37: 2013-02-05T12:00:00 | B37: =IF(B36+(A37-A36)*D36/'2012年'!$H$4*'2012年'!$L$3<360,B36+(A37-A36)*D36/'2012年'!$H$4*'2012年'!$L$3,B36+(A37-A36)*D36/'2012年'!$H$4*'2012年'!$L$3-360) -> 316.4687183 | C37: 33.44930484 | D37: ='2012年'!$H$4*(1+'2012年'!$H$3*DCOS(C37))^2*(1-'2012年'!$H$3*dsin(C37)*PI()/180*(1+'2012年'!$H$3*DCOS(C37))) -> 1.01355152 | E37: =D37*'2012年'!$L$3/'2012年'!$H$4-'2012年'!$L$4 -> 0.02795257213 | F37: 0.1118102885 | G37: 4.180692551 | H37: =adsin(dsin(B37)*dsin('2012年'!$J$2)) -> -15.90106143 | I37: =IF(270<=B37,ATAN(dtan(B37)*DCOS('2012年'!$J$2))/PI()*180+360,IF(B37>90,ATAN(dtan(B37)*DCOS('2012年'!$J$2))/PI()*180+180,ATAN(dtan(B37)*DCOS('2012年'!$J$2))/PI()*180)) -> 318.9244047 | J37: 9.822745436 | K37: -0.03875926232 | L37: 14.00343799 | M37: 0.07305102618 | N37: =adcos((-dsin(検索入力!$A$7)*dsin(H37)-dsin(出没角_度))/(DCOS(検索入力!$A$7)*DCOS(H37))) -> 79.50136236 | O37: 06:48:32.526 | P37: =ATAN((-dsin(検索入力!$A$7)*DCOS(N37*0.75+N36*0.25)*DCOS(H37*0.75+H36*0.25)+DCOS(検索入力!$A$7)*dsin(H37*0.75+H36*0.25))/(dsin(N37*0.75+N36*0.25)*DCOS(H37*0.75+H36*0.25)))/PI()*180 -> -19.05557828 | Q37: =(12+(L37+'2012年'!$J$3)/60)/24 -> 12:06:20.198 | R37: 17:24:35.732 | S37: =ATAN((-dsin(検索入力!$A$7)*DCOS(N37*0.75+N38*0.25)*DCOS(H37*0.75+H38*0.25)+DCOS(検索入力!$A$7)*dsin(H37*0.75+H38*0.25))/(dsin(N37*0.75+N38*0.25)*DCOS(H37*0.75+H38*0.25)))/PI()*180 -> -18.86648915 | T37: 10:36:03.206
A38: 2013-02-06T12:00:00 | B38: =IF(B37+(A38-A37)*D37/'2012年'!$H$4*'2012年'!$L$3<360,B37+(A38-A37)*D37/'2012年'!$H$4*'2012年'!$L$3,B37+(A38-A37)*D37/'2012年'!$H$4*'2012年'!$L$3-360) -> 317.4823182 | C38: 34.46285636 | D38: ='2012年'!$H$4*(1+'2012年'!$H$3*DCOS(C38))^2*(1-'2012年'!$H$3*dsin(C38)*PI()/180*(1+'2012年'!$H$3*DCOS(C38))) -> 1.013216896 | E38: =D38*'2012年'!$L$3/'2012年'!$H$4-'2012年'!$L$4 -> 0.02761793238 | F38: 0.1104717295 | G38: 4.29250284 | H38: =adsin(dsin(B38)*dsin('2012年'!$J$2)) -> -15.59480653 | I38: =IF(270<=B38,ATAN(dtan(B38)*DCOS('2012年'!$J$2))/PI()*180+360,IF(B38>90,ATAN(dtan(B38)*DCOS('2012年'!$J$2))/PI()*180+180,ATAN(dtan(B38)*DCOS('2012年'!$J$2))/PI()*180)) -> 319.9283148 | J38: 9.783986174 | K38: -0.05079237227 | L38: 14.07648901 | M38: 0.05967935726 | N38: =adcos((-dsin(検索入力!$A$7)*dsin(H38)-dsin(出没角_度))/(DCOS(検索入力!$A$7)*DCOS(H38))) -> 79.73654705 | O38: 06:47:40.825 | P38: =ATAN((-dsin(検索入力!$A$7)*DCOS(N38*0.75+N37*0.25)*DCOS(H38*0.75+H37*0.25)+DCOS(検索入力!$A$7)*dsin(H38*0.75+H37*0.25))/(dsin(N38*0.75+N37*0.25)*DCOS(H38*0.75+H37*0.25)))/PI()*180 -> -18.67605529 | Q38: =(12+(L38+'2012年'!$J$3)/60)/24 -> 12:06:24.581 | R38: 17:25:36.512 | S38: =ATAN((-dsin(検索入力!$A$7)*DCOS(N38*0.75+N39*0.25)*DCOS(H38*0.75+H39*0.25)+DCOS(検索入力!$A$7)*dsin(H38*0.75+H39*0.25))/(dsin(N38*0.75+N39*0.25)*DCOS(H38*0.75+H39*0.25)))/PI()*180 -> -18.48431414 | T38: 10:37:55.686
A39: 2013-02-07T12:00:00 | B39: =IF(B38+(A39-A38)*D38/'2012年'!$H$4*'2012年'!$L$3<360,B38+(A39-A38)*D38/'2012年'!$H$4*'2012年'!$L$3,B38+(A39-A38)*D38/'2012年'!$H$4*'2012年'!$L$3-360) -> 318.4955835 | C39: 35.47607326 | D39: ='2012年'!$H$4*(1+'2012年'!$H$3*DCOS(C39))^2*(1-'2012年'!$H$3*dsin(C39)*PI()/180*(1+'2012年'!$H$3*DCOS(C39))) -> 1.012873877 | E39: =D39*'2012年'!$L$3/'2012年'!$H$4-'2012年'!$L$4 -> 0.02727489754 | F39: 0.1090995902 | G39: 4.402974569 | H39: =adsin(dsin(B39)*dsin('2012年'!$J$2)) -> -15.28411401 | I39: =IF(270<=B39,ATAN(dtan(B39)*DCOS('2012年'!$J$2))/PI()*180+360,IF(B39>90,ATAN(dtan(B39)*DCOS('2012年'!$J$2))/PI()*180+180,ATAN(dtan(B39)*DCOS('2012年'!$J$2))/PI()*180)) -> 320.928882 | J39: 9.733193802 | K39: -0.0626968637 | L39: 14.13616837 | M39: 0.04640272645 | N39: =adcos((-dsin(検索入力!$A$7)*dsin(H39)-dsin(出没角_度))/(DCOS(検索入力!$A$7)*DCOS(H39))) -> 79.9742773 | O39: 06:46:47.704 | P39: =ATAN((-dsin(検索入力!$A$7)*DCOS(N39*0.75+N38*0.25)*DCOS(H39*0.75+H38*0.25)+DCOS(検索入力!$A$7)*dsin(H39*0.75+H38*0.25))/(dsin(N39*0.75+N38*0.25)*DCOS(H39*0.75+H38*0.25)))/PI()*180 -> -18.29126521 | Q39: =(12+(L39+'2012年'!$J$3)/60)/24 -> 12:06:28.162 | R39: 17:26:37.095 | S39: =ATAN((-dsin(検索入力!$A$7)*DCOS(N39*0.75+N40*0.25)*DCOS(H39*0.75+H40*0.25)+DCOS(検索入力!$A$7)*dsin(H39*0.75+H40*0.25))/(dsin(N39*0.75+N40*0.25)*DCOS(H39*0.75+H40*0.25)))/PI()*180 -> -18.09694576 | T39: 10:39:49.391
A40: 2013-02-08T12:00:00 | B40: =IF(B39+(A40-A39)*D39/'2012年'!$H$4*'2012年'!$L$3<360,B39+(A40-A39)*D39/'2012年'!$H$4*'2012年'!$L$3,B39+(A40-A39)*D39/'2012年'!$H$4*'2012年'!$L$3-360) -> 319.5085058 | C40: 36.48894714 | D40: ='2012年'!$H$4*(1+'2012年'!$H$3*DCOS(C40))^2*(1-'2012年'!$H$3*dsin(C40)*PI()/180*(1+'2012年'!$H$3*DCOS(C40))) -> 1.012522587 | E40: =D40*'2012年'!$L$3/'2012年'!$H$4-'2012年'!$L$4 -> 0.02692359056 | F40: 0.1076943623 | G40: 4.51207416 | H40: =adsin(dsin(B40)*dsin('2012年'!$J$2)) -> -14.96909913 | I40: =IF(270<=B40,ATAN(dtan(B40)*DCOS('2012年'!$J$2))/PI()*180+360,IF(B40>90,ATAN(dtan(B40)*DCOS('2012年'!$J$2))/PI()*180+180,ATAN(dtan(B40)*DCOS('2012年'!$J$2))/PI()*180)) -> 321.92613 | J40: 9.670496938 | K40: -0.07445925605 | L40: 14.1825711 | M40: 0.0332351062 | N40: =adcos((-dsin(検索入力!$A$7)*dsin(H40)-dsin(出没角_度))/(DCOS(検索入力!$A$7)*DCOS(H40))) -> 80.21445171 | O40: 06:45:53.192 | P40: =ATAN((-dsin(検索入力!$A$7)*DCOS(N40*0.75+N39*0.25)*DCOS(H40*0.75+H39*0.25)+DCOS(検索入力!$A$7)*dsin(H40*0.75+H39*0.25))/(dsin(N40*0.75+N39*0.25)*DCOS(H40*0.75+H39*0.25)))/PI()*180 -> -17.90135537 | Q40: =(12+(L40+'2012年'!$J$3)/60)/24 -> 12:06:30.946 | R40: 17:27:37.464 | S40: =ATAN((-dsin(検索入力!$A$7)*DCOS(N40*0.75+N41*0.25)*DCOS(H40*0.75+H41*0.25)+DCOS(検索入力!$A$7)*dsin(H40*0.75+H41*0.25))/(dsin(N40*0.75+N41*0.25)*DCOS(H40*0.75+H41*0.25)))/PI()*180 -> -17.70453112 | T40: 10:41:44.272
A41: 2013-02-09T12:00:00 | B41: =IF(B40+(A41-A40)*D40/'2012年'!$H$4*'2012年'!$L$3<360,B40+(A41-A40)*D40/'2012年'!$H$4*'2012年'!$L$3,B40+(A41-A40)*D40/'2012年'!$H$4*'2012年'!$L$3-360) -> 320.5210767 | C41: 37.50146972 | D41: ='2012年'!$H$4*(1+'2012年'!$H$3*DCOS(C41))^2*(1-'2012年'!$H$3*dsin(C41)*PI()/180*(1+'2012年'!$H$3*DCOS(C41))) -> 1.012163151 | E41: =D41*'2012年'!$L$3/'2012年'!$H$4-'2012年'!$L$4 -> 0.02656413709 | F41: 0.1062565484 | G41: 4.619768522 | H41: =adsin(dsin(B41)*dsin('2012年'!$J$2)) -> -14.64987737 | I41: =IF(270<=B41,ATAN(dtan(B41)*DCOS('2012年'!$J$2))/PI()*180+360,IF(B41>90,ATAN(dtan(B41)*DCOS('2012年'!$J$2))/PI()*180+180,ATAN(dtan(B41)*DCOS('2012年'!$J$2))/PI()*180)) -> 322.9200861 | J41: 9.596037682 | K41: -0.08606652637 | L41: 14.2158062 | M41: 0.02019002198 | N41: =adcos((-dsin(検索入力!$A$7)*dsin(H41)-dsin(出没角_度))/(DCOS(検索入力!$A$7)*DCOS(H41))) -> 80.45697109 | O41: 06:44:57.320 | P41: =ATAN((-dsin(検索入力!$A$7)*DCOS(N41*0.75+N40*0.25)*DCOS(H41*0.75+H40*0.25)+DCOS(検索入力!$A$7)*dsin(H41*0.75+H40*0.25))/(dsin(N41*0.75+N40*0.25)*DCOS(H41*0.75+H40*0.25)))/PI()*180 -> -17.50647265 | Q41: =(12+(L41+'2012年'!$J$3)/60)/24 -> 12:06:32.940 | R41: 17:28:37.602 | S41: =ATAN((-dsin(検索入力!$A$7)*DCOS(N41*0.75+N42*0.25)*DCOS(H41*0.75+H42*0.25)+DCOS(検索入力!$A$7)*dsin(H41*0.75+H42*0.25))/(dsin(N41*0.75+N42*0.25)*DCOS(H41*0.75+H42*0.25)))/PI()*180 -> -17.30721681 | T41: 10:43:40.282
A42: 2013-02-10T12:00:00 | B42: =IF(B41+(A42-A41)*D41/'2012年'!$H$4*'2012年'!$L$3<360,B41+(A42-A41)*D41/'2012年'!$H$4*'2012年'!$L$3,B41+(A42-A41)*D41/'2012年'!$H$4*'2012年'!$L$3-360) -> 321.5332882 | C42: 38.51363287 | D42: ='2012年'!$H$4*(1+'2012年'!$H$3*DCOS(C42))^2*(1-'2012年'!$H$3*dsin(C42)*PI()/180*(1+'2012年'!$H$3*DCOS(C42))) -> 1.011795697 | E42: =D42*'2012年'!$L$3/'2012年'!$H$4-'2012年'!$L$4 -> 0.02619666535 | F42: 0.1047866614 | G42: 4.72602507 | H42: =adsin(dsin(B42)*dsin('2012年'!$J$2)) -> -14.32656441 | I42: =IF(270<=B42,ATAN(dtan(B42)*DCOS('2012年'!$J$2))/PI()*180+360,IF(B42>90,ATAN(dtan(B42)*DCOS('2012年'!$J$2))/PI()*180+180,ATAN(dtan(B42)*DCOS('2012年'!$J$2))/PI()*180)) -> 323.910781 | J42: 9.509971155 | K42: -0.09750611333 | L42: 14.23599623 | M42: 0.007280548054 | N42: =adcos((-dsin(検索入力!$A$7)*dsin(H42)-dsin(出没角_度))/(DCOS(検索入力!$A$7)*DCOS(H42))) -> 80.70173843 | O42: 06:44:00.118 | P42: =ATAN((-dsin(検索入力!$A$7)*DCOS(N42*0.75+N41*0.25)*DCOS(H42*0.75+H41*0.25)+DCOS(検索入力!$A$7)*dsin(H42*0.75+H41*0.25))/(dsin(N42*0.75+N41*0.25)*DCOS(H42*0.75+H41*0.25)))/PI()*180 -> -17.10676333 | Q42: =(12+(L42+'2012年'!$J$3)/60)/24 -> 12:06:34.152 | R42: 17:29:37.493 | S42: =ATAN((-dsin(検索入力!$A$7)*DCOS(N42*0.75+N43*0.25)*DCOS(H42*0.75+H43*0.25)+DCOS(検索入力!$A$7)*dsin(H42*0.75+H43*0.25))/(dsin(N42*0.75+N43*0.25)*DCOS(H42*0.75+H43*0.25)))/PI()*180 -> -16.90514883 | T42: 10:45:37.376
A43: 2013-02-11T12:00:00 | B43: =IF(B42+(A43-A42)*D42/'2012年'!$H$4*'2012年'!$L$3<360,B42+(A43-A42)*D42/'2012年'!$H$4*'2012年'!$L$3,B42+(A43-A42)*D42/'2012年'!$H$4*'2012年'!$L$3-360) -> 322.5451322 | C43: 39.52542857 | D43: ='2012年'!$H$4*(1+'2012年'!$H$3*DCOS(C43))^2*(1-'2012年'!$H$3*dsin(C43)*PI()/180*(1+'2012年'!$H$3*DCOS(C43))) -> 1.011420355 | E43: =D43*'2012年'!$L$3/'2012年'!$H$4-'2012年'!$L$4 -> 0.02582130611 | F43: 0.1032852244 | G43: 4.830811732 | H43: =adsin(dsin(B43)*dsin('2012年'!$J$2)) -> -13.99927604 | I43: =IF(270<=B43,ATAN(dtan(B43)*DCOS('2012年'!$J$2))/PI()*180+360,IF(B43>90,ATAN(dtan(B43)*DCOS('2012年'!$J$2))/PI()*180+180,ATAN(dtan(B43)*DCOS('2012年'!$J$2))/PI()*180)) -> 324.8982485 | J43: 9.412465042 | K43: -0.1087659198 | L43: 14.24327677 | M43: -0.005480695389 | N43: =adcos((-dsin(検索入力!$A$7)*dsin(H43)-dsin(出没角_度))/(DCOS(検索入力!$A$7)*DCOS(H43))) -> 80.94865897 | O43: 06:43:01.616 | P43: =ATAN((-dsin(検索入力!$A$7)*DCOS(N43*0.75+N42*0.25)*DCOS(H43*0.75+H42*0.25)+DCOS(検索入力!$A$7)*dsin(H43*0.75+H42*0.25))/(dsin(N43*0.75+N42*0.25)*DCOS(H43*0.75+H42*0.25)))/PI()*180 -> -16.70237308 | Q43: =(12+(L43+'2012年'!$J$3)/60)/24 -> 12:06:34.589 | R43: 17:30:37.123 | S43: =ATAN((-dsin(検索入力!$A$7)*DCOS(N43*0.75+N44*0.25)*DCOS(H43*0.75+H44*0.25)+DCOS(検索入力!$A$7)*dsin(H43*0.75+H44*0.25))/(dsin(N43*0.75+N44*0.25)*DCOS(H43*0.75+H44*0.25)))/PI()*180 -> -16.49847249 | T43: 10:47:35.507
A44: 2013-02-12T12:00:00 | B44: =IF(B43+(A44-A43)*D43/'2012年'!$H$4*'2012年'!$L$3<360,B43+(A44-A43)*D43/'2012年'!$H$4*'2012年'!$L$3,B43+(A44-A43)*D43/'2012年'!$H$4*'2012年'!$L$3-360) -> 323.5566009 | C44: 40.53684893 | D44: ='2012年'!$H$4*(1+'2012年'!$H$3*DCOS(C44))^2*(1-'2012年'!$H$3*dsin(C44)*PI()/180*(1+'2012年'!$H$3*DCOS(C44))) -> 1.01103726 | E44: =D44*'2012年'!$L$3/'2012年'!$H$4-'2012年'!$L$4 -> 0.02543819262 | F44: 0.1017527705 | G44: 4.934096956 | H44: =adsin(dsin(B44)*dsin('2012年'!$J$2)) -> -13.66812809 | I44: =IF(270<=B44,ATAN(dtan(B44)*DCOS('2012年'!$J$2))/PI()*180+360,IF(B44>90,ATAN(dtan(B44)*DCOS('2012年'!$J$2))/PI()*180+180,ATAN(dtan(B44)*DCOS('2012年'!$J$2))/PI()*180)) -> 325.8825257 | J44: 9.303699122 | K44: -0.1198343141 | L44: 14.23779608 | M44: -0.01808154362 | N44: =adcos((-dsin(検索入力!$A$7)*dsin(H44)-dsin(出没角_度))/(DCOS(検索入力!$A$7)*DCOS(H44))) -> 81.19764023 | O44: 06:42:01.847 | P44: =ATAN((-dsin(検索入力!$A$7)*DCOS(N44*0.75+N43*0.25)*DCOS(H44*0.75+H43*0.25)+DCOS(検索入力!$A$7)*dsin(H44*0.75+H43*0.25))/(dsin(N44*0.75+N43*0.25)*DCOS(H44*0.75+H43*0.25)))/PI()*180 -> -16.29344687 | Q44: =(12+(L44+'2012年'!$J$3)/60)/24 -> 12:06:34.260 | R44: 17:31:36.479 | S44: =ATAN((-dsin(検索入力!$A$7)*DCOS(N44*0.75+N45*0.25)*DCOS(H44*0.75+H45*0.25)+DCOS(検索入力!$A$7)*dsin(H44*0.75+H45*0.25))/(dsin(N44*0.75+N45*0.25)*DCOS(H44*0.75+H45*0.25)))/PI()*180 -> -16.08733239 | T44: 10:49:34.632
A45: 2013-02-13T12:00:00 | B45: =IF(B44+(A45-A44)*D44/'2012年'!$H$4*'2012年'!$L$3<360,B44+(A45-A44)*D44/'2012年'!$H$4*'2012年'!$L$3,B44+(A45-A44)*D44/'2012年'!$H$4*'2012年'!$L$3-360) -> 324.5676865 | C45: 41.54788619 | D45: ='2012年'!$H$4*(1+'2012年'!$H$3*DCOS(C45))^2*(1-'2012年'!$H$3*dsin(C45)*PI()/180*(1+'2012年'!$H$3*DCOS(C45))) -> 1.010646547 | E45: =D45*'2012年'!$L$3/'2012年'!$H$4-'2012年'!$L$4 -> 0.02504746051 | F45: 0.100189842 | G45: 5.035849726 | H45: =adsin(dsin(B45)*dsin('2012年'!$J$2)) -> -13.33323644 | I45: =IF(270<=B45,ATAN(dtan(B45)*DCOS('2012年'!$J$2))/PI()*180+360,IF(B45>90,ATAN(dtan(B45)*DCOS('2012年'!$J$2))/PI()*180+180,ATAN(dtan(B45)*DCOS('2012年'!$J$2))/PI()*180)) -> 326.8636527 | J45: 9.183864808 | K45: -0.1307001296 | L45: 14.21971453 | M45: -0.03051028751 | N45: =adcos((-dsin(検索入力!$A$7)*dsin(H45)-dsin(出没角_度))/(DCOS(検索入力!$A$7)*DCOS(H45))) -> 81.44859199 | O45: 06:41:00.841 | P45: =ATAN((-dsin(検索入力!$A$7)*DCOS(N45*0.75+N44*0.25)*DCOS(H45*0.75+H44*0.25)+DCOS(検索入力!$A$7)*dsin(H45*0.75+H44*0.25))/(dsin(N45*0.75+N44*0.25)*DCOS(H45*0.75+H44*0.25)))/PI()*180 -> -15.88012892 | Q45: =(12+(L45+'2012年'!$J$3)/60)/24 -> 12:06:33.175 | R45: 17:32:35.549 | S45: =ATAN((-dsin(検索入力!$A$7)*DCOS(N45*0.75+N46*0.25)*DCOS(H45*0.75+H46*0.25)+DCOS(検索入力!$A$7)*dsin(H45*0.75+H46*0.25))/(dsin(N45*0.75+N46*0.25)*DCOS(H45*0.75+H46*0.25)))/PI()*180 -> -15.67187236 | T45: 10:51:34.708
A46: 2013-02-14T12:00:00 | B46: =IF(B45+(A46-A45)*D45/'2012年'!$H$4*'2012年'!$L$3<360,B45+(A46-A45)*D45/'2012年'!$H$4*'2012年'!$L$3,B45+(A46-A45)*D45/'2012年'!$H$4*'2012年'!$L$3-360) -> 325.5783813 | C46: 42.55853273 | D46: ='2012年'!$H$4*(1+'2012年'!$H$3*DCOS(C46))^2*(1-'2012年'!$H$3*dsin(C46)*PI()/180*(1+'2012年'!$H$3*DCOS(C46))) -> 1.010248353 | E46: =D46*'2012年'!$L$3/'2012年'!$H$4-'2012年'!$L$4 -> 0.02464924776 | F46: 0.09859699105 | G46: 5.136039568 | H46: =adsin(dsin(B46)*dsin('2012年'!$J$2)) -> -12.99471686 | I46: =IF(270<=B46,ATAN(dtan(B46)*DCOS('2012年'!$J$2))/PI()*180+360,IF(B46>90,ATAN(dtan(B46)*DCOS('2012年'!$J$2))/PI()*180+180,ATAN(dtan(B46)*DCOS('2012年'!$J$2))/PI()*180)) -> 327.8416724 | J46: 9.053164679 | K46: -0.1413526636 | L46: 14.18920425 | M46: -0.04275567252 | N46: =adcos((-dsin(検索入力!$A$7)*dsin(H46)-dsin(出没角_度))/(DCOS(検索入力!$A$7)*DCOS(H46))) -> 81.70142633 | O46: 06:39:58.630 | P46: =ATAN((-dsin(検索入力!$A$7)*DCOS(N46*0.75+N45*0.25)*DCOS(H46*0.75+H45*0.25)+DCOS(検索入力!$A$7)*dsin(H46*0.75+H45*0.25))/(dsin(N46*0.75+N45*0.25)*DCOS(H46*0.75+H45*0.25)))/PI()*180 -> -15.46256264 | Q46: =(12+(L46+'2012年'!$J$3)/60)/24 -> 12:06:31.344 | R46: 17:33:34.323 | S46: =ATAN((-dsin(検索入力!$A$7)*DCOS(N46*0.75+N47*0.25)*DCOS(H46*0.75+H47*0.25)+DCOS(検索入力!$A$7)*dsin(H46*0.75+H47*0.25))/(dsin(N46*0.75+N47*0.25)*DCOS(H46*0.75+H47*0.25)))/PI()*180 -> -15.25223538 | T46: 10:53:35.693
A47: 2013-02-15T12:00:00 | B47: =IF(B46+(A47-A46)*D46/'2012年'!$H$4*'2012年'!$L$3<360,B46+(A47-A46)*D46/'2012年'!$H$4*'2012年'!$L$3,B46+(A47-A46)*D46/'2012年'!$H$4*'2012年'!$L$3-360) -> 326.5886779 | C47: 43.56878109 | D47: ='2012年'!$H$4*(1+'2012年'!$H$3*DCOS(C47))^2*(1-'2012年'!$H$3*dsin(C47)*PI()/180*(1+'2012年'!$H$3*DCOS(C47))) -> 1.009842819 | E47: =D47*'2012年'!$L$3/'2012年'!$H$4-'2012年'!$L$4 -> 0.02424369461 | F47: 0.09697477843 | G47: 5.23463656 | H47: =adsin(dsin(B47)*dsin('2012年'!$J$2)) -> -12.65268508 | I47: =IF(270<=B47,ATAN(dtan(B47)*DCOS('2012年'!$J$2))/PI()*180+360,IF(B47>90,ATAN(dtan(B47)*DCOS('2012年'!$J$2))/PI()*180+180,ATAN(dtan(B47)*DCOS('2012年'!$J$2))/PI()*180)) -> 328.8166309 | J47: 8.911812015 | K47: -0.1517816749 | L47: 14.14644857 | M47: -0.05480689647 | N47: =adcos((-dsin(検索入力!$A$7)*dsin(H47)-dsin(出没角_度))/(DCOS(検索入力!$A$7)*DCOS(H47))) -> 81.95605759 | O47: 06:38:55.244 | P47: =ATAN((-dsin(検索入力!$A$7)*DCOS(N47*0.75+N46*0.25)*DCOS(H47*0.75+H46*0.25)+DCOS(検索入力!$A$7)*dsin(H47*0.75+H46*0.25))/(dsin(N47*0.75+N46*0.25)*DCOS(H47*0.75+H46*0.25)))/PI()*180 -> -15.04089057 | Q47: =(12+(L47+'2012年'!$J$3)/60)/24 -> 12:06:28.779 | R47: 17:34:32.791 | S47: =ATAN((-dsin(検索入力!$A$7)*DCOS(N47*0.75+N48*0.25)*DCOS(H47*0.75+H48*0.25)+DCOS(検索入力!$A$7)*dsin(H47*0.75+H48*0.25))/(dsin(N47*0.75+N48*0.25)*DCOS(H47*0.75+H48*0.25)))/PI()*180 -> -14.82856356 | T47: 10:55:37.547
A48: 2013-02-16T12:00:00 | B48: =IF(B47+(A48-A47)*D47/'2012年'!$H$4*'2012年'!$L$3<360,B47+(A48-A47)*D47/'2012年'!$H$4*'2012年'!$L$3,B47+(A48-A47)*D47/'2012年'!$H$4*'2012年'!$L$3-360) -> 327.5985689 | C48: 44.57862391 | D48: ='2012年'!$H$4*(1+'2012年'!$H$3*DCOS(C48))^2*(1-'2012年'!$H$3*dsin(C48)*PI()/180*(1+'2012年'!$H$3*DCOS(C48))) -> 1.009430088 | E48: =D48*'2012年'!$L$3/'2012年'!$H$4-'2012年'!$L$4 -> 0.02383094347 | F48: 0.09532377389 | G48: 5.331611338 | H48: =adsin(dsin(B48)*dsin('2012年'!$J$2)) -> -12.30725665 | I48: =IF(270<=B48,ATAN(dtan(B48)*DCOS('2012年'!$J$2))/PI()*180+360,IF(B48>90,ATAN(dtan(B48)*DCOS('2012年'!$J$2))/PI()*180+180,ATAN(dtan(B48)*DCOS('2012年'!$J$2))/PI()*180)) -> 329.7885765 | J48: 8.76003034 | K48: -0.1619773803 | L48: 14.09164168 | M48: -0.06665360646 | N48: =adcos((-dsin(検索入力!$A$7)*dsin(H48)-dsin(出没角_度))/(DCOS(検索入力!$A$7)*DCOS(H48))) -> 82.2124024 | O48: 06:37:50.717 | P48: =ATAN((-dsin(検索入力!$A$7)*DCOS(N48*0.75+N47*0.25)*DCOS(H48*0.75+H47*0.25)+DCOS(検索入力!$A$7)*dsin(H48*0.75+H47*0.25))/(dsin(N48*0.75+N47*0.25)*DCOS(H48*0.75+H47*0.25)))/PI()*180 -> -14.61525438 | Q48: =(12+(L48+'2012年'!$J$3)/60)/24 -> 12:06:25.491 | R48: 17:35:30.946 | S48: =ATAN((-dsin(検索入力!$A$7)*DCOS(N48*0.75+N49*0.25)*DCOS(H48*0.75+H49*0.25)+DCOS(検索入力!$A$7)*dsin(H48*0.75+H49*0.25))/(dsin(N48*0.75+N49*0.25)*DCOS(H48*0.75+H49*0.25)))/PI()*180 -> -14.40099809 | T48: 10:57:40.229
A49: 2013-02-17T12:00:00 | B49: =IF(B48+(A49-A48)*D48/'2012年'!$H$4*'2012年'!$L$3<360,B48+(A49-A48)*D48/'2012年'!$H$4*'2012年'!$L$3,B48+(A49-A48)*D48/'2012年'!$H$4*'2012年'!$L$3-360) -> 328.6080472 | C49: 45.58805399 | D49: ='2012年'!$H$4*(1+'2012年'!$H$3*DCOS(C49))^2*(1-'2012年'!$H$3*dsin(C49)*PI()/180*(1+'2012年'!$H$3*DCOS(C49))) -> 1.009010303 | E49: =D49*'2012年'!$L$3/'2012年'!$H$4-'2012年'!$L$4 -> 0.0234111389 | F49: 0.0936445556 | G49: 5.426935112 | H49: =adsin(dsin(B49)*dsin('2012年'!$J$2)) -> -11.95854694 | I49: =IF(270<=B49,ATAN(dtan(B49)*DCOS('2012年'!$J$2))/PI()*180+360,IF(B49>90,ATAN(dtan(B49)*DCOS('2012年'!$J$2))/PI()*180+180,ATAN(dtan(B49)*DCOS('2012年'!$J$2))/PI()*180)) -> 330.7575605 | J49: 8.59805296 | K49: -0.1719304503 | L49: 14.02498807 | M49: -0.07828589474 | N49: =adcos((-dsin(検索入力!$A$7)*dsin(H49)-dsin(出没角_度))/(DCOS(検索入力!$A$7)*DCOS(H49))) -> 82.47037964 | O49: 06:36:45.079 | P49: =ATAN((-dsin(検索入力!$A$7)*DCOS(N49*0.75+N48*0.25)*DCOS(H49*0.75+H48*0.25)+DCOS(検索入力!$A$7)*dsin(H49*0.75+H48*0.25))/(dsin(N49*0.75+N48*0.25)*DCOS(H49*0.75+H48*0.25)))/PI()*180 -> -14.18579479 | Q49: =(12+(L49+'2012年'!$J$3)/60)/24 -> 12:06:21.491 | R49: 17:36:28.780 | S49: =ATAN((-dsin(検索入力!$A$7)*DCOS(N49*0.75+N50*0.25)*DCOS(H49*0.75+H50*0.25)+DCOS(検索入力!$A$7)*dsin(H49*0.75+H50*0.25))/(dsin(N49*0.75+N50*0.25)*DCOS(H49*0.75+H50*0.25)))/PI()*180 -> -13.96967922 | T49: 10:59:43.701
A50: 2013-02-18T12:00:00 | B50: =IF(B49+(A50-A49)*D49/'2012年'!$H$4*'2012年'!$L$3<360,B49+(A50-A49)*D49/'2012年'!$H$4*'2012年'!$L$3,B49+(A50-A49)*D49/'2012年'!$H$4*'2012年'!$L$3-360) -> 329.6171057 | C50: 46.5970643 | D50: ='2012年'!$H$4*(1+'2012年'!$H$3*DCOS(C50))^2*(1-'2012年'!$H$3*dsin(C50)*PI()/180*(1+'2012年'!$H$3*DCOS(C50))) -> 1.008583612 | E50: =D50*'2012年'!$L$3/'2012年'!$H$4-'2012年'!$L$4 -> 0.02298442749 | F50: 0.09193770996 | G50: 5.520579667 | H50: =adsin(dsin(B50)*dsin('2012年'!$J$2)) -> -11.6066711 | I50: =IF(270<=B50,ATAN(dtan(B50)*DCOS('2012年'!$J$2))/PI()*180+360,IF(B50>90,ATAN(dtan(B50)*DCOS('2012年'!$J$2))/PI()*180+180,ATAN(dtan(B50)*DCOS('2012年'!$J$2))/PI()*180)) -> 331.7236364 | J50: 8.426122509 | K50: -0.1816320038 | L50: 13.94670218 | M50: -0.08969429388 | N50: =adcos((-dsin(検索入力!$A$7)*dsin(H50)-dsin(出没角_度))/(DCOS(検索入力!$A$7)*DCOS(H50))) -> 82.72991041 | O50: 06:35:38.362 | P50: =ATAN((-dsin(検索入力!$A$7)*DCOS(N50*0.75+N49*0.25)*DCOS(H50*0.75+H49*0.25)+DCOS(検索入力!$A$7)*dsin(H50*0.75+H49*0.25))/(dsin(N50*0.75+N49*0.25)*DCOS(H50*0.75+H49*0.25)))/PI()*180 -> -13.75265155 | Q50: =(12+(L50+'2012年'!$J$3)/60)/24 -> 12:06:16.794 | R50: 17:37:26.288 | S50: =ATAN((-dsin(検索入力!$A$7)*DCOS(N50*0.75+N51*0.25)*DCOS(H50*0.75+H51*0.25)+DCOS(検索入力!$A$7)*dsin(H50*0.75+H51*0.25))/(dsin(N50*0.75+N51*0.25)*DCOS(H50*0.75+H51*0.25)))/PI()*180 -> -13.53474621 | T50: 11:01:47.926
A51: 2013-02-19T12:00:00 | B51: =IF(B50+(A51-A50)*D50/'2012年'!$H$4*'2012年'!$L$3<360,B50+(A51-A50)*D50/'2012年'!$H$4*'2012年'!$L$3,B50+(A51-A50)*D50/'2012年'!$H$4*'2012年'!$L$3-360) -> 330.6257375 | C51: 47.60564791 | D51: ='2012年'!$H$4*(1+'2012年'!$H$3*DCOS(C51))^2*(1-'2012年'!$H$3*dsin(C51)*PI()/180*(1+'2012年'!$H$3*DCOS(C51))) -> 1.008150163 | E51: =D51*'2012年'!$L$3/'2012年'!$H$4-'2012年'!$L$4 -> 0.02255095781 | F51: 0.09020383125 | G51: 5.612517377 | H51: =adsin(dsin(B51)*dsin('2012年'!$J$2)) -> -11.25174402 | I51: =IF(270<=B51,ATAN(dtan(B51)*DCOS('2012年'!$J$2))/PI()*180+360,IF(B51>90,ATAN(dtan(B51)*DCOS('2012年'!$J$2))/PI()*180+180,ATAN(dtan(B51)*DCOS('2012年'!$J$2))/PI()*180)) -> 332.6868601 | J51: 8.244490506 | K51: -0.1910736024 | L51: 13.85700788 | M51: -0.1008697711 | N51: =adcos((-dsin(検索入力!$A$7)*dsin(H51)-dsin(出没角_度))/(DCOS(検索入力!$A$7)*DCOS(H51))) -> 82.99091803 | O51: 06:34:30.598 | P51: =ATAN((-dsin(検索入力!$A$7)*DCOS(N51*0.75+N50*0.25)*DCOS(H51*0.75+H50*0.25)+DCOS(検索入力!$A$7)*dsin(H51*0.75+H50*0.25))/(dsin(N51*0.75+N50*0.25)*DCOS(H51*0.75+H50*0.25)))/PI()*180 -> -13.31596342 | Q51: =(12+(L51+'2012年'!$J$3)/60)/24 -> 12:06:11.412 | R51: 17:38:23.464 | S51: =ATAN((-dsin(検索入力!$A$7)*DCOS(N51*0.75+N52*0.25)*DCOS(H51*0.75+H52*0.25)+DCOS(検索入力!$A$7)*dsin(H51*0.75+H52*0.25))/(dsin(N51*0.75+N52*0.25)*DCOS(H51*0.75+H52*0.25)))/PI()*180 -> -13.09633732 | T51: 11:03:52.866
A52: 2013-02-20T12:00:00 | B52: =IF(B51+(A52-A51)*D51/'2012年'!$H$4*'2012年'!$L$3<360,B51+(A52-A51)*D51/'2012年'!$H$4*'2012年'!$L$3,B51+(A52-A51)*D51/'2012年'!$H$4*'2012年'!$L$3-360) -> 331.6339358 | C52: 48.61379807 | D52: ='2012年'!$H$4*(1+'2012年'!$H$3*DCOS(C52))^2*(1-'2012年'!$H$3*dsin(C52)*PI()/180*(1+'2012年'!$H$3*DCOS(C52))) -> 1.007710107 | E52: =D52*'2012年'!$L$3/'2012年'!$H$4-'2012年'!$L$4 -> 0.02211088035 | F52: 0.08844352139 | G52: 5.702721209 | H52: =adsin(dsin(B52)*dsin('2012年'!$J$2)) -> -10.89388028 | I52: =IF(270<=B52,ATAN(dtan(B52)*DCOS('2012年'!$J$2))/PI()*180+360,IF(B52>90,ATAN(dtan(B52)*DCOS('2012年'!$J$2))/PI()*180+180,ATAN(dtan(B52)*DCOS('2012年'!$J$2))/PI()*180)) -> 333.6472901 | J52: 8.053416903 | K52: -0.2002472436 | L52: 13.75613811 | M52: -0.1118037222 | N52: =adcos((-dsin(検索入力!$A$7)*dsin(H52)-dsin(出没角_度))/(DCOS(検索入力!$A$7)*DCOS(H52))) -> 83.253328 | O52: 06:33:21.819 | P52: =ATAN((-dsin(検索入力!$A$7)*DCOS(N52*0.75+N51*0.25)*DCOS(H52*0.75+H51*0.25)+DCOS(検索入力!$A$7)*dsin(H52*0.75+H51*0.25))/(dsin(N52*0.75+N51*0.25)*DCOS(H52*0.75+H51*0.25)))/PI()*180 -> -12.87586817 | Q52: =(12+(L52+'2012年'!$J$3)/60)/24 -> 12:06:05.360 | R52: 17:39:20.306 | S52: =ATAN((-dsin(検索入力!$A$7)*DCOS(N52*0.75+N53*0.25)*DCOS(H52*0.75+H53*0.25)+DCOS(検索入力!$A$7)*dsin(H52*0.75+H53*0.25))/(dsin(N52*0.75+N53*0.25)*DCOS(H52*0.75+H53*0.25)))/PI()*180 -> -12.65458979 | T52: 11:05:58.487
A53: 2013-02-21T12:00:00 | B53: =IF(B52+(A53-A52)*D52/'2012年'!$H$4*'2012年'!$L$3<360,B52+(A53-A52)*D52/'2012年'!$H$4*'2012年'!$L$3,B52+(A53-A52)*D52/'2012年'!$H$4*'2012年'!$L$3-360) -> 332.6416941 | C53: 49.62150818 | D53: ='2012年'!$H$4*(1+'2012年'!$H$3*DCOS(C53))^2*(1-'2012年'!$H$3*dsin(C53)*PI()/180*(1+'2012年'!$H$3*DCOS(C53))) -> 1.007263595 | E53: =D53*'2012年'!$L$3/'2012年'!$H$4-'2012年'!$L$4 -> 0.02166434741 | F53: 0.08665738963 | G53: 5.79116473 | H53: =adsin(dsin(B53)*dsin('2012年'!$J$2)) -> -10.53319415 | I53: =IF(270<=B53,ATAN(dtan(B53)*DCOS('2012年'!$J$2))/PI()*180+360,IF(B53>90,ATAN(dtan(B53)*DCOS('2012年'!$J$2))/PI()*180+180,ATAN(dtan(B53)*DCOS('2012年'!$J$2))/PI()*180)) -> 334.6049865 | J53: 7.85316966 | K53: -0.209145354 | L53: 13.64433439 | M53: -0.1224879644 | N53: =adcos((-dsin(検索入力!$A$7)*dsin(H53)-dsin(出没角_度))/(DCOS(検索入力!$A$7)*DCOS(H53))) -> 83.51706794 | O53: 06:32:12.057 | P53: =ATAN((-dsin(検索入力!$A$7)*DCOS(N53*0.75+N52*0.25)*DCOS(H53*0.75+H52*0.25)+DCOS(検索入力!$A$7)*dsin(H53*0.75+H52*0.25))/(dsin(N53*0.75+N52*0.25)*DCOS(H53*0.75+H52*0.25)))/PI()*180 -> -12.43250249 | Q53: =(12+(L53+'2012年'!$J$3)/60)/24 -> 12:05:58.652 | R53: 17:40:16.811 | S53: =ATAN((-dsin(検索入力!$A$7)*DCOS(N53*0.75+N54*0.25)*DCOS(H53*0.75+H54*0.25)+DCOS(検索入力!$A$7)*dsin(H53*0.75+H54*0.25))/(dsin(N53*0.75+N54*0.25)*DCOS(H53*0.75+H54*0.25)))/PI()*180 -> -12.2096398 | T53: 11:08:04.754
A54: 2013-02-22T12:00:00 | B54: =IF(B53+(A54-A53)*D53/'2012年'!$H$4*'2012年'!$L$3<360,B53+(A54-A53)*D53/'2012年'!$H$4*'2012年'!$L$3,B53+(A54-A53)*D53/'2012年'!$H$4*'2012年'!$L$3-360) -> 333.6490058 | C54: 50.62877177 | D54: ='2012年'!$H$4*(1+'2012年'!$H$3*DCOS(C54))^2*(1-'2012年'!$H$3*dsin(C54)*PI()/180*(1+'2012年'!$H$3*DCOS(C54))) -> 1.006810783 | E54: =D54*'2012年'!$L$3/'2012年'!$H$4-'2012年'!$L$4 -> 0.02121151306 | F54: 0.08484605225 | G54: 5.87782212 | H54: =adsin(dsin(B54)*dsin('2012年'!$J$2)) -> -10.16979953 | I54: =IF(270<=B54,ATAN(dtan(B54)*DCOS('2012年'!$J$2))/PI()*180+360,IF(B54>90,ATAN(dtan(B54)*DCOS('2012年'!$J$2))/PI()*180+180,ATAN(dtan(B54)*DCOS('2012年'!$J$2))/PI()*180)) -> 335.5600119 | J54: 7.644024306 | K54: -0.2177607816 | L54: 13.52184643 | M54: -0.1329147293 | N54: =adcos((-dsin(検索入力!$A$7)*dsin(H54)-dsin(出没角_度))/(DCOS(検索入力!$A$7)*DCOS(H54))) -> 83.78206757 | O54: 06:31:01.344 | P54: =ATAN((-dsin(検索入力!$A$7)*DCOS(N54*0.75+N53*0.25)*DCOS(H54*0.75+H53*0.25)+DCOS(検索入力!$A$7)*dsin(H54*0.75+H53*0.25))/(dsin(N54*0.75+N53*0.25)*DCOS(H54*0.75+H53*0.25)))/PI()*180 -> -11.98600207 | Q54: =(12+(L54+'2012年'!$J$3)/60)/24 -> 12:05:51.303 | R54: 17:41:12.977 | S54: =ATAN((-dsin(検索入力!$A$7)*DCOS(N54*0.75+N55*0.25)*DCOS(H54*0.75+H55*0.25)+DCOS(検索入力!$A$7)*dsin(H54*0.75+H55*0.25))/(dsin(N54*0.75+N55*0.25)*DCOS(H54*0.75+H55*0.25)))/PI()*180 -> -11.76162252 | T54: 11:10:11.633
A55: 2013-02-23T12:00:00 | B55: =IF(B54+(A55-A54)*D54/'2012年'!$H$4*'2012年'!$L$3<360,B54+(A55-A54)*D54/'2012年'!$H$4*'2012年'!$L$3,B54+(A55-A54)*D54/'2012年'!$H$4*'2012年'!$L$3-360) -> 334.6558647 | C55: 51.63558256 | D55: ='2012年'!$H$4*(1+'2012年'!$H$3*DCOS(C55))^2*(1-'2012年'!$H$3*dsin(C55)*PI()/180*(1+'2012年'!$H$3*DCOS(C55))) -> 1.006351824 | E55: =D55*'2012年'!$L$3/'2012年'!$H$4-'2012年'!$L$4 -> 0.02075253307 | F55: 0.08301013227 | G55: 5.962668172 | H55: =adsin(dsin(B55)*dsin('2012年'!$J$2)) -> -9.803809941 | I55: =IF(270<=B55,ATAN(dtan(B55)*DCOS('2012年'!$J$2))/PI()*180+360,IF(B55>90,ATAN(dtan(B55)*DCOS('2012年'!$J$2))/PI()*180+180,ATAN(dtan(B55)*DCOS('2012年'!$J$2))/PI()*180)) -> 336.5124305 | J55: 7.426263524 | K55: -0.2260867875 | L55: 13.3889317 | M55: -0.1430766552 | N55: =adcos((-dsin(検索入力!$A$7)*dsin(H55)-dsin(出没角_度))/(DCOS(検索入力!$A$7)*DCOS(H55))) -> 84.04825866 | O55: 06:29:49.711 | P55: =ATAN((-dsin(検索入力!$A$7)*DCOS(N55*0.75+N54*0.25)*DCOS(H55*0.75+H54*0.25)+DCOS(検索入力!$A$7)*dsin(H55*0.75+H54*0.25))/(dsin(N55*0.75+N54*0.25)*DCOS(H55*0.75+H54*0.25)))/PI()*180 -> -11.53650153 | Q55: =(12+(L55+'2012年'!$J$3)/60)/24 -> 12:05:43.328 | R55: 17:42:08.803 | S55: =ATAN((-dsin(検索入力!$A$7)*DCOS(N55*0.75+N56*0.25)*DCOS(H55*0.75+H56*0.25)+DCOS(検索入力!$A$7)*dsin(H55*0.75+H56*0.25))/(dsin(N55*0.75+N56*0.25)*DCOS(H55*0.75+H56*0.25)))/PI()*180 -> -11.31067201 | T55: 11:12:19.092
A56: 2013-02-24T12:00:00 | B56: =IF(B55+(A56-A55)*D55/'2012年'!$H$4*'2012年'!$L$3<360,B55+(A56-A55)*D55/'2012年'!$H$4*'2012年'!$L$3,B55+(A56-A55)*D55/'2012年'!$H$4*'2012年'!$L$3-360) -> 335.6622645 | C56: 52.64193438 | D56: ='2012年'!$H$4*(1+'2012年'!$H$3*DCOS(C56))^2*(1-'2012年'!$H$3*dsin(C56)*PI()/180*(1+'2012年'!$H$3*DCOS(C56))) -> 1.005886878 | E56: =D56*'2012年'!$L$3/'2012年'!$H$4-'2012年'!$L$4 -> 0.0202875648 | F56: 0.08115025919 | G56: 6.045678304 | H56: =adsin(dsin(B56)*dsin('2012年'!$J$2)) -> -9.435338504 | I56: =IF(270<=B56,ATAN(dtan(B56)*DCOS('2012年'!$J$2))/PI()*180+360,IF(B56>90,ATAN(dtan(B56)*DCOS('2012年'!$J$2))/PI()*180+180,ATAN(dtan(B56)*DCOS('2012年'!$J$2))/PI()*180)) -> 337.4623087 | J56: 7.200176737 | K56: -0.2341170381 | L56: 13.24585504 | M56: -0.1529667789 | N56: =adcos((-dsin(検索入力!$A$7)*dsin(H56)-dsin(出没角_度))/(DCOS(検索入力!$A$7)*DCOS(H56))) -> 84.31557498 | O56: 06:28:37.190 | P56: =ATAN((-dsin(検索入力!$A$7)*DCOS(N56*0.75+N55*0.25)*DCOS(H56*0.75+H55*0.25)+DCOS(検索入力!$A$7)*dsin(H56*0.75+H55*0.25))/(dsin(N56*0.75+N55*0.25)*DCOS(H56*0.75+H55*0.25)))/PI()*180 -> -11.0841344 | Q56: =(12+(L56+'2012年'!$J$3)/60)/24 -> 12:05:34.743 | R56: 17:43:04.289 | S56: =ATAN((-dsin(検索入力!$A$7)*DCOS(N56*0.75+N57*0.25)*DCOS(H56*0.75+H57*0.25)+DCOS(検索入力!$A$7)*dsin(H56*0.75+H57*0.25))/(dsin(N56*0.75+N57*0.25)*DCOS(H56*0.75+H57*0.25)))/PI()*180 -> -10.8569213 | T56: 11:14:27.099
A57: 2013-02-25T12:00:00 | B57: =IF(B56+(A57-A56)*D56/'2012年'!$H$4*'2012年'!$L$3<360,B56+(A57-A56)*D56/'2012年'!$H$4*'2012年'!$L$3,B56+(A57-A56)*D56/'2012年'!$H$4*'2012年'!$L$3-360) -> 336.6681995 | C57: 53.64782126 | D57: ='2012年'!$H$4*(1+'2012年'!$H$3*DCOS(C57))^2*(1-'2012年'!$H$3*dsin(C57)*PI()/180*(1+'2012年'!$H$3*DCOS(C57))) -> 1.005416103 | E57: =D57*'2012年'!$L$3/'2012年'!$H$4-'2012年'!$L$4 -> 0.01981676716 | F57: 0.07926706865 | G57: 6.126828563 | H57: =adsin(dsin(B57)*dsin('2012年'!$J$2)) -> -9.064497914 | I57: =IF(270<=B57,ATAN(dtan(B57)*DCOS('2012年'!$J$2))/PI()*180+360,IF(B57>90,ATAN(dtan(B57)*DCOS('2012年'!$J$2))/PI()*180+180,ATAN(dtan(B57)*DCOS('2012年'!$J$2))/PI()*180)) -> 338.4097144 | J57: 6.966059698 | K57: -0.2418455962 | L57: 13.09288826 | M57: -0.1625785275 | N57: =adcos((-dsin(検索入力!$A$7)*dsin(H57)-dsin(出没角_度))/(DCOS(検索入力!$A$7)*DCOS(H57))) -> 84.58395224 | O57: 06:27:23.814 | P57: =ATAN((-dsin(検索入力!$A$7)*DCOS(N57*0.75+N56*0.25)*DCOS(H57*0.75+H56*0.25)+DCOS(検索入力!$A$7)*dsin(H57*0.75+H56*0.25))/(dsin(N57*0.75+N56*0.25)*DCOS(H57*0.75+H56*0.25)))/PI()*180 -> -10.62903318 | Q57: =(12+(L57+'2012年'!$J$3)/60)/24 -> 12:05:25.565 | R57: 17:43:59.438 | S57: =ATAN((-dsin(検索入力!$A$7)*DCOS(N57*0.75+N58*0.25)*DCOS(H57*0.75+H58*0.25)+DCOS(検索入力!$A$7)*dsin(H57*0.75+H58*0.25))/(dsin(N57*0.75+N58*0.25)*DCOS(H57*0.75+H58*0.25)))/PI()*180 -> -10.40050234 | T57: 11:16:35.624
A58: 2013-02-26T12:00:00 | B58: =IF(B57+(A58-A57)*D57/'2012年'!$H$4*'2012年'!$L$3<360,B57+(A58-A57)*D57/'2012年'!$H$4*'2012年'!$L$3,B57+(A58-A57)*D57/'2012年'!$H$4*'2012年'!$L$3-360) -> 337.6736636 | C58: 54.65323736 | D58: ='2012年'!$H$4*(1+'2012年'!$H$3*DCOS(C58))^2*(1-'2012年'!$H$3*dsin(C58)*PI()/180*(1+'2012年'!$H$3*DCOS(C58))) -> 1.004939659 | E58: =D58*'2012年'!$L$3/'2012年'!$H$4-'2012年'!$L$4 -> 0.01934030054 | F58: 0.07736120217 | G58: 6.206095632 | H58: =adsin(dsin(B58)*dsin('2012年'!$J$2)) -> -8.691400419 | I58: =IF(270<=B58,ATAN(dtan(B58)*DCOS('2012年'!$J$2))/PI()*180+360,IF(B58>90,ATAN(dtan(B58)*DCOS('2012年'!$J$2))/PI()*180+180,ATAN(dtan(B58)*DCOS('2012年'!$J$2))/PI()*180)) -> 339.3547171 | J58: 6.724214102 | K58: -0.2492669121 | L58: 12.93030973 | M58: -0.1719057099 | N58: =adcos((-dsin(検索入力!$A$7)*dsin(H58)-dsin(出没角_度))/(DCOS(検索入力!$A$7)*DCOS(H58))) -> 84.85332805 | O58: 06:26:09.613 | P58: =ATAN((-dsin(検索入力!$A$7)*DCOS(N58*0.75+N57*0.25)*DCOS(H58*0.75+H57*0.25)+DCOS(検索入力!$A$7)*dsin(H58*0.75+H57*0.25))/(dsin(N58*0.75+N57*0.25)*DCOS(H58*0.75+H57*0.25)))/PI()*180 -> -10.1713293 | Q58: =(12+(L58+'2012年'!$J$3)/60)/24 -> 12:05:15.811 | R58: 17:44:54.250 | S58: =ATAN((-dsin(検索入力!$A$7)*DCOS(N58*0.75+N59*0.25)*DCOS(H58*0.75+H59*0.25)+DCOS(検索入力!$A$7)*dsin(H58*0.75+H59*0.25))/(dsin(N58*0.75+N59*0.25)*DCOS(H58*0.75+H59*0.25)))/PI()*180 -> -9.941546041 | T58: 11:18:44.636
A59: 2013-02-27T12:00:00 | B59: =IF(B58+(A59-A58)*D58/'2012年'!$H$4*'2012年'!$L$3<360,B58+(A59-A58)*D58/'2012年'!$H$4*'2012年'!$L$3,B58+(A59-A58)*D58/'2012年'!$H$4*'2012年'!$L$3-360) -> 338.6786513 | C59: 55.65817702 | D59: ='2012年'!$H$4*(1+'2012年'!$H$3*DCOS(C59))^2*(1-'2012年'!$H$3*dsin(C59)*PI()/180*(1+'2012年'!$H$3*DCOS(C59))) -> 1.004457709 | E59: =D59*'2012年'!$L$3/'2012年'!$H$4-'2012年'!$L$4 -> 0.01885832671 | F59: 0.07543330684 | G59: 6.283456834 | H59: =adsin(dsin(B59)*dsin('2012年'!$J$2)) -> -8.316157812 | I59: =IF(270<=B59,ATAN(dtan(B59)*DCOS('2012年'!$J$2))/PI()*180+360,IF(B59>90,ATAN(dtan(B59)*DCOS('2012年'!$J$2))/PI()*180+180,ATAN(dtan(B59)*DCOS('2012年'!$J$2))/PI()*180)) -> 340.2973881 | J59: 6.47494719 | K59: -0.2563758148 | L59: 12.75840402 | M59: -0.180942508 | N59: =adcos((-dsin(検索入力!$A$7)*dsin(H59)-dsin(出没角_度))/(DCOS(検索入力!$A$7)*DCOS(H59))) -> 85.12364184 | O59: 06:24:54.620 | P59: =ATAN((-dsin(検索入力!$A$7)*DCOS(N59*0.75+N58*0.25)*DCOS(H59*0.75+H58*0.25)+DCOS(検索入力!$A$7)*dsin(H59*0.75+H58*0.25))/(dsin(N59*0.75+N58*0.25)*DCOS(H59*0.75+H58*0.25)))/PI()*180 -> -9.71115312 | Q59: =(12+(L59+'2012年'!$J$3)/60)/24 -> 12:05:05.496 | R59: 17:45:48.728 | S59: =ATAN((-dsin(検索入力!$A$7)*DCOS(N59*0.75+N60*0.25)*DCOS(H59*0.75+H60*0.25)+DCOS(検索入力!$A$7)*dsin(H59*0.75+H60*0.25))/(dsin(N59*0.75+N60*0.25)*DCOS(H59*0.75+H60*0.25)))/PI()*180 -> -9.480182223 | T59: 11:20:54.108
A60: 2013-02-28T12:00:00 | B60: =IF(B59+(A60-A59)*D59/'2012年'!$H$4*'2012年'!$L$3<360,B59+(A60-A59)*D59/'2012年'!$H$4*'2012年'!$L$3,B59+(A60-A59)*D59/'2012年'!$H$4*'2012年'!$L$3-360) -> 339.6831569 | C60: 56.66263473 | D60: ='2012年'!$H$4*(1+'2012年'!$H$3*DCOS(C60))^2*(1-'2012年'!$H$3*dsin(C60)*PI()/180*(1+'2012年'!$H$3*DCOS(C60))) -> 1.003970414 | E60: =D60*'2012年'!$L$3/'2012年'!$H$4-'2012年'!$L$4 -> 0.01837100876 | F60: 0.07348403503 | G60: 6.358890141 | H60: =adsin(dsin(B60)*dsin('2012年'!$J$2)) -> -7.938881411 | I60: =IF(270<=B60,ATAN(dtan(B60)*DCOS('2012年'!$J$2))/PI()*180+360,IF(B60>90,ATAN(dtan(B60)*DCOS('2012年'!$J$2))/PI()*180+180,ATAN(dtan(B60)*DCOS('2012年'!$J$2))/PI()*180)) -> 341.2377998 | J60: 6.218571375 | K60: -0.2631675032 | L60: 12.57746152 | M60: -0.1896834681 | N60: =adcos((-dsin(検索入力!$A$7)*dsin(H60)-dsin(出没角_度))/(DCOS(検索入力!$A$7)*DCOS(H60))) -> 85.39483481 | O60: 06:23:38.865 | P60: =ATAN((-dsin(検索入力!$A$7)*DCOS(N60*0.75+N59*0.25)*DCOS(H60*0.75+H59*0.25)+DCOS(検索入力!$A$7)*dsin(H60*0.75+H59*0.25))/(dsin(N60*0.75+N59*0.25)*DCOS(H60*0.75+H59*0.25)))/PI()*180 -> -9.248633947 | Q60: =(12+(L60+'2012年'!$J$3)/60)/24 -> 12:04:54.640 | R60: 17:46:42.876 | S60: =ATAN((-dsin(検索入力!$A$7)*DCOS(N60*0.75+N61*0.25)*DCOS(H60*0.75+H61*0.25)+DCOS(検索入力!$A$7)*dsin(H60*0.75+H61*0.25))/(dsin(N60*0.75+N61*0.25)*DCOS(H60*0.75+H61*0.25)))/PI()*180 -> -9.016539679 | T60: 11:23:04.011
A61: 2013-03-01T12:00:00 | B61: =IF(B60+(A61-A60)*D60/'2012年'!$H$4*'2012年'!$L$3<360,B60+(A61-A60)*D60/'2012年'!$H$4*'2012年'!$L$3,B60+(A61-A60)*D60/'2012年'!$H$4*'2012年'!$L$3-360) -> 340.6871753 | C61: 57.66660514 | D61: ='2012年'!$H$4*(1+'2012年'!$H$3*DCOS(C61))^2*(1-'2012年'!$H$3*dsin(C61)*PI()/180*(1+'2012年'!$H$3*DCOS(C61))) -> 1.00347794 | E61: =D61*'2012年'!$L$3/'2012年'!$H$4-'2012年'!$L$4 -> 0.01787851103 | F61: 0.07151404411 | G61: 6.432374176 | H61: =adsin(dsin(B61)*dsin('2012年'!$J$2)) -> -7.559682049 | I61: =IF(270<=B61,ATAN(dtan(B61)*DCOS('2012年'!$J$2))/PI()*180+360,IF(B61>90,ATAN(dtan(B61)*DCOS('2012年'!$J$2))/PI()*180+180,ATAN(dtan(B61)*DCOS('2012年'!$J$2))/PI()*180)) -> 342.1760263 | J61: 5.955403872 | K61: -0.2696375365 | L61: 12.38777805 | M61: -0.1981234924 | N61: =adcos((-dsin(検索入力!$A$7)*dsin(H61)-dsin(出没角_度))/(DCOS(検索入力!$A$7)*DCOS(H61))) -> 85.66684988 | O61: 06:22:22.381 | P61: =ATAN((-dsin(検索入力!$A$7)*DCOS(N61*0.75+N60*0.25)*DCOS(H61*0.75+H60*0.25)+DCOS(検索入力!$A$7)*dsin(H61*0.75+H60*0.25))/(dsin(N61*0.75+N60*0.25)*DCOS(H61*0.75+H60*0.25)))/PI()*180 -> -8.783900052 | Q61: =(12+(L61+'2012年'!$J$3)/60)/24 -> 12:04:43.259 | R61: 17:47:36.698 | S61: =ATAN((-dsin(検索入力!$A$7)*DCOS(N61*0.75+N62*0.25)*DCOS(H61*0.75+H62*0.25)+DCOS(検索入力!$A$7)*dsin(H61*0.75+H62*0.25))/(dsin(N61*0.75+N62*0.25)*DCOS(H61*0.75+H62*0.25)))/PI()*180 -> -8.55074616 | T61: 11:25:14.317
A62: 2013-03-02T12:00:00 | B62: =IF(B61+(A62-A61)*D61/'2012年'!$H$4*'2012年'!$L$3<360,B61+(A62-A61)*D61/'2012年'!$H$4*'2012年'!$L$3,B61+(A62-A61)*D61/'2012年'!$H$4*'2012年'!$L$3-360) -> 341.6907012 | C62: 58.67008308 | D62: ='2012年'!$H$4*(1+'2012年'!$H$3*DCOS(C62))^2*(1-'2012年'!$H$3*dsin(C62)*PI()/180*(1+'2012年'!$H$3*DCOS(C62))) -> 1.002980451 | E62: =D62*'2012年'!$L$3/'2012年'!$H$4-'2012年'!$L$4 -> 0.01738099903 | F62: 0.06952399613 | G62: 6.50388822 | H62: =adsin(dsin(B62)*dsin('2012年'!$J$2)) -> -7.178670066 | I62: =IF(270<=B62,ATAN(dtan(B62)*DCOS('2012年'!$J$2))/PI()*180+360,IF(B62>90,ATAN(dtan(B62)*DCOS('2012年'!$J$2))/PI()*180+180,ATAN(dtan(B62)*DCOS('2012年'!$J$2))/PI()*180)) -> 343.1121428 | J62: 5.685766336 | K62: -0.2757818256 | L62: 12.18965456 | M62: -0.2062578295 | N62: =adcos((-dsin(検索入力!$A$7)*dsin(H62)-dsin(出没角_度))/(DCOS(検索入力!$A$7)*DCOS(H62))) -> 85.93963158 | O62: 06:21:05.198 | P62: =ATAN((-dsin(検索入力!$A$7)*DCOS(N62*0.75+N61*0.25)*DCOS(H62*0.75+H61*0.25)+DCOS(検索入力!$A$7)*dsin(H62*0.75+H61*0.25))/(dsin(N62*0.75+N61*0.25)*DCOS(H62*0.75+H61*0.25)))/PI()*180 -> -8.31707867 | Q62: =(12+(L62+'2012年'!$J$3)/60)/24 -> 12:04:31.371 | R62: 17:48:30.199 | S62: =ATAN((-dsin(検索入力!$A$7)*DCOS(N62*0.75+N63*0.25)*DCOS(H62*0.75+H63*0.25)+DCOS(検索入力!$A$7)*dsin(H62*0.75+H63*0.25))/(dsin(N62*0.75+N63*0.25)*DCOS(H62*0.75+H63*0.25)))/PI()*180 -> -8.082928392 | T62: 11:27:25
A63: 2013-03-03T12:00:00 | B63: =IF(B62+(A63-A62)*D62/'2012年'!$H$4*'2012年'!$L$3<360,B62+(A63-A62)*D62/'2012年'!$H$4*'2012年'!$L$3,B62+(A63-A62)*D62/'2012年'!$H$4*'2012年'!$L$3-360) -> 342.6937295 | C63: 59.67306354 | D63: ='2012年'!$H$4*(1+'2012年'!$H$3*DCOS(C63))^2*(1-'2012年'!$H$3*dsin(C63)*PI()/180*(1+'2012年'!$H$3*DCOS(C63))) -> 1.002478116 | E63: =D63*'2012年'!$L$3/'2012年'!$H$4-'2012年'!$L$4 -> 0.01687863939 | F63: 0.06751455757 | G63: 6.573412216 | H63: =adsin(dsin(B63)*dsin('2012年'!$J$2)) -> -6.795955298 | I63: =IF(270<=B63,ATAN(dtan(B63)*DCOS('2012年'!$J$2))/PI()*180+360,IF(B63>90,ATAN(dtan(B63)*DCOS('2012年'!$J$2))/PI()*180+180,ATAN(dtan(B63)*DCOS('2012年'!$J$2))/PI()*180)) -> 344.0462257 | J63: 5.40998451 | K63: -0.2815966242 | L63: 11.98339673 | M63: -0.2140820666 | N63: =adcos((-dsin(検索入力!$A$7)*dsin(H63)-dsin(出没角_度))/(DCOS(検索入力!$A$7)*DCOS(H63))) -> 86.21312604 | O63: 06:19:47.349 | P63: =ATAN((-dsin(検索入力!$A$7)*DCOS(N63*0.75+N62*0.25)*DCOS(H63*0.75+H62*0.25)+DCOS(検索入力!$A$7)*dsin(H63*0.75+H62*0.25))/(dsin(N63*0.75+N62*0.25)*DCOS(H63*0.75+H62*0.25)))/PI()*180 -> -7.848296024 | Q63: =(12+(L63+'2012年'!$J$3)/60)/24 -> 12:04:18.996 | R63: 17:49:23.384 | S63: =ATAN((-dsin(検索入力!$A$7)*DCOS(N63*0.75+N64*0.25)*DCOS(H63*0.75+H64*0.25)+DCOS(検索入力!$A$7)*dsin(H63*0.75+H64*0.25))/(dsin(N63*0.75+N64*0.25)*DCOS(H63*0.75+H64*0.25)))/PI()*180 -> -7.613212095 | T63: 11:29:36.035
A64: 2013-03-04T12:00:00 | B64: =IF(B63+(A64-A63)*D63/'2012年'!$H$4*'2012年'!$L$3<360,B63+(A64-A63)*D63/'2012年'!$H$4*'2012年'!$L$3,B63+(A64-A63)*D63/'2012年'!$H$4*'2012年'!$L$3-360) -> 343.6962555 | C64: 60.67554165 | D64: ='2012年'!$H$4*(1+'2012年'!$H$3*DCOS(C64))^2*(1-'2012年'!$H$3*dsin(C64)*PI()/180*(1+'2012年'!$H$3*DCOS(C64))) -> 1.0019711 | E64: =D64*'2012年'!$L$3/'2012年'!$H$4-'2012年'!$L$4 -> 0.01637159975 | F64: 0.06548639901 | G64: 6.640926774 | H64: =adsin(dsin(B64)*dsin('2012年'!$J$2)) -> -6.411647075 | I64: =IF(270<=B64,ATAN(dtan(B64)*DCOS('2012年'!$J$2))/PI()*180+360,IF(B64>90,ATAN(dtan(B64)*DCOS('2012年'!$J$2))/PI()*180+180,ATAN(dtan(B64)*DCOS('2012年'!$J$2))/PI()*180)) -> 344.9783525 | J64: 5.128387886 | K64: -0.2870785194 | L64: 11.76931466 | M64: -0.2215921203 | N64: =adcos((-dsin(検索入力!$A$7)*dsin(H64)-dsin(出没角_度))/(DCOS(検索入力!$A$7)*DCOS(H64))) -> 86.48728089 | O64: 06:18:28.864 | P64: =ATAN((-dsin(検索入力!$A$7)*DCOS(N64*0.75+N63*0.25)*DCOS(H64*0.75+H63*0.25)+DCOS(検索入力!$A$7)*dsin(H64*0.75+H63*0.25))/(dsin(N64*0.75+N63*0.25)*DCOS(H64*0.75+H63*0.25)))/PI()*180 -> -7.377677334 | Q64: =(12+(L64+'2012年'!$J$3)/60)/24 -> 12:04:06.151 | R64: 17:50:16.260 | S64: =ATAN((-dsin(検索入力!$A$7)*DCOS(N64*0.75+N65*0.25)*DCOS(H64*0.75+H65*0.25)+DCOS(検索入力!$A$7)*dsin(H64*0.75+H65*0.25))/(dsin(N64*0.75+N65*0.25)*DCOS(H64*0.75+H65*0.25)))/PI()*180 -> -7.141721998 | T64: 11:31:47.396
A65: 2013-03-05T12:00:00 | B65: =IF(B64+(A65-A64)*D64/'2012年'!$H$4*'2012年'!$L$3<360,B64+(A65-A64)*D64/'2012年'!$H$4*'2012年'!$L$3,B64+(A65-A64)*D64/'2012年'!$H$4*'2012年'!$L$3-360) -> 344.6982745 | C65: 61.67751275 | D65: ='2012年'!$H$4*(1+'2012年'!$H$3*DCOS(C65))^2*(1-'2012年'!$H$3*dsin(C65)*PI()/180*(1+'2012年'!$H$3*DCOS(C65))) -> 1.001459574 | E65: =D65*'2012年'!$L$3/'2012年'!$H$4-'2012年'!$L$4 -> 0.01586004872 | F65: 0.06344019488 | G65: 6.706413173 | H65: =adsin(dsin(B65)*dsin('2012年'!$J$2)) -> -6.025854212 | I65: =IF(270<=B65,ATAN(dtan(B65)*DCOS('2012年'!$J$2))/PI()*180+360,IF(B65>90,ATAN(dtan(B65)*DCOS('2012年'!$J$2))/PI()*180+180,ATAN(dtan(B65)*DCOS('2012年'!$J$2))/PI()*180)) -> 345.9086018 | J65: 4.841309366 | K65: -0.2922244235 | L65: 11.54772254 | M65: -0.2287842286 | N65: =adcos((-dsin(検索入力!$A$7)*dsin(H65)-dsin(出没角_度))/(DCOS(検索入力!$A$7)*DCOS(H65))) -> 86.76204516 | O65: 06:17:09.774 | P65: =ATAN((-dsin(検索入力!$A$7)*DCOS(N65*0.75+N64*0.25)*DCOS(H65*0.75+H64*0.25)+DCOS(検索入力!$A$7)*dsin(H65*0.75+H64*0.25))/(dsin(N65*0.75+N64*0.25)*DCOS(H65*0.75+H64*0.25)))/PI()*180 -> -6.905346843 | Q65: =(12+(L65+'2012年'!$J$3)/60)/24 -> 12:03:52.855 | R65: 17:51:08.834 | S65: =ATAN((-dsin(検索入力!$A$7)*DCOS(N65*0.75+N66*0.25)*DCOS(H65*0.75+H66*0.25)+DCOS(検索入力!$A$7)*dsin(H65*0.75+H66*0.25))/(dsin(N65*0.75+N66*0.25)*DCOS(H65*0.75+H66*0.25)))/PI()*180 -> -6.668581859 | T65: 11:33:59.060
A66: 2013-03-06T12:00:00 | B66: =IF(B65+(A66-A65)*D65/'2012年'!$H$4*'2012年'!$L$3<360,B65+(A66-A65)*D65/'2012年'!$H$4*'2012年'!$L$3,B65+(A66-A65)*D65/'2012年'!$H$4*'2012年'!$L$3-360) -> 345.6997819 | C66: 62.67897233 | D66: ='2012年'!$H$4*(1+'2012年'!$H$3*DCOS(C66))^2*(1-'2012年'!$H$3*dsin(C66)*PI()/180*(1+'2012年'!$H$3*DCOS(C66))) -> 1.000943705 | E66: =D66*'2012年'!$L$3/'2012年'!$H$4-'2012年'!$L$4 -> 0.01534415578 | F66: =4*E66 -> 0.06137662313 | G66: 6.769853368 | H66: =adsin(dsin(B66)*dsin('2012年'!$J$2)) -> -5.638685012 | I66: =IF(270<=B66,ATAN(dtan(B66)*DCOS('2012年'!$J$2))/PI()*180+360,IF(B66>90,ATAN(dtan(B66)*DCOS('2012年'!$J$2))/PI()*180+180,ATAN(dtan(B66)*DCOS('2012年'!$J$2))/PI()*180)) -> 346.8370531 | J66: =(I66-B66)*4 -> 4.549084943 | K66: =J67-J66 -> -0.2970315653 | L66: =G66+J66 -> 11.31893831 | M66: =F66+K66 -> -0.2356549422 | N66: =adcos((-dsin(検索入力!$A$7)*dsin(H66)-dsin(出没角_度))/(DCOS(検索入力!$A$7)*DCOS(H66))) -> 87.03736929 | O66: 06:15:50.111 | P66: =ATAN((-dsin(検索入力!$A$7)*DCOS(N66*0.75+N65*0.25)*DCOS(H66*0.75+H65*0.25)+DCOS(検索入力!$A$7)*dsin(H66*0.75+H65*0.25))/(dsin(N66*0.75+N65*0.25)*DCOS(H66*0.75+H65*0.25)))/PI()*180 -> -6.431427831 | Q66: =(12+(L66+'2012年'!$J$3)/60)/24 -> 12:03:39.128 | R66: =0.75*Q66+0.25*Q67+(0.75*N66+0.25*N67)*4/60/24 -> 17:52:01.112 | S66: =ATAN((-dsin(検索入力!$A$7)*DCOS(N66*0.75+N67*0.25)*DCOS(H66*0.75+H67*0.25)+DCOS(検索入力!$A$7)*dsin(H66*0.75+H67*0.25))/(dsin(N66*0.75+N67*0.25)*DCOS(H66*0.75+H67*0.25)))/PI()*180 -> -6.193914492 | T66: =R66-O66 -> 11:36:11.001
A67: 2013-03-07T12:00:00 | B67: =IF(B66+(A67-A66)*D66/'2012年'!$H$4*'2012年'!$L$3<360,B66+(A67-A66)*D66/'2012年'!$H$4*'2012年'!$L$3,B66+(A67-A66)*D66/'2012年'!$H$4*'2012年'!$L$3-360) -> 346.7007734 | C67: =IF(C66+D66*(A67-A66)<360,C66+D66*(A67-A66),C66+D66*(A67-A66)-360) -> 63.67991603 | D67: ='2012年'!$H$4*(1+'2012年'!$H$3*DCOS(C67))^2*(1-'2012年'!$H$3*dsin(C67)*PI()/180*(1+'2012年'!$H$3*DCOS(C67))) -> 1.000423666 | E67: =D67*'2012年'!$L$3/'2012年'!$H$4-'2012年'!$L$4 -> 0.01482409125 | F67: 0.05929636498 | G67: =G66+F66*(A67-A66) -> 6.831229991 | H67: =adsin(dsin(B67)*dsin('2012年'!$J$2)) -> -5.250247258 | I67: =IF(270<=B67,ATAN(dtan(B67)*DCOS('2012年'!$J$2))/PI()*180+360,IF(B67>90,ATAN(dtan(B67)*DCOS('2012年'!$J$2))/PI()*180+180,ATAN(dtan(B67)*DCOS('2012年'!$J$2))/PI()*180)) -> 347.7637868 | J67: 4.252053378 | K67: -0.3014974818 | L67: 11.08328337 | M67: -0.2422011168 | N67: =adcos((-dsin(検索入力!$A$7)*dsin(H67)-dsin(出没角_度))/(DCOS(検索入力!$A$7)*DCOS(H67))) -> 87.31320496 | O67: =0.75*Q67+0.25*Q66-(0.75*N67+0.25*N66)*4/60/24 -> 06:14:29.905 | P67: =ATAN((-dsin(検索入力!$A$7)*DCOS(N67*0.75+N66*0.25)*DCOS(H67*0.75+H66*0.25)+DCOS(検索入力!$A$7)*dsin(H67*0.75+H66*0.25))/(dsin(N67*0.75+N66*0.25)*DCOS(H67*0.75+H66*0.25)))/PI()*180 -> -5.956042648 | Q67: =(12+(L67+'2012年'!$J$3)/60)/24 -> 12:03:24.989 | R67: 17:52:53.103 | S67: =ATAN((-dsin(検索入力!$A$7)*DCOS(N67*0.75+N68*0.25)*DCOS(H67*0.75+H68*0.25)+DCOS(検索入力!$A$7)*dsin(H67*0.75+H68*0.25))/(dsin(N67*0.75+N68*0.25)*DCOS(H67*0.75+H68*0.25)))/PI()*180 -> -5.717841783 | T67: 11:38:23.198
A68: 2013-03-08T12:00:00 | B68: =IF(B67+(A68-A67)*D67/'2012年'!$H$4*'2012年'!$L$3<360,B67+(A68-A67)*D67/'2012年'!$H$4*'2012年'!$L$3,B67+(A68-A67)*D67/'2012年'!$H$4*'2012年'!$L$3-360) -> 347.7012449 | C68: 64.6803397 | D68: ='2012年'!$H$4*(1+'2012年'!$H$3*DCOS(C68))^2*(1-'2012年'!$H$3*dsin(C68)*PI()/180*(1+'2012年'!$H$3*DCOS(C68))) -> 0.9998996257 | E68: =D68*'2012年'!$L$3/'2012年'!$H$4-'2012年'!$L$4 -> 0.01430002616 | F68: 0.05720010464 | G68: 6.890526356 | H68: =adsin(dsin(B68)*dsin('2012年'!$J$2)) -> -4.860648221 | I68: =IF(270<=B68,ATAN(dtan(B68)*DCOS('2012年'!$J$2))/PI()*180+360,IF(B68>90,ATAN(dtan(B68)*DCOS('2012年'!$J$2))/PI()*180+180,ATAN(dtan(B68)*DCOS('2012年'!$J$2))/PI()*180)) -> 348.6888838 | J68: 3.950555896 | K68: -0.3056200101 | L68: 10.84108225 | M68: -0.2484199054 | N68: =adcos((-dsin(検索入力!$A$7)*dsin(H68)-dsin(出没角_度))/(DCOS(検索入力!$A$7)*DCOS(H68))) -> 87.58950511 | O68: 06:13:09.187 | P68: =ATAN((-dsin(検索入力!$A$7)*DCOS(N68*0.75+N67*0.25)*DCOS(H68*0.75+H67*0.25)+DCOS(検索入力!$A$7)*dsin(H68*0.75+H67*0.25))/(dsin(N68*0.75+N67*0.25)*DCOS(H68*0.75+H67*0.25)))/PI()*180 -> -5.479312727 | Q68: =(12+(L68+'2012年'!$J$3)/60)/24 -> 12:03:10.457 | R68: 17:53:44.815 | S68: =ATAN((-dsin(検索入力!$A$7)*DCOS(N68*0.75+N69*0.25)*DCOS(H68*0.75+H69*0.25)+DCOS(検索入力!$A$7)*dsin(H68*0.75+H69*0.25))/(dsin(N68*0.75+N69*0.25)*DCOS(H68*0.75+H69*0.25)))/PI()*180 -> -5.240484723 | T68: 11:40:35.628
A69: 2013-03-09T12:00:00 | B69: =IF(B68+(A69-A68)*D68/'2012年'!$H$4*'2012年'!$L$3<360,B68+(A69-A68)*D68/'2012年'!$H$4*'2012年'!$L$3,B68+(A69-A68)*D68/'2012年'!$H$4*'2012年'!$L$3-360) -> 348.7011922 | C69: 65.68023932 | D69: ='2012年'!$H$4*(1+'2012年'!$H$3*DCOS(C69))^2*(1-'2012年'!$H$3*dsin(C69)*PI()/180*(1+'2012年'!$H$3*DCOS(C69))) -> 0.999371757 | E69: =D69*'2012年'!$L$3/'2012年'!$H$4-'2012年'!$L$4 -> 0.01377213225 | F69: 0.05508852898 | G69: 6.947726461 | H69: =adsin(dsin(B69)*dsin('2012年'!$J$2)) -> -4.469994654 | I69: =IF(270<=B69,ATAN(dtan(B69)*DCOS('2012年'!$J$2))/PI()*180+360,IF(B69>90,ATAN(dtan(B69)*DCOS('2012年'!$J$2))/PI()*180+180,ATAN(dtan(B69)*DCOS('2012年'!$J$2))/PI()*180)) -> 349.6124262 | J69: 3.644935886 | K69: -0.3093972795 | L69: 10.59266235 | M69: -0.2543087505 | N69: =adcos((-dsin(検索入力!$A$7)*dsin(H69)-dsin(出没角_度))/(DCOS(検索入力!$A$7)*DCOS(H69))) -> 87.86622378 | O69: 06:11:47.987 | P69: =ATAN((-dsin(検索入力!$A$7)*DCOS(N69*0.75+N68*0.25)*DCOS(H69*0.75+H68*0.25)+DCOS(検索入力!$A$7)*dsin(H69*0.75+H68*0.25))/(dsin(N69*0.75+N68*0.25)*DCOS(H69*0.75+H68*0.25)))/PI()*180 -> -5.00135862 | Q69: =(12+(L69+'2012年'!$J$3)/60)/24 -> 12:02:55.552 | R69: 17:54:36.256 | S69: =ATAN((-dsin(検索入力!$A$7)*DCOS(N69*0.75+N70*0.25)*DCOS(H69*0.75+H70*0.25)+DCOS(検索入力!$A$7)*dsin(H69*0.75+H70*0.25))/(dsin(N69*0.75+N70*0.25)*DCOS(H69*0.75+H70*0.25)))/PI()*180 -> -4.761963429 | T69: 11:42:48.269
A70: 2013-03-10T12:00:00 | B70: =IF(B69+(A70-A69)*D69/'2012年'!$H$4*'2012年'!$L$3<360,B69+(A70-A69)*D69/'2012年'!$H$4*'2012年'!$L$3,B69+(A70-A69)*D69/'2012年'!$H$4*'2012年'!$L$3-360) -> 349.7006117 | C70: 66.67961108 | D70: ='2012年'!$H$4*(1+'2012年'!$H$3*DCOS(C70))^2*(1-'2012年'!$H$3*dsin(C70)*PI()/180*(1+'2012年'!$H$3*DCOS(C70))) -> 0.998840232 | E70: =D70*'2012年'!$L$3/'2012年'!$H$4-'2012年'!$L$4 -> 0.01324058183 | F70: 0.05296232732 | G70: 7.00281499 | H70: =adsin(dsin(B70)*dsin('2012年'!$J$2)) -> -4.078392801 | I70: =IF(270<=B70,ATAN(dtan(B70)*DCOS('2012年'!$J$2))/PI()*180+360,IF(B70>90,ATAN(dtan(B70)*DCOS('2012年'!$J$2))/PI()*180+180,ATAN(dtan(B70)*DCOS('2012年'!$J$2))/PI()*180)) -> 350.5344964 | J70: 3.335538606 | K70: -0.3128277043 | L70: 10.3383536 | M70: -0.2598653769 | N70: =adcos((-dsin(検索入力!$A$7)*dsin(H70)-dsin(出没角_度))/(DCOS(検索入力!$A$7)*DCOS(H70))) -> 88.14331611 | O70: 06:10:26.338 | P70: =ATAN((-dsin(検索入力!$A$7)*DCOS(N70*0.75+N69*0.25)*DCOS(H70*0.75+H69*0.25)+DCOS(検索入力!$A$7)*dsin(H70*0.75+H69*0.25))/(dsin(N70*0.75+N69*0.25)*DCOS(H70*0.75+H69*0.25)))/PI()*180 -> -4.522300019 | Q70: =(12+(L70+'2012年'!$J$3)/60)/24 -> 12:02:40.293 | R70: 17:55:27.436 | S70: =ATAN((-dsin(検索入力!$A$7)*DCOS(N70*0.75+N71*0.25)*DCOS(H70*0.75+H71*0.25)+DCOS(検索入力!$A$7)*dsin(H70*0.75+H71*0.25))/(dsin(N70*0.75+N71*0.25)*DCOS(H70*0.75+H71*0.25)))/PI()*180 -> -4.282397178 | T70: 11:45:01.099
A71: 2013-03-11T12:00:00 | B71: =IF(B70+(A71-A70)*D70/'2012年'!$H$4*'2012年'!$L$3<360,B70+(A71-A70)*D70/'2012年'!$H$4*'2012年'!$L$3,B70+(A71-A70)*D70/'2012年'!$H$4*'2012年'!$L$3-360) -> 350.6994997 | C71: 67.67845131 | D71: ='2012年'!$H$4*(1+'2012年'!$H$3*DCOS(C71))^2*(1-'2012年'!$H$3*dsin(C71)*PI()/180*(1+'2012年'!$H$3*DCOS(C71))) -> 0.9983052235 | E71: =D71*'2012年'!$L$3/'2012年'!$H$4-'2012年'!$L$4 -> 0.01270554777 | F71: 0.05082219109 | G71: 7.055777317 | H71: =adsin(dsin(B71)*dsin('2012年'!$J$2)) -> -3.685948396 | I71: =IF(270<=B71,ATAN(dtan(B71)*DCOS('2012年'!$J$2))/PI()*180+360,IF(B71>90,ATAN(dtan(B71)*DCOS('2012年'!$J$2))/PI()*180+180,ATAN(dtan(B71)*DCOS('2012年'!$J$2))/PI()*180)) -> 351.4551774 | J71: 3.022710902 | K71: -0.3159099762 | L71: 10.07848822 | M71: -0.2650877851 | N71: =adcos((-dsin(検索入力!$A$7)*dsin(H71)-dsin(出没角_度))/(DCOS(検索入力!$A$7)*DCOS(H71))) -> 88.42073819 | O71: 06:09:04.267 | P71: =ATAN((-dsin(検索入力!$A$7)*DCOS(N71*0.75+N70*0.25)*DCOS(H71*0.75+H70*0.25)+DCOS(検索入力!$A$7)*dsin(H71*0.75+H70*0.25))/(dsin(N71*0.75+N70*0.25)*DCOS(H71*0.75+H70*0.25)))/PI()*180 -> -4.04225579 | Q71: =(12+(L71+'2012年'!$J$3)/60)/24 -> 12:02:24.701 | R71: 17:56:18.365 | S71: =ATAN((-dsin(検索入力!$A$7)*DCOS(N71*0.75+N72*0.25)*DCOS(H71*0.75+H72*0.25)+DCOS(検索入力!$A$7)*dsin(H71*0.75+H72*0.25))/(dsin(N71*0.75+N72*0.25)*DCOS(H71*0.75+H72*0.25)))/PI()*180 -> -3.801904429 | T71: 11:47:14.097
A72: 2013-03-12T12:00:00 | B72: =IF(B71+(A72-A71)*D71/'2012年'!$H$4*'2012年'!$L$3<360,B71+(A72-A71)*D71/'2012年'!$H$4*'2012年'!$L$3,B71+(A72-A71)*D71/'2012年'!$H$4*'2012年'!$L$3-360) -> 351.6978526 | C72: 68.67675653 | D72: ='2012年'!$H$4*(1+'2012年'!$H$3*DCOS(C72))^2*(1-'2012年'!$H$3*dsin(C72)*PI()/180*(1+'2012年'!$H$3*DCOS(C72))) -> 0.9977669048 | E72: =D72*'2012年'!$L$3/'2012年'!$H$4-'2012年'!$L$4 -> 0.0121672034 | F72: 0.0486688136 | G72: 7.106599508 | H72: =adsin(dsin(B72)*dsin('2012年'!$J$2)) -> -3.292766673 | I72: =IF(270<=B72,ATAN(dtan(B72)*DCOS('2012年'!$J$2))/PI()*180+360,IF(B72>90,ATAN(dtan(B72)*DCOS('2012年'!$J$2))/PI()*180+180,ATAN(dtan(B72)*DCOS('2012年'!$J$2))/PI()*180)) -> 352.3745528 | J72: 2.706800926 | K72: -0.3186430579 | L72: 9.813400434 | M72: -0.2699742443 | N72: =adcos((-dsin(検索入力!$A$7)*dsin(H72)-dsin(出没角_度))/(DCOS(検索入力!$A$7)*DCOS(H72))) -> 88.69844707 | O72: 06:07:41.808 | P72: =ATAN((-dsin(検索入力!$A$7)*DCOS(N72*0.75+N71*0.25)*DCOS(H72*0.75+H71*0.25)+DCOS(検索入力!$A$7)*dsin(H72*0.75+H71*0.25))/(dsin(N72*0.75+N71*0.25)*DCOS(H72*0.75+H71*0.25)))/PI()*180 -> -3.561343996 | Q72: =(12+(L72+'2012年'!$J$3)/60)/24 -> 12:02:08.796 | R72: 17:57:09.051 | S72: =ATAN((-dsin(検索入力!$A$7)*DCOS(N72*0.75+N73*0.25)*DCOS(H72*0.75+H73*0.25)+DCOS(検索入力!$A$7)*dsin(H72*0.75+H73*0.25))/(dsin(N72*0.75+N73*0.25)*DCOS(H72*0.75+H73*0.25)))/PI()*180 -> -3.320602861 | T72: 11:49:27.243
A73: 2013-03-13T12:00:00 | B73: =IF(B72+(A73-A72)*D72/'2012年'!$H$4*'2012年'!$L$3<360,B72+(A73-A72)*D72/'2012年'!$H$4*'2012年'!$L$3,B72+(A73-A72)*D72/'2012年'!$H$4*'2012年'!$L$3-360) -> 352.6956671 | C73: 69.67452344 | D73: ='2012年'!$H$4*(1+'2012年'!$H$3*DCOS(C73))^2*(1-'2012年'!$H$3*dsin(C73)*PI()/180*(1+'2012年'!$H$3*DCOS(C73))) -> 0.9972254497 | E73: =D73*'2012年'!$L$3/'2012年'!$H$4-'2012年'!$L$4 -> 0.01162572244 | F73: 0.04650288975 | G73: 7.155268322 | H73: =adsin(dsin(B73)*dsin('2012年'!$J$2)) -> -2.898952367 | I73: =IF(270<=B73,ATAN(dtan(B73)*DCOS('2012年'!$J$2))/PI()*180+360,IF(B73>90,ATAN(dtan(B73)*DCOS('2012年'!$J$2))/PI()*180+180,ATAN(dtan(B73)*DCOS('2012年'!$J$2))/PI()*180)) -> 353.2927066 | J73: 2.388157868 | K73: -0.3210261762 | L73: 9.543426189 | M73: -0.2745232864 | N73: =adcos((-dsin(検索入力!$A$7)*dsin(H73)-dsin(出没角_度))/(DCOS(検索入力!$A$7)*DCOS(H73))) -> 88.9764006 | O73: 06:06:18.988 | P73: =ATAN((-dsin(検索入力!$A$7)*DCOS(N73*0.75+N72*0.25)*DCOS(H73*0.75+H72*0.25)+DCOS(検索入力!$A$7)*dsin(H73*0.75+H72*0.25))/(dsin(N73*0.75+N72*0.25)*DCOS(H73*0.75+H72*0.25)))/PI()*180 -> -3.079681937 | Q73: =(12+(L73+'2012年'!$J$3)/60)/24 -> 12:01:52.598 | R73: 17:57:59.505 | S73: =ATAN((-dsin(検索入力!$A$7)*DCOS(N73*0.75+N74*0.25)*DCOS(H73*0.75+H74*0.25)+DCOS(検索入力!$A$7)*dsin(H73*0.75+H74*0.25))/(dsin(N73*0.75+N74*0.25)*DCOS(H73*0.75+H74*0.25)))/PI()*180 -> -2.8386094 | T73: 11:51:40.517
A74: 2013-03-14T12:00:00 | B74: =IF(B73+(A74-A73)*D73/'2012年'!$H$4*'2012年'!$L$3<360,B73+(A74-A73)*D73/'2012年'!$H$4*'2012年'!$L$3,B73+(A74-A73)*D73/'2012年'!$H$4*'2012年'!$L$3-360) -> 353.6929402 | C74: 70.67174889 | D74: ='2012年'!$H$4*(1+'2012年'!$H$3*DCOS(C74))^2*(1-'2012年'!$H$3*dsin(C74)*PI()/180*(1+'2012年'!$H$3*DCOS(C74))) -> 0.9966810322 | E74: =D74*'2012年'!$L$3/'2012年'!$H$4-'2012年'!$L$4 -> 0.01108127894 | F74: 0.04432511577 | G74: 7.201771211 | H74: =adsin(dsin(B74)*dsin('2012年'!$J$2)) -> -2.504609726 | I74: =IF(270<=B74,ATAN(dtan(B74)*DCOS('2012年'!$J$2))/PI()*180+360,IF(B74>90,ATAN(dtan(B74)*DCOS('2012年'!$J$2))/PI()*180+180,ATAN(dtan(B74)*DCOS('2012年'!$J$2))/PI()*180)) -> 354.2097231 | J74: 2.067131692 | K74: -0.3230588162 | L74: 9.268902903 | M74: -0.2787337004 | N74: =adcos((-dsin(検索入力!$A$7)*dsin(H74)-dsin(出没角_度))/(DCOS(検索入力!$A$7)*DCOS(H74))) -> 89.25455742 | O74: 06:04:55.840 | P74: =ATAN((-dsin(検索入力!$A$7)*DCOS(N74*0.75+N73*0.25)*DCOS(H74*0.75+H73*0.25)+DCOS(検索入力!$A$7)*dsin(H74*0.75+H73*0.25))/(dsin(N74*0.75+N73*0.25)*DCOS(H74*0.75+H73*0.25)))/PI()*180 -> -2.597386176 | Q74: =(12+(L74+'2012年'!$J$3)/60)/24 -> 12:01:36.126 | R74: 17:58:49.738 | S74: =ATAN((-dsin(検索入力!$A$7)*DCOS(N74*0.75+N75*0.25)*DCOS(H74*0.75+H75*0.25)+DCOS(検索入力!$A$7)*dsin(H74*0.75+H75*0.25))/(dsin(N74*0.75+N75*0.25)*DCOS(H74*0.75+H75*0.25)))/PI()*180 -> -2.356040255 | T74: 11:53:53.898
A75: 2013-03-15T12:00:00 | B75: =IF(B74+(A75-A74)*D74/'2012年'!$H$4*'2012年'!$L$3<360,B74+(A75-A74)*D74/'2012年'!$H$4*'2012年'!$L$3,B74+(A75-A74)*D74/'2012年'!$H$4*'2012年'!$L$3-360) -> 354.6896689 | C75: 71.66842992 | D75: ='2012年'!$H$4*(1+'2012年'!$H$3*DCOS(C75))^2*(1-'2012年'!$H$3*dsin(C75)*PI()/180*(1+'2012年'!$H$3*DCOS(C75))) -> 0.9961338267 | E75: =D75*'2012年'!$L$3/'2012年'!$H$4-'2012年'!$L$4 -> 0.01053404723 | F75: 0.04213618893 | G75: 7.246096327 | H75: =adsin(dsin(B75)*dsin('2012年'!$J$2)) -> -2.109842514 | I75: =IF(270<=B75,ATAN(dtan(B75)*DCOS('2012年'!$J$2))/PI()*180+360,IF(B75>90,ATAN(dtan(B75)*DCOS('2012年'!$J$2))/PI()*180+180,ATAN(dtan(B75)*DCOS('2012年'!$J$2))/PI()*180)) -> 355.1256871 | J75: 1.744072876 | K75: -0.3247407153 | L75: 8.990169203 | M75: -0.2826045263 | N75: =adcos((-dsin(検索入力!$A$7)*dsin(H75)-dsin(出没角_度))/(DCOS(検索入力!$A$7)*DCOS(H75))) -> 89.53287685 | O75: 06:03:32.392 | P75: =ATAN((-dsin(検索入力!$A$7)*DCOS(N75*0.75+N74*0.25)*DCOS(H75*0.75+H74*0.25)+DCOS(検索入力!$A$7)*dsin(H75*0.75+H74*0.25))/(dsin(N75*0.75+N74*0.25)*DCOS(H75*0.75+H74*0.25)))/PI()*180 -> -2.114572572 | Q75: =(12+(L75+'2012年'!$J$3)/60)/24 -> 12:01:19.402 | R75: 17:59:39.760 | S75: =ATAN((-dsin(検索入力!$A$7)*DCOS(N75*0.75+N76*0.25)*DCOS(H75*0.75+H76*0.25)+DCOS(検索入力!$A$7)*dsin(H75*0.75+H76*0.25))/(dsin(N75*0.75+N76*0.25)*DCOS(H75*0.75+H76*0.25)))/PI()*180 -> -1.873010945 | T75: 11:56:07.368
A76: 2013-03-16T12:00:00 | B76: =IF(B75+(A76-A75)*D75/'2012年'!$H$4*'2012年'!$L$3<360,B75+(A76-A75)*D75/'2012年'!$H$4*'2012年'!$L$3,B75+(A76-A75)*D75/'2012年'!$H$4*'2012年'!$L$3-360) -> 355.6858503 | C76: 72.66456375 | D76: ='2012年'!$H$4*(1+'2012年'!$H$3*DCOS(C76))^2*(1-'2012年'!$H$3*dsin(C76)*PI()/180*(1+'2012年'!$H$3*DCOS(C76))) -> 0.9955840075 | E76: =D76*'2012年'!$L$3/'2012年'!$H$4-'2012年'!$L$4 -> 0.00998420183 | F76: 0.03993680732 | G76: 7.288232516 | H76: =adsin(dsin(B76)*dsin('2012年'!$J$2)) -> -1.714754022 | I76: =IF(270<=B76,ATAN(dtan(B76)*DCOS('2012年'!$J$2))/PI()*180+360,IF(B76>90,ATAN(dtan(B76)*DCOS('2012年'!$J$2))/PI()*180+180,ATAN(dtan(B76)*DCOS('2012年'!$J$2))/PI()*180)) -> 356.0406833 | J76: 1.41933216 | K76: -0.3260718579 | L76: 8.707564676 | M76: -0.2861350506 | N76: =adcos((-dsin(検索入力!$A$7)*dsin(H76)-dsin(出没角_度))/(DCOS(検索入力!$A$7)*DCOS(H76))) -> 89.8113188 | O76: 06:02:08.675 | P76: =ATAN((-dsin(検索入力!$A$7)*DCOS(N76*0.75+N75*0.25)*DCOS(H76*0.75+H75*0.25)+DCOS(検索入力!$A$7)*dsin(H76*0.75+H75*0.25))/(dsin(N76*0.75+N75*0.25)*DCOS(H76*0.75+H75*0.25)))/PI()*180 -> -1.631356317 | Q76: =(12+(L76+'2012年'!$J$3)/60)/24 -> 12:01:02.446 | R76: 18:00:29.582 | S76: =ATAN((-dsin(検索入力!$A$7)*DCOS(N76*0.75+N77*0.25)*DCOS(H76*0.75+H77*0.25)+DCOS(検索入力!$A$7)*dsin(H76*0.75+H77*0.25))/(dsin(N76*0.75+N77*0.25)*DCOS(H76*0.75+H77*0.25)))/PI()*180 -> -1.389636341 | T76: 11:58:20.907
A77: 2013-03-17T12:00:00 | B77: =IF(B76+(A77-A76)*D76/'2012年'!$H$4*'2012年'!$L$3<360,B76+(A77-A76)*D76/'2012年'!$H$4*'2012年'!$L$3,B76+(A77-A76)*D76/'2012年'!$H$4*'2012年'!$L$3-360) -> 356.6814818 | C77: 73.66014776 | D77: ='2012年'!$H$4*(1+'2012年'!$H$3*DCOS(C77))^2*(1-'2012年'!$H$3*dsin(C77)*PI()/180*(1+'2012年'!$H$3*DCOS(C77))) -> 0.9950317495 | E77: =D77*'2012年'!$L$3/'2012年'!$H$4-'2012年'!$L$4 -> 0.009431917386 | F77: 0.03772766955 | G77: 7.328169323 | H77: =adsin(dsin(B77)*dsin('2012年'!$J$2)) -> -1.31944708 | I77: =IF(270<=B77,ATAN(dtan(B77)*DCOS('2012年'!$J$2))/PI()*180+360,IF(B77>90,ATAN(dtan(B77)*DCOS('2012年'!$J$2))/PI()*180+180,ATAN(dtan(B77)*DCOS('2012年'!$J$2))/PI()*180)) -> 356.9547969 | J77: 1.093260302 | K77: -0.3270524706 | L77: 8.421429626 | M77: -0.2893248011 | N77: =adcos((-dsin(検索入力!$A$7)*dsin(H77)-dsin(出没角_度))/(DCOS(検索入力!$A$7)*DCOS(H77))) -> 90.08984375 | O77: 06:00:44.719 | P77: =ATAN((-dsin(検索入力!$A$7)*DCOS(N77*0.75+N76*0.25)*DCOS(H77*0.75+H76*0.25)+DCOS(検索入力!$A$7)*dsin(H77*0.75+H76*0.25))/(dsin(N77*0.75+N76*0.25)*DCOS(H77*0.75+H76*0.25)))/PI()*180 -> -1.147851967 | Q77: =(12+(L77+'2012年'!$J$3)/60)/24 -> 12:00:45.278 | R77: 18:01:19.215 | S77: =ATAN((-dsin(検索入力!$A$7)*DCOS(N77*0.75+N78*0.25)*DCOS(H77*0.75+H78*0.25)+DCOS(検索入力!$A$7)*dsin(H77*0.75+H78*0.25))/(dsin(N77*0.75+N78*0.25)*DCOS(H77*0.75+H78*0.25)))/PI()*180 -> -0.9060306954 | T77: 12:00:34.496
A78: 2013-03-18T12:00:00 | B78: =IF(B77+(A78-A77)*D77/'2012年'!$H$4*'2012年'!$L$3<360,B77+(A78-A77)*D77/'2012年'!$H$4*'2012年'!$L$3,B77+(A78-A77)*D77/'2012年'!$H$4*'2012年'!$L$3-360) -> 357.6765611 | C78: 74.65517951 | D78: ='2012年'!$H$4*(1+'2012年'!$H$3*DCOS(C78))^2*(1-'2012年'!$H$3*dsin(C78)*PI()/180*(1+'2012年'!$H$3*DCOS(C78))) -> 0.9944772272 | E78: =D78*'2012年'!$L$3/'2012年'!$H$4-'2012年'!$L$4 -> 0.008877368627 | F78: 0.03550947451 | G78: 7.365896993 | H78: =adsin(dsin(B78)*dsin('2012年'!$J$2)) -> -0.9240240582 | I78: =IF(270<=B78,ATAN(dtan(B78)*DCOS('2012年'!$J$2))/PI()*180+360,IF(B78>90,ATAN(dtan(B78)*DCOS('2012年'!$J$2))/PI()*180+180,ATAN(dtan(B78)*DCOS('2012年'!$J$2))/PI()*180)) -> 357.8681131 | J78: 0.7662078317 | K78: -0.3276830175 | L78: 8.132104825 | M78: -0.292173543 | N78: =adcos((-dsin(検索入力!$A$7)*dsin(H78)-dsin(出没角_度))/(DCOS(検索入力!$A$7)*DCOS(H78))) -> 90.36841261 | O78: 05:59:20.553 | P78: =ATAN((-dsin(検索入力!$A$7)*DCOS(N78*0.75+N77*0.25)*DCOS(H78*0.75+H77*0.25)+DCOS(検索入力!$A$7)*dsin(H78*0.75+H77*0.25))/(dsin(N78*0.75+N77*0.25)*DCOS(H78*0.75+H77*0.25)))/PI()*180 -> -0.6641734792 | Q78: =(12+(L78+'2012年'!$J$3)/60)/24 -> 12:00:27.918 | R78: 18:02:08.669 | S78: =ATAN((-dsin(検索入力!$A$7)*DCOS(N78*0.75+N79*0.25)*DCOS(H78*0.75+H79*0.25)+DCOS(検索入力!$A$7)*dsin(H78*0.75+H79*0.25))/(dsin(N78*0.75+N79*0.25)*DCOS(H78*0.75+H79*0.25)))/PI()*180 -> -0.4223076775 | T78: 12:02:48.116
A79: 2013-03-19T12:00:00 | B79: =IF(B78+(A79-A78)*D78/'2012年'!$H$4*'2012年'!$L$3<360,B78+(A79-A78)*D78/'2012年'!$H$4*'2012年'!$L$3,B78+(A79-A78)*D78/'2012年'!$H$4*'2012年'!$L$3-360) -> 358.6710858 | C79: 75.64965673 | D79: ='2012年'!$H$4*(1+'2012年'!$H$3*DCOS(C79))^2*(1-'2012年'!$H$3*dsin(C79)*PI()/180*(1+'2012年'!$H$3*DCOS(C79))) -> 0.9939206154 | E79: =D79*'2012年'!$L$3/'2012年'!$H$4-'2012年'!$L$4 -> 0.008320730282 | F79: 0.03328292113 | G79: 7.401406467 | H79: =adsin(dsin(B79)*dsin('2012年'!$J$2)) -> -0.5285868877 | I79: =IF(270<=B79,ATAN(dtan(B79)*DCOS('2012年'!$J$2))/PI()*180+360,IF(B79>90,ATAN(dtan(B79)*DCOS('2012年'!$J$2))/PI()*180+180,ATAN(dtan(B79)*DCOS('2012年'!$J$2))/PI()*180)) -> 358.780717 | J79: 0.4385248143 | K79: -0.3279641957 | L79: 7.839931282 | M79: -0.2946812746 | N79: =adcos((-dsin(検索入力!$A$7)*dsin(H79)-dsin(出没角_度))/(DCOS(検索入力!$A$7)*DCOS(H79))) -> 90.6469867 | O79: 05:57:56.208 | P79: =ATAN((-dsin(検索入力!$A$7)*DCOS(N79*0.75+N78*0.25)*DCOS(H79*0.75+H78*0.25)+DCOS(検索入力!$A$7)*dsin(H79*0.75+H78*0.25))/(dsin(N79*0.75+N78*0.25)*DCOS(H79*0.75+H78*0.25)))/PI()*180 -> -0.1804342452 | Q79: =(12+(L79+'2012年'!$J$3)/60)/24 -> 12:00:10.388 | R79: 18:02:57.957 | S79: =ATAN((-dsin(検索入力!$A$7)*DCOS(N79*0.75+N80*0.25)*DCOS(H79*0.75+H80*0.25)+DCOS(検索入力!$A$7)*dsin(H79*0.75+H80*0.25))/(dsin(N79*0.75+N80*0.25)*DCOS(H79*0.75+H80*0.25)))/PI()*180 -> 0.06141958959 | T79: 12:05:01.749
A80: 2013-03-20T12:00:00 | B80: =IF(B79+(A80-A79)*D79/'2012年'!$H$4*'2012年'!$L$3<360,B79+(A80-A79)*D79/'2012年'!$H$4*'2012年'!$L$3,B79+(A80-A79)*D79/'2012年'!$H$4*'2012年'!$L$3-360) -> 359.6650539 | C80: 76.64357735 | D80: ='2012年'!$H$4*(1+'2012年'!$H$3*DCOS(C80))^2*(1-'2012年'!$H$3*dsin(C80)*PI()/180*(1+'2012年'!$H$3*DCOS(C80))) -> 0.9933620888 | E80: =D80*'2012年'!$L$3/'2012年'!$H$4-'2012年'!$L$4 -> 0.007762177026 | F80: 0.03104870811 | G80: 7.434689388 | H80: =adsin(dsin(B80)*dsin('2012年'!$J$2)) -> -0.1332370637 | I80: =IF(270<=B80,ATAN(dtan(B80)*DCOS('2012年'!$J$2))/PI()*180+360,IF(B80>90,ATAN(dtan(B80)*DCOS('2012年'!$J$2))/PI()*180+180,ATAN(dtan(B80)*DCOS('2012年'!$J$2))/PI()*180)) -> 359.6926941 | J80: 0.1105606185 | K80: -0.3278969324 | L80: 7.545250007 | M80: -0.2968482243 | N80: =adcos((-dsin(検索入力!$A$7)*dsin(H80)-dsin(出没角_度))/(DCOS(検索入力!$A$7)*DCOS(H80))) -> 90.92552762 | O80: 05:56:31.713 | P80: =ATAN((-dsin(検索入力!$A$7)*DCOS(N80*0.75+N79*0.25)*DCOS(H80*0.75+H79*0.25)+DCOS(検索入力!$A$7)*dsin(H80*0.75+H79*0.25))/(dsin(N80*0.75+N79*0.25)*DCOS(H80*0.75+H79*0.25)))/PI()*180 -> 0.3032528718 | Q80: =(12+(L80+'2012年'!$J$3)/60)/24 -> 11:59:52.707 | R80: 18:03:47.089 | S80: =ATAN((-dsin(検索入力!$A$7)*DCOS(N80*0.75+N81*0.25)*DCOS(H80*0.75+H81*0.25)+DCOS(検索入力!$A$7)*dsin(H80*0.75+H81*0.25))/(dsin(N80*0.75+N81*0.25)*DCOS(H80*0.75+H81*0.25)))/PI()*180 -> 0.5450384939 | T80: 12:07:15.376
